Workbook

Sheet M&A
A1: Avoided Cost Data Set | C1: Options
A2: AESC 2018 | C2: LEI High | D2: AESC 2016 | E2: AESC 2018
A4: Net or Gross
A5: Net | C5: Net | D5: Gross
A7: Include Incentives to Freeriders as Cost
A8: Yes | C8: Yes | D8: No
A10: Year 1
A11: 2019 | C11: >=2018
A13: Default Real Discount Rate | C13: PUC | D13: AESC | E13: 10 yr real discount rate + 2%
A14: =E14 -> 2.8 | C14: 6.5 | D14: 2.43 | E14: 2.8
A16: RGGI Real Discount Rate
A17: =DefaultDR -> 2.8
A19: Avoided Costs are in Real Dollars. Discount Rates must be enter as real discount rate.

Sheet Measures
BC1: =$AG1 -> 0 | BE1: =$AH1 -> 0 | BR1: AG<row> | BS1: AH<row> | DR1: 1 | DS1: 2 | DT1: 3 | DU1: 4 | DV1: 5 | DW1: 6 | DX1: 7 | DY1: 8 | DZ1: 9 | EA1: 10 | ED1: 1 | EE1: 2 | EF1: 3 | EG1: 4 | EH1: 5 | EI1: 6 | EJ1: 7 | EK1: 8 | EL1: 9 | EM1: 10 | EN1: 1 | EO1: 2 | EP1: 3 | EQ1: 4 | ER1: 5 | ES1: 6 | ET1: 7 | EU1: 8 | EV1: 9 | EW1: 10 | EX1: 1 | EY1: 2 | EZ1: 3 | FA1: 4 | FB1: 5 | FC1: 6 | FD1: 7 | FE1: 8 | FF1: 9 | FG1: 10 | FH1: 1 | FI1: 2 | FJ1: 3 | FK1: 4 | FL1: 5 | FM1: 6 | FN1: 7 | FO1: 8 | FP1: 9 | FQ1: 10 | FR1: 1 | FS1: 2 | FT1: 3 | FU1: 4 | FV1: 5 | FW1: 6 | FX1: 7 | FY1: 8 | FZ1: 9 | GA1: 10 | GB1: 1 | GC1: 2 | GD1: 3 | GE1: 4 | GF1: 5 | GG1: 6 | GH1: 7 | GI1: 8 | GJ1: 9 | GK1: 10 | GL1: 1 | GM1: 2 | GN1: 3 | GO1: 4 | GP1: 5 | GQ1: 6 | GR1: 7 | GS1: 8 | GT1: 9 | GU1: 10 | GV1: 1 | GW1: 2 | GX1: 3 | GY1: 4 | GZ1: 5 | HA1: 6 | HB1: 7 | HC1: 8 | HD1: 9 | HE1: 10 | HF1: 1 | HG1: 2 | HH1: 3 | HI1: 4 | HJ1: 5 | HK1: 6 | HL1: 7 | HM1: 8 | HN1: 9 | HO1: 10 | HP1: 1 | HQ1: 2 | HR1: 3 | HS1: 4 | HT1: 5 | HU1: 6 | HV1: 7 | HW1: 8 | HX1: 9 | HY1: 10 | HZ1: 1 | IA1: 2 | IB1: 3 | IC1: 4 | ID1: 5 | IE1: 6 | IF1: 7 | IG1: 8 | IH1: 9 | II1: 10
F2: Formula | AC2: Factors | AR2: Representative Parameters - used to calculate representative savings for measures that do no use deemed savings. | BL2: Representative Savings | BZ2: Avoided Cost | CB2: Respresentative Benefits and Costs (adjusted gross) | CQ2: NTG | CR2: Measure Screening | CT2: Incentive | CX2: Helper Columns used to translate effRT algorithms into Excel formulas. These columns have no impact on savings values once Excel formulas are created.
A3: Program Name | B3: Measure Name | C3: Measure Code | D3: Pricing Effective Date | E3: Pricing Effective End Date | F3: Measure Cost Method | G3: Measure Cost | H3: Measure Cost Cap | I3: Incentive Method | J3: Incentive | K3: Incentive Cap | L3: Savings Effective Date | M3: Savings Effective End Date | N3: Savings Method | O3: kWh | P3: kWh Min | Q3: kWh Max | R3: kW | S3: kW Min | T3: kW Max | U3: Winter kW | V3: Summer kW | W3: Therms | X3: Propane | Y3: Heating Oil | Z3: Kerosene | AA3: Wood | AB3: Water | AC3: Factor Effective Date | AD3: Factor Effective End Date | AF3: Useful Life | AG3: Winter CF | AH3: Summer CF | AI3: EPF Winter Peak | AJ3: EPF Winter Off Peak | AK3: EPF Summer Peak | AL3: EPF Summer Off Peak | AM3: ISR | AN3: RRe | AO3: RRd | AP3: FR | AQ3: SO | AR3: Name | AS3: Value | AT3: Name | AU3: Value | AV3: Name | AW3: Value | AX3: Name | AY3: Value | AZ3: Name | BA3: Value | BB3: Name | BC3: Value | BD3: Name | BE3: Value | BF3: Name | BG3: Value | BH3: Name | BI3: Value | BJ3: Name | BK3: Value | BL3: kWh | BO3: kW | BR3: Winter kW | BS3: Summer kW | BT3: Therms | BU3: Propane | BV3: Heating Oil | BW3: Kerosene | BX3: Wood | BY3: Water | BZ3: Customer Type (Res/Com) | CA3: Discount Rate | CB3: Electric Energy Benefit | CC3: Electric Demand Benefit | CD3: NG Benefit | CE3: Oil Benefit | CF3: Kerosene Benefit | CG3: Propane Benefit | CH3: Wood Benefit | CI3: Water Benefit | CJ3: Energy & Water Benefits | CK3: Fuel Costs | CL3: Non-energy Benefits | CM3: Measure Cost | CN3: Discounted Future O&M (decreased future O&M entered as a positive value) | CO3: Discounted future replacement costs (decreased future replacement cost entered as a positive value) | CP3: Fuel + Measure Cost | CQ3: NTG = 1 if Gross, NTG = 1-FR+SO if Net | CR3: TRC_net | CS3: Include (1 - yes, 0 - no) | CT3: Incentive Per Unit | CU3: % (if applicable) | CV3: Funding | CX3: Measure Cost | CZ3: kWh | DC3: kW | DF3: Winter kW | DG3: Summer kW | DH3: Therms | DI3: Propane | DJ3: Heating Oil | DK3: Kerosene | DL3: Wood | DM3: Water | DP3: AG | DQ3: AH | DR3: AS | DS3: AU | DT3: AW | DU3: AY | DV3: BA | DW3: BC | DX3: BE | DY3: BG | DZ3: BI | EA3: BK | IK3: =MAX(IK5:IK320) -> 7
A4: AAA | B4: Reference Calcs | AR4: =DR4 ->  | AT4: =DS4 ->  | AV4: =DT4 ->  | AX4: =DU4 ->  | AZ4: =DV4 ->  | BB4: =DW4 ->  | BD4: =DX4 ->  | BF4: =DY4 ->  | BH4: =DZ4 ->  | BJ4: =EA4 ->  | BL4: =O4 -> 0 | BO4: =R4 -> 0 | BR4: =U4 -> 0 | BS4: 0 | BT4: 0 | BU4: 0 | BV4: 0 | BW4: 0 | BX4: 0 | BY4: 0 | BZ4: Res | CA4: Default DR | CB4: =Benefits(BL4,BR4,BS4,BT4,BU4,BV4,BW4,BX4,BY4,AF4,AI4,AJ4,AK4,AL4,AM4,AN4,AO4,AP4,AQ4,BZ4,CA4) -> 0 | CC4: 0 | CD4: 0 | CE4: 0 | CF4: 0 | CG4: 0 | CH4: 0 | CI4: 0 | CJ4: =SUMPRODUCT(CB4:CI4,--(CB4:CI4>0)) -> 0 | CK4: =-SUMPRODUCT(CB4:CI4,--(CB4:CI4<0)) -> 0 | CM4: 0 | CP4: =CK4+CM4 -> 0 | CQ4: =IF(NetOrGross="Net",(1-AP4+AQ4),1) -> 1 | CR4: =(CJ4+CL4+SUMPRODUCT(CN4:CO4,--(CN4:CO4>0)))*CQ4/((CK4+MAX(CM4,CT4)-SUMPRODUCT(CN4:CO4,--(CN4:CO4<0)))*CQ4+IF(FRIncentives="Yes",CT4*(1-CQ4),0)) ->  | CT4: =CM4*CU4 -> 0 | CX4: =IF(G4="",0,"X="&SUBSTITUTE(SUBSTITUTE(SUBSTITUTE(SUBSTITUTE(SUBSTITUTE(SUBSTITUTE(SUBSTITUTE(SUBSTITUTE(SUBSTITUTE(SUBSTITUTE(SUBSTITUTE(SUBSTITUTE(G4,$EA4,$EA$3&ROW($EA4)),$DZ4,$DZ$3&ROW($DZ4)),$DY4,$DY$3&ROW($DY4)),$DX4,$DX$3&ROW($DX4)),$DW4,$DW$3&ROW($DW4)),$DV4,$DV$3&ROW($DV4)),$DU4,$DU$3&ROW($DU4)),$DT4,$DT$3&ROW($DT4)),$DS4,$DS$3&ROW($DS4)),$DR4,$DR$3&ROW($DR4)),$DQ4,$DQ$3&ROW($DQ4)),$DP4,$DP$3&ROW($DP4))) -> 0 | CZ4: =IF(O4="",0,"X="&SUBSTITUTE(SUBSTITUTE(SUBSTITUTE(SUBSTITUTE(SUBSTITUTE(SUBSTITUTE(SUBSTITUTE(SUBSTITUTE(SUBSTITUTE(SUBSTITUTE(SUBSTITUTE(SUBSTITUTE(O4,$EA4,$EA$3&ROW($EA4)),$DZ4,$DZ$3&ROW($DZ4)),$DY4,$DY$3&ROW($DY4)),$DX4,$DX$3&ROW($DX4)),$DW4,$DW$3&ROW($DW4)),$DV4,$DV$3&ROW($DV4)),$DU4,$DU$3&ROW($DU4)),$DT4,$DT$3&ROW($DT4)),$DS4,$DS$3&ROW($DS4)),$DR4,$DR$3&ROW($DR4)),$DQ4,$DQ$3&ROW($DQ4)),$DP4,$DP$3&ROW($DP4))) -> 0 | DA4: =IF(P4="",0,"X="&SUBSTITUTE(SUBSTITUTE(SUBSTITUTE(SUBSTITUTE(SUBSTITUTE(SUBSTITUTE(SUBSTITUTE(SUBSTITUTE(SUBSTITUTE(SUBSTITUTE(SUBSTITUTE(SUBSTITUTE(P4,$EA4,$EA$3&ROW($EA4)),$DZ4,$DZ$3&ROW($DZ4)),$DY4,$DY$3&ROW($DY4)),$DX4,$DX$3&ROW($DX4)),$DW4,$DW$3&ROW($DW4)),$DV4,$DV$3&ROW($DV4)),$DU4,$DU$3&ROW($DU4)),$DT4,$DT$3&ROW($DT4)),$DS4,$DS$3&ROW($DS4)),$DR4,$DR$3&ROW($DR4)),$DQ4,$DQ$3&ROW($DQ4)),$DP4,$DP$3&ROW($DP4))) -> 0 | DB4: =IF(Q4="",0,"X="&SUBSTITUTE(SUBSTITUTE(SUBSTITUTE(SUBSTITUTE(SUBSTITUTE(SUBSTITUTE(SUBSTITUTE(SUBSTITUTE(SUBSTITUTE(SUBSTITUTE(SUBSTITUTE(SUBSTITUTE(Q4,$EA4,$EA$3&ROW($EA4)),$DZ4,$DZ$3&ROW($DZ4)),$DY4,$DY$3&ROW($DY4)),$DX4,$DX$3&ROW($DX4)),$DW4,$DW$3&ROW($DW4)),$DV4,$DV$3&ROW($DV4)),$DU4,$DU$3&ROW($DU4)),$DT4,$DT$3&ROW($DT4)),$DS4,$DS$3&ROW($DS4)),$DR4,$DR$3&ROW($DR4)),$DQ4,$DQ$3&ROW($DQ4)),$DP4,$DP$3&ROW($DP4))) -> 0 | DC4: =IF(R4="",0,"X="&SUBSTITUTE(SUBSTITUTE(SUBSTITUTE(SUBSTITUTE(SUBSTITUTE(SUBSTITUTE(SUBSTITUTE(SUBSTITUTE(SUBSTITUTE(SUBSTITUTE(SUBSTITUTE(SUBSTITUTE(R4,$EA4,$EA$3&ROW($EA4)),$DZ4,$DZ$3&ROW($DZ4)),$DY4,$DY$3&ROW($DY4)),$DX4,$DX$3&ROW($DX4)),$DW4,$DW$3&ROW($DW4)),$DV4,$DV$3&ROW($DV4)),$DU4,$DU$3&ROW($DU4)),$DT4,$DT$3&ROW($DT4)),$DS4,$DS$3&ROW($DS4)),$DR4,$DR$3&ROW($DR4)),$DQ4,$DQ$3&ROW($DQ4)),$DP4,$DP$3&ROW($DP4))) -> 0 | DD4: =IF(S4="",0,"X="&SUBSTITUTE(SUBSTITUTE(SUBSTITUTE(SUBSTITUTE(SUBSTITUTE(SUBSTITUTE(SUBSTITUTE(SUBSTITUTE(SUBSTITUTE(SUBSTITUTE(SUBSTITUTE(SUBSTITUTE(S4,$EA4,$EA$3&ROW($EA4)),$DZ4,$DZ$3&ROW($DZ4)),$DY4,$DY$3&ROW($DY4)),$DX4,$DX$3&ROW($DX4)),$DW4,$DW$3&ROW($DW4)),$DV4,$DV$3&ROW($DV4)),$DU4,$DU$3&ROW($DU4)),$DT4,$DT$3&ROW($DT4)),$DS4,$DS$3&ROW($DS4)),$DR4,$DR$3&ROW($DR4)),$DQ4,$DQ$3&ROW($DQ4)),$DP4,$DP$3&ROW($DP4))) -> 0 | DE4: =IF(T4="",0,"X="&SUBSTITUTE(SUBSTITUTE(SUBSTITUTE(SUBSTITUTE(SUBSTITUTE(SUBSTITUTE(SUBSTITUTE(SUBSTITUTE(SUBSTITUTE(SUBSTITUTE(SUBSTITUTE(SUBSTITUTE(T4,$EA4,$EA$3&ROW($EA4)),$DZ4,$DZ$3&ROW($DZ4)),$DY4,$DY$3&ROW($DY4)),$DX4,$DX$3&ROW($DX4)),$DW4,$DW$3&ROW($DW4)),$DV4,$DV$3&ROW($DV4)),$DU4,$DU$3&ROW($DU4)),$DT4,$DT$3&ROW($DT4)),$DS4,$DS$3&ROW($DS4)),$DR4,$DR$3&ROW($DR4)),$DQ4,$DQ$3&ROW($DQ4)),$DP4,$DP$3&ROW($DP4))) -> 0 | DF4: =IF(U4="",0,"X="&SUBSTITUTE(SUBSTITUTE(SUBSTITUTE(SUBSTITUTE(SUBSTITUTE(SUBSTITUTE(SUBSTITUTE(SUBSTITUTE(SUBSTITUTE(SUBSTITUTE(SUBSTITUTE(SUBSTITUTE(U4,$EA4,$EA$3&ROW($EA4)),$DZ4,$DZ$3&ROW($DZ4)),$DY4,$DY$3&ROW($DY4)),$DX4,$DX$3&ROW($DX4)),$DW4,$DW$3&ROW($DW4)),$DV4,$DV$3&ROW($DV4)),$DU4,$DU$3&ROW($DU4)),$DT4,$DT$3&ROW($DT4)),$DS4,$DS$3&ROW($DS4)),$DR4,$DR$3&ROW($DR4)),$DQ4,$DQ$3&ROW($DQ4)),$DP4,$DP$3&ROW($DP4))) -> 0 | DG4: =IF(V4="",0,"X="&SUBSTITUTE(SUBSTITUTE(SUBSTITUTE(SUBSTITUTE(SUBSTITUTE(SUBSTITUTE(SUBSTITUTE(SUBSTITUTE(SUBSTITUTE(SUBSTITUTE(SUBSTITUTE(SUBSTITUTE(V4,$EA4,$EA$3&ROW($EA4)),$DZ4,$DZ$3&ROW($DZ4)),$DY4,$DY$3&ROW($DY4)),$DX4,$DX$3&ROW($DX4)),$DW4,$DW$3&ROW($DW4)),$DV4,$DV$3&ROW($DV4)),$DU4,$DU$3&ROW($DU4)),$DT4,$DT$3&ROW($DT4)),$DS4,$DS$3&ROW($DS4)),$DR4,$DR$3&ROW($DR4)),$DQ4,$DQ$3&ROW($DQ4)),$DP4,$DP$3&ROW($DP4))) -> 0 | DH4: =IF(W4="",0,"X="&SUBSTITUTE(SUBSTITUTE(SUBSTITUTE(SUBSTITUTE(SUBSTITUTE(SUBSTITUTE(SUBSTITUTE(SUBSTITUTE(SUBSTITUTE(SUBSTITUTE(SUBSTITUTE(SUBSTITUTE(W4,$EA4,$EA$3&ROW($EA4)),$DZ4,$DZ$3&ROW($DZ4)),$DY4,$DY$3&ROW($DY4)),$DX4,$DX$3&ROW($DX4)),$DW4,$DW$3&ROW($DW4)),$DV4,$DV$3&ROW($DV4)),$DU4,$DU$3&ROW($DU4)),$DT4,$DT$3&ROW($DT4)),$DS4,$DS$3&ROW($DS4)),$DR4,$DR$3&ROW($DR4)),$DQ4,$DQ$3&ROW($DQ4)),$DP4,$DP$3&ROW($DP4))) -> 0 | DI4: =IF(X4="",0,"X="&SUBSTITUTE(SUBSTITUTE(SUBSTITUTE(SUBSTITUTE(SUBSTITUTE(SUBSTITUTE(SUBSTITUTE(SUBSTITUTE(SUBSTITUTE(SUBSTITUTE(SUBSTITUTE(SUBSTITUTE(X4,$EA4,$EA$3&ROW($EA4)),$DZ4,$DZ$3&ROW($DZ4)),$DY4,$DY$3&ROW($DY4)),$DX4,$DX$3&ROW($DX4)),$DW4,$DW$3&ROW($DW4)),$DV4,$DV$3&ROW($DV4)),$DU4,$DU$3&ROW($DU4)),$DT4,$DT$3&ROW($DT4)),$DS4,$DS$3&ROW($DS4)),$DR4,$DR$3&ROW($DR4)),$DQ4,$DQ$3&ROW($DQ4)),$DP4,$DP$3&ROW($DP4))) -> 0 | DJ4: =IF(Y4="",0,"X="&SUBSTITUTE(SUBSTITUTE(SUBSTITUTE(SUBSTITUTE(SUBSTITUTE(SUBSTITUTE(SUBSTITUTE(SUBSTITUTE(SUBSTITUTE(SUBSTITUTE(SUBSTITUTE(SUBSTITUTE(Y4,$EA4,$EA$3&ROW($EA4)),$DZ4,$DZ$3&ROW($DZ4)),$DY4,$DY$3&ROW($DY4)),$DX4,$DX$3&ROW($DX4)),$DW4,$DW$3&ROW($DW4)),$DV4,$DV$3&ROW($DV4)),$DU4,$DU$3&ROW($DU4)),$DT4,$DT$3&ROW($DT4)),$DS4,$DS$3&ROW($DS4)),$DR4,$DR$3&ROW($DR4)),$DQ4,$DQ$3&ROW($DQ4)),$DP4,$DP$3&ROW($DP4))) -> 0 | DK4: =IF(Z4="",0,"X="&SUBSTITUTE(SUBSTITUTE(SUBSTITUTE(SUBSTITUTE(SUBSTITUTE(SUBSTITUTE(SUBSTITUTE(SUBSTITUTE(SUBSTITUTE(SUBSTITUTE(SUBSTITUTE(SUBSTITUTE(Z4,$EA4,$EA$3&ROW($EA4)),$DZ4,$DZ$3&ROW($DZ4)),$DY4,$DY$3&ROW($DY4)),$DX4,$DX$3&ROW($DX4)),$DW4,$DW$3&ROW($DW4)),$DV4,$DV$3&ROW($DV4)),$DU4,$DU$3&ROW($DU4)),$DT4,$DT$3&ROW($DT4)),$DS4,$DS$3&ROW($DS4)),$DR4,$DR$3&ROW($DR4)),$DQ4,$DQ$3&ROW($DQ4)),$DP4,$DP$3&ROW($DP4))) -> 0 | DL4: =IF(AA4="",0,"X="&SUBSTITUTE(SUBSTITUTE(SUBSTITUTE(SUBSTITUTE(SUBSTITUTE(SUBSTITUTE(SUBSTITUTE(SUBSTITUTE(SUBSTITUTE(SUBSTITUTE(SUBSTITUTE(SUBSTITUTE(AA4,$EA4,$EA$3&ROW($EA4)),$DZ4,$DZ$3&ROW($DZ4)),$DY4,$DY$3&ROW($DY4)),$DX4,$DX$3&ROW($DX4)),$DW4,$DW$3&ROW($DW4)),$DV4,$DV$3&ROW($DV4)),$DU4,$DU$3&ROW($DU4)),$DT4,$DT$3&ROW($DT4)),$DS4,$DS$3&ROW($DS4)),$DR4,$DR$3&ROW($DR4)),$DQ4,$DQ$3&ROW($DQ4)),$DP4,$DP$3&ROW($DP4))) -> 0 | DM4: =IF(AB4="",0,"X="&SUBSTITUTE(SUBSTITUTE(SUBSTITUTE(SUBSTITUTE(SUBSTITUTE(SUBSTITUTE(SUBSTITUTE(SUBSTITUTE(SUBSTITUTE(SUBSTITUTE(SUBSTITUTE(SUBSTITUTE(AB4,$EA4,$EA$3&ROW($EA4)),$DZ4,$DZ$3&ROW($DZ4)),$DY4,$DY$3&ROW($DY4)),$DX4,$DX$3&ROW($DX4)),$DW4,$DW$3&ROW($DW4)),$DV4,$DV$3&ROW($DV4)),$DU4,$DU$3&ROW($DU4)),$DT4,$DT$3&ROW($DT4)),$DS4,$DS$3&ROW($DS4)),$DR4,$DR$3&ROW($DR4)),$DQ4,$DQ$3&ROW($DQ4)),$DP4,$DP$3&ROW($DP4))) -> 0 | DN4: =SUBSTITUTE(AB4,$DX4,$DX$3&ROW($DX4)) ->  | DR4: =IFERROR(INDEX($ED4:$IG4,MATCH(0,COUNTIF($DO4:DQ4,$ED4:$IG4),0)),"") ->  | DS4: =IFERROR(INDEX($ED4:$IG4,MATCH(0,COUNTIF($DO4:DR4,$ED4:$IG4),0)),"") ->  | DT4: =IFERROR(INDEX($ED4:$IG4,MATCH(0,COUNTIF($DO4:DS4,$ED4:$IG4),0)),"") ->  | DU4: =IFERROR(INDEX($ED4:$IG4,MATCH(0,COUNTIF($DO4:DT4,$ED4:$IG4),0)),"") ->  | DV4: =IFERROR(INDEX($ED4:$IG4,MATCH(0,COUNTIF($DO4:DU4,$ED4:$IG4),0)),"") ->  | DW4: =IFERROR(INDEX($ED4:$IG4,MATCH(0,COUNTIF($DO4:DV4,$ED4:$IG4),0)),"") ->  | DX4: =IFERROR(INDEX($ED4:$IG4,MATCH(0,COUNTIF($DO4:DW4,$ED4:$IG4),0)),"") ->  | DY4: =IFERROR(INDEX($ED4:$IG4,MATCH(0,COUNTIF($DO4:DX4,$ED4:$IG4),0)),"") ->  | DZ4: =IFERROR(INDEX($ED4:$IG4,MATCH(0,COUNTIF($DO4:DY4,$ED4:$IG4),0)),"") ->  | EA4: =IFERROR(INDEX($ED4:$IG4,MATCH(0,COUNTIF($DO4:DZ4,$ED4:$IG4),0)),"") ->  | ED4: =IFERROR(MID($G4,FIND(CHAR(160),SUBSTITUTE($G4,"{",CHAR(160),ED$1)),FIND(CHAR(160),SUBSTITUTE($G4,"}",CHAR(160),ED$1))-FIND(CHAR(160),SUBSTITUTE($G4,"{",CHAR(160),ED$1))+1),"") ->  | EN4: =IFERROR(MID($O4,FIND(CHAR(160),SUBSTITUTE($O4,"{",CHAR(160),EN$1)),FIND(CHAR(160),SUBSTITUTE($O4,"}",CHAR(160),EN$1))-FIND(CHAR(160),SUBSTITUTE($O4,"{",CHAR(160),EN$1))+1),"") ->  | EX4: =IFERROR(MID($R4,FIND(CHAR(160),SUBSTITUTE($R4,"{",CHAR(160),EX$1)),FIND(CHAR(160),SUBSTITUTE($R4,"}",CHAR(160),EX$1))-FIND(CHAR(160),SUBSTITUTE($R4,"{",CHAR(160),EX$1))+1),"") ->  | FH4: =IFERROR(MID($U4,FIND(CHAR(160),SUBSTITUTE($U4,"{",CHAR(160),FH$1)),FIND(CHAR(160),SUBSTITUTE($U4,"}",CHAR(160),FH$1))-FIND(CHAR(160),SUBSTITUTE($U4,"{",CHAR(160),FH$1))+1),"") ->  | FR4: =IFERROR(MID($V4,FIND(CHAR(160),SUBSTITUTE($V4,"{",CHAR(160),FR$1)),FIND(CHAR(160),SUBSTITUTE($V4,"}",CHAR(160),FR$1))-FIND(CHAR(160),SUBSTITUTE($V4,"{",CHAR(160),FR$1))+1),"") ->  | GB4: =IFERROR(MID($W4,FIND(CHAR(160),SUBSTITUTE($W4,"{",CHAR(160),GB$1)),FIND(CHAR(160),SUBSTITUTE($W4,"}",CHAR(160),GB$1))-FIND(CHAR(160),SUBSTITUTE($W4,"{",CHAR(160),GB$1))+1),"") ->  | GL4: =IFERROR(MID($X4,FIND(CHAR(160),SUBSTITUTE($X4,"{",CHAR(160),GL$1)),FIND(CHAR(160),SUBSTITUTE($X4,"}",CHAR(160),GL$1))-FIND(CHAR(160),SUBSTITUTE($X4,"{",CHAR(160),GL$1))+1),"") ->  | GV4: =IFERROR(MID($Y4,FIND(CHAR(160),SUBSTITUTE($Y4,"{",CHAR(160),GV$1)),FIND(CHAR(160),SUBSTITUTE($Y4,"}",CHAR(160),GV$1))-FIND(CHAR(160),SUBSTITUTE($Y4,"{",CHAR(160),GV$1))+1),"") ->  | HF4: =IFERROR(MID($Z4,FIND(CHAR(160),SUBSTITUTE($Z4,"{",CHAR(160),HF$1)),FIND(CHAR(160),SUBSTITUTE($Z4,"}",CHAR(160),HF$1))-FIND(CHAR(160),SUBSTITUTE($Z4,"{",CHAR(160),HF$1))+1),"") ->  | HP4: =IFERROR(MID($AA4,FIND(CHAR(160),SUBSTITUTE($AA4,"{",CHAR(160),HP$1)),FIND(CHAR(160),SUBSTITUTE($AA4,"}",CHAR(160),HP$1))-FIND(CHAR(160),SUBSTITUTE($AA4,"{",CHAR(160),HP$1))+1),"") ->  | HZ4: =IFERROR(MID($AB4,FIND(CHAR(160),SUBSTITUTE($AB4,"{",CHAR(160),HZ$1)),FIND(CHAR(160),SUBSTITUTE($AB4,"}",CHAR(160),HZ$1))-FIND(CHAR(160),SUBSTITUTE($AB4,"{",CHAR(160),HZ$1))+1),"") ->  | IK4: =10-COUNTIF(DR4:EA4,"") -> 0
A5: Affordable Heat Initiative - Electric | B5: Air Sealing LIHESP | C5: LAA | D5: 2018-07-01 | E5: 2019-06-30 | F5: Per Measure | G5: 1080 | H5: 0 | I5: Manual Entry | J5: $0.00 | K5: 0 | L5: 2018-07-01 | M5: 2019-06-30 | N5: Calculated | O5: 2013 | R5: 0.034 | U5: 0.44 | V5: 0.034 | AB5: 0.0000 | AC5: 2018-07-01 | AD5: 2019-06-30 | AF5: 15 | AG5: 1 | AH5: 1 | AI5: 0.385 | AJ5: 0.541 | AK5: 0.033 | AL5: 0.04 | AM5: 1 | AN5: 1 | AO5: 1 | AP5: 0 | AQ5: 0 | BL5: =2013 -> 2013 | BM5: 0 | BN5: 0 | BO5: =0.034 -> 0.034 | BP5: 0 | BQ5: 0 | BR5: =0.44 -> 0.44 | BS5: =0.034 -> 0.034 | BT5: 0 | BU5: 0 | BV5: 0 | BW5: 0 | BX5: 0 | BY5: =0 -> 0 | BZ5: Res | CA5: Default DR | CB5: =Benefits(BL5,BR5,BS5,BT5,BU5,BV5,BW5,BX5,BY5,AF5,AI5,AJ5,AK5,AL5,AM5,AN5,AO5,AP5,AQ5,BZ5,CA5) -> 1460.984083 | CC5: 895.5933718 | CD5: 0 | CE5: 0 | CF5: 0 | CG5: 0 | CH5: 0 | CI5: 0 | CJ5: =SUMPRODUCT(CB5:CI5,--(CB5:CI5>0)) -> 2356.577454 | CK5: =-SUMPRODUCT(CB5:CI5,--(CB5:CI5<0)) -> 0 | CM5: =G5 -> 1080 | CP5: 1080 | CQ5: 1 | CR5: 2.182016161 | CS5: 1 | CT5: 550 | CV5: Electric | CX5: X=1080 | CZ5: X=2013 | DA5: 0 | DB5: 0 | DC5: X=0.034 | DD5: 0 | DE5: 0 | DF5: X=0.44 | DG5: X=0.034 | DH5: 0 | DI5: 0 | DJ5: 0 | DK5: 0 | DL5: 0 | DM5: X=0.0000 | DP5: {Factor:WinterCF} | DQ5: {Factor:SummerCF} | DR5: =IFERROR(INDEX($ED5:$IG5,MATCH(0,COUNTIF($DO5:DQ5,$ED5:$IG5),0)),"") ->  | DS5: =IFERROR(INDEX($ED5:$IG5,MATCH(0,COUNTIF($DO5:DR5,$ED5:$IG5),0)),"") ->  | DT5: =IFERROR(INDEX($ED5:$IG5,MATCH(0,COUNTIF($DO5:DS5,$ED5:$IG5),0)),"") ->  | DU5: =IFERROR(INDEX($ED5:$IG5,MATCH(0,COUNTIF($DO5:DT5,$ED5:$IG5),0)),"") ->  | DV5: =IFERROR(INDEX($ED5:$IG5,MATCH(0,COUNTIF($DO5:DU5,$ED5:$IG5),0)),"") ->  | DW5: =IFERROR(INDEX($ED5:$IG5,MATCH(0,COUNTIF($DO5:DV5,$ED5:$IG5),0)),"") ->  | DX5: =IFERROR(INDEX($ED5:$IG5,MATCH(0,COUNTIF($DO5:DW5,$ED5:$IG5),0)),"") ->  | DY5: =IFERROR(INDEX($ED5:$IG5,MATCH(0,COUNTIF($DO5:DX5,$ED5:$IG5),0)),"") ->  | DZ5: =IFERROR(INDEX($ED5:$IG5,MATCH(0,COUNTIF($DO5:DY5,$ED5:$IG5),0)),"") ->  | EA5: =IFERROR(INDEX($ED5:$IG5,MATCH(0,COUNTIF($DO5:DZ5,$ED5:$IG5),0)),"") ->  | IK5: 0
A6: Affordable Heat Initiative - Electric | B6: Attic Insulation LIHESP | C6: LBA | D6: 2018-07-01 | E6: 2019-06-30 | F6: Per Measure | G6: 2104 | H6: 0 | I6: Manual Entry | J6: $0.00 | K6: 0 | L6: 2018-07-01 | M6: 2019-06-30 | N6: Calculated | O6: 3699 | R6: 0.063 | U6: 0.808 | V6: 0.063 | AB6: 0.0000 | AC6: 2018-07-01 | AD6: 2019-06-30 | AF6: 25 | AG6: 1 | AH6: 1 | AI6: 0.385 | AJ6: 0.541 | AK6: 0.033 | AL6: 0.04 | AM6: 1 | AN6: 1 | AO6: 1 | AP6: 0 | AQ6: 0 | BL6: =3699 -> 3699 | BM6: 0 | BN6: 0 | BO6: =0.063 -> 0.063 | BP6: 0 | BQ6: 0 | BR6: =0.808 -> 0.808 | BS6: =0.063 -> 0.063 | BT6: 0 | BU6: 0 | BV6: 0 | BW6: 0 | BX6: 0 | BY6: =0 -> 0 | BZ6: Res | CA6: Default DR | CB6: =Benefits(BL6,BR6,BS6,BT6,BU6,BV6,BW6,BX6,BY6,AF6,AI6,AJ6,AK6,AL6,AM6,AN6,AO6,AP6,AQ6,BZ6,CA6) -> 3902.353078 | CC6: 2575.182993 | CD6: 0 | CE6: 0 | CF6: 0 | CG6: 0 | CH6: 0 | CI6: 0 | CJ6: 6477.536071 | CK6: 0 | CM6: =G6 -> 2104 | CP6: 2104 | CQ6: 1 | CR6: 3.07867684 | CS6: 1 | CT6: 1000 | CV6: Electric | CX6: X=2104 | CZ6: X=3699 | DA6: 0 | DB6: 0 | DC6: X=0.063 | DD6: 0 | DE6: 0 | DF6: X=0.808 | DG6: X=0.063 | DH6: 0 | DI6: 0 | DJ6: 0 | DK6: 0 | DL6: 0 | DM6: X=0.0000 | DP6: {Factor:WinterCF} | DQ6: {Factor:SummerCF} | DR6: =IFERROR(INDEX($ED6:$IG6,MATCH(0,COUNTIF($DO6:DQ6,$ED6:$IG6),0)),"") ->  | DS6: =IFERROR(INDEX($ED6:$IG6,MATCH(0,COUNTIF($DO6:DR6,$ED6:$IG6),0)),"") ->  | DT6: =IFERROR(INDEX($ED6:$IG6,MATCH(0,COUNTIF($DO6:DS6,$ED6:$IG6),0)),"") ->  | DU6: =IFERROR(INDEX($ED6:$IG6,MATCH(0,COUNTIF($DO6:DT6,$ED6:$IG6),0)),"") ->  | DV6: =IFERROR(INDEX($ED6:$IG6,MATCH(0,COUNTIF($DO6:DU6,$ED6:$IG6),0)),"") ->  | DW6: =IFERROR(INDEX($ED6:$IG6,MATCH(0,COUNTIF($DO6:DV6,$ED6:$IG6),0)),"") ->  | DX6: =IFERROR(INDEX($ED6:$IG6,MATCH(0,COUNTIF($DO6:DW6,$ED6:$IG6),0)),"") ->  | DY6: =IFERROR(INDEX($ED6:$IG6,MATCH(0,COUNTIF($DO6:DX6,$ED6:$IG6),0)),"") ->  | DZ6: =IFERROR(INDEX($ED6:$IG6,MATCH(0,COUNTIF($DO6:DY6,$ED6:$IG6),0)),"") ->  | EA6: =IFERROR(INDEX($ED6:$IG6,MATCH(0,COUNTIF($DO6:DZ6,$ED6:$IG6),0)),"") ->  | IK6: 0
A7: Affordable Heat Initiative - Electric | B7: Basement Insulation LIHESP | C7: LBB | D7: 2018-07-01 | E7: 2019-06-30 | F7: Per Measure | G7: 2452 | H7: 0 | I7: Manual Entry | J7: $0.00 | K7: 0 | L7: 2018-07-01 | M7: 2019-06-30 | N7: Calculated | O7: 8718 | R7: 0 | U7: 1.918 | V7: 0 | AB7: 0.0000 | AC7: 2018-07-01 | AD7: 2019-06-30 | AF7: 25 | AG7: 1 | AH7: 1 | AI7: 0.401 | AJ7: 0.585 | AK7: 0.002 | AL7: 0.011 | AM7: 1 | AN7: 1 | AO7: 1 | AP7: 0 | AQ7: 0 | BL7: =8718 -> 8718 | BM7: 0 | BN7: 0 | BO7: =0 -> 0 | BP7: 0 | BQ7: 0 | BR7: =1.918 -> 1.918 | BS7: =0 -> 0 | BT7: 0 | BU7: 0 | BV7: 0 | BW7: 0 | BX7: 0 | BY7: =0 -> 0 | BZ7: Res | CA7: Default DR | CB7: =Benefits(BL7,BR7,BS7,BT7,BU7,BV7,BW7,BX7,BY7,AF7,AI7,AJ7,AK7,AL7,AM7,AN7,AO7,AP7,AQ7,BZ7,CA7) -> 9272.006402 | CC7: 5883.503253 | CD7: 0 | CE7: 0 | CF7: 0 | CG7: 0 | CH7: 0 | CI7: 0 | CJ7: 15155.50965 | CK7: 0 | CM7: =G7 -> 2452 | CP7: 2452 | CQ7: 1 | CR7: 6.180876694 | CS7: 1 | CT7: 1000 | CV7: Electric | CX7: X=2452 | CZ7: X=8718 | DA7: 0 | DB7: 0 | DC7: X=0 | DD7: 0 | DE7: 0 | DF7: X=1.918 | DG7: X=0 | DH7: 0 | DI7: 0 | DJ7: 0 | DK7: 0 | DL7: 0 | DM7: X=0.0000 | DP7: {Factor:WinterCF} | DQ7: {Factor:SummerCF} | DR7: =IFERROR(INDEX($ED7:$IG7,MATCH(0,COUNTIF($DO7:DQ7,$ED7:$IG7),0)),"") ->  | DS7: =IFERROR(INDEX($ED7:$IG7,MATCH(0,COUNTIF($DO7:DR7,$ED7:$IG7),0)),"") ->  | DT7: =IFERROR(INDEX($ED7:$IG7,MATCH(0,COUNTIF($DO7:DS7,$ED7:$IG7),0)),"") ->  | DU7: =IFERROR(INDEX($ED7:$IG7,MATCH(0,COUNTIF($DO7:DT7,$ED7:$IG7),0)),"") ->  | DV7: =IFERROR(INDEX($ED7:$IG7,MATCH(0,COUNTIF($DO7:DU7,$ED7:$IG7),0)),"") ->  | DW7: =IFERROR(INDEX($ED7:$IG7,MATCH(0,COUNTIF($DO7:DV7,$ED7:$IG7),0)),"") ->  | DX7: =IFERROR(INDEX($ED7:$IG7,MATCH(0,COUNTIF($DO7:DW7,$ED7:$IG7),0)),"") ->  | DY7: =IFERROR(INDEX($ED7:$IG7,MATCH(0,COUNTIF($DO7:DX7,$ED7:$IG7),0)),"") ->  | DZ7: =IFERROR(INDEX($ED7:$IG7,MATCH(0,COUNTIF($DO7:DY7,$ED7:$IG7),0)),"") ->  | EA7: =IFERROR(INDEX($ED7:$IG7,MATCH(0,COUNTIF($DO7:DZ7,$ED7:$IG7),0)),"") ->  | IK7: 0
A8: Affordable Heat Initiative - Electric | B8: Wall Insulation LIHESP | C8: LBW | D8: 2018-07-01 | E8: 2019-06-30 | F8: Per Measure | G8: 3082 | H8: 0 | I8: Manual Entry | J8: $0.00 | K8: 0 | L8: 2018-07-01 | M8: 2019-06-30 | N8: Calculated | O8: 11815 | R8: 0.201 | U8: 2.582 | V8: 0.201 | AB8: 0.0000 | AC8: 2018-07-01 | AD8: 2019-06-30 | AF8: 25 | AG8: 1 | AH8: 1 | AI8: 0.385 | AJ8: 0.541 | AK8: 0.033 | AL8: 0.04 | AM8: 1 | AN8: 1 | AO8: 1 | AP8: 0 | AQ8: 0 | BL8: =11815 -> 11815 | BM8: 0 | BN8: 0 | BO8: =0.201 -> 0.201 | BP8: 0 | BQ8: 0 | BR8: =2.582 -> 2.582 | BS8: =0.201 -> 0.201 | BT8: 0 | BU8: 0 | BV8: 0 | BW8: 0 | BX8: 0 | BY8: =0 -> 0 | BZ8: Res | CA8: Default DR | CB8: =Benefits(BL8,BR8,BS8,BT8,BU8,BV8,BW8,BX8,BY8,AF8,AI8,AJ8,AK8,AL8,AM8,AN8,AO8,AP8,AQ8,BZ8,CA8) -> 12464.53139 | CC8: 8228.62225 | CD8: 0 | CE8: 0 | CF8: 0 | CG8: 0 | CH8: 0 | CI8: 0 | CJ8: 20693.15364 | CK8: 0 | CM8: =G8 -> 3082 | CP8: 3082 | CQ8: 1 | CR8: 6.714196509 | CS8: 1 | CT8: 1000 | CV8: Electric | CX8: X=3082 | CZ8: X=11815 | DA8: 0 | DB8: 0 | DC8: X=0.201 | DD8: 0 | DE8: 0 | DF8: X=2.582 | DG8: X=0.201 | DH8: 0 | DI8: 0 | DJ8: 0 | DK8: 0 | DL8: 0 | DM8: X=0.0000 | DP8: {Factor:WinterCF} | DQ8: {Factor:SummerCF} | DR8: =IFERROR(INDEX($ED8:$IG8,MATCH(0,COUNTIF($DO8:DQ8,$ED8:$IG8),0)),"") ->  | DS8: =IFERROR(INDEX($ED8:$IG8,MATCH(0,COUNTIF($DO8:DR8,$ED8:$IG8),0)),"") ->  | DT8: =IFERROR(INDEX($ED8:$IG8,MATCH(0,COUNTIF($DO8:DS8,$ED8:$IG8),0)),"") ->  | DU8: =IFERROR(INDEX($ED8:$IG8,MATCH(0,COUNTIF($DO8:DT8,$ED8:$IG8),0)),"") ->  | DV8: =IFERROR(INDEX($ED8:$IG8,MATCH(0,COUNTIF($DO8:DU8,$ED8:$IG8),0)),"") ->  | DW8: =IFERROR(INDEX($ED8:$IG8,MATCH(0,COUNTIF($DO8:DV8,$ED8:$IG8),0)),"") ->  | DX8: =IFERROR(INDEX($ED8:$IG8,MATCH(0,COUNTIF($DO8:DW8,$ED8:$IG8),0)),"") ->  | DY8: =IFERROR(INDEX($ED8:$IG8,MATCH(0,COUNTIF($DO8:DX8,$ED8:$IG8),0)),"") ->  | DZ8: =IFERROR(INDEX($ED8:$IG8,MATCH(0,COUNTIF($DO8:DY8,$ED8:$IG8),0)),"") ->  | EA8: =IFERROR(INDEX($ED8:$IG8,MATCH(0,COUNTIF($DO8:DZ8,$ED8:$IG8),0)),"") ->  | IK8: 0
A9: Affordable Heat Initiative - Electric | B9: Ductless HP Low Income | C9: LCH | D9: 2018-07-01 | E9: 2019-06-30 | F9: Calculated | G9: {Project Cost} | H9: 0 | I9: Manual Entry | J9: $0.00 | K9: 0 | L9: 2018-07-01 | M9: 2019-06-30 | N9: Modeled | AC9: 2018-07-01 | AD9: 2019-06-30 | AF9: 18 | AG9: 1 | AH9: 1 | AI9: 0.396440232 | AJ9: 0.5536729366 | AK9: 0.02108761072 | AL9: 0.0289816937 | AM9: 1 | AN9: 1 | AO9: 1 | AP9: 0 | AQ9: 0 | AR9: {Project Cost} | AS9: 2200 | BL9: 4076.343674 | BR9: 0.9701994296 | BS9: 0.03618678736 | BT9: 0 | BU9: 0 | BV9: 0 | BW9: 0 | BX9: 0 | BY9: =0 -> 0 | BZ9: Res | CA9: Default DR | CB9: =Benefits(BL9,BR9,BS9,BT9,BU9,BV9,BW9,BX9,BY9,AF9,AI9,AJ9,AK9,AL9,AM9,AN9,AO9,AP9,AQ9,BZ9,CA9) -> 3416.754095 | CC9: 2276.673197 | CD9: 0 | CE9: 0 | CF9: 0 | CG9: 0 | CH9: 0 | CI9: 0 | CJ9: 5693.427292 | CK9: 0 | CM9: =AS9 -> 2200 | CP9: 2200 | CQ9: 1 | CR9: 2.587921496 | CS9: 1 | CT9: 2000 | CV9: Electric | CX9: X=AS9 | CZ9: 0 | DA9: 0 | DB9: 0 | DC9: 0 | DD9: 0 | DE9: 0 | DF9: 0 | DG9: 0 | DH9: 0 | DI9: 0 | DJ9: 0 | DK9: 0 | DL9: 0 | DM9: 0 | DP9: {Factor:WinterCF} | DQ9: {Factor:SummerCF} | DR9: =IFERROR(INDEX($ED9:$IG9,MATCH(0,COUNTIF($DO9:DQ9,$ED9:$IG9),0)),"") -> {Project Cost} | DS9: =IFERROR(INDEX($ED9:$IG9,MATCH(0,COUNTIF($DO9:DR9,$ED9:$IG9),0)),"") ->  | DT9: =IFERROR(INDEX($ED9:$IG9,MATCH(0,COUNTIF($DO9:DS9,$ED9:$IG9),0)),"") ->  | DU9: =IFERROR(INDEX($ED9:$IG9,MATCH(0,COUNTIF($DO9:DT9,$ED9:$IG9),0)),"") ->  | DV9: =IFERROR(INDEX($ED9:$IG9,MATCH(0,COUNTIF($DO9:DU9,$ED9:$IG9),0)),"") ->  | DW9: =IFERROR(INDEX($ED9:$IG9,MATCH(0,COUNTIF($DO9:DV9,$ED9:$IG9),0)),"") ->  | DX9: =IFERROR(INDEX($ED9:$IG9,MATCH(0,COUNTIF($DO9:DW9,$ED9:$IG9),0)),"") ->  | DY9: =IFERROR(INDEX($ED9:$IG9,MATCH(0,COUNTIF($DO9:DX9,$ED9:$IG9),0)),"") ->  | DZ9: =IFERROR(INDEX($ED9:$IG9,MATCH(0,COUNTIF($DO9:DY9,$ED9:$IG9),0)),"") ->  | EA9: =IFERROR(INDEX($ED9:$IG9,MATCH(0,COUNTIF($DO9:DZ9,$ED9:$IG9),0)),"") ->  | ED9: {Project Cost} | IK9: 1
A10: Affordable Heat Initiative - Electric | B10: Energy Upgrade Bundle LIHESP | C10: LUB | D10: 2018-07-01 | E10: 2019-06-30 | F10: Calculated | G10: {Project Cost} | H10: 0 | I10: Manual Entry | J10: $0.00 | K10: 0 | L10: 2018-07-01 | M10: 2019-06-30 | N10: Calculated | O10: if({Number of Aerators}>0,283+({Number of Aerators}-1)*29,0)+{Number of Showerheads}*150+{Underbelly}*5962+{Seal and Insulate Openings}*152+{Seal/Insulate Pipes/Ducts}*1622+2013 | R10: if({Number of Aerators}>0,0.023+({Number of Aerators}-1)*0.002,0)+{Number of Showerheads}*0.012+{Underbelly}*3.4+{Seal and Insulate Openings}*0.087+{Seal/Insulate Pipes/Ducts}*1.614+0.034 | U10: if({Number of Aerators}>0,0.0003+({Number of Aerators}-1)*0.000008,0)+{Number of Showerheads}*0.0001+{Underbelly}*3.4+{Seal and Insulate Openings}*0.087+{Seal/Insulate Pipes/Ducts}*1.614+0.44 | V10: if({Number of Aerators}>0,0.0002+({Number of Aerators}-1)*0.000006,0)+{Number of Showerheads}*0.00006+{Seal/Insulate Pipes/Ducts}*0.006+0.034 | AB10: if({Number of Aerators}>0,2696+({Number of Aerators}-1)*333,0)+{Number of Showerheads}*1200 | AC10: 2018-07-01 | AD10: 2019-06-30 | AF10: 15 | AG10: 1 | AH10: 1 | AI10: 0.385 | AJ10: 0.541 | AK10: 0.033 | AL10: 0.04 | AM10: 1 | AN10: 1 | AO10: 1 | AP10: 0 | AQ10: 0 | AR10: {Project Cost} | AS10: 600 | AT10: {Number of Aerators} | AU10: 0 | AV10: {Number of Showerheads} | AW10: 0 | AX10: {Underbelly} | AY10: 0 | AZ10: {Seal and Insulate Openings} | BA10: 0 | BB10: {Seal/Insulate Pipes/Ducts} | BC10: 0 | BL10: =IF(AU10>0,283+(AU10-1)*29,0)+AW10*150+AY10*5962+BA10*152+BC10*1622+2013 -> 2013 | BM10: 0 | BN10: 0 | BO10: =IF(AU10>0,0.023+(AU10-1)*0.002,0)+AW10*0.012+AY10*3.4+BA10*0.087+BC10*1.614+0.034 -> 0.034 | BP10: 0 | BQ10: 0 | BR10: =IF(AU10>0,0.0003+(AU10-1)*0.000008,0)+AW10*0.0001+AY10*3.4+BA10*0.087+BC10*1.614+0.44 -> 0.44 | BS10: =IF(AU10>0,0.0002+(AU10-1)*0.000006,0)+AW10*0.00006+BC10*0.006+0.034 -> 0.034 | BT10: 0 | BU10: 0 | BV10: 0 | BW10: 0 | BX10: 0 | BY10: =IF(AU10>0,2696+(AU10-1)*333,0)+AW10*1200 -> 0 | BZ10: Res | CA10: Default DR | CB10: =Benefits(BL10,BR10,BS10,BT10,BU10,BV10,BW10,BX10,BY10,AF10,AI10,AJ10,AK10,AL10,AM10,AN10,AO10,AP10,AQ10,BZ10,CA10) -> 1460.984083 | CC10: 895.5933718 | CD10: 0 | CE10: 0 | CF10: 0 | CG10: 0 | CH10: 0 | CI10: 0 | CJ10: 2356.577454 | CK10: 0 | CM10: =AS10 -> 600 | CP10: 600 | CQ10: 1 | CR10: 3.92762909 | CS10: 1 | CT10: 550 | CV10: Electric | CX10: X=AS10 | CZ10: X=if(AU10>0,283+(AU10-1)*29,0)+AW10*150+AY10*5962+BA10*152+BC10*1622+2013 | DA10: 0 | DB10: 0 | DC10: X=if(AU10>0,0.023+(AU10-1)*0.002,0)+AW10*0.012+AY10*3.4+BA10*0.087+BC10*1.614+0.034 | DD10: 0 | DE10: 0 | DF10: X=if(AU10>0,0.0003+(AU10-1)*0.000008,0)+AW10*0.0001+AY10*3.4+BA10*0.087+BC10*1.614+0.44 | DG10: X=if(AU10>0,0.0002+(AU10-1)*0.000006,0)+AW10*0.00006+BC10*0.006+0.034 | DH10: 0 | DI10: 0 | DJ10: 0 | DK10: 0 | DL10: 0 | DM10: X=if(AU10>0,2696+(AU10-1)*333,0)+AW10*1200 | DP10: {Factor:WinterCF} | DQ10: {Factor:SummerCF} | DR10: =IFERROR(INDEX($ED10:$IG10,MATCH(0,COUNTIF($DO10:DQ10,$ED10:$IG10),0)),"") -> {Project Cost} | DS10: =IFERROR(INDEX($ED10:$IG10,MATCH(0,COUNTIF($DO10:DR10,$ED10:$IG10),0)),"") -> {Number of Aerators} | DT10: =IFERROR(INDEX($ED10:$IG10,MATCH(0,COUNTIF($DO10:DS10,$ED10:$IG10),0)),"") -> {Number of Showerheads} | DU10: =IFERROR(INDEX($ED10:$IG10,MATCH(0,COUNTIF($DO10:DT10,$ED10:$IG10),0)),"") -> {Underbelly} | DV10: =IFERROR(INDEX($ED10:$IG10,MATCH(0,COUNTIF($DO10:DU10,$ED10:$IG10),0)),"") -> {Seal and Insulate Openings} | DW10: =IFERROR(INDEX($ED10:$IG10,MATCH(0,COUNTIF($DO10:DV10,$ED10:$IG10),0)),"") -> {Seal/Insulate Pipes/Ducts} | DX10: =IFERROR(INDEX($ED10:$IG10,MATCH(0,COUNTIF($DO10:DW10,$ED10:$IG10),0)),"") ->  | DY10: =IFERROR(INDEX($ED10:$IG10,MATCH(0,COUNTIF($DO10:DX10,$ED10:$IG10),0)),"") ->  | DZ10: =IFERROR(INDEX($ED10:$IG10,MATCH(0,COUNTIF($DO10:DY10,$ED10:$IG10),0)),"") ->  | EA10: =IFERROR(INDEX($ED10:$IG10,MATCH(0,COUNTIF($DO10:DZ10,$ED10:$IG10),0)),"") ->  | ED10: {Project Cost} | EN10: {Number of Aerators} | EO10: {Number of Aerators} | EP10: {Number of Showerheads} | EQ10: {Underbelly} | ER10: {Seal and Insulate Openings} | ES10: {Seal/Insulate Pipes/Ducts} | EX10: {Number of Aerators} | EY10: {Number of Aerators} | EZ10: {Number of Showerheads} | FA10: {Underbelly} | FB10: {Seal and Insulate Openings} | FC10: {Seal/Insulate Pipes/Ducts} | FH10: {Number of Aerators} | FI10: {Number of Aerators} | FJ10: {Number of Showerheads} | FK10: {Underbelly} | FL10: {Seal and Insulate Openings} | FM10: {Seal/Insulate Pipes/Ducts} | FR10: {Number of Aerators} | FS10: {Number of Aerators} | FT10: {Number of Showerheads} | FU10: {Seal/Insulate Pipes/Ducts} | HZ10: {Number of Aerators} | IA10: {Number of Aerators} | IB10: {Number of Showerheads} | IK10: 6
A11: Affordable Heat Initiative - Electric | B11: Window Insert AHI | C11: LWI | D11: 2018-07-01 | E11: 2019-06-30 | F11: Calculated | G11: 2.52*{SQFT} | H11: 0 | I11: Manual Entry | J11: $0.00 | K11: 0 | L11: 2018-07-01 | M11: 2019-06-30 | N11: Calculated | O11: 12.143*{SQFT} | R11: 0.002671*{SQFT} | U11: 0.002671*{SQFT} | V11: 0 | AB11: 0.0000 | AC11: 2018-07-01 | AD11: 2019-06-30 | AF11: 4 | AG11: 0 | AH11: 0 | AI11: 0.398 | AJ11: 0.561 | AK11: 0.01 | AL11: 0.031 | AM11: 1 | AN11: 1 | AO11: 1 | AP11: 0 | AQ11: 0 | AR11: {SQFT} | AS11: 100 | BL11: =12.143*AS11 -> 1214.3 | BM11: 0 | BN11: 0 | BO11: =0.002671*AS11 -> 0.2671 | BP11: 0 | BQ11: 0 | BR11: =0.002671*AS11 -> 0.2671 | BS11: =0 -> 0 | BT11: 0 | BU11: 0 | BV11: 0 | BW11: 0 | BX11: 0 | BY11: =0 -> 0 | BZ11: Res | CA11: Default DR | CB11: =Benefits(BL11,BR11,BS11,BT11,BU11,BV11,BW11,BX11,BY11,AF11,AI11,AJ11,AK11,AL11,AM11,AN11,AO11,AP11,AQ11,BZ11,CA11) -> 268.5964794 | CC11: 160.6892881 | CD11: 0 | CE11: 0 | CF11: 0 | CG11: 0 | CH11: 0 | CI11: 0 | CJ11: 429.2857674 | CK11: 0 | CM11: =2.52*AS11 -> 252 | CP11: 252 | CQ11: 1 | CR11: 1.70351495 | CS11: 1 | CT11: =CM11*CU11 -> 252 | CU11: 1 | CV11: Electric | CX11: X=2.52*AS11 | CZ11: X=12.143*AS11 | DA11: 0 | DB11: 0 | DC11: X=0.002671*AS11 | DD11: 0 | DE11: 0 | DF11: X=0.002671*AS11 | DG11: X=0 | DH11: 0 | DI11: 0 | DJ11: 0 | DK11: 0 | DL11: 0 | DM11: X=0.0000 | DP11: {Factor:WinterCF} | DQ11: {Factor:SummerCF} | DR11: =IFERROR(INDEX($ED11:$IG11,MATCH(0,COUNTIF($DO11:DQ11,$ED11:$IG11),0)),"") -> {SQFT} | DS11: =IFERROR(INDEX($ED11:$IG11,MATCH(0,COUNTIF($DO11:DR11,$ED11:$IG11),0)),"") ->  | DT11: =IFERROR(INDEX($ED11:$IG11,MATCH(0,COUNTIF($DO11:DS11,$ED11:$IG11),0)),"") ->  | DU11: =IFERROR(INDEX($ED11:$IG11,MATCH(0,COUNTIF($DO11:DT11,$ED11:$IG11),0)),"") ->  | DV11: =IFERROR(INDEX($ED11:$IG11,MATCH(0,COUNTIF($DO11:DU11,$ED11:$IG11),0)),"") ->  | DW11: =IFERROR(INDEX($ED11:$IG11,MATCH(0,COUNTIF($DO11:DV11,$ED11:$IG11),0)),"") ->  | DX11: =IFERROR(INDEX($ED11:$IG11,MATCH(0,COUNTIF($DO11:DW11,$ED11:$IG11),0)),"") ->  | DY11: =IFERROR(INDEX($ED11:$IG11,MATCH(0,COUNTIF($DO11:DX11,$ED11:$IG11),0)),"") ->  | DZ11: =IFERROR(INDEX($ED11:$IG11,MATCH(0,COUNTIF($DO11:DY11,$ED11:$IG11),0)),"") ->  | EA11: =IFERROR(INDEX($ED11:$IG11,MATCH(0,COUNTIF($DO11:DZ11,$ED11:$IG11),0)),"") ->  | ED11: {SQFT} | EN11: {SQFT} | EX11: {SQFT} | FH11: {SQFT} | IK11: 1
A12: Affordable Heat Initiative - Electric | K12: 0 | CX12: 0 | CZ12: 0 | DA12: 0 | DB12: 0 | DC12: 0 | DD12: 0 | DE12: 0 | DF12: 0 | DG12: 0 | DH12: 0 | DI12: 0 | DJ12: 0 | DK12: 0 | DL12: 0 | DM12: 0 | DP12: {Factor:WinterCF} | DQ12: {Factor:SummerCF} | DR12: =IFERROR(INDEX($ED12:$IG12,MATCH(0,COUNTIF($DO12:DQ12,$ED12:$IG12),0)),"") ->  | DS12: =IFERROR(INDEX($ED12:$IG12,MATCH(0,COUNTIF($DO12:DR12,$ED12:$IG12),0)),"") ->  | DT12: =IFERROR(INDEX($ED12:$IG12,MATCH(0,COUNTIF($DO12:DS12,$ED12:$IG12),0)),"") ->  | DU12: =IFERROR(INDEX($ED12:$IG12,MATCH(0,COUNTIF($DO12:DT12,$ED12:$IG12),0)),"") ->  | DV12: =IFERROR(INDEX($ED12:$IG12,MATCH(0,COUNTIF($DO12:DU12,$ED12:$IG12),0)),"") ->  | DW12: =IFERROR(INDEX($ED12:$IG12,MATCH(0,COUNTIF($DO12:DV12,$ED12:$IG12),0)),"") ->  | DX12: =IFERROR(INDEX($ED12:$IG12,MATCH(0,COUNTIF($DO12:DW12,$ED12:$IG12),0)),"") ->  | DY12: =IFERROR(INDEX($ED12:$IG12,MATCH(0,COUNTIF($DO12:DX12,$ED12:$IG12),0)),"") ->  | DZ12: =IFERROR(INDEX($ED12:$IG12,MATCH(0,COUNTIF($DO12:DY12,$ED12:$IG12),0)),"") ->  | EA12: =IFERROR(INDEX($ED12:$IG12,MATCH(0,COUNTIF($DO12:DZ12,$ED12:$IG12),0)),"") ->  | IK12: 0
A13: Affordable Heat Initiative - Natural Gas | B13: Attic Insulation LIHESP | C13: LBA | D13: 2018-07-01 | E13: 2019-06-30 | F13: Per Measure | G13: 2104 | H13: 0 | I13: Manual Entry | J13: $0.00 | K13: 0 | L13: 2018-07-01 | M13: 2019-06-30 | N13: Calculated | O13: 62 | R13: 0.16 | U13: 0.0000 | V13: 0.16 | W13: 39.6*10 | AB13: 0.0000 | AC13: 2018-07-01 | AD13: 2019-06-30 | AF13: 25 | AG13: 0 | AH13: 1 | AI13: 0 | AJ13: 0 | AK13: 0.666 | AL13: 0.301 | AM13: 1 | AN13: 1 | AO13: 1 | AP13: 0 | AQ13: 0 | AR13: =DR13 ->  | AT13: =DS13 ->  | AV13: =DT13 ->  | AX13: =DU13 ->  | AZ13: =DV13 ->  | BB13: =DW13 ->  | BD13: =DX13 ->  | BF13: =DY13 ->  | BH13: =DZ13 ->  | BJ13: =EA13 ->  | BL13: =62 -> 62 | BM13: 0 | BN13: 0 | BO13: =0.16 -> 0.16 | BP13: 0 | BQ13: 0 | BR13: =0 -> 0 | BS13: =0.16 -> 0.16 | BT13: =39.6*10 -> 396 | BU13: 0 | BV13: 0 | BW13: 0 | BX13: 0 | BY13: =0 -> 0 | BZ13: Res | CA13: Default DR | CB13: =Benefits(BL13,BR13,BS13,BT13,BU13,BV13,BW13,BX13,BY13,AF13,AI13,AJ13,AK13,AL13,AM13,AN13,AO13,AP13,AQ13,BZ13,CA13) -> 55.98622741 | CC13: 245.4015955 | CD13: 5587.986067 | CE13: 0 | CF13: 0 | CG13: 0 | CH13: 0 | CI13: 0 | CJ13: 5889.37389 | CK13: =-SUMPRODUCT(CB13:CI13,--(CB13:CI13<0)) -> 0 | CM13: =G13 -> 2104 | CP13: =CK13+CM13 -> 2104 | CQ13: =IF(NetOrGross="Net",(1-AP13+AQ13),1) -> 1 | CR13: =(CJ13+CL13+SUMPRODUCT(CN13:CO13,--(CN13:CO13>0)))*CQ13/((CK13+MAX(CM13,CT13)-SUMPRODUCT(CN13:CO13,--(CN13:CO13<0)))*CQ13+IF(FRIncentives="Yes",CT13*(1-CQ13),0)) -> 2.799132077 | CS13: 1 | CT13: 1000 | CV13: NG | CX13: X=2104 | CZ13: X=62 | DA13: 0 | DB13: 0 | DC13: X=0.16 | DD13: 0 | DE13: 0 | DF13: X=0.0000 | DG13: X=0.16 | DH13: X=39.6*10 | DI13: 0 | DJ13: 0 | DK13: 0 | DL13: 0 | DM13: X=0.0000 | DP13: {Factor:WinterCF} | DQ13: {Factor:SummerCF} | DR13: =IFERROR(INDEX($ED13:$IG13,MATCH(0,COUNTIF($DO13:DQ13,$ED13:$IG13),0)),"") ->  | DS13: =IFERROR(INDEX($ED13:$IG13,MATCH(0,COUNTIF($DO13:DR13,$ED13:$IG13),0)),"") ->  | DT13: =IFERROR(INDEX($ED13:$IG13,MATCH(0,COUNTIF($DO13:DS13,$ED13:$IG13),0)),"") ->  | DU13: =IFERROR(INDEX($ED13:$IG13,MATCH(0,COUNTIF($DO13:DT13,$ED13:$IG13),0)),"") ->  | DV13: =IFERROR(INDEX($ED13:$IG13,MATCH(0,COUNTIF($DO13:DU13,$ED13:$IG13),0)),"") ->  | DW13: =IFERROR(INDEX($ED13:$IG13,MATCH(0,COUNTIF($DO13:DV13,$ED13:$IG13),0)),"") ->  | DX13: =IFERROR(INDEX($ED13:$IG13,MATCH(0,COUNTIF($DO13:DW13,$ED13:$IG13),0)),"") ->  | DY13: =IFERROR(INDEX($ED13:$IG13,MATCH(0,COUNTIF($DO13:DX13,$ED13:$IG13),0)),"") ->  | DZ13: =IFERROR(INDEX($ED13:$IG13,MATCH(0,COUNTIF($DO13:DY13,$ED13:$IG13),0)),"") ->  | EA13: =IFERROR(INDEX($ED13:$IG13,MATCH(0,COUNTIF($DO13:DZ13,$ED13:$IG13),0)),"") ->  | IK13: 0
A14: Affordable Heat Initiative - Natural Gas | B14: Basement Insulation LIHESP | C14: LBB | D14: 2018-07-01 | E14: 2019-06-30 | F14: Per Measure | G14: 2452 | H14: 0 | I14: Manual Entry | J14: $0.00 | K14: 0 | L14: 2018-07-01 | M14: 2019-06-30 | N14: Calculated | O14: 0 | R14: 0 | U14: 0.0000 | V14: 0 | W14: 36.950*10 | AB14: 0.0000 | AC14: 2018-07-01 | AD14: 2019-06-30 | AF14: 25 | AG14: 0 | AH14: 0 | AI14: 0 | AJ14: 0 | AK14: 0 | AL14: 0 | AM14: 1 | AN14: 1 | AO14: 1 | AP14: 0 | AQ14: 0 | AR14: =DR14 ->  | AT14: =DS14 ->  | AV14: =DT14 ->  | AX14: =DU14 ->  | AZ14: =DV14 ->  | BB14: =DW14 ->  | BD14: =DX14 ->  | BF14: =DY14 ->  | BH14: =DZ14 ->  | BJ14: =EA14 ->  | BL14: =0 -> 0 | BM14: 0 | BN14: 0 | BO14: =0 -> 0 | BP14: 0 | BQ14: 0 | BR14: =0 -> 0 | BS14: =0 -> 0 | BT14: =36.95*10 -> 369.5 | BU14: 0 | BV14: 0 | BW14: 0 | BX14: 0 | BY14: =0 -> 0 | BZ14: Res | CA14: Default DR | CB14: =Benefits(BL14,BR14,BS14,BT14,BU14,BV14,BW14,BX14,BY14,AF14,AI14,AJ14,AK14,AL14,AM14,AN14,AO14,AP14,AQ14,BZ14,CA14) -> 0 | CC14: 0 | CD14: 5214.042555 | CE14: 0 | CF14: 0 | CG14: 0 | CH14: 0 | CI14: 0 | CJ14: 5214.042555 | CK14: 0 | CM14: =G14 -> 2452 | CP14: =CK14+CM14 -> 2452 | CQ14: =IF(NetOrGross="Net",(1-AP14+AQ14),1) -> 1 | CR14: =(CJ14+CL14+SUMPRODUCT(CN14:CO14,--(CN14:CO14>0)))*CQ14/((CK14+MAX(CM14,CT14)-SUMPRODUCT(CN14:CO14,--(CN14:CO14<0)))*CQ14+IF(FRIncentives="Yes",CT14*(1-CQ14),0)) -> 2.126444761 | CS14: 1 | CT14: 1000 | CV14: NG | CX14: X=2452 | CZ14: X=0 | DA14: 0 | DB14: 0 | DC14: X=0 | DD14: 0 | DE14: 0 | DF14: X=0.0000 | DG14: X=0 | DH14: X=36.950*10 | DI14: 0 | DJ14: 0 | DK14: 0 | DL14: 0 | DM14: X=0.0000 | DP14: {Factor:WinterCF} | DQ14: {Factor:SummerCF} | DR14: =IFERROR(INDEX($ED14:$IG14,MATCH(0,COUNTIF($DO14:DQ14,$ED14:$IG14),0)),"") ->  | DS14: =IFERROR(INDEX($ED14:$IG14,MATCH(0,COUNTIF($DO14:DR14,$ED14:$IG14),0)),"") ->  | DT14: =IFERROR(INDEX($ED14:$IG14,MATCH(0,COUNTIF($DO14:DS14,$ED14:$IG14),0)),"") ->  | DU14: =IFERROR(INDEX($ED14:$IG14,MATCH(0,COUNTIF($DO14:DT14,$ED14:$IG14),0)),"") ->  | DV14: =IFERROR(INDEX($ED14:$IG14,MATCH(0,COUNTIF($DO14:DU14,$ED14:$IG14),0)),"") ->  | DW14: =IFERROR(INDEX($ED14:$IG14,MATCH(0,COUNTIF($DO14:DV14,$ED14:$IG14),0)),"") ->  | DX14: =IFERROR(INDEX($ED14:$IG14,MATCH(0,COUNTIF($DO14:DW14,$ED14:$IG14),0)),"") ->  | DY14: =IFERROR(INDEX($ED14:$IG14,MATCH(0,COUNTIF($DO14:DX14,$ED14:$IG14),0)),"") ->  | DZ14: =IFERROR(INDEX($ED14:$IG14,MATCH(0,COUNTIF($DO14:DY14,$ED14:$IG14),0)),"") ->  | EA14: =IFERROR(INDEX($ED14:$IG14,MATCH(0,COUNTIF($DO14:DZ14,$ED14:$IG14),0)),"") ->  | ED14: =IFERROR(MID($G14,FIND(CHAR(160),SUBSTITUTE($G14,"{",CHAR(160),ED$1)),FIND(CHAR(160),SUBSTITUTE($G14,"}",CHAR(160),ED$1))-FIND(CHAR(160),SUBSTITUTE($G14,"{",CHAR(160),ED$1))+1),"") ->  | EN14: =IFERROR(MID($O14,FIND(CHAR(160),SUBSTITUTE($O14,"{",CHAR(160),EN$1)),FIND(CHAR(160),SUBSTITUTE($O14,"}",CHAR(160),EN$1))-FIND(CHAR(160),SUBSTITUTE($O14,"{",CHAR(160),EN$1))+1),"") ->  | EX14: =IFERROR(MID($R14,FIND(CHAR(160),SUBSTITUTE($R14,"{",CHAR(160),EX$1)),FIND(CHAR(160),SUBSTITUTE($R14,"}",CHAR(160),EX$1))-FIND(CHAR(160),SUBSTITUTE($R14,"{",CHAR(160),EX$1))+1),"") ->  | FH14: =IFERROR(MID($U14,FIND(CHAR(160),SUBSTITUTE($U14,"{",CHAR(160),FH$1)),FIND(CHAR(160),SUBSTITUTE($U14,"}",CHAR(160),FH$1))-FIND(CHAR(160),SUBSTITUTE($U14,"{",CHAR(160),FH$1))+1),"") ->  | FR14: =IFERROR(MID($V14,FIND(CHAR(160),SUBSTITUTE($V14,"{",CHAR(160),FR$1)),FIND(CHAR(160),SUBSTITUTE($V14,"}",CHAR(160),FR$1))-FIND(CHAR(160),SUBSTITUTE($V14,"{",CHAR(160),FR$1))+1),"") ->  | GB14: =IFERROR(MID($W14,FIND(CHAR(160),SUBSTITUTE($W14,"{",CHAR(160),GB$1)),FIND(CHAR(160),SUBSTITUTE($W14,"}",CHAR(160),GB$1))-FIND(CHAR(160),SUBSTITUTE($W14,"{",CHAR(160),GB$1))+1),"") ->  | GL14: =IFERROR(MID($X14,FIND(CHAR(160),SUBSTITUTE($X14,"{",CHAR(160),GL$1)),FIND(CHAR(160),SUBSTITUTE($X14,"}",CHAR(160),GL$1))-FIND(CHAR(160),SUBSTITUTE($X14,"{",CHAR(160),GL$1))+1),"") ->  | GV14: =IFERROR(MID($Y14,FIND(CHAR(160),SUBSTITUTE($Y14,"{",CHAR(160),GV$1)),FIND(CHAR(160),SUBSTITUTE($Y14,"}",CHAR(160),GV$1))-FIND(CHAR(160),SUBSTITUTE($Y14,"{",CHAR(160),GV$1))+1),"") ->  | HF14: =IFERROR(MID($Z14,FIND(CHAR(160),SUBSTITUTE($Z14,"{",CHAR(160),HF$1)),FIND(CHAR(160),SUBSTITUTE($Z14,"}",CHAR(160),HF$1))-FIND(CHAR(160),SUBSTITUTE($Z14,"{",CHAR(160),HF$1))+1),"") ->  | HP14: =IFERROR(MID($AA14,FIND(CHAR(160),SUBSTITUTE($AA14,"{",CHAR(160),HP$1)),FIND(CHAR(160),SUBSTITUTE($AA14,"}",CHAR(160),HP$1))-FIND(CHAR(160),SUBSTITUTE($AA14,"{",CHAR(160),HP$1))+1),"") ->  | HZ14: =IFERROR(MID($AB14,FIND(CHAR(160),SUBSTITUTE($AB14,"{",CHAR(160),HZ$1)),FIND(CHAR(160),SUBSTITUTE($AB14,"}",CHAR(160),HZ$1))-FIND(CHAR(160),SUBSTITUTE($AB14,"{",CHAR(160),HZ$1))+1),"") ->  | IK14: 0
A15: Affordable Heat Initiative - Natural Gas | B15: Wall Insulation LIHESP | C15: LBW | D15: 2018-07-01 | E15: 2019-06-30 | F15: Per Measure | G15: 3082 | H15: 0 | I15: Manual Entry | J15: $0.00 | K15: 0 | L15: 2018-07-01 | M15: 2019-06-30 | N15: Calculated | O15: 78 | U15: 0.0000 | V15: 0.201 | W15: 49.747*10 | AB15: 0.0000 | AC15: 2018-07-01 | AD15: 2019-06-30 | AF15: 25 | AG15: 0 | AH15: 1 | AI15: 0 | AJ15: 0 | AK15: 0.666 | AL15: 0.301 | AM15: 1 | AN15: 1 | AO15: 1 | AP15: 0 | AQ15: 0 | AR15: =DR15 ->  | AT15: =DS15 ->  | AV15: =DT15 ->  | AX15: =DU15 ->  | AZ15: =DV15 ->  | BB15: =DW15 ->  | BD15: =DX15 ->  | BF15: =DY15 ->  | BH15: =DZ15 ->  | BJ15: =EA15 ->  | BL15: =78 -> 78 | BM15: 0 | BN15: 0 | BO15: 0 | BP15: 0 | BQ15: 0 | BR15: =0 -> 0 | BS15: =0.201 -> 0.201 | BT15: =49.747*10 -> 497.47 | BU15: 0 | BV15: 0 | BW15: 0 | BX15: 0 | BY15: =0 -> 0 | BZ15: Res | CA15: Default DR | CB15: =Benefits(BL15,BR15,BS15,BT15,BU15,BV15,BW15,BX15,BY15,AF15,AI15,AJ15,AK15,AL15,AM15,AN15,AO15,AP15,AQ15,BZ15,CA15) -> 70.43428609 | CC15: 308.2857544 | CD15: 7019.836941 | CE15: 0 | CF15: 0 | CG15: 0 | CH15: 0 | CI15: 0 | CJ15: 7398.556982 | CK15: 0 | CM15: =G15 -> 3082 | CP15: =CK15+CM15 -> 3082 | CQ15: =IF(NetOrGross="Net",(1-AP15+AQ15),1) -> 1 | CR15: =(CJ15+CL15+SUMPRODUCT(CN15:CO15,--(CN15:CO15>0)))*CQ15/((CK15+MAX(CM15,CT15)-SUMPRODUCT(CN15:CO15,--(CN15:CO15<0)))*CQ15+IF(FRIncentives="Yes",CT15*(1-CQ15),0)) -> 2.400570078 | CS15: 1 | CT15: 1000 | CV15: NG | CX15: X=3082 | CZ15: X=78 | DA15: 0 | DB15: 0 | DC15: 0 | DD15: 0 | DE15: 0 | DF15: X=0.0000 | DG15: X=0.201 | DH15: X=49.747*10 | DI15: 0 | DJ15: 0 | DK15: 0 | DL15: 0 | DM15: X=0.0000 | DP15: {Factor:WinterCF} | DQ15: {Factor:SummerCF} | DR15: =IFERROR(INDEX($ED15:$IG15,MATCH(0,COUNTIF($DO15:DQ15,$ED15:$IG15),0)),"") ->  | DS15: =IFERROR(INDEX($ED15:$IG15,MATCH(0,COUNTIF($DO15:DR15,$ED15:$IG15),0)),"") ->  | DT15: =IFERROR(INDEX($ED15:$IG15,MATCH(0,COUNTIF($DO15:DS15,$ED15:$IG15),0)),"") ->  | DU15: =IFERROR(INDEX($ED15:$IG15,MATCH(0,COUNTIF($DO15:DT15,$ED15:$IG15),0)),"") ->  | DV15: =IFERROR(INDEX($ED15:$IG15,MATCH(0,COUNTIF($DO15:DU15,$ED15:$IG15),0)),"") ->  | DW15: =IFERROR(INDEX($ED15:$IG15,MATCH(0,COUNTIF($DO15:DV15,$ED15:$IG15),0)),"") ->  | DX15: =IFERROR(INDEX($ED15:$IG15,MATCH(0,COUNTIF($DO15:DW15,$ED15:$IG15),0)),"") ->  | DY15: =IFERROR(INDEX($ED15:$IG15,MATCH(0,COUNTIF($DO15:DX15,$ED15:$IG15),0)),"") ->  | DZ15: =IFERROR(INDEX($ED15:$IG15,MATCH(0,COUNTIF($DO15:DY15,$ED15:$IG15),0)),"") ->  | EA15: =IFERROR(INDEX($ED15:$IG15,MATCH(0,COUNTIF($DO15:DZ15,$ED15:$IG15),0)),"") ->  | IK15: 0
A16: Affordable Heat Initiative - Natural Gas | B16: Energy Upgrade Bundle LIHESP | C16: LUB | D16: 2018-07-01 | E16: 2019-06-30 | F16: Calculated | G16: {Project Cost} | H16: 0 | I16: Manual Entry | J16: $0.00 | K16: 0 | L16: 2018-07-01 | M16: 2019-06-30 | N16: Calculated | O16: if({Number of Aerators}>0,283+({Number of Aerators}-1)*29,0)+{Number of Showerheads}*150+{Seal/Insulate Pipes/Ducts}*25+13 | R16: if({Number of Aerators}>0,0.023+({Number of Aerators}-1)*0.002,0)+if({Number of Showerheads}>0,{Number of Showerheads}*0.012,0)+if({Seal/Insulate Pipes/Ducts}>0,{Seal/Insulate Pipes/Ducts}*0.002,0)+0.034 | U16: 0 | V16: if({Number of Aerators}>0,0.023+({Number of Aerators}-1)*0.002,0)+if({Number of Showerheads}>0,{Number of Showerheads}*0.012,0)+if({Seal/Insulate Pipes/Ducts}>0,{Seal/Insulate Pipes/Ducts}*0.002,0)+0.034 | W16: (({Underbelly}*25.270+{Seal and Insulate Openings}*0.646+{Seal/Insulate Pipes/Ducts}*5.571)*1+10.033)*10 | AB16: if({Number of Aerators}>0,2696+({Number of Aerators}-1)*333,0)+{Number of Showerheads}*1200 | AC16: 2018-07-01 | AD16: 2019-06-30 | AF16: 15 | AG16: 0 | AH16: 1 | AI16: 0 | AJ16: 0 | AK16: 0.666 | AL16: 0.301 | AM16: 1 | AN16: 1 | AO16: 1 | AP16: 0 | AQ16: 0 | AR16: =DR16 -> {Project Cost} | AS16: 600 | AT16: =DS16 -> {Number of Aerators} | AU16: 0 | AV16: =DT16 -> {Number of Showerheads} | AW16: 0 | AX16: =DU16 -> {Seal/Insulate Pipes/Ducts} | AY16: 0 | AZ16: =DV16 -> {Underbelly} | BA16: 0 | BB16: =DW16 -> {Seal and Insulate Openings} | BC16: 0 | BD16: =DX16 ->  | BF16: =DY16 ->  | BH16: =DZ16 ->  | BJ16: =EA16 ->  | BL16: =IF(AU16>0,283+(AU16-1)*29,0)+AW16*150+AY16*25+13 -> 13 | BM16: 0 | BN16: 0 | BO16: =IF(AU16>0,0.023+(AU16-1)*0.002,0)+IF(AW16>0,AW16*0.012,0)+IF(AY16>0,AY16*0.002,0)+0.034 -> 0.034 | BP16: 0 | BQ16: 0 | BR16: =0 -> 0 | BS16: =IF(AU16>0,0.023+(AU16-1)*0.002,0)+IF(AW16>0,AW16*0.012,0)+IF(AY16>0,AY16*0.002,0)+0.034 -> 0.034 | BT16: =((BA16*25.27+BC16*0.646+AY16*5.571)*1+10.033)*10 -> 100.33 | BU16: 0 | BV16: 0 | BW16: 0 | BX16: 0 | BY16: =IF(AU16>0,2696+(AU16-1)*333,0)+AW16*1200 -> 0 | BZ16: Res | CA16: Default DR | CB16: =Benefits(BL16,BR16,BS16,BT16,BU16,BV16,BW16,BX16,BY16,AF16,AI16,AJ16,AK16,AL16,AM16,AN16,AO16,AP16,AQ16,BZ16,CA16) -> 7.241748877 | CC16: 33.31528954 | CD16: 937.3154004 | CE16: 0 | CF16: 0 | CG16: 0 | CH16: 0 | CI16: 0 | CJ16: 977.8724388 | CK16: 0 | CM16: =AS16 -> 600 | CP16: =CK16+CM16 -> 600 | CQ16: =IF(NetOrGross="Net",(1-AP16+AQ16),1) -> 1 | CR16: =(CJ16+CL16+SUMPRODUCT(CN16:CO16,--(CN16:CO16>0)))*CQ16/((CK16+MAX(CM16,CT16)-SUMPRODUCT(CN16:CO16,--(CN16:CO16<0)))*CQ16+IF(FRIncentives="Yes",CT16*(1-CQ16),0)) -> 1.629787398 | CS16: 1 | CT16: 550 | CV16: NG | CX16: X=AS16 | CZ16: X=if(AU16>0,283+(AU16-1)*29,0)+AW16*150+AY16*25+13 | DA16: 0 | DB16: 0 | DC16: X=if(AU16>0,0.023+(AU16-1)*0.002,0)+if(AW16>0,AW16*0.012,0)+if(AY16>0,AY16*0.002,0)+0.034 | DD16: 0 | DE16: 0 | DF16: X=0 | DG16: X=if(AU16>0,0.023+(AU16-1)*0.002,0)+if(AW16>0,AW16*0.012,0)+if(AY16>0,AY16*0.002,0)+0.034 | DH16: X=((BA16*25.270+BC16*0.646+AY16*5.571)*1+10.033)*10 | DI16: 0 | DJ16: 0 | DK16: 0 | DL16: 0 | DM16: X=if(AU16>0,2696+(AU16-1)*333,0)+AW16*1200 | DP16: {Factor:WinterCF} | DQ16: {Factor:SummerCF} | DR16: =IFERROR(INDEX($ED16:$IG16,MATCH(0,COUNTIF($DO16:DQ16,$ED16:$IG16),0)),"") -> {Project Cost} | DS16: =IFERROR(INDEX($ED16:$IG16,MATCH(0,COUNTIF($DO16:DR16,$ED16:$IG16),0)),"") -> {Number of Aerators} | DT16: =IFERROR(INDEX($ED16:$IG16,MATCH(0,COUNTIF($DO16:DS16,$ED16:$IG16),0)),"") -> {Number of Showerheads} | DU16: =IFERROR(INDEX($ED16:$IG16,MATCH(0,COUNTIF($DO16:DT16,$ED16:$IG16),0)),"") -> {Seal/Insulate Pipes/Ducts} | DV16: =IFERROR(INDEX($ED16:$IG16,MATCH(0,COUNTIF($DO16:DU16,$ED16:$IG16),0)),"") -> {Underbelly} | DW16: =IFERROR(INDEX($ED16:$IG16,MATCH(0,COUNTIF($DO16:DV16,$ED16:$IG16),0)),"") -> {Seal and Insulate Openings} | DX16: =IFERROR(INDEX($ED16:$IG16,MATCH(0,COUNTIF($DO16:DW16,$ED16:$IG16),0)),"") ->  | DY16: =IFERROR(INDEX($ED16:$IG16,MATCH(0,COUNTIF($DO16:DX16,$ED16:$IG16),0)),"") ->  | DZ16: =IFERROR(INDEX($ED16:$IG16,MATCH(0,COUNTIF($DO16:DY16,$ED16:$IG16),0)),"") ->  | EA16: =IFERROR(INDEX($ED16:$IG16,MATCH(0,COUNTIF($DO16:DZ16,$ED16:$IG16),0)),"") ->  | ED16: {Project Cost} | EN16: {Number of Aerators} | EO16: {Number of Aerators} | EP16: {Number of Showerheads} | EQ16: {Seal/Insulate Pipes/Ducts} | EX16: {Number of Aerators} | EY16: {Number of Aerators} | EZ16: {Number of Showerheads} | FA16: {Number of Showerheads} | FB16: {Seal/Insulate Pipes/Ducts} | FC16: {Seal/Insulate Pipes/Ducts} | FR16: {Number of Aerators} | FS16: {Number of Aerators} | FT16: {Number of Showerheads} | FU16: {Number of Showerheads} | FV16: {Seal/Insulate Pipes/Ducts} | FW16: {Seal/Insulate Pipes/Ducts} | GB16: {Underbelly} | GC16: {Seal and Insulate Openings} | GD16: {Seal/Insulate Pipes/Ducts} | HZ16: {Number of Aerators} | IA16: {Number of Aerators} | IB16: {Number of Showerheads} | IK16: 6
A17: Affordable Heat Initiative - Natural Gas | H17: 0 | K17: 0 | CX17: 0 | CZ17: 0 | DA17: 0 | DB17: 0 | DC17: 0 | DD17: 0 | DE17: 0 | DF17: 0 | DG17: 0 | DH17: 0 | DI17: 0 | DJ17: 0 | DK17: 0 | DL17: 0 | DM17: 0 | DP17: {Factor:WinterCF} | DQ17: {Factor:SummerCF} | DR17: =IFERROR(INDEX($ED17:$IG17,MATCH(0,COUNTIF($DO17:DQ17,$ED17:$IG17),0)),"") ->  | DS17: =IFERROR(INDEX($ED17:$IG17,MATCH(0,COUNTIF($DO17:DR17,$ED17:$IG17),0)),"") ->  | DT17: =IFERROR(INDEX($ED17:$IG17,MATCH(0,COUNTIF($DO17:DS17,$ED17:$IG17),0)),"") ->  | DU17: =IFERROR(INDEX($ED17:$IG17,MATCH(0,COUNTIF($DO17:DT17,$ED17:$IG17),0)),"") ->  | DV17: =IFERROR(INDEX($ED17:$IG17,MATCH(0,COUNTIF($DO17:DU17,$ED17:$IG17),0)),"") ->  | DW17: =IFERROR(INDEX($ED17:$IG17,MATCH(0,COUNTIF($DO17:DV17,$ED17:$IG17),0)),"") ->  | DX17: =IFERROR(INDEX($ED17:$IG17,MATCH(0,COUNTIF($DO17:DW17,$ED17:$IG17),0)),"") ->  | DY17: =IFERROR(INDEX($ED17:$IG17,MATCH(0,COUNTIF($DO17:DX17,$ED17:$IG17),0)),"") ->  | DZ17: =IFERROR(INDEX($ED17:$IG17,MATCH(0,COUNTIF($DO17:DY17,$ED17:$IG17),0)),"") ->  | EA17: =IFERROR(INDEX($ED17:$IG17,MATCH(0,COUNTIF($DO17:DZ17,$ED17:$IG17),0)),"") ->  | IK17: 0
A18: Affordable Heat Initiative - Other Fuels | B18: Air Sealing LIHESP | C18: LAA | D18: 2018-07-01 | E18: 2019-06-30 | F18: Per Measure | G18: 1080 | H18: 0 | I18: Manual Entry | J18: $0.00 | K18: 0 | L18: 2018-07-01 | M18: 2019-06-30 | N18: Calculated | O18: if({Fuel Type}=6,2013,if({Fuel Type}=0,89,13)) | R18: if({Fuel Type}=6,0.034,if({Fuel Type}=0,0.034,0.034)) | U18: if({Fuel Type}=6,0.44,if({Fuel Type}=0,0.017,0)) | V18: if({Fuel Type}=6,0.034,if({Fuel Type}=0,0.034,0.034)) | W18: if({Fuel Type}=1,8.519,if({Fuel Type}=0,0.763,0))*10 | X18: if({Fuel Type}=2,8.519,if({Fuel Type} = 0,1.11,0)) | Y18: if({Fuel Type}=3,8.519,if({Fuel Type} = 0,5.788,0)) | Z18: if({Fuel Type}=4,8.519,if({Fuel Type} = 0,0.119,0)) | AA18: if({Fuel Type}=5,8.519,if({Fuel Type} = 0,0.364,0)) | AB18: 0.0000 | AC18: 2018-07-01 | AD18: 2019-06-30 | AF18: 15 | AG18: 0 | AH18: 1 | AI18: 0 | AJ18: 0 | AK18: 0.666 | AL18: 0.301 | AM18: 1 | AN18: 1 | AO18: 1 | AP18: 0 | AQ18: 0 | AR18: =DR18 -> {Fuel Type} | AS18: 0 | AT18: =DS18 ->  | AV18: =DT18 ->  | AX18: =DU18 ->  | AZ18: =DV18 ->  | BB18: =DW18 ->  | BD18: =DX18 ->  | BF18: =DY18 ->  | BH18: =DZ18 ->  | BJ18: =EA18 ->  | BL18: =IF(AS18=6,2013,IF(AS18=0,89,13)) -> 89 | BM18: 0 | BN18: 0 | BO18: =IF(AS18=6,0.034,IF(AS18=0,0.034,0.034)) -> 0.034 | BP18: 0 | BQ18: 0 | BR18: =IF(AS18=6,0.44,IF(AS18=0,0.017,0)) -> 0.017 | BS18: =IF(AS18=6,0.034,IF(AS18=0,0.034,0.034)) -> 0.034 | BT18: =IF(AS18=1,8.519,IF(AS18=0,0.763,0))*10 -> 7.63 | BU18: =IF(AS18=2,8.519,IF(AS18 = 0,1.11,0)) -> 1.11 | BV18: =IF(AS18=3,8.519,IF(AS18 = 0,5.788,0)) -> 5.788 | BW18: =IF(AS18=4,8.519,IF(AS18 = 0,0.119,0)) -> 0.119 | BX18: =IF(AS18=5,8.519,IF(AS18 = 0,0.364,0)) -> 0.364 | BY18: =0 -> 0 | BZ18: Res | CA18: RGGI DR | CB18: =Benefits(BL18,BR18,BS18,BT18,BU18,BV18,BW18,BX18,BY18,AF18,AI18,AJ18,AK18,AL18,AM18,AN18,AO18,AP18,AQ18,BZ18,CA18) -> 49.57812693 | CC18: 66.63057908 | CD18: 71.28193466 | CE18: 1627.399205 | CF18: 30.00251985 | CG18: 434.9896663 | CH18: 99.73943871 | CI18: 0 | CJ18: 2379.621471 | CK18: =-SUMPRODUCT(CB18:CI18,--(CB18:CI18<0)) -> 0 | CM18: =G18 -> 1080 | CP18: =CK18+CM18 -> 1080 | CQ18: =IF(NetOrGross="Net",(1-AP18+AQ18),1) -> 1 | CR18: =(CJ18+CL18+SUMPRODUCT(CN18:CO18,--(CN18:CO18>0)))*CQ18/((CK18+MAX(CM18,CT18)-SUMPRODUCT(CN18:CO18,--(CN18:CO18<0)))*CQ18+IF(FRIncentives="Yes",CT18*(1-CQ18),0)) -> 2.203353214 | CS18: 1 | CT18: 550 | CV18: RGGI | CX18: X=1080 | CZ18: X=if(AS18=6,2013,if(AS18=0,89,13)) | DA18: 0 | DB18: 0 | DC18: X=if(AS18=6,0.034,if(AS18=0,0.034,0.034)) | DD18: 0 | DE18: 0 | DF18: X=if(AS18=6,0.44,if(AS18=0,0.017,0)) | DG18: X=if(AS18=6,0.034,if(AS18=0,0.034,0.034)) | DH18: X=if(AS18=1,8.519,if(AS18=0,0.763,0))*10 | DI18: X=if(AS18=2,8.519,if(AS18 = 0,1.11,0)) | DJ18: X=if(AS18=3,8.519,if(AS18 = 0,5.788,0)) | DK18: X=if(AS18=4,8.519,if(AS18 = 0,0.119,0)) | DL18: X=if(AS18=5,8.519,if(AS18 = 0,0.364,0)) | DM18: X=0.0000 | DP18: {Factor:WinterCF} | DQ18: {Factor:SummerCF} | DR18: =IFERROR(INDEX($ED18:$IG18,MATCH(0,COUNTIF($DO18:DQ18,$ED18:$IG18),0)),"") -> {Fuel Type} | DS18: =IFERROR(INDEX($ED18:$IG18,MATCH(0,COUNTIF($DO18:DR18,$ED18:$IG18),0)),"") ->  | DT18: =IFERROR(INDEX($ED18:$IG18,MATCH(0,COUNTIF($DO18:DS18,$ED18:$IG18),0)),"") ->  | DU18: =IFERROR(INDEX($ED18:$IG18,MATCH(0,COUNTIF($DO18:DT18,$ED18:$IG18),0)),"") ->  | DV18: =IFERROR(INDEX($ED18:$IG18,MATCH(0,COUNTIF($DO18:DU18,$ED18:$IG18),0)),"") ->  | DW18: =IFERROR(INDEX($ED18:$IG18,MATCH(0,COUNTIF($DO18:DV18,$ED18:$IG18),0)),"") ->  | DX18: =IFERROR(INDEX($ED18:$IG18,MATCH(0,COUNTIF($DO18:DW18,$ED18:$IG18),0)),"") ->  | DY18: =IFERROR(INDEX($ED18:$IG18,MATCH(0,COUNTIF($DO18:DX18,$ED18:$IG18),0)),"") ->  | DZ18: =IFERROR(INDEX($ED18:$IG18,MATCH(0,COUNTIF($DO18:DY18,$ED18:$IG18),0)),"") ->  | EA18: =IFERROR(INDEX($ED18:$IG18,MATCH(0,COUNTIF($DO18:DZ18,$ED18:$IG18),0)),"") ->  | EN18: {Fuel Type} | EO18: {Fuel Type} | EX18: {Fuel Type} | EY18: {Fuel Type} | FH18: {Fuel Type} | FI18: {Fuel Type} | FR18: {Fuel Type} | FS18: {Fuel Type} | GB18: {Fuel Type} | GC18: {Fuel Type} | GL18: {Fuel Type} | GM18: {Fuel Type} | GV18: {Fuel Type} | GW18: {Fuel Type} | HF18: {Fuel Type} | HG18: {Fuel Type} | HP18: {Fuel Type} | HQ18: {Fuel Type} | IK18: 1
A19: Affordable Heat Initiative - Other Fuels | B19: Attic Insulation LIHESP | C19: LBA | D19: 2018-07-01 | E19: 2019-06-30 | F19: Per Measure | G19: 2104 | H19: 0 | I19: Manual Entry | J19: $0.00 | K19: 0 | L19: 2018-07-01 | M19: 2019-06-30 | N19: Calculated | O19: if({Fuel Type}=6,3699,if({Fuel Type}=0,164,24)) | R19: if({Fuel Type}=6,0.808,if({Fuel Type}=0,0.063,0.063)) | U19: if({Fuel Type}=6,0.808,if({Fuel Type}=0,0.031,0)) | V19: if({Fuel Type}=6,0.063,if({Fuel Type}=0,0.063,0.063)) | W19: if({Fuel Type}=1,15.576,if({Fuel Type}=0,1.402,0))*10 | X19: if({Fuel Type}=2,15.576,if({Fuel Type}=0,2.04,0)) | Y19: if({Fuel Type}=3,15.576,if({Fuel Type} = 0,10.638,0)) | Z19: if({Fuel Type}=4,15.576,if({Fuel Type} = 0,0.218,0)) | AA19: if({Fuel Type}=5,15.576,if({Fuel Type} = 0,0.670,0)) | AB19: 0.0000 | AC19: 2018-07-01 | AD19: 2019-06-30 | AF19: 25 | AG19: 0 | AH19: 1 | AI19: 0 | AJ19: 0 | AK19: 0.666 | AL19: 0.301 | AM19: 1 | AN19: 1 | AO19: 1 | AP19: 0 | AQ19: 0 | AR19: {Fuel Type} | AS19: 0 | BL19: =IF(AS19=6,3699,IF(AS19=0,164,24)) -> 164 | BM19: 0 | BN19: 0 | BO19: =IF(AS19=6,0.808,IF(AS19=0,0.063,0.063)) -> 0.063 | BP19: 0 | BQ19: 0 | BR19: =IF(AS19=6,0.808,IF(AS19=0,0.031,0)) -> 0.031 | BS19: =IF(AS19=6,0.063,IF(AS19=0,0.063,0.063)) -> 0.063 | BT19: =IF(AS19=1,15.576,IF(AS19=0,1.402,0))*10 -> 14.02 | BU19: =IF(AS19=2,15.576,IF(AS19=0,2.04,0)) -> 2.04 | BV19: =IF(AS19=3,15.576,IF(AS19 = 0,10.638,0)) -> 10.638 | BW19: =IF(AS19=4,15.576,IF(AS19 = 0,0.218,0)) -> 0.218 | BX19: =IF(AS19=5,15.576,IF(AS19 = 0,0.67,0)) -> 0.67 | BY19: =0 -> 0 | BZ19: Res | CA19: RGGI DR | CB19: =Benefits(BL19,BR19,BS19,BT19,BU19,BV19,BW19,BX19,BY19,AF19,AI19,AJ19,AK19,AL19,AM19,AN19,AO19,AP19,AQ19,BZ19,CA19) -> 148.0926015 | CC19: 191.7199965 | CD19: 197.8372845 | CE19: 4682.181888 | CF19: 86.03795496 | CG19: 1240.493183 | CH19: 287.3841502 | CI19: 0 | CJ19: 6833.747059 | CK19: 0 | CM19: =G19 -> 2104 | CP19: 2104 | CQ19: 1 | CR19: 3.24797864 | CS19: 1 | CT19: 1000 | CV19: RGGI | CX19: X=2104 | CZ19: X=if(AS19=6,3699,if(AS19=0,164,24)) | DA19: 0 | DB19: 0 | DC19: X=if(AS19=6,0.808,if(AS19=0,0.063,0.063)) | DD19: 0 | DE19: 0 | DF19: X=if(AS19=6,0.808,if(AS19=0,0.031,0)) | DG19: X=if(AS19=6,0.063,if(AS19=0,0.063,0.063)) | DH19: X=if(AS19=1,15.576,if(AS19=0,1.402,0))*10 | DI19: X=if(AS19=2,15.576,if(AS19=0,2.04,0)) | DJ19: X=if(AS19=3,15.576,if(AS19 = 0,10.638,0)) | DK19: X=if(AS19=4,15.576,if(AS19 = 0,0.218,0)) | DL19: X=if(AS19=5,15.576,if(AS19 = 0,0.670,0)) | DM19: X=0.0000 | DP19: {Factor:WinterCF} | DQ19: {Factor:SummerCF} | DR19: =IFERROR(INDEX($ED19:$IG19,MATCH(0,COUNTIF($DO19:DQ19,$ED19:$IG19),0)),"") -> {Fuel Type} | DS19: =IFERROR(INDEX($ED19:$IG19,MATCH(0,COUNTIF($DO19:DR19,$ED19:$IG19),0)),"") ->  | DT19: =IFERROR(INDEX($ED19:$IG19,MATCH(0,COUNTIF($DO19:DS19,$ED19:$IG19),0)),"") ->  | DU19: =IFERROR(INDEX($ED19:$IG19,MATCH(0,COUNTIF($DO19:DT19,$ED19:$IG19),0)),"") ->  | DV19: =IFERROR(INDEX($ED19:$IG19,MATCH(0,COUNTIF($DO19:DU19,$ED19:$IG19),0)),"") ->  | DW19: =IFERROR(INDEX($ED19:$IG19,MATCH(0,COUNTIF($DO19:DV19,$ED19:$IG19),0)),"") ->  | DX19: =IFERROR(INDEX($ED19:$IG19,MATCH(0,COUNTIF($DO19:DW19,$ED19:$IG19),0)),"") ->  | DY19: =IFERROR(INDEX($ED19:$IG19,MATCH(0,COUNTIF($DO19:DX19,$ED19:$IG19),0)),"") ->  | DZ19: =IFERROR(INDEX($ED19:$IG19,MATCH(0,COUNTIF($DO19:DY19,$ED19:$IG19),0)),"") ->  | EA19: =IFERROR(INDEX($ED19:$IG19,MATCH(0,COUNTIF($DO19:DZ19,$ED19:$IG19),0)),"") ->  | EN19: {Fuel Type} | EO19: {Fuel Type} | EX19: {Fuel Type} | EY19: {Fuel Type} | FH19: {Fuel Type} | FI19: {Fuel Type} | FR19: {Fuel Type} | FS19: {Fuel Type} | GB19: {Fuel Type} | GC19: {Fuel Type} | GL19: {Fuel Type} | GM19: {Fuel Type} | GV19: {Fuel Type} | GW19: {Fuel Type} | HF19: {Fuel Type} | HG19: {Fuel Type} | HP19: {Fuel Type} | HQ19: {Fuel Type} | IK19: 1
A20: Affordable Heat Initiative - Other Fuels | B20: Basement Insulation LIHESP | C20: LBB | D20: 2018-07-01 | E20: 2019-06-30 | F20: Per Measure | G20: 2452 | H20: 0 | I20: Manual Entry | J20: $0.00 | K20: 0 | L20: 2018-07-01 | M20: 2019-06-30 | N20: Calculated | O20: if({Fuel Type}=6,8718,if({Fuel Type}=0,314,0)) | R20: 0 | U20: if({Fuel Type}=6,1.918,if({Fuel Type}=0,0.073,0)) | V20: 0 | W20: if({Fuel Type}=1,36.95,if({Fuel Type}=0,0,0))*10 | X20: if({Fuel Type}=2,36.950,if({Fuel Type} = 0,6.577,0)) | Y20: if({Fuel Type}=3,36.95,if({Fuel Type} = 0,26.567,0)) | Z20: if({Fuel Type}=4,36.95,if({Fuel Type} = 0,0.443,0)) | AA20: if({Fuel Type}=5,36.95,if({Fuel Type} = 0,2.032,0)) | AB20: 0.0000 | AC20: 2018-07-01 | AD20: 2019-06-30 | AF20: 25 | AG20: 0 | AH20: 0 | AI20: 0 | AJ20: 0 | AK20: 0 | AL20: 0 | AM20: 1 | AN20: 1 | AO20: 1 | AP20: 0 | AQ20: 0 | AR20: {Fuel Type} | AS20: 0 | BL20: =IF(AS20=6,8718,IF(AS20=0,314,0)) -> 314 | BM20: 0 | BN20: 0 | BO20: =0 -> 0 | BP20: 0 | BQ20: 0 | BR20: =IF(AS20=6,1.918,IF(AS20=0,0.073,0)) -> 0.073 | BS20: =0 -> 0 | BT20: =IF(AS20=1,36.95,IF(AS20=0,0,0))*10 -> 0 | BU20: =IF(AS20=2,36.95,IF(AS20 = 0,6.577,0)) -> 6.577 | BV20: =IF(AS20=3,36.95,IF(AS20 = 0,26.567,0)) -> 26.567 | BW20: =IF(AS20=4,36.95,IF(AS20 = 0,0.443,0)) -> 0.443 | BX20: =IF(AS20=5,36.95,IF(AS20 = 0,2.032,0)) -> 2.032 | BY20: =0 -> 0 | BZ20: Res | CA20: RGGI DR | CB20: =Benefits(BL20,BR20,BS20,BT20,BU20,BV20,BW20,BX20,BY20,AF20,AI20,AJ20,AK20,AL20,AM20,AN20,AO20,AP20,AQ20,BZ20,CA20) -> 0 | CC20: 223.9289559 | CD20: 0 | CE20: 11693.13087 | CF20: 174.8385965 | CG20: 3999.374346 | CH20: 871.588945 | CI20: 0 | CJ20: 16962.86172 | CK20: 0 | CM20: =G20 -> 2452 | CP20: 2452 | CQ20: 1 | CR20: 6.917969705 | CS20: 1 | CT20: 1000 | CV20: RGGI | CX20: X=2452 | CZ20: X=if(AS20=6,8718,if(AS20=0,314,0)) | DA20: 0 | DB20: 0 | DC20: X=0 | DD20: 0 | DE20: 0 | DF20: X=if(AS20=6,1.918,if(AS20=0,0.073,0)) | DG20: X=0 | DH20: X=if(AS20=1,36.95,if(AS20=0,0,0))*10 | DI20: X=if(AS20=2,36.950,if(AS20 = 0,6.577,0)) | DJ20: X=if(AS20=3,36.95,if(AS20 = 0,26.567,0)) | DK20: X=if(AS20=4,36.95,if(AS20 = 0,0.443,0)) | DL20: X=if(AS20=5,36.95,if(AS20 = 0,2.032,0)) | DM20: X=0.0000 | DP20: {Factor:WinterCF} | DQ20: {Factor:SummerCF} | DR20: =IFERROR(INDEX($ED20:$IG20,MATCH(0,COUNTIF($DO20:DQ20,$ED20:$IG20),0)),"") -> {Fuel Type} | DS20: =IFERROR(INDEX($ED20:$IG20,MATCH(0,COUNTIF($DO20:DR20,$ED20:$IG20),0)),"") ->  | DT20: =IFERROR(INDEX($ED20:$IG20,MATCH(0,COUNTIF($DO20:DS20,$ED20:$IG20),0)),"") ->  | DU20: =IFERROR(INDEX($ED20:$IG20,MATCH(0,COUNTIF($DO20:DT20,$ED20:$IG20),0)),"") ->  | DV20: =IFERROR(INDEX($ED20:$IG20,MATCH(0,COUNTIF($DO20:DU20,$ED20:$IG20),0)),"") ->  | DW20: =IFERROR(INDEX($ED20:$IG20,MATCH(0,COUNTIF($DO20:DV20,$ED20:$IG20),0)),"") ->  | DX20: =IFERROR(INDEX($ED20:$IG20,MATCH(0,COUNTIF($DO20:DW20,$ED20:$IG20),0)),"") ->  | DY20: =IFERROR(INDEX($ED20:$IG20,MATCH(0,COUNTIF($DO20:DX20,$ED20:$IG20),0)),"") ->  | DZ20: =IFERROR(INDEX($ED20:$IG20,MATCH(0,COUNTIF($DO20:DY20,$ED20:$IG20),0)),"") ->  | EA20: =IFERROR(INDEX($ED20:$IG20,MATCH(0,COUNTIF($DO20:DZ20,$ED20:$IG20),0)),"") ->  | EN20: {Fuel Type} | EO20: {Fuel Type} | FH20: {Fuel Type} | FI20: {Fuel Type} | GB20: {Fuel Type} | GC20: {Fuel Type} | GL20: {Fuel Type} | GM20: {Fuel Type} | GV20: {Fuel Type} | GW20: {Fuel Type} | HF20: {Fuel Type} | HG20: {Fuel Type} | HP20: {Fuel Type} | HQ20: {Fuel Type} | IK20: 1
A21: Affordable Heat Initiative - Other Fuels | B21: Wall Insulation LIHESP | C21: LBW | D21: 2018-07-01 | E21: 2019-06-30 | F21: Per Measure | G21: 3082 | H21: 0 | I21: Manual Entry | J21: $0.00 | K21: 0 | L21: 2018-07-01 | M21: 2019-06-30 | N21: Calculated | O21: if({Fuel Type}=6,11815,if({Fuel Type}=0,500,78)) | R21: if({Fuel Type}=6,2.582,if({Fuel Type} = 0,0.201,0.201)) | U21: if({Fuel Type}=6,2.582,if({Fuel Type}=0,0.104,0)) | V21: if({Fuel Type}=6,0.201,if({Fuel Type}=0,0.201,0.201)) | W21: if({Fuel Type}=1,49.747,if({Fuel Type}=0,0,0))*10 | X21: if({Fuel Type}=2,49.747,if({Fuel Type} = 0,8.855,0)) | Y21: if({Fuel Type}=3,49.747,if({Fuel Type} = 0,35.768,0)) | Z21: if({Fuel Type}=4,49.747,if({Fuel Type} = 0,0.597,0)) | AA21: if({Fuel Type}=5,49.747,if({Fuel Type} = 0,2.736,0)) | AB21: 0.0000 | AC21: 2018-07-01 | AD21: 2019-06-30 | AF21: 25 | AG21: 0 | AH21: 1 | AI21: 0 | AJ21: 0 | AK21: 0.666 | AL21: 0.301 | AM21: 1 | AN21: 1 | AO21: 1 | AP21: 0 | AQ21: 0 | AR21: {Fuel Type} | AS21: 0 | BL21: =IF(AS21=6,11815,IF(AS21=0,500,78)) -> 500 | BM21: 0 | BN21: 0 | BO21: =IF(AS21=6,2.582,IF(AS21 = 0,0.201,0.201)) -> 0.201 | BP21: 0 | BQ21: 0 | BR21: =IF(AS21=6,2.582,IF(AS21=0,0.104,0)) -> 0.104 | BS21: =IF(AS21=6,0.201,IF(AS21=0,0.201,0.201)) -> 0.201 | BT21: =IF(AS21=1,49.747,IF(AS21=0,0,0))*10 -> 0 | BU21: =IF(AS21=2,49.747,IF(AS21 = 0,8.855,0)) -> 8.855 | BV21: =IF(AS21=3,49.747,IF(AS21 = 0,35.768,0)) -> 35.768 | BW21: =IF(AS21=4,49.747,IF(AS21 = 0,0.597,0)) -> 0.597 | BX21: =IF(AS21=5,49.747,IF(AS21 = 0,2.736,0)) -> 2.736 | BY21: =0 -> 0 | BZ21: Res | CA21: RGGI DR | CB21: =Benefits(BL21,BR21,BS21,BT21,BU21,BV21,BW21,BX21,BY21,AF21,AI21,AJ21,AK21,AL21,AM21,AN21,AO21,AP21,AQ21,BZ21,CA21) -> 451.5018339 | CC21: 627.3078285 | CD21: 0 | CE21: 15742.83529 | CF21: 235.6177023 | CG21: 5384.591735 | CH21: 1173.556768 | CI21: 0 | CJ21: 23615.41115 | CK21: 0 | CM21: =G21 -> 3082 | CP21: 3082 | CQ21: 1 | CR21: 7.662365721 | CS21: 1 | CT21: 1000 | CV21: RGGI | CX21: X=3082 | CZ21: X=if(AS21=6,11815,if(AS21=0,500,78)) | DA21: 0 | DB21: 0 | DC21: X=if(AS21=6,2.582,if(AS21 = 0,0.201,0.201)) | DD21: 0 | DE21: 0 | DF21: X=if(AS21=6,2.582,if(AS21=0,0.104,0)) | DG21: X=if(AS21=6,0.201,if(AS21=0,0.201,0.201)) | DH21: X=if(AS21=1,49.747,if(AS21=0,0,0))*10 | DI21: X=if(AS21=2,49.747,if(AS21 = 0,8.855,0)) | DJ21: X=if(AS21=3,49.747,if(AS21 = 0,35.768,0)) | DK21: X=if(AS21=4,49.747,if(AS21 = 0,0.597,0)) | DL21: X=if(AS21=5,49.747,if(AS21 = 0,2.736,0)) | DM21: X=0.0000 | DP21: {Factor:WinterCF} | DQ21: {Factor:SummerCF} | DR21: =IFERROR(INDEX($ED21:$IG21,MATCH(0,COUNTIF($DO21:DQ21,$ED21:$IG21),0)),"") -> {Fuel Type} | DS21: =IFERROR(INDEX($ED21:$IG21,MATCH(0,COUNTIF($DO21:DR21,$ED21:$IG21),0)),"") ->  | DT21: =IFERROR(INDEX($ED21:$IG21,MATCH(0,COUNTIF($DO21:DS21,$ED21:$IG21),0)),"") ->  | DU21: =IFERROR(INDEX($ED21:$IG21,MATCH(0,COUNTIF($DO21:DT21,$ED21:$IG21),0)),"") ->  | DV21: =IFERROR(INDEX($ED21:$IG21,MATCH(0,COUNTIF($DO21:DU21,$ED21:$IG21),0)),"") ->  | DW21: =IFERROR(INDEX($ED21:$IG21,MATCH(0,COUNTIF($DO21:DV21,$ED21:$IG21),0)),"") ->  | DX21: =IFERROR(INDEX($ED21:$IG21,MATCH(0,COUNTIF($DO21:DW21,$ED21:$IG21),0)),"") ->  | DY21: =IFERROR(INDEX($ED21:$IG21,MATCH(0,COUNTIF($DO21:DX21,$ED21:$IG21),0)),"") ->  | DZ21: =IFERROR(INDEX($ED21:$IG21,MATCH(0,COUNTIF($DO21:DY21,$ED21:$IG21),0)),"") ->  | EA21: =IFERROR(INDEX($ED21:$IG21,MATCH(0,COUNTIF($DO21:DZ21,$ED21:$IG21),0)),"") ->  | EN21: {Fuel Type} | EO21: {Fuel Type} | EX21: {Fuel Type} | EY21: {Fuel Type} | FH21: {Fuel Type} | FI21: {Fuel Type} | FR21: {Fuel Type} | FS21: {Fuel Type} | GB21: {Fuel Type} | GC21: {Fuel Type} | GL21: {Fuel Type} | GM21: {Fuel Type} | GV21: {Fuel Type} | GW21: {Fuel Type} | HF21: {Fuel Type} | HG21: {Fuel Type} | HP21: {Fuel Type} | HQ21: {Fuel Type} | IK21: 1
A22: Affordable Heat Initiative - Other Fuels | B22: Ductless HP Low Income | C22: LCH | D22: 2018-07-01 | E22: 2019-06-30 | F22: Calculated | G22: {Project Cost} | H22: 0 | I22: Manual Entry | J22: $0.00 | K22: 0 | L22: 2018-07-01 | M22: 2019-06-30 | N22: Modeled | AC22: 2018-07-01 | AD22: 2019-06-30 | AF22: 18 | AG22: 1 | AH22: 1 | AI22: 0.3721208719 | AJ22: 0.5205621999 | AK22: 0.05734897764 | AL22: 0.04973244767 | AM22: 1 | AN22: 1 | AO22: 1 | AP22: 0 | AQ22: 0 | AR22: {Project Cost} | AS22: 2200 | BL22: -2503.490306 | BR22: -0.5582691168 | BS22: 0.07236249777 | BT22: 0 | BU22: 5.275225172 | BV22: 21.30835336 | BW22: 0.3556331576 | BX22: 1.629985306 | BY22: =0 -> 0 | BZ22: Res | CA22: RGGI DR | CB22: =Benefits(BL22,BR22,BS22,BT22,BU22,BV22,BW22,BX22,BY22,AF22,AI22,AJ22,AK22,AL22,AM22,AN22,AO22,AP22,AQ22,BZ22,CA22) -> -2072.361752 | CC22: -1202.70372 | CD22: 0 | CE22: 7078.256771 | CF22: 105.9311938 | CG22: 2429.766686 | CH22: 527.667038 | CI22: 0 | CJ22: 10141.62169 | CK22: 3275.065473 | CM22: =AS22 -> 2200 | CP22: 5475.065473 | CQ22: 1 | CR22: 1.852328842 | CS22: 1 | CT22: 2000 | CV22: RGGI | CX22: X=AS22 | CZ22: 0 | DA22: 0 | DB22: 0 | DC22: 0 | DD22: 0 | DE22: 0 | DF22: 0 | DG22: 0 | DH22: 0 | DI22: 0 | DJ22: 0 | DK22: 0 | DL22: 0 | DM22: 0 | DP22: {Factor:WinterCF} | DQ22: {Factor:SummerCF} | DR22: =IFERROR(INDEX($ED22:$IG22,MATCH(0,COUNTIF($DO22:DQ22,$ED22:$IG22),0)),"") -> {Project Cost} | DS22: =IFERROR(INDEX($ED22:$IG22,MATCH(0,COUNTIF($DO22:DR22,$ED22:$IG22),0)),"") ->  | DT22: =IFERROR(INDEX($ED22:$IG22,MATCH(0,COUNTIF($DO22:DS22,$ED22:$IG22),0)),"") ->  | DU22: =IFERROR(INDEX($ED22:$IG22,MATCH(0,COUNTIF($DO22:DT22,$ED22:$IG22),0)),"") ->  | DV22: =IFERROR(INDEX($ED22:$IG22,MATCH(0,COUNTIF($DO22:DU22,$ED22:$IG22),0)),"") ->  | DW22: =IFERROR(INDEX($ED22:$IG22,MATCH(0,COUNTIF($DO22:DV22,$ED22:$IG22),0)),"") ->  | DX22: =IFERROR(INDEX($ED22:$IG22,MATCH(0,COUNTIF($DO22:DW22,$ED22:$IG22),0)),"") ->  | DY22: =IFERROR(INDEX($ED22:$IG22,MATCH(0,COUNTIF($DO22:DX22,$ED22:$IG22),0)),"") ->  | DZ22: =IFERROR(INDEX($ED22:$IG22,MATCH(0,COUNTIF($DO22:DY22,$ED22:$IG22),0)),"") ->  | EA22: =IFERROR(INDEX($ED22:$IG22,MATCH(0,COUNTIF($DO22:DZ22,$ED22:$IG22),0)),"") ->  | ED22: {Project Cost} | IK22: 1
A23: Affordable Heat Initiative - Other Fuels | B23: Energy Upgrade Bundle LIHESP | C23: LUB | D23: 2018-07-01 | E23: 2019-06-30 | F23: Calculated | G23: {Project Cost} | H23: 0 | I23: Manual Entry | J23: $0.00 | K23: 0 | L23: 2018-07-01 | M23: 2019-06-30 | N23: Calculated | O23: if({Number of Aerators}>0,283+({Number of Aerators}-1)*29,0)+{Number of Showerheads}*150+{Seal/Insulate Pipes/Ducts}*25+13 | R23: if({Number of Aerators}>0,0.023+({Number of Aerators}-1)*0.002,0)+if({Number of Showerheads}>0,{Number of Showerheads}*0.012,0)+if({Seal/Insulate Pipes/Ducts}>0,{Seal/Insulate Pipes/Ducts}*0.002,0)+0.034 | U23: 0 | V23: if({Number of Aerators}>0,0.023+({Number of Aerators}-1)*0.002,0)+if({Number of Showerheads}>0,{Number of Showerheads}*0.012,0)+if({Seal/Insulate Pipes/Ducts}>0,{Seal/Insulate Pipes/Ducts}*0.002,0)+0.034 | X23: ({Underbelly}*25.270+{Seal and Insulate Openings}*0.646+{Seal/Insulate Pipes/Ducts}*5.571)*if({Fuel Type}=2,1,if({Fuel Type}=0,0.139,0))+if({Fuel Type}=2,8.519,if({Fuel Type} = 0,1.110,0)) | Y23: ({Underbelly}*25.270+{Seal and Insulate Openings}*0.646+{Seal/Insulate Pipes/Ducts}*5.571)*if({Fuel Type}=3,1,if({Fuel Type}=0,.753,0))+if({Fuel Type}=3,8.519,if({Fuel Type} = 0,5.788,0)) | Z23: ({Underbelly}*25.270+{Seal and Insulate Openings}*0.646+{Seal/Insulate Pipes/Ducts}*5.571)*if({Fuel Type}=4,1,if({Fuel Type}=0,0.018,0))+if({Fuel Type}=4,8.519,if({Fuel Type} = 0,0.119,0)) | AA23: ({Underbelly}*25.270+{Seal and Insulate Openings}*0.646+{Seal/Insulate Pipes/Ducts}*5.571)*if({Fuel Type}=5,1,if({Fuel Type}=0,0.047,0))+if({Fuel Type}=5,8.519,if({Fuel Type} = 0,0.364,0)) | AB23: if({Number of Aerators}>0,2696+({Number of Aerators}-1)*333,0)+{Number of Showerheads}*1200 | AC23: 2018-07-01 | AD23: 2019-06-30 | AF23: 15 | AG23: 0 | AH23: 1 | AI23: 0 | AJ23: 0 | AK23: 0.666 | AL23: 0.301 | AM23: 1 | AN23: 1 | AO23: 1 | AP23: 0 | AQ23: 0 | AR23: {Project Cost} | AS23: 600 | AT23: {Number of Aerators} | AU23: 0 | AV23: {Number of Showerheads} | AW23: 0 | AX23: {Seal/Insulate Pipes/Ducts} | AY23: 0 | AZ23: {Underbelly} | BA23: 0 | BB23: {Seal and Insulate Openings} | BC23: 0 | BD23: {Fuel Type} | BE23: 0 | BL23: =IF(AU23>0,283+(AU23-1)*29,0)+AW23*150+AY23*25+13 -> 13 | BM23: 0 | BN23: 0 | BO23: =IF(AU23>0,0.023+(AU23-1)*0.002,0)+IF(AW23>0,AW23*0.012,0)+IF(AY23>0,AY23*0.002,0)+0.034 -> 0.034 | BP23: 0 | BQ23: 0 | BR23: =0 -> 0 | BS23: =IF(AU23>0,0.023+(AU23-1)*0.002,0)+IF(AW23>0,AW23*0.012,0)+IF(AY23>0,AY23*0.002,0)+0.034 -> 0.034 | BT23: 0 | BU23: =(BA23*25.27+BC23*0.646+AY23*5.571)*IF(BE23=2,1,IF(BE23=0,0.139,0))+IF(BE23=2,8.519,IF(BE23 = 0,1.11,0)) -> 1.11 | BV23: =(BA23*25.27+BC23*0.646+AY23*5.571)*IF(BE23=3,1,IF(BE23=0,0.753,0))+IF(BE23=3,8.519,IF(BE23 = 0,5.788,0)) -> 5.788 | BW23: =(BA23*25.27+BC23*0.646+AY23*5.571)*IF(BE23=4,1,IF(BE23=0,0.018,0))+IF(BE23=4,8.519,IF(BE23 = 0,0.119,0)) -> 0.119 | BX23: =(BA23*25.27+BC23*0.646+AY23*5.571)*IF(BE23=5,1,IF(BE23=0,0.047,0))+IF(BE23=5,8.519,IF(BE23 = 0,0.364,0)) -> 0.364 | BY23: =IF(AU23>0,2696+(AU23-1)*333,0)+AW23*1200 -> 0 | BZ23: Res | CA23: RGGI DR | CB23: =Benefits(BL23,BR23,BS23,BT23,BU23,BV23,BW23,BX23,BY23,AF23,AI23,AJ23,AK23,AL23,AM23,AN23,AO23,AP23,AQ23,BZ23,CA23) -> 7.241748877 | CC23: 33.31528954 | CD23: 0 | CE23: 1627.399205 | CF23: 30.00251985 | CG23: 434.9896663 | CH23: 99.73943871 | CI23: 0 | CJ23: 2232.687869 | CK23: 0 | CM23: =AS23 -> 600 | CP23: 600 | CQ23: 1 | CR23: 3.721146448 | CS23: 1 | CT23: 550 | CV23: RGGI | CX23: X=AS23 | CZ23: X=if(AU23>0,283+(AU23-1)*29,0)+AW23*150+AY23*25+13 | DA23: 0 | DB23: 0 | DC23: X=if(AU23>0,0.023+(AU23-1)*0.002,0)+if(AW23>0,AW23*0.012,0)+if(AY23>0,AY23*0.002,0)+0.034 | DD23: 0 | DE23: 0 | DF23: X=0 | DG23: X=if(AU23>0,0.023+(AU23-1)*0.002,0)+if(AW23>0,AW23*0.012,0)+if(AY23>0,AY23*0.002,0)+0.034 | DH23: 0 | DI23: X=(BA23*25.270+BC23*0.646+AY23*5.571)*if(BE23=2,1,if(BE23=0,0.139,0))+if(BE23=2,8.519,if(BE23 = 0,1.110,0)) | DJ23: X=(BA23*25.270+BC23*0.646+AY23*5.571)*if(BE23=3,1,if(BE23=0,.753,0))+if(BE23=3,8.519,if(BE23 = 0,5.788,0)) | DK23: X=(BA23*25.270+BC23*0.646+AY23*5.571)*if(BE23=4,1,if(BE23=0,0.018,0))+if(BE23=4,8.519,if(BE23 = 0,0.119,0)) | DL23: X=(BA23*25.270+BC23*0.646+AY23*5.571)*if(BE23=5,1,if(BE23=0,0.047,0))+if(BE23=5,8.519,if(BE23 = 0,0.364,0)) | DM23: X=if(AU23>0,2696+(AU23-1)*333,0)+AW23*1200 | DP23: {Factor:WinterCF} | DQ23: {Factor:SummerCF} | DR23: =IFERROR(INDEX($ED23:$IG23,MATCH(0,COUNTIF($DO23:DQ23,$ED23:$IG23),0)),"") -> {Project Cost} | DS23: =IFERROR(INDEX($ED23:$IG23,MATCH(0,COUNTIF($DO23:DR23,$ED23:$IG23),0)),"") -> {Number of Aerators} | DT23: =IFERROR(INDEX($ED23:$IG23,MATCH(0,COUNTIF($DO23:DS23,$ED23:$IG23),0)),"") -> {Number of Showerheads} | DU23: =IFERROR(INDEX($ED23:$IG23,MATCH(0,COUNTIF($DO23:DT23,$ED23:$IG23),0)),"") -> {Seal/Insulate Pipes/Ducts} | DV23: =IFERROR(INDEX($ED23:$IG23,MATCH(0,COUNTIF($DO23:DU23,$ED23:$IG23),0)),"") -> {Underbelly} | DW23: =IFERROR(INDEX($ED23:$IG23,MATCH(0,COUNTIF($DO23:DV23,$ED23:$IG23),0)),"") -> {Seal and Insulate Openings} | DX23: =IFERROR(INDEX($ED23:$IG23,MATCH(0,COUNTIF($DO23:DW23,$ED23:$IG23),0)),"") -> {Fuel Type} | DY23: =IFERROR(INDEX($ED23:$IG23,MATCH(0,COUNTIF($DO23:DX23,$ED23:$IG23),0)),"") ->  | DZ23: =IFERROR(INDEX($ED23:$IG23,MATCH(0,COUNTIF($DO23:DY23,$ED23:$IG23),0)),"") ->  | EA23: =IFERROR(INDEX($ED23:$IG23,MATCH(0,COUNTIF($DO23:DZ23,$ED23:$IG23),0)),"") ->  | ED23: {Project Cost} | EN23: {Number of Aerators} | EO23: {Number of Aerators} | EP23: {Number of Showerheads} | EQ23: {Seal/Insulate Pipes/Ducts} | EX23: {Number of Aerators} | EY23: {Number of Aerators} | EZ23: {Number of Showerheads} | FA23: {Number of Showerheads} | FB23: {Seal/Insulate Pipes/Ducts} | FC23: {Seal/Insulate Pipes/Ducts} | FR23: {Number of Aerators} | FS23: {Number of Aerators} | FT23: {Number of Showerheads} | FU23: {Number of Showerheads} | FV23: {Seal/Insulate Pipes/Ducts} | FW23: {Seal/Insulate Pipes/Ducts} | GL23: {Underbelly} | GM23: {Seal and Insulate Openings} | GN23: {Seal/Insulate Pipes/Ducts} | GO23: {Fuel Type} | GP23: {Fuel Type} | GQ23: {Fuel Type} | GR23: {Fuel Type} | GV23: {Underbelly} | GW23: {Seal and Insulate Openings} | GX23: {Seal/Insulate Pipes/Ducts} | GY23: {Fuel Type} | GZ23: {Fuel Type} | HA23: {Fuel Type} | HB23: {Fuel Type} | HF23: {Underbelly} | HG23: {Seal and Insulate Openings} | HH23: {Seal/Insulate Pipes/Ducts} | HI23: {Fuel Type} | HJ23: {Fuel Type} | HK23: {Fuel Type} | HL23: {Fuel Type} | HP23: {Underbelly} | HQ23: {Seal and Insulate Openings} | HR23: {Seal/Insulate Pipes/Ducts} | HS23: {Fuel Type} | HT23: {Fuel Type} | HU23: {Fuel Type} | HV23: {Fuel Type} | HZ23: {Number of Aerators} | IA23: {Number of Aerators} | IB23: {Number of Showerheads} | IK23: 7
A24: Affordable Heat Initiative - Other Fuels | B24: Window Insert AHI | C24: LWI | D24: 2018-07-01 | E24: 2019-06-30 | F24: Calculated | G24: 2.52*{SQFT} | H24: 0 | I24: Manual Entry | J24: $0.00 | K24: 0 | L24: 2018-07-01 | M24: 2019-06-30 | N24: Calculated | O24: if({Fuel Type}=6,12.143*{SQFT},0) | R24: if({Fuel Type}=6,0.002671*{SQFT},0) | U24: if({Fuel Type}=6,0.002671*{SQFT},if({Fuel Type}=0,0.000102*{SQFT},0)) | V24: 0 | W24: if({Fuel Type}=1,0.051467*{SQFT},if({Fuel Type}=0,0.004632*{SQFT},0))*10 | X24: if({Fuel Type}=2,0.051467*{SQFT},if({Fuel Type}=0,0.006742*{SQFT},0)) | Y24: if({Fuel Type}=3,0.051467*{SQFT},if({Fuel Type}=0,0.035152*{SQFT},0)) | Z24: if({Fuel Type}=4,0.051467*{SQFT},if({Fuel Type}=0,0.000721*{SQFT},0)) | AA24: if({Fuel Type}=5,0.051467*{SQFT},if({Fuel Type}=0,0.002213*{SQFT},0)) | AC24: 2018-07-01 | AD24: 2019-06-30 | AF24: 4 | AG24: 0 | AH24: 1 | AI24: 0 | AJ24: 0 | AK24: 0 | AL24: 0 | AM24: 1 | AN24: 1 | AO24: 1 | AP24: 0 | AQ24: 0 | AR24: {SQFT} | AS24: 100 | AT24: {Fuel Type} | AU24: 0 | BL24: =IF(AU24=6,12.143*AS24,0) -> 0 | BM24: 0 | BN24: 0 | BO24: =IF(AU24=6,0.002671*AS24,0) -> 0 | BP24: 0 | BQ24: 0 | BR24: =IF(AU24=6,0.002671*AS24,IF(AU24=0,0.000102*AS24,0)) -> 0.0102 | BS24: =0 -> 0 | BT24: =IF(AU24=1,0.051467*AS24,IF(AU24=0,0.004632*AS24,0))*10 -> 4.632 | BU24: =IF(AU24=2,0.051467*AS24,IF(AU24=0,0.006742*AS24,0)) -> 0.6742 | BV24: =IF(AU24=3,0.051467*AS24,IF(AU24=0,0.035152*AS24,0)) -> 3.5152 | BW24: =IF(AU24=4,0.051467*AS24,IF(AU24=0,0.000721*AS24,0)) -> 0.0721 | BX24: =IF(AU24=5,0.051467*AS24,IF(AU24=0,0.002213*AS24,0)) -> 0.2213 | BY24: 0 | BZ24: Res | CA24: RGGI DR | CB24: =Benefits(BL24,BR24,BS24,BT24,BU24,BV24,BW24,BX24,BY24,AF24,AI24,AJ24,AK24,AL24,AM24,AN24,AO24,AP24,AQ24,BZ24,CA24) -> 0 | CC24: 6.136393629 | CD24: 12.16336527 | CE24: 249.941358 | CF24: 4.596941018 | CG24: 69.32480703 | CH24: 15.33449994 | CI24: 0 | CJ24: 357.4973649 | CK24: 0 | CM24: =2.52*AS24 -> 252 | CP24: 252 | CQ24: 1 | CR24: 1.418640337 | CS24: 1 | CT24: =CM24*CU24 -> 252 | CU24: 1 | CV24: RGGI | CX24: X=2.52*AS24 | CZ24: X=if(AU24=6,12.143*AS24,0) | DA24: 0 | DB24: 0 | DC24: X=if(AU24=6,0.002671*AS24,0) | DD24: 0 | DE24: 0 | DF24: X=if(AU24=6,0.002671*AS24,if(AU24=0,0.000102*AS24,0)) | DG24: X=0 | DH24: X=if(AU24=1,0.051467*AS24,if(AU24=0,0.004632*AS24,0))*10 | DI24: X=if(AU24=2,0.051467*AS24,if(AU24=0,0.006742*AS24,0)) | DJ24: X=if(AU24=3,0.051467*AS24,if(AU24=0,0.035152*AS24,0)) | DK24: X=if(AU24=4,0.051467*AS24,if(AU24=0,0.000721*AS24,0)) | DL24: X=if(AU24=5,0.051467*AS24,if(AU24=0,0.002213*AS24,0)) | DM24: 0 | DP24: {Factor:WinterCF} | DQ24: {Factor:SummerCF} | DR24: =IFERROR(INDEX($ED24:$IG24,MATCH(0,COUNTIF($DO24:DQ24,$ED24:$IG24),0)),"") -> {SQFT} | DS24: =IFERROR(INDEX($ED24:$IG24,MATCH(0,COUNTIF($DO24:DR24,$ED24:$IG24),0)),"") -> {Fuel Type} | DT24: =IFERROR(INDEX($ED24:$IG24,MATCH(0,COUNTIF($DO24:DS24,$ED24:$IG24),0)),"") ->  | DU24: =IFERROR(INDEX($ED24:$IG24,MATCH(0,COUNTIF($DO24:DT24,$ED24:$IG24),0)),"") ->  | DV24: =IFERROR(INDEX($ED24:$IG24,MATCH(0,COUNTIF($DO24:DU24,$ED24:$IG24),0)),"") ->  | DW24: =IFERROR(INDEX($ED24:$IG24,MATCH(0,COUNTIF($DO24:DV24,$ED24:$IG24),0)),"") ->  | DX24: =IFERROR(INDEX($ED24:$IG24,MATCH(0,COUNTIF($DO24:DW24,$ED24:$IG24),0)),"") ->  | DY24: =IFERROR(INDEX($ED24:$IG24,MATCH(0,COUNTIF($DO24:DX24,$ED24:$IG24),0)),"") ->  | DZ24: =IFERROR(INDEX($ED24:$IG24,MATCH(0,COUNTIF($DO24:DY24,$ED24:$IG24),0)),"") ->  | EA24: =IFERROR(INDEX($ED24:$IG24,MATCH(0,COUNTIF($DO24:DZ24,$ED24:$IG24),0)),"") ->  | ED24: =IFERROR(MID($G24,FIND(CHAR(160),SUBSTITUTE($G24,"{",CHAR(160),ED$1)),FIND(CHAR(160),SUBSTITUTE($G24,"}",CHAR(160),ED$1))-FIND(CHAR(160),SUBSTITUTE($G24,"{",CHAR(160),ED$1))+1),"") -> {SQFT} | EN24: =IFERROR(MID($O24,FIND(CHAR(160),SUBSTITUTE($O24,"{",CHAR(160),EN$1)),FIND(CHAR(160),SUBSTITUTE($O24,"}",CHAR(160),EN$1))-FIND(CHAR(160),SUBSTITUTE($O24,"{",CHAR(160),EN$1))+1),"") -> {Fuel Type} | EO24: {SQFT} | EX24: =IFERROR(MID($R24,FIND(CHAR(160),SUBSTITUTE($R24,"{",CHAR(160),EX$1)),FIND(CHAR(160),SUBSTITUTE($R24,"}",CHAR(160),EX$1))-FIND(CHAR(160),SUBSTITUTE($R24,"{",CHAR(160),EX$1))+1),"") -> {Fuel Type} | EY24: {SQFT} | FH24: =IFERROR(MID($U24,FIND(CHAR(160),SUBSTITUTE($U24,"{",CHAR(160),FH$1)),FIND(CHAR(160),SUBSTITUTE($U24,"}",CHAR(160),FH$1))-FIND(CHAR(160),SUBSTITUTE($U24,"{",CHAR(160),FH$1))+1),"") -> {Fuel Type} | FI24: {SQFT} | FJ24: {Fuel Type} | FK24: {SQFT} | FR24: =IFERROR(MID($V24,FIND(CHAR(160),SUBSTITUTE($V24,"{",CHAR(160),FR$1)),FIND(CHAR(160),SUBSTITUTE($V24,"}",CHAR(160),FR$1))-FIND(CHAR(160),SUBSTITUTE($V24,"{",CHAR(160),FR$1))+1),"") ->  | GB24: =IFERROR(MID($W24,FIND(CHAR(160),SUBSTITUTE($W24,"{",CHAR(160),GB$1)),FIND(CHAR(160),SUBSTITUTE($W24,"}",CHAR(160),GB$1))-FIND(CHAR(160),SUBSTITUTE($W24,"{",CHAR(160),GB$1))+1),"") -> {Fuel Type} | GC24: {SQFT} | GD24: {Fuel Type} | GE24: {SQFT} | GL24: =IFERROR(MID($X24,FIND(CHAR(160),SUBSTITUTE($X24,"{",CHAR(160),GL$1)),FIND(CHAR(160),SUBSTITUTE($X24,"}",CHAR(160),GL$1))-FIND(CHAR(160),SUBSTITUTE($X24,"{",CHAR(160),GL$1))+1),"") -> {Fuel Type} | GM24: {SQFT} | GN24: {Fuel Type} | GO24: {SQFT} | GV24: =IFERROR(MID($Y24,FIND(CHAR(160),SUBSTITUTE($Y24,"{",CHAR(160),GV$1)),FIND(CHAR(160),SUBSTITUTE($Y24,"}",CHAR(160),GV$1))-FIND(CHAR(160),SUBSTITUTE($Y24,"{",CHAR(160),GV$1))+1),"") -> {Fuel Type} | GW24: {SQFT} | GX24: {Fuel Type} | GY24: {SQFT} | HF24: =IFERROR(MID($Z24,FIND(CHAR(160),SUBSTITUTE($Z24,"{",CHAR(160),HF$1)),FIND(CHAR(160),SUBSTITUTE($Z24,"}",CHAR(160),HF$1))-FIND(CHAR(160),SUBSTITUTE($Z24,"{",CHAR(160),HF$1))+1),"") -> {Fuel Type} | HG24: {SQFT} | HH24: {Fuel Type} | HI24: {SQFT} | HP24: =IFERROR(MID($AA24,FIND(CHAR(160),SUBSTITUTE($AA24,"{",CHAR(160),HP$1)),FIND(CHAR(160),SUBSTITUTE($AA24,"}",CHAR(160),HP$1))-FIND(CHAR(160),SUBSTITUTE($AA24,"{",CHAR(160),HP$1))+1),"") -> {Fuel Type} | HQ24: {SQFT} | HR24: {Fuel Type} | HS24: {SQFT} | HZ24: =IFERROR(MID($AB24,FIND(CHAR(160),SUBSTITUTE($AB24,"{",CHAR(160),HZ$1)),FIND(CHAR(160),SUBSTITUTE($AB24,"}",CHAR(160),HZ$1))-FIND(CHAR(160),SUBSTITUTE($AB24,"{",CHAR(160),HZ$1))+1),"") ->  | IK24: 2
A25: Affordable Heat Initiative - Other Fuels | H25: 0 | K25: 0 | CX25: 0 | CZ25: 0 | DA25: 0 | DB25: 0 | DC25: 0 | DD25: 0 | DE25: 0 | DF25: 0 | DG25: 0 | DH25: 0 | DI25: 0 | DJ25: 0 | DK25: 0 | DL25: 0 | DM25: 0 | DP25: {Factor:WinterCF} | DQ25: {Factor:SummerCF} | DR25: =IFERROR(INDEX($ED25:$IG25,MATCH(0,COUNTIF($DO25:DQ25,$ED25:$IG25),0)),"") ->  | DS25: =IFERROR(INDEX($ED25:$IG25,MATCH(0,COUNTIF($DO25:DR25,$ED25:$IG25),0)),"") ->  | DT25: =IFERROR(INDEX($ED25:$IG25,MATCH(0,COUNTIF($DO25:DS25,$ED25:$IG25),0)),"") ->  | DU25: =IFERROR(INDEX($ED25:$IG25,MATCH(0,COUNTIF($DO25:DT25,$ED25:$IG25),0)),"") ->  | DV25: =IFERROR(INDEX($ED25:$IG25,MATCH(0,COUNTIF($DO25:DU25,$ED25:$IG25),0)),"") ->  | DW25: =IFERROR(INDEX($ED25:$IG25,MATCH(0,COUNTIF($DO25:DV25,$ED25:$IG25),0)),"") ->  | DX25: =IFERROR(INDEX($ED25:$IG25,MATCH(0,COUNTIF($DO25:DW25,$ED25:$IG25),0)),"") ->  | DY25: =IFERROR(INDEX($ED25:$IG25,MATCH(0,COUNTIF($DO25:DX25,$ED25:$IG25),0)),"") ->  | DZ25: =IFERROR(INDEX($ED25:$IG25,MATCH(0,COUNTIF($DO25:DY25,$ED25:$IG25),0)),"") ->  | EA25: =IFERROR(INDEX($ED25:$IG25,MATCH(0,COUNTIF($DO25:DZ25,$ED25:$IG25),0)),"") ->  | IK25: 0
A26: Appliance Rebate | B26: Clothes Washer | C26: CW | D26: 2018-07-01 | E26: 2019-06-30 | F26: Per Measure | G26: $92.00 | H26: 0 | I26: Manual Entry | J26: $0.00 | K26: 0 | L26: 2018-07-01 | M26: 2019-06-30 | N26: Calculated | O26: {Measure:Quantity} * 183 | R26: {Measure:Quantity} * 0.56 | U26: {Measure:Quantity} * 0.56 * {Factor:WinterCF} | V26: {Measure:Quantity} * 0.56 * {Factor:SummerCF} | W26: {Measure:Quantity} * 0.0114 * 10 | X26: {Measure:Quantity} * 0.074 | Y26: {Measure:Quantity} * 0.338 | AB26: {Measure:Quantity} * 3438 | AC26: 2016-07-01 | AD26: 2019-06-30 | AF26: 11 | AG26: 0.063 | AH26: 0.048 | AI26: 0.4 | AJ26: 0.266 | AK26: 0.201 | AL26: 0.133 | AM26: 1 | AN26: 1 | AO26: 1 | AP26: 0.567 | AQ26: 0.033 | AR26: =DR26 -> {Measure:Quantity} | AS26: 1 | AT26: =DS26 ->  | AV26: =DT26 ->  | AX26: =DU26 ->  | AZ26: =DV26 ->  | BB26: =DW26 ->  | BD26: =DX26 ->  | BF26: =DY26 ->  | BH26: =DZ26 ->  | BJ26: =EA26 ->  | BL26: =AS26 * 183 -> 183 | BM26: 0 | BN26: 0 | BO26: =AS26 * 0.56 -> 0.56 | BP26: 0 | BQ26: 0 | BR26: =AS26 * 0.56 * AG26 -> 0.03528 | BS26: =AS26 * 0.56 * AH26 -> 0.02688 | BT26: =AS26 * 0.0114 * 10 -> 0.114 | BU26: =AS26 * 0.074 -> 0.074 | BV26: =AS26 * 0.338 -> 0.338 | BW26: 0 | BX26: 0 | BY26: =AS26 * 3438 -> 3438 | BZ26: Res | CA26: Default DR | CB26: =Benefits(BL26,BR26,BS26,BT26,BU26,BV26,BW26,BX26,BY26,AF26,AI26,AJ26,AK26,AL26,AM26,AN26,AO26,AP26,AQ26,BZ26,CA26) -> 97.96626239 | CC26: 71.97480606 | CD26: 0.8039010789 | CE26: 70.58842406 | CF26: 0 | CG26: 21.77313905 | CH26: 0 | CI26: 211.457807 | CJ26: 474.5643397 | CK26: =-SUMPRODUCT(CB26:CI26,--(CB26:CI26<0)) -> 0 | CM26: =92 -> 92 | CP26: =CK26+CM26 -> 92 | CQ26: =IF(NetOrGross="Net",(1-AP26+AQ26),1) -> 0.466 | CR26: =(CJ26+CL26+SUMPRODUCT(CN26:CO26,--(CN26:CO26>0)))*CQ26/((CK26+MAX(CM26,CT26)-SUMPRODUCT(CN26:CO26,--(CN26:CO26<0)))*CQ26+IF(FRIncentives="Yes",CT26*(1-CQ26),0)) -> 3.178677949 | CS26: 1 | CT26: 50 | CV26: Electric | CX26: X=$92.00 | CZ26: X=AS26 * 183 | DA26: 0 | DB26: 0 | DC26: X=AS26 * 0.56 | DD26: 0 | DE26: 0 | DF26: X=AS26 * 0.56 * AG26 | DG26: X=AS26 * 0.56 * AH26 | DH26: X=AS26 * 0.0114 * 10 | DI26: X=AS26 * 0.074 | DJ26: X=AS26 * 0.338 | DK26: 0 | DL26: 0 | DM26: X=AS26 * 3438 | DP26: {Factor:WinterCF} | DQ26: {Factor:SummerCF} | DR26: =IFERROR(INDEX($ED26:$IG26,MATCH(0,COUNTIF($DO26:DQ26,$ED26:$IG26),0)),"") -> {Measure:Quantity} | DS26: =IFERROR(INDEX($ED26:$IG26,MATCH(0,COUNTIF($DO26:DR26,$ED26:$IG26),0)),"") ->  | DT26: =IFERROR(INDEX($ED26:$IG26,MATCH(0,COUNTIF($DO26:DS26,$ED26:$IG26),0)),"") ->  | DU26: =IFERROR(INDEX($ED26:$IG26,MATCH(0,COUNTIF($DO26:DT26,$ED26:$IG26),0)),"") ->  | DV26: =IFERROR(INDEX($ED26:$IG26,MATCH(0,COUNTIF($DO26:DU26,$ED26:$IG26),0)),"") ->  | DW26: =IFERROR(INDEX($ED26:$IG26,MATCH(0,COUNTIF($DO26:DV26,$ED26:$IG26),0)),"") ->  | DX26: =IFERROR(INDEX($ED26:$IG26,MATCH(0,COUNTIF($DO26:DW26,$ED26:$IG26),0)),"") ->  | DY26: =IFERROR(INDEX($ED26:$IG26,MATCH(0,COUNTIF($DO26:DX26,$ED26:$IG26),0)),"") ->  | DZ26: =IFERROR(INDEX($ED26:$IG26,MATCH(0,COUNTIF($DO26:DY26,$ED26:$IG26),0)),"") ->  | EA26: =IFERROR(INDEX($ED26:$IG26,MATCH(0,COUNTIF($DO26:DZ26,$ED26:$IG26),0)),"") ->  | EN26: {Measure:Quantity} | EX26: {Measure:Quantity} | FH26: {Measure:Quantity} | FI26: {Factor:WinterCF} | FR26: {Measure:Quantity} | FS26: {Factor:SummerCF} | GB26: {Measure:Quantity} | GL26: {Measure:Quantity} | GV26: {Measure:Quantity} | HZ26: {Measure:Quantity} | IK26: 1
A27: Appliance Rebate | B27: Dehumidifier | C27: DH | D27: 2018-07-01 | E27: 2019-06-30 | F27: Per Measure | G27: $50.00 | H27: 0 | I27: Manual Entry | J27: $0.00 | K27: 0 | L27: 2018-07-01 | M27: 2019-06-30 | N27: Calculated | O27: {Measure:Quantity} * 150 | R27: {Measure:Quantity} * 0.092 | U27: {Measure:Quantity} * 0.092 * {Factor:WinterCF} | V27: {Measure:Quantity} * 0.092 * {Factor:SummerCF} | AC27: 2016-07-01 | AD27: 2019-06-30 | AF27: 12 | AG27: 0 | AH27: 0.371 | AI27: 0.179 | AJ27: 0.155 | AK27: 0.339 | AL27: 0.327 | AM27: 1 | AN27: 1 | AO27: 1 | AP27: 0.653 | AQ27: 0.033 | AR27: =DR27 -> {Measure:Quantity} | AS27: 1 | AT27: =DS27 ->  | AV27: =DT27 ->  | AX27: =DU27 ->  | AZ27: =DV27 ->  | BB27: =DW27 ->  | BD27: =DX27 ->  | BF27: =DY27 ->  | BH27: =DZ27 ->  | BJ27: =EA27 ->  | BL27: =AS27 * 150 -> 150 | BM27: 0 | BN27: 0 | BO27: =AS27 * 0.092 -> 0.092 | BP27: 0 | BQ27: 0 | BR27: =AS27 * 0.092 * AG27 -> 0 | BS27: =AS27 * 0.092 * AH27 -> 0.034132 | BT27: 0 | BU27: 0 | BV27: 0 | BW27: 0 | BX27: 0 | BY27: 0 | BZ27: Res | CA27: Default DR | CB27: =Benefits(BL27,BR27,BS27,BT27,BU27,BV27,BW27,BX27,BY27,AF27,AI27,AJ27,AK27,AL27,AM27,AN27,AO27,AP27,AQ27,BZ27,CA27) -> 77.87819849 | CC27: 27.31668529 | CD27: 0 | CE27: 0 | CF27: 0 | CG27: 0 | CH27: 0 | CI27: 0 | CJ27: 105.1948838 | CK27: 0 | CM27: =50 -> 50 | CP27: =CK27+CM27 -> 50 | CQ27: =IF(NetOrGross="Net",(1-AP27+AQ27),1) -> 0.38 | CR27: =(CJ27+CL27+SUMPRODUCT(CN27:CO27,--(CN27:CO27>0)))*CQ27/((CK27+MAX(CM27,CT27)-SUMPRODUCT(CN27:CO27,--(CN27:CO27<0)))*CQ27+IF(FRIncentives="Yes",CT27*(1-CQ27),0)) -> 0.7994811167 | CS27: 0 | CT27: 50 | CV27: Electric | CX27: X=$50.00 | CZ27: X=AS27 * 150 | DA27: 0 | DB27: 0 | DC27: X=AS27 * 0.092 | DD27: 0 | DE27: 0 | DF27: X=AS27 * 0.092 * AG27 | DG27: X=AS27 * 0.092 * AH27 | DH27: 0 | DI27: 0 | DJ27: 0 | DK27: 0 | DL27: 0 | DM27: 0 | DP27: {Factor:WinterCF} | DQ27: {Factor:SummerCF} | DR27: =IFERROR(INDEX($ED27:$IG27,MATCH(0,COUNTIF($DO27:DQ27,$ED27:$IG27),0)),"") -> {Measure:Quantity} | DS27: =IFERROR(INDEX($ED27:$IG27,MATCH(0,COUNTIF($DO27:DR27,$ED27:$IG27),0)),"") ->  | DT27: =IFERROR(INDEX($ED27:$IG27,MATCH(0,COUNTIF($DO27:DS27,$ED27:$IG27),0)),"") ->  | DU27: =IFERROR(INDEX($ED27:$IG27,MATCH(0,COUNTIF($DO27:DT27,$ED27:$IG27),0)),"") ->  | DV27: =IFERROR(INDEX($ED27:$IG27,MATCH(0,COUNTIF($DO27:DU27,$ED27:$IG27),0)),"") ->  | DW27: =IFERROR(INDEX($ED27:$IG27,MATCH(0,COUNTIF($DO27:DV27,$ED27:$IG27),0)),"") ->  | DX27: =IFERROR(INDEX($ED27:$IG27,MATCH(0,COUNTIF($DO27:DW27,$ED27:$IG27),0)),"") ->  | DY27: =IFERROR(INDEX($ED27:$IG27,MATCH(0,COUNTIF($DO27:DX27,$ED27:$IG27),0)),"") ->  | DZ27: =IFERROR(INDEX($ED27:$IG27,MATCH(0,COUNTIF($DO27:DY27,$ED27:$IG27),0)),"") ->  | EA27: =IFERROR(INDEX($ED27:$IG27,MATCH(0,COUNTIF($DO27:DZ27,$ED27:$IG27),0)),"") ->  | EN27: {Measure:Quantity} | EX27: {Measure:Quantity} | FH27: {Measure:Quantity} | FI27: {Factor:WinterCF} | FR27: {Measure:Quantity} | FS27: {Factor:SummerCF} | IK27: 1
A28: Appliance Rebate | B28: Heat Pump Water Heater | C28: HPWH | D28: 2018-07-01 | E28: 2019-06-30 | F28: Calculated | G28: if({Previous Mark Down (y/n)}=1,0,{Measure:Quantity} * 908.00) | H28: 0 | I28: Calculated | J28: {Measure:Quantity}*({Rebate Amount}+{Bonus Amount}) | K28: 0 | L28: 2018-07-01 | M28: 2019-06-30 | N28: Calculated | O28: if({Previous Mark Down (y/n)}=1,0,{Measure:Quantity} * 2125) | R28: if({Previous Mark Down (y/n)}=1,0,{Measure:Quantity} * .419) | U28: if({Previous Mark Down (y/n)}=1,0,{Measure:Quantity} * .419) | V28: if({Previous Mark Down (y/n)}=1,0,{Measure:Quantity} * .196) | AC28: 2016-07-01 | AD28: 2019-06-30 | AF28: 13 | AG28: 1 | AH28: 1 | AI28: 0.358 | AJ28: 0.308 | AK28: 0.179 | AL28: 0.155 | AM28: 1 | AN28: 1 | AO28: 1 | AP28: 0.21 | AQ28: 0.033 | AR28: =DR28 -> {Previous Mark Down (y/n)} | AS28: 0 | AT28: =DS28 -> {Measure:Quantity} | AU28: 1 | AV28: =DT28 ->  | AX28: =DU28 ->  | AZ28: =DV28 ->  | BB28: =DW28 ->  | BD28: =DX28 ->  | BF28: =DY28 ->  | BH28: =DZ28 ->  | BJ28: =EA28 ->  | BL28: =IF(AS28=1,0,AU28 * 2125) -> 2125 | BM28: 0 | BN28: 0 | BO28: =IF(AS28=1,0,AU28 * 0.419) -> 0.419 | BP28: 0 | BQ28: 0 | BR28: =IF(AS28=1,0,AU28 * 0.419) -> 0.419 | BS28: =IF(AS28=1,0,AU28 * 0.196) -> 0.196 | BT28: 0 | BU28: 0 | BV28: 0 | BW28: 0 | BX28: 0 | BY28: 0 | BZ28: Res | CA28: Default DR | CB28: =Benefits(BL28,BR28,BS28,BT28,BU28,BV28,BW28,BX28,BY28,AF28,AI28,AJ28,AK28,AL28,AM28,AN28,AO28,AP28,AQ28,BZ28,CA28) -> 1302.122205 | CC28: 889.8567902 | CD28: 0 | CE28: 0 | CF28: 0 | CG28: 0 | CH28: 0 | CI28: 0 | CJ28: 2191.978996 | CK28: 0 | CM28: =IF(AS28=1,0,AU28 * 908) -> 908 | CP28: =CK28+CM28 -> 908 | CQ28: =IF(NetOrGross="Net",(1-AP28+AQ28),1) -> 0.823 | CR28: =(CJ28+CL28+SUMPRODUCT(CN28:CO28,--(CN28:CO28>0)))*CQ28/((CK28+MAX(CM28,CT28)-SUMPRODUCT(CN28:CO28,--(CN28:CO28<0)))*CQ28+IF(FRIncentives="Yes",CT28*(1-CQ28),0)) -> 1.803998713 | CS28: 1 | CT28: 1000 | CV28: Electric | CX28: X=if(AS28=1,0,AU28 * 908.00) | CZ28: X=if(AS28=1,0,AU28 * 2125) | DA28: 0 | DB28: 0 | DC28: X=if(AS28=1,0,AU28 * .419) | DD28: 0 | DE28: 0 | DF28: X=if(AS28=1,0,AU28 * .419) | DG28: X=if(AS28=1,0,AU28 * .196) | DH28: 0 | DI28: 0 | DJ28: 0 | DK28: 0 | DL28: 0 | DM28: 0 | DP28: {Factor:WinterCF} | DQ28: {Factor:SummerCF} | DR28: =IFERROR(INDEX($ED28:$IG28,MATCH(0,COUNTIF($DO28:DQ28,$ED28:$IG28),0)),"") -> {Previous Mark Down (y/n)} | DS28: =IFERROR(INDEX($ED28:$IG28,MATCH(0,COUNTIF($DO28:DR28,$ED28:$IG28),0)),"") -> {Measure:Quantity} | DT28: =IFERROR(INDEX($ED28:$IG28,MATCH(0,COUNTIF($DO28:DS28,$ED28:$IG28),0)),"") ->  | DU28: =IFERROR(INDEX($ED28:$IG28,MATCH(0,COUNTIF($DO28:DT28,$ED28:$IG28),0)),"") ->  | DV28: =IFERROR(INDEX($ED28:$IG28,MATCH(0,COUNTIF($DO28:DU28,$ED28:$IG28),0)),"") ->  | DW28: =IFERROR(INDEX($ED28:$IG28,MATCH(0,COUNTIF($DO28:DV28,$ED28:$IG28),0)),"") ->  | DX28: =IFERROR(INDEX($ED28:$IG28,MATCH(0,COUNTIF($DO28:DW28,$ED28:$IG28),0)),"") ->  | DY28: =IFERROR(INDEX($ED28:$IG28,MATCH(0,COUNTIF($DO28:DX28,$ED28:$IG28),0)),"") ->  | DZ28: =IFERROR(INDEX($ED28:$IG28,MATCH(0,COUNTIF($DO28:DY28,$ED28:$IG28),0)),"") ->  | EA28: =IFERROR(INDEX($ED28:$IG28,MATCH(0,COUNTIF($DO28:DZ28,$ED28:$IG28),0)),"") ->  | ED28: {Previous Mark Down (y/n)} | EE28: {Measure:Quantity} | EN28: {Previous Mark Down (y/n)} | EO28: {Measure:Quantity} | EX28: {Previous Mark Down (y/n)} | EY28: {Measure:Quantity} | FH28: {Previous Mark Down (y/n)} | FI28: {Measure:Quantity} | FR28: {Previous Mark Down (y/n)} | FS28: {Measure:Quantity} | IK28: 2
A29: Appliance Rebate | B29: Room Air Purifier | C29: RAP | D29: 2018-07-01 | E29: 2019-06-30 | F29: Per Measure | G29: $55.82 | H29: 0 | I29: Manual Entry | J29: $0.00 | K29: 0 | L29: 2018-07-01 | M29: 2019-06-30 | N29: Calculated | O29: {Measure:Quantity} * 624 | R29: {Measure:Quantity} * .107 | U29: {Measure:Quantity} * .107 * {Factor:WinterCF} | V29: {Measure:Quantity} * .107 * {Factor:SummerCF} | AC29: 2016-07-01 | AD29: 2019-06-30 | AF29: 9 | AG29: 0.667 | AH29: 0.667 | AI29: 0.304 | AJ29: 0.362 | AK29: 0.156 | AL29: 0.179 | AM29: 1 | AN29: 1 | AO29: 1 | AP29: 0.655 | AQ29: 0.033 | AR29: =DR29 -> {Measure:Quantity} | AS29: 1 | AT29: =DS29 ->  | AV29: =DT29 ->  | AX29: =DU29 ->  | AZ29: =DV29 ->  | BB29: =DW29 ->  | BD29: =DX29 ->  | BF29: =DY29 ->  | BH29: =DZ29 ->  | BJ29: =EA29 ->  | BL29: =AS29 * 624 -> 624 | BM29: 0 | BN29: 0 | BO29: =AS29 * 0.107 -> 0.107 | BP29: 0 | BQ29: 0 | BR29: =AS29 * 0.107 * AG29 -> 0.071369 | BS29: =AS29 * 0.107 * AH29 -> 0.071369 | BT29: 0 | BU29: 0 | BV29: 0 | BW29: 0 | BX29: 0 | BY29: 0 | BZ29: Res | CA29: Default DR | CB29: =Benefits(BL29,BR29,BS29,BT29,BU29,BV29,BW29,BX29,BY29,AF29,AI29,AJ29,AK29,AL29,AM29,AN29,AO29,AP29,AQ29,BZ29,CA29) -> 273.9331405 | CC29: 130.9049644 | CD29: 0 | CE29: 0 | CF29: 0 | CG29: 0 | CH29: 0 | CI29: 0 | CJ29: 404.838105 | CK29: 0 | CM29: =55.82 -> 55.82 | CP29: =CK29+CM29 -> 55.82 | CQ29: =IF(NetOrGross="Net",(1-AP29+AQ29),1) -> 0.378 | CR29: =(CJ29+CL29+SUMPRODUCT(CN29:CO29,--(CN29:CO29>0)))*CQ29/((CK29+MAX(CM29,CT29)-SUMPRODUCT(CN29:CO29,--(CN29:CO29<0)))*CQ29+IF(FRIncentives="Yes",CT29*(1-CQ29),0)) -> 2.931588524 | CS29: 1 | CT29: 50 | CV29: Electric | CX29: X=$55.82 | CZ29: X=AS29 * 624 | DA29: 0 | DB29: 0 | DC29: X=AS29 * .107 | DD29: 0 | DE29: 0 | DF29: X=AS29 * .107 * AG29 | DG29: X=AS29 * .107 * AH29 | DH29: 0 | DI29: 0 | DJ29: 0 | DK29: 0 | DL29: 0 | DM29: 0 | DP29: {Factor:WinterCF} | DQ29: {Factor:SummerCF} | DR29: =IFERROR(INDEX($ED29:$IG29,MATCH(0,COUNTIF($DO29:DQ29,$ED29:$IG29),0)),"") -> {Measure:Quantity} | DS29: =IFERROR(INDEX($ED29:$IG29,MATCH(0,COUNTIF($DO29:DR29,$ED29:$IG29),0)),"") ->  | DT29: =IFERROR(INDEX($ED29:$IG29,MATCH(0,COUNTIF($DO29:DS29,$ED29:$IG29),0)),"") ->  | DU29: =IFERROR(INDEX($ED29:$IG29,MATCH(0,COUNTIF($DO29:DT29,$ED29:$IG29),0)),"") ->  | DV29: =IFERROR(INDEX($ED29:$IG29,MATCH(0,COUNTIF($DO29:DU29,$ED29:$IG29),0)),"") ->  | DW29: =IFERROR(INDEX($ED29:$IG29,MATCH(0,COUNTIF($DO29:DV29,$ED29:$IG29),0)),"") ->  | DX29: =IFERROR(INDEX($ED29:$IG29,MATCH(0,COUNTIF($DO29:DW29,$ED29:$IG29),0)),"") ->  | DY29: =IFERROR(INDEX($ED29:$IG29,MATCH(0,COUNTIF($DO29:DX29,$ED29:$IG29),0)),"") ->  | DZ29: =IFERROR(INDEX($ED29:$IG29,MATCH(0,COUNTIF($DO29:DY29,$ED29:$IG29),0)),"") ->  | EA29: =IFERROR(INDEX($ED29:$IG29,MATCH(0,COUNTIF($DO29:DZ29,$ED29:$IG29),0)),"") ->  | EN29: {Measure:Quantity} | EX29: {Measure:Quantity} | FH29: {Measure:Quantity} | FI29: {Factor:WinterCF} | FR29: {Measure:Quantity} | FS29: {Factor:SummerCF} | IK29: 1
A30: Appliance Rebate | H30: 0 | K30: 0 | CX30: 0 | CZ30: 0 | DA30: 0 | DB30: 0 | DC30: 0 | DD30: 0 | DE30: 0 | DF30: 0 | DG30: 0 | DH30: 0 | DI30: 0 | DJ30: 0 | DK30: 0 | DL30: 0 | DM30: 0 | DP30: {Factor:WinterCF} | DQ30: {Factor:SummerCF} | DR30: =IFERROR(INDEX($ED30:$IG30,MATCH(0,COUNTIF($DO30:DQ30,$ED30:$IG30),0)),"") ->  | DS30: =IFERROR(INDEX($ED30:$IG30,MATCH(0,COUNTIF($DO30:DR30,$ED30:$IG30),0)),"") ->  | DT30: =IFERROR(INDEX($ED30:$IG30,MATCH(0,COUNTIF($DO30:DS30,$ED30:$IG30),0)),"") ->  | DU30: =IFERROR(INDEX($ED30:$IG30,MATCH(0,COUNTIF($DO30:DT30,$ED30:$IG30),0)),"") ->  | DV30: =IFERROR(INDEX($ED30:$IG30,MATCH(0,COUNTIF($DO30:DU30,$ED30:$IG30),0)),"") ->  | DW30: =IFERROR(INDEX($ED30:$IG30,MATCH(0,COUNTIF($DO30:DV30,$ED30:$IG30),0)),"") ->  | DX30: =IFERROR(INDEX($ED30:$IG30,MATCH(0,COUNTIF($DO30:DW30,$ED30:$IG30),0)),"") ->  | DY30: =IFERROR(INDEX($ED30:$IG30,MATCH(0,COUNTIF($DO30:DX30,$ED30:$IG30),0)),"") ->  | DZ30: =IFERROR(INDEX($ED30:$IG30,MATCH(0,COUNTIF($DO30:DY30,$ED30:$IG30),0)),"") ->  | EA30: =IFERROR(INDEX($ED30:$IG30,MATCH(0,COUNTIF($DO30:DZ30,$ED30:$IG30),0)),"") ->  | IK30: 0
A31: Arrearage Management Program | B31: LED Low Income Specialty Bulb Long Life | C31: LILEDSPECL | D31: 2018-07-01 | E31: 2019-06-30 | F31: Manual Entry | G31: $0.00 | H31: 0 | I31: Manual Entry | J31: $0.00 | K31: 0 | L31: 2017-07-01 | M31: 2019-06-30 | N31: Calculated | O31: if({Measure:Quantity}=0,0,{Measure:Quantity})*40 | R31: if({Measure:Quantity}=0,0,{Measure:Quantity}*0.059) | U31: if({Measure:Quantity}=0,0,{Measure:Quantity}*0.054*{Factor:WinterCF}) | V31: if({Measure:Quantity}=0,0,{Measure:Quantity}*(0.054)*1.085*{Factor:SummerCF}) | W31: if({Measure:Quantity}=0,0,{Measure:Quantity}*(-0.005)*10) | X31: if({Measure:Quantity}=0,0,{Measure:Quantity}*(-0.003)) | Y31: if({Measure:Quantity}=0,0,{Measure:Quantity}*(-0.036)) | Z31: if({Measure:Quantity}=0,0,{Measure:Quantity}*(-0.003)) | AA31: if({Measure:Quantity}=0,0,{Measure:Quantity}*(-0.007)) | AC31: 2018-07-01 | AD31: 2019-06-30 | AF31: 25 | AG31: 0.168 | AH31: 0.118 | AI31: 0.39 | AJ31: 0.311 | AK31: 0.163 | AL31: 0.136 | AM31: 0.99 | AN31: 1 | AO31: 1 | AP31: 0 | AQ31: 0 | AR31: =DR31 -> {Measure:Quantity} | AS31: 1 | AT31: =DS31 ->  | AV31: =DT31 ->  | AX31: =DU31 ->  | AZ31: =DV31 ->  | BB31: =DW31 ->  | BD31: =DX31 ->  | BF31: =DY31 ->  | BH31: =DZ31 ->  | BJ31: =EA31 ->  | BL31: =IF(AS31=0,0,AS31)*40 -> 40 | BM31: 0 | BN31: 0 | BO31: =IF(AS31=0,0,AS31*0.059) -> 0.059 | BP31: 0 | BQ31: 0 | BR31: =IF(AS31=0,0,AS31*0.054*AG31) -> 0.009072 | BS31: =IF(AS31=0,0,AS31*(0.054)*1.085*AH31) -> 0.00691362 | BT31: =IF(AS31=0,0,AS31*(-0.005)*10) -> -0.05 | BU31: =IF(AS31=0,0,AS31*(-0.003)) -> -0.003 | BV31: =IF(AS31=0,0,AS31*(-0.036)) -> -0.036 | BW31: =IF(AS31=0,0,AS31*(-0.003)) -> -0.003 | BX31: =IF(AS31=0,0,AS31*(-0.007)) -> -0.007 | BY31: 0 | BZ31: Res | CA31: Default DR | CB31: =Benefits(BL31,BR31,BS31,BT31,BU31,BV31,BW31,BX31,BY31,AF31,AI31,AJ31,AK31,AL31,AM31,AN31,AO31,AP31,AQ31,BZ31,CA31) -> 40.93448077 | CC31: 38.0480508 | CD31: -0.6984982584 | CE31: -15.6864977 | CF31: -1.172168469 | CG31: -1.806012135 | CH31: -2.972495762 | CI31: 0 | CJ31: 78.98253157 | CK31: =-SUMPRODUCT(CB31:CI31,--(CB31:CI31<0)) -> 22.33567232 | CM31: 8 | CO31: =ROUND(INDEX('[1]Measure Costs and O&M'!$E$2:$E$43,MATCH(C31,'[1]Measure Costs and O&M'!$G$2:$G$43,0)),2) -> 6.09 | CP31: =CK31+CM31 -> 30.33567232 | CQ31: =IF(NetOrGross="Net",(1-AP31+AQ31),1) -> 1 | CR31: =(CJ31+CL31+SUMPRODUCT(CN31:CO31,--(CN31:CO31>0)))*CQ31/((CK31+MAX(CM31,CT31)-SUMPRODUCT(CN31:CO31,--(CN31:CO31<0)))*CQ31+IF(FRIncentives="Yes",CT31*(1-CQ31),0)) -> 2.804372709 | CS31: 1 | CT31: =CM31*CU31 -> 8 | CU31: 1 | CV31: Electric | CX31: X=$0.00 | CZ31: X=if(AS31=0,0,AS31)*40 | DA31: 0 | DB31: 0 | DC31: X=if(AS31=0,0,AS31*0.059) | DD31: 0 | DE31: 0 | DF31: X=if(AS31=0,0,AS31*0.054*AG31) | DG31: X=if(AS31=0,0,AS31*(0.054)*1.085*AH31) | DH31: X=if(AS31=0,0,AS31*(-0.005)*10) | DI31: X=if(AS31=0,0,AS31*(-0.003)) | DJ31: X=if(AS31=0,0,AS31*(-0.036)) | DK31: X=if(AS31=0,0,AS31*(-0.003)) | DL31: X=if(AS31=0,0,AS31*(-0.007)) | DM31: 0 | DP31: {Factor:WinterCF} | DQ31: {Factor:SummerCF} | DR31: =IFERROR(INDEX($ED31:$IG31,MATCH(0,COUNTIF($DO31:DQ31,$ED31:$IG31),0)),"") -> {Measure:Quantity} | DS31: =IFERROR(INDEX($ED31:$IG31,MATCH(0,COUNTIF($DO31:DR31,$ED31:$IG31),0)),"") ->  | DT31: =IFERROR(INDEX($ED31:$IG31,MATCH(0,COUNTIF($DO31:DS31,$ED31:$IG31),0)),"") ->  | DU31: =IFERROR(INDEX($ED31:$IG31,MATCH(0,COUNTIF($DO31:DT31,$ED31:$IG31),0)),"") ->  | DV31: =IFERROR(INDEX($ED31:$IG31,MATCH(0,COUNTIF($DO31:DU31,$ED31:$IG31),0)),"") ->  | DW31: =IFERROR(INDEX($ED31:$IG31,MATCH(0,COUNTIF($DO31:DV31,$ED31:$IG31),0)),"") ->  | DX31: =IFERROR(INDEX($ED31:$IG31,MATCH(0,COUNTIF($DO31:DW31,$ED31:$IG31),0)),"") ->  | DY31: =IFERROR(INDEX($ED31:$IG31,MATCH(0,COUNTIF($DO31:DX31,$ED31:$IG31),0)),"") ->  | DZ31: =IFERROR(INDEX($ED31:$IG31,MATCH(0,COUNTIF($DO31:DY31,$ED31:$IG31),0)),"") ->  | EA31: =IFERROR(INDEX($ED31:$IG31,MATCH(0,COUNTIF($DO31:DZ31,$ED31:$IG31),0)),"") ->  | EN31: {Measure:Quantity} | EO31: {Measure:Quantity} | EX31: {Measure:Quantity} | EY31: {Measure:Quantity} | FH31: {Measure:Quantity} | FI31: {Measure:Quantity} | FJ31: {Factor:WinterCF} | FR31: {Measure:Quantity} | FS31: {Measure:Quantity} | FT31: {Factor:SummerCF} | GB31: {Measure:Quantity} | GC31: {Measure:Quantity} | GL31: {Measure:Quantity} | GM31: {Measure:Quantity} | GV31: {Measure:Quantity} | GW31: {Measure:Quantity} | HF31: {Measure:Quantity} | HG31: {Measure:Quantity} | HP31: {Measure:Quantity} | HQ31: {Measure:Quantity} | IK31: 1
A32: Arrearage Management Program | B32: LED Low Income Specialty Bulb Short Life | C32: LILEDSPECS | D32: 2018-07-01 | E32: 2019-06-30 | F32: Manual Entry | G32: $0.00 | H32: 0 | I32: Manual Entry | J32: $0.00 | K32: 0 | L32: 2017-07-01 | M32: 2019-06-30 | N32: Calculated | O32: if({Measure:Quantity}=0,0,{Measure:Quantity})*40 | R32: if({Measure:Quantity}=0,0,{Measure:Quantity}*0.059) | U32: if({Measure:Quantity}=0,0,{Measure:Quantity}*0.054*{Factor:WinterCF}) | V32: if({Measure:Quantity}=0,0,{Measure:Quantity}*(0.054)*1.085*{Factor:SummerCF}) | W32: if({Measure:Quantity}=0,0,{Measure:Quantity}*(-0.005)*10) | X32: if({Measure:Quantity}=0,0,{Measure:Quantity}*(-0.003)) | Y32: if({Measure:Quantity}=0,0,{Measure:Quantity}*(-0.036)) | Z32: if({Measure:Quantity}=0,0,{Measure:Quantity}*(-0.003)) | AA32: if({Measure:Quantity}=0,0,{Measure:Quantity}*(-0.007)) | AC32: 2018-07-01 | AD32: 2019-06-30 | AF32: 21 | AG32: 0.168 | AH32: 0.118 | AI32: 0.39 | AJ32: 0.311 | AK32: 0.163 | AL32: 0.136 | AM32: 0.99 | AN32: 1 | AO32: 1 | AP32: 0 | AQ32: 0 | AR32: {Measure:Quantity} | AS32: 1 | BL32: =IF(AS32=0,0,AS32)*40 -> 40 | BM32: 0 | BN32: 0 | BO32: =IF(AS32=0,0,AS32*0.059) -> 0.059 | BP32: 0 | BQ32: 0 | BR32: =IF(AS32=0,0,AS32*0.054*AG32) -> 0.009072 | BS32: =IF(AS32=0,0,AS32*(0.054)*1.085*AH32) -> 0.00691362 | BT32: =IF(AS32=0,0,AS32*(-0.005)*10) -> -0.05 | BU32: =IF(AS32=0,0,AS32*(-0.003)) -> -0.003 | BV32: =IF(AS32=0,0,AS32*(-0.036)) -> -0.036 | BW32: =IF(AS32=0,0,AS32*(-0.003)) -> -0.003 | BX32: =IF(AS32=0,0,AS32*(-0.007)) -> -0.007 | BY32: 0 | BZ32: Res | CA32: Default DR | CB32: =Benefits(BL32,BR32,BS32,BT32,BU32,BV32,BW32,BX32,BY32,AF32,AI32,AJ32,AK32,AL32,AM32,AN32,AO32,AP32,AQ32,BZ32,CA32) -> 35.79335124 | CC32: 32.72408093 | CD32: -0.6105307033 | CE32: -13.55925018 | CF32: -1.013210518 | CG32: -1.562163342 | CH32: -2.569395668 | CI32: 0 | CJ32: 68.51743217 | CK32: 19.31455041 | CM32: 8 | CO32: =ROUND(INDEX('[1]Measure Costs and O&M'!$E$2:$E$43,MATCH(C32,'[1]Measure Costs and O&M'!$G$2:$G$43,0)),2) -> 5.21 | CP32: 27.31455041 | CQ32: 1 | CR32: 2.699199916 | CS32: 1 | CT32: 8 | CU32: 1 | CV32: Electric | CX32: X=$0.00 | CZ32: X=if(AS32=0,0,AS32)*40 | DA32: 0 | DB32: 0 | DC32: X=if(AS32=0,0,AS32*0.059) | DD32: 0 | DE32: 0 | DF32: X=if(AS32=0,0,AS32*0.054*AG32) | DG32: X=if(AS32=0,0,AS32*(0.054)*1.085*AH32) | DH32: X=if(AS32=0,0,AS32*(-0.005)*10) | DI32: X=if(AS32=0,0,AS32*(-0.003)) | DJ32: X=if(AS32=0,0,AS32*(-0.036)) | DK32: X=if(AS32=0,0,AS32*(-0.003)) | DL32: X=if(AS32=0,0,AS32*(-0.007)) | DM32: 0 | DP32: {Factor:WinterCF} | DQ32: {Factor:SummerCF} | DR32: =IFERROR(INDEX($ED32:$IG32,MATCH(0,COUNTIF($DO32:DQ32,$ED32:$IG32),0)),"") -> {Measure:Quantity} | DS32: =IFERROR(INDEX($ED32:$IG32,MATCH(0,COUNTIF($DO32:DR32,$ED32:$IG32),0)),"") ->  | DT32: =IFERROR(INDEX($ED32:$IG32,MATCH(0,COUNTIF($DO32:DS32,$ED32:$IG32),0)),"") ->  | DU32: =IFERROR(INDEX($ED32:$IG32,MATCH(0,COUNTIF($DO32:DT32,$ED32:$IG32),0)),"") ->  | DV32: =IFERROR(INDEX($ED32:$IG32,MATCH(0,COUNTIF($DO32:DU32,$ED32:$IG32),0)),"") ->  | DW32: =IFERROR(INDEX($ED32:$IG32,MATCH(0,COUNTIF($DO32:DV32,$ED32:$IG32),0)),"") ->  | DX32: =IFERROR(INDEX($ED32:$IG32,MATCH(0,COUNTIF($DO32:DW32,$ED32:$IG32),0)),"") ->  | DY32: =IFERROR(INDEX($ED32:$IG32,MATCH(0,COUNTIF($DO32:DX32,$ED32:$IG32),0)),"") ->  | DZ32: =IFERROR(INDEX($ED32:$IG32,MATCH(0,COUNTIF($DO32:DY32,$ED32:$IG32),0)),"") ->  | EA32: =IFERROR(INDEX($ED32:$IG32,MATCH(0,COUNTIF($DO32:DZ32,$ED32:$IG32),0)),"") ->  | EN32: {Measure:Quantity} | EO32: {Measure:Quantity} | EX32: {Measure:Quantity} | EY32: {Measure:Quantity} | FH32: {Measure:Quantity} | FI32: {Measure:Quantity} | FJ32: {Factor:WinterCF} | FR32: {Measure:Quantity} | FS32: {Measure:Quantity} | FT32: {Factor:SummerCF} | GB32: {Measure:Quantity} | GC32: {Measure:Quantity} | GL32: {Measure:Quantity} | GM32: {Measure:Quantity} | GV32: {Measure:Quantity} | GW32: {Measure:Quantity} | HF32: {Measure:Quantity} | HG32: {Measure:Quantity} | HP32: {Measure:Quantity} | HQ32: {Measure:Quantity} | IK32: 1
A33: Arrearage Management Program | B33: LED Low Income Standard Bulb Long Life | C33: LILEDSTANL | D33: 2018-07-01 | E33: 2019-06-30 | F33: Manual Entry | G33: $0.00 | H33: 0 | I33: Manual Entry | J33: $0.00 | K33: 0 | L33: 2017-07-01 | M33: 2019-06-30 | N33: Calculated | O33: if({Measure:Quantity}=0,0,{Measure:Quantity}*if({Wattage}>13,41,25)) | R33: if({Measure:Quantity}=0,0,{Measure:Quantity}*if({Wattage}>13,0.060,0.037)) | U33: if({Measure:Quantity}=0,0,{Measure:Quantity}*if({Wattage}>13,0.055,0.034)*{Factor:WinterCF}) | V33: if({Measure:Quantity}=0,0,{Measure:Quantity}*if({Wattage}>13,0.055,0.034)*1.085*{Factor:SummerCF}) | W33: if({Measure:Quantity}=0,0,{Measure:Quantity}*if({Wattage}>13,-0.005,-0.004)*10) | X33: if({Measure:Quantity}=0,0,{Measure:Quantity}*if({Wattage}>13,-0.003,-0.002)) | Y33: if({Measure:Quantity}=0,0,{Measure:Quantity}*if({Wattage}>13,-0.036,-0.022)) | Z33: if({Measure:Quantity}=0,0,{Measure:Quantity}*if({Wattage}>13,-0.003,-0.002)) | AA33: if({Measure:Quantity}=0,0,{Measure:Quantity}*if({Wattage}>13,-0.007,-0.004)) | AC33: 2018-07-01 | AD33: 2019-06-30 | AF33: 9 | AG33: 0.168 | AH33: 0.118 | AI33: 0.39 | AJ33: 0.311 | AK33: 0.163 | AL33: 0.136 | AM33: 0.99 | AN33: 1 | AO33: 1 | AP33: 0 | AQ33: 0 | AR33: {Measure:Quantity} | AS33: 1 | AT33: {Wattage} | AU33: 9 | BL33: =IF(AS33=0,0,AS33*IF(AU33>13,41,25)) -> 25 | BM33: 0 | BN33: 0 | BO33: =IF(AS33=0,0,AS33*IF(AU33>13,0.06,0.037)) -> 0.037 | BP33: 0 | BQ33: 0 | BR33: =IF(AS33=0,0,AS33*IF(AU33>13,0.055,0.034)*AG33) -> 0.005712 | BS33: =IF(AS33=0,0,AS33*IF(AU33>13,0.055,0.034)*1.085*AH33) -> 0.00435302 | BT33: =IF(AS33=0,0,AS33*IF(AU33>13,-0.005,-0.004)*10) -> -0.04 | BU33: =IF(AS33=0,0,AS33*IF(AU33>13,-0.003,-0.002)) -> -0.002 | BV33: =IF(AS33=0,0,AS33*IF(AU33>13,-0.036,-0.022)) -> -0.022 | BW33: =IF(AS33=0,0,AS33*IF(AU33>13,-0.003,-0.002)) -> -0.002 | BX33: =IF(AS33=0,0,AS33*IF(AU33>13,-0.007,-0.004)) -> -0.004 | BY33: 0 | BZ33: Res | CA33: Default DR | CB33: =Benefits(BL33,BR33,BS33,BT33,BU33,BV33,BW33,BX33,BY33,AF33,AI33,AJ33,AK33,AL33,AM33,AN33,AO33,AP33,AQ33,BZ33,CA33) -> 11.07562731 | CC33: 9.549605287 | CD33: -0.2313610444 | CE33: -3.729951022 | CF33: -0.304057367 | CG33: -0.4807674261 | CH33: -0.6609070086 | CI33: 0 | CJ33: 20.6252326 | CK33: 5.407043869 | CM33: 4.48 | CO33: =ROUND(INDEX('[1]Measure Costs and O&M'!$E$2:$E$43,MATCH(C33,'[1]Measure Costs and O&M'!$G$2:$G$43,0)),2) -> 17.13 | CP33: 9.887043869 | CQ33: 1 | CR33: 3.818657336 | CS33: 1 | CT33: 4.48 | CU33: 1 | CV33: Electric | CX33: X=$0.00 | CZ33: X=if(AS33=0,0,AS33*if(AU33>13,41,25)) | DA33: 0 | DB33: 0 | DC33: X=if(AS33=0,0,AS33*if(AU33>13,0.060,0.037)) | DD33: 0 | DE33: 0 | DF33: X=if(AS33=0,0,AS33*if(AU33>13,0.055,0.034)*AG33) | DG33: X=if(AS33=0,0,AS33*if(AU33>13,0.055,0.034)*1.085*AH33) | DH33: X=if(AS33=0,0,AS33*if(AU33>13,-0.005,-0.004)*10) | DI33: X=if(AS33=0,0,AS33*if(AU33>13,-0.003,-0.002)) | DJ33: X=if(AS33=0,0,AS33*if(AU33>13,-0.036,-0.022)) | DK33: X=if(AS33=0,0,AS33*if(AU33>13,-0.003,-0.002)) | DL33: X=if(AS33=0,0,AS33*if(AU33>13,-0.007,-0.004)) | DM33: 0 | DP33: {Factor:WinterCF} | DQ33: {Factor:SummerCF} | DR33: =IFERROR(INDEX($ED33:$IG33,MATCH(0,COUNTIF($DO33:DQ33,$ED33:$IG33),0)),"") -> {Measure:Quantity} | DS33: =IFERROR(INDEX($ED33:$IG33,MATCH(0,COUNTIF($DO33:DR33,$ED33:$IG33),0)),"") -> {Wattage} | DT33: =IFERROR(INDEX($ED33:$IG33,MATCH(0,COUNTIF($DO33:DS33,$ED33:$IG33),0)),"") ->  | DU33: =IFERROR(INDEX($ED33:$IG33,MATCH(0,COUNTIF($DO33:DT33,$ED33:$IG33),0)),"") ->  | DV33: =IFERROR(INDEX($ED33:$IG33,MATCH(0,COUNTIF($DO33:DU33,$ED33:$IG33),0)),"") ->  | DW33: =IFERROR(INDEX($ED33:$IG33,MATCH(0,COUNTIF($DO33:DV33,$ED33:$IG33),0)),"") ->  | DX33: =IFERROR(INDEX($ED33:$IG33,MATCH(0,COUNTIF($DO33:DW33,$ED33:$IG33),0)),"") ->  | DY33: =IFERROR(INDEX($ED33:$IG33,MATCH(0,COUNTIF($DO33:DX33,$ED33:$IG33),0)),"") ->  | DZ33: =IFERROR(INDEX($ED33:$IG33,MATCH(0,COUNTIF($DO33:DY33,$ED33:$IG33),0)),"") ->  | EA33: =IFERROR(INDEX($ED33:$IG33,MATCH(0,COUNTIF($DO33:DZ33,$ED33:$IG33),0)),"") ->  | EN33: {Measure:Quantity} | EO33: {Measure:Quantity} | EP33: {Wattage} | EX33: {Measure:Quantity} | EY33: {Measure:Quantity} | EZ33: {Wattage} | FH33: {Measure:Quantity} | FI33: {Measure:Quantity} | FJ33: {Wattage} | FK33: {Factor:WinterCF} | FR33: {Measure:Quantity} | FS33: {Measure:Quantity} | FT33: {Wattage} | FU33: {Factor:SummerCF} | GB33: {Measure:Quantity} | GC33: {Measure:Quantity} | GD33: {Wattage} | GL33: {Measure:Quantity} | GM33: {Measure:Quantity} | GN33: {Wattage} | GV33: {Measure:Quantity} | GW33: {Measure:Quantity} | GX33: {Wattage} | HF33: {Measure:Quantity} | HG33: {Measure:Quantity} | HH33: {Wattage} | HP33: {Measure:Quantity} | HQ33: {Measure:Quantity} | HR33: {Wattage} | IK33: 2
A34: Arrearage Management Program | B34: LED Low Income Standard Bulb Short Life | C34: LILEDSTANS | D34: 2018-07-01 | E34: 2019-06-30 | F34: Manual Entry | G34: $0.00 | H34: 0 | I34: Manual Entry | J34: $0.00 | K34: 0 | L34: 2017-07-01 | M34: 2019-06-30 | N34: Calculated | O34: if({Measure:Quantity}=0,0,{Measure:Quantity}*if({Wattage}>13,41,25)) | R34: if({Measure:Quantity}=0,0,{Measure:Quantity}*if({Wattage}>13,0.060,0.037)) | U34: if({Measure:Quantity}=0,0,{Measure:Quantity}*if({Wattage}>13,0.055,0.034)*{Factor:WinterCF}) | V34: if({Measure:Quantity}=0,0,{Measure:Quantity}*if({Wattage}>13,0.055,0.034)*1.085*{Factor:SummerCF}) | W34: if({Measure:Quantity}=0,0,{Measure:Quantity}*if({Wattage}>13,-0.005,-0.004)*10) | X34: if({Measure:Quantity}=0,0,{Measure:Quantity}*if({Wattage}>13,-0.003,-0.002)) | Y34: if({Measure:Quantity}=0,0,{Measure:Quantity}*if({Wattage}>13,-0.036,-0.022)) | Z34: if({Measure:Quantity}=0,0,{Measure:Quantity}*if({Wattage}>13,-0.003,-0.002)) | AA34: if({Measure:Quantity}=0,0,{Measure:Quantity}*if({Wattage}>13,-0.007,-0.004)) | AC34: 2018-07-01 | AD34: 2019-06-30 | AF34: 8 | AG34: 0.168 | AH34: 0.118 | AI34: 0.39 | AJ34: 0.311 | AK34: 0.163 | AL34: 0.136 | AM34: 0.99 | AN34: 1 | AO34: 1 | AP34: 0 | AQ34: 0 | AR34: {Measure:Quantity} | AS34: 1 | AT34: {Wattage} | AU34: 9 | BL34: =IF(AS34=0,0,AS34*IF(AU34>13,41,25)) -> 25 | BM34: 0 | BN34: 0 | BO34: =IF(AS34=0,0,AS34*IF(AU34>13,0.06,0.037)) -> 0.037 | BP34: 0 | BQ34: 0 | BR34: =IF(AS34=0,0,AS34*IF(AU34>13,0.055,0.034)*AG34) -> 0.005712 | BS34: =IF(AS34=0,0,AS34*IF(AU34>13,0.055,0.034)*1.085*AH34) -> 0.00435302 | BT34: =IF(AS34=0,0,AS34*IF(AU34>13,-0.005,-0.004)*10) -> -0.04 | BU34: =IF(AS34=0,0,AS34*IF(AU34>13,-0.003,-0.002)) -> -0.002 | BV34: =IF(AS34=0,0,AS34*IF(AU34>13,-0.036,-0.022)) -> -0.022 | BW34: =IF(AS34=0,0,AS34*IF(AU34>13,-0.003,-0.002)) -> -0.002 | BX34: =IF(AS34=0,0,AS34*IF(AU34>13,-0.007,-0.004)) -> -0.004 | BY34: 0 | BZ34: Res | CA34: Default DR | CB34: =Benefits(BL34,BR34,BS34,BT34,BU34,BV34,BW34,BX34,BY34,AF34,AI34,AJ34,AK34,AL34,AM34,AN34,AO34,AP34,AQ34,BZ34,CA34) -> 9.936382999 | CC34: 8.567235529 | CD34: -0.2069597025 | CE34: -3.305983079 | CF34: -0.2694963366 | CG34: -0.4278876399 | CH34: -0.5857844251 | CI34: 0 | CJ34: 18.50361853 | CK34: 4.796111183 | CM34: 4.46 | CO34: =ROUND(INDEX('[1]Measure Costs and O&M'!$E$2:$E$43,MATCH(C34,'[1]Measure Costs and O&M'!$G$2:$G$43,0)),2) -> 14.68 | CP34: 9.256111183 | CQ34: 1 | CR34: 3.58504969 | CS34: 1 | CT34: 4.46 | CU34: 1 | CV34: Electric | CX34: X=$0.00 | CZ34: X=if(AS34=0,0,AS34*if(AU34>13,41,25)) | DA34: 0 | DB34: 0 | DC34: X=if(AS34=0,0,AS34*if(AU34>13,0.060,0.037)) | DD34: 0 | DE34: 0 | DF34: X=if(AS34=0,0,AS34*if(AU34>13,0.055,0.034)*AG34) | DG34: X=if(AS34=0,0,AS34*if(AU34>13,0.055,0.034)*1.085*AH34) | DH34: X=if(AS34=0,0,AS34*if(AU34>13,-0.005,-0.004)*10) | DI34: X=if(AS34=0,0,AS34*if(AU34>13,-0.003,-0.002)) | DJ34: X=if(AS34=0,0,AS34*if(AU34>13,-0.036,-0.022)) | DK34: X=if(AS34=0,0,AS34*if(AU34>13,-0.003,-0.002)) | DL34: X=if(AS34=0,0,AS34*if(AU34>13,-0.007,-0.004)) | DM34: 0 | DP34: {Factor:WinterCF} | DQ34: {Factor:SummerCF} | DR34: =IFERROR(INDEX($ED34:$IG34,MATCH(0,COUNTIF($DO34:DQ34,$ED34:$IG34),0)),"") -> {Measure:Quantity} | DS34: =IFERROR(INDEX($ED34:$IG34,MATCH(0,COUNTIF($DO34:DR34,$ED34:$IG34),0)),"") -> {Wattage} | DT34: =IFERROR(INDEX($ED34:$IG34,MATCH(0,COUNTIF($DO34:DS34,$ED34:$IG34),0)),"") ->  | DU34: =IFERROR(INDEX($ED34:$IG34,MATCH(0,COUNTIF($DO34:DT34,$ED34:$IG34),0)),"") ->  | DV34: =IFERROR(INDEX($ED34:$IG34,MATCH(0,COUNTIF($DO34:DU34,$ED34:$IG34),0)),"") ->  | DW34: =IFERROR(INDEX($ED34:$IG34,MATCH(0,COUNTIF($DO34:DV34,$ED34:$IG34),0)),"") ->  | DX34: =IFERROR(INDEX($ED34:$IG34,MATCH(0,COUNTIF($DO34:DW34,$ED34:$IG34),0)),"") ->  | DY34: =IFERROR(INDEX($ED34:$IG34,MATCH(0,COUNTIF($DO34:DX34,$ED34:$IG34),0)),"") ->  | DZ34: =IFERROR(INDEX($ED34:$IG34,MATCH(0,COUNTIF($DO34:DY34,$ED34:$IG34),0)),"") ->  | EA34: =IFERROR(INDEX($ED34:$IG34,MATCH(0,COUNTIF($DO34:DZ34,$ED34:$IG34),0)),"") ->  | ED34: =IFERROR(MID($G34,FIND(CHAR(160),SUBSTITUTE($G34,"{",CHAR(160),ED$1)),FIND(CHAR(160),SUBSTITUTE($G34,"}",CHAR(160),ED$1))-FIND(CHAR(160),SUBSTITUTE($G34,"{",CHAR(160),ED$1))+1),"") ->  | EN34: =IFERROR(MID($O34,FIND(CHAR(160),SUBSTITUTE($O34,"{",CHAR(160),EN$1)),FIND(CHAR(160),SUBSTITUTE($O34,"}",CHAR(160),EN$1))-FIND(CHAR(160),SUBSTITUTE($O34,"{",CHAR(160),EN$1))+1),"") -> {Measure:Quantity} | EO34: {Measure:Quantity} | EP34: {Wattage} | EX34: =IFERROR(MID($R34,FIND(CHAR(160),SUBSTITUTE($R34,"{",CHAR(160),EX$1)),FIND(CHAR(160),SUBSTITUTE($R34,"}",CHAR(160),EX$1))-FIND(CHAR(160),SUBSTITUTE($R34,"{",CHAR(160),EX$1))+1),"") -> {Measure:Quantity} | EY34: {Measure:Quantity} | EZ34: {Wattage} | FH34: =IFERROR(MID($U34,FIND(CHAR(160),SUBSTITUTE($U34,"{",CHAR(160),FH$1)),FIND(CHAR(160),SUBSTITUTE($U34,"}",CHAR(160),FH$1))-FIND(CHAR(160),SUBSTITUTE($U34,"{",CHAR(160),FH$1))+1),"") -> {Measure:Quantity} | FI34: {Measure:Quantity} | FJ34: {Wattage} | FK34: {Factor:WinterCF} | FR34: =IFERROR(MID($V34,FIND(CHAR(160),SUBSTITUTE($V34,"{",CHAR(160),FR$1)),FIND(CHAR(160),SUBSTITUTE($V34,"}",CHAR(160),FR$1))-FIND(CHAR(160),SUBSTITUTE($V34,"{",CHAR(160),FR$1))+1),"") -> {Measure:Quantity} | FS34: {Measure:Quantity} | FT34: {Wattage} | FU34: {Factor:SummerCF} | GB34: =IFERROR(MID($W34,FIND(CHAR(160),SUBSTITUTE($W34,"{",CHAR(160),GB$1)),FIND(CHAR(160),SUBSTITUTE($W34,"}",CHAR(160),GB$1))-FIND(CHAR(160),SUBSTITUTE($W34,"{",CHAR(160),GB$1))+1),"") -> {Measure:Quantity} | GC34: {Measure:Quantity} | GD34: {Wattage} | GL34: =IFERROR(MID($X34,FIND(CHAR(160),SUBSTITUTE($X34,"{",CHAR(160),GL$1)),FIND(CHAR(160),SUBSTITUTE($X34,"}",CHAR(160),GL$1))-FIND(CHAR(160),SUBSTITUTE($X34,"{",CHAR(160),GL$1))+1),"") -> {Measure:Quantity} | GM34: {Measure:Quantity} | GN34: {Wattage} | GV34: =IFERROR(MID($Y34,FIND(CHAR(160),SUBSTITUTE($Y34,"{",CHAR(160),GV$1)),FIND(CHAR(160),SUBSTITUTE($Y34,"}",CHAR(160),GV$1))-FIND(CHAR(160),SUBSTITUTE($Y34,"{",CHAR(160),GV$1))+1),"") -> {Measure:Quantity} | GW34: {Measure:Quantity} | GX34: {Wattage} | HF34: =IFERROR(MID($Z34,FIND(CHAR(160),SUBSTITUTE($Z34,"{",CHAR(160),HF$1)),FIND(CHAR(160),SUBSTITUTE($Z34,"}",CHAR(160),HF$1))-FIND(CHAR(160),SUBSTITUTE($Z34,"{",CHAR(160),HF$1))+1),"") -> {Measure:Quantity} | HG34: {Measure:Quantity} | HH34: {Wattage} | HP34: =IFERROR(MID($AA34,FIND(CHAR(160),SUBSTITUTE($AA34,"{",CHAR(160),HP$1)),FIND(CHAR(160),SUBSTITUTE($AA34,"}",CHAR(160),HP$1))-FIND(CHAR(160),SUBSTITUTE($AA34,"{",CHAR(160),HP$1))+1),"") -> {Measure:Quantity} | HQ34: {Measure:Quantity} | HR34: {Wattage} | HZ34: =IFERROR(MID($AB34,FIND(CHAR(160),SUBSTITUTE($AB34,"{",CHAR(160),HZ$1)),FIND(CHAR(160),SUBSTITUTE($AB34,"}",CHAR(160),HZ$1))-FIND(CHAR(160),SUBSTITUTE($AB34,"{",CHAR(160),HZ$1))+1),"") ->  | IK34: 2
A35: Arrearage Management Program | B35: Low Flow Bathroom Aerator Direct Install | C35: LILFBA | D35: 2018-07-01 | E35: 2019-06-30 | F35: Manual Entry | G35: $0.00 | H35: 0 | I35: Manual Entry | J35: $0.00 | K35: 0 | L35: 2017-07-01 | M35: 2019-06-30 | N35: Calculated | O35: {Measure:Quantity}*if({Measure:Quantity}=0,0,29) | R35: {Measure:Quantity}*if({Measure:Quantity}=0,0,0.002) | U35: {Measure:Quantity}*if({Measure:Quantity}=0,0,0.002)*{Factor:WinterCF} | V35: {Measure:Quantity}*if({Measure:Quantity}=0,0,0.002)*{Factor:SummerCF} | AB35: if({Measure:Quantity}=0,0,{Measure:Quantity}*333) | AC35: 2018-07-01 | AD35: 2019-06-30 | AF35: 10 | AG35: 0.004 | AH35: 0.003 | AI35: 0.397 | AJ35: 0.268 | AK35: 0.203 | AL35: 0.131 | AM35: 1 | AN35: 1 | AO35: 1 | AP35: 0 | AQ35: 0 | AR35: {Measure:Quantity} | AS35: 1 | BL35: =AS35*IF(AS35=0,0,29) -> 29 | BM35: 0 | BN35: 0 | BO35: =AS35*IF(AS35=0,0,0.002) -> 0.002 | BP35: 0 | BQ35: 0 | BR35: =AS35*IF(AS35=0,0,0.002)*AG35 -> 8e-06 | BS35: =AS35*IF(AS35=0,0,0.002)*AH35 -> 6e-06 | BT35: 0 | BU35: 0 | BV35: 0 | BW35: 0 | BX35: 0 | BY35: =IF(AS35=0,0,AS35*333) -> 333 | BZ35: Res | CA35: Default DR | CB35: =Benefits(BL35,BR35,BS35,BT35,BU35,BV35,BW35,BX35,BY35,AF35,AI35,AJ35,AK35,AL35,AM35,AN35,AO35,AP35,AQ35,BZ35,CA35) -> 14.20283985 | CC35: 0.01484559157 | CD35: 0 | CE35: 0 | CF35: 0 | CG35: 0 | CH35: 0 | CI35: 18.71299065 | CJ35: 32.93067609 | CK35: 0 | CM35: 0.59 | CP35: 0.59 | CQ35: 1 | CR35: 55.81470524 | CS35: 1 | CT35: 0.59 | CU35: 1 | CV35: Electric | CX35: X=$0.00 | CZ35: X=AS35*if(AS35=0,0,29) | DA35: 0 | DB35: 0 | DC35: X=AS35*if(AS35=0,0,0.002) | DD35: 0 | DE35: 0 | DF35: X=AS35*if(AS35=0,0,0.002)*AG35 | DG35: X=AS35*if(AS35=0,0,0.002)*AH35 | DH35: 0 | DI35: 0 | DJ35: 0 | DK35: 0 | DL35: 0 | DM35: X=if(AS35=0,0,AS35*333) | DP35: {Factor:WinterCF} | DQ35: {Factor:SummerCF} | DR35: =IFERROR(INDEX($ED35:$IG35,MATCH(0,COUNTIF($DO35:DQ35,$ED35:$IG35),0)),"") -> {Measure:Quantity} | DS35: =IFERROR(INDEX($ED35:$IG35,MATCH(0,COUNTIF($DO35:DR35,$ED35:$IG35),0)),"") ->  | DT35: =IFERROR(INDEX($ED35:$IG35,MATCH(0,COUNTIF($DO35:DS35,$ED35:$IG35),0)),"") ->  | DU35: =IFERROR(INDEX($ED35:$IG35,MATCH(0,COUNTIF($DO35:DT35,$ED35:$IG35),0)),"") ->  | DV35: =IFERROR(INDEX($ED35:$IG35,MATCH(0,COUNTIF($DO35:DU35,$ED35:$IG35),0)),"") ->  | DW35: =IFERROR(INDEX($ED35:$IG35,MATCH(0,COUNTIF($DO35:DV35,$ED35:$IG35),0)),"") ->  | DX35: =IFERROR(INDEX($ED35:$IG35,MATCH(0,COUNTIF($DO35:DW35,$ED35:$IG35),0)),"") ->  | DY35: =IFERROR(INDEX($ED35:$IG35,MATCH(0,COUNTIF($DO35:DX35,$ED35:$IG35),0)),"") ->  | DZ35: =IFERROR(INDEX($ED35:$IG35,MATCH(0,COUNTIF($DO35:DY35,$ED35:$IG35),0)),"") ->  | EA35: =IFERROR(INDEX($ED35:$IG35,MATCH(0,COUNTIF($DO35:DZ35,$ED35:$IG35),0)),"") ->  | EN35: {Measure:Quantity} | EO35: {Measure:Quantity} | EX35: {Measure:Quantity} | EY35: {Measure:Quantity} | FH35: {Measure:Quantity} | FI35: {Measure:Quantity} | FJ35: {Factor:WinterCF} | FR35: {Measure:Quantity} | FS35: {Measure:Quantity} | FT35: {Factor:SummerCF} | HZ35: {Measure:Quantity} | IA35: {Measure:Quantity} | IK35: 1
A36: Arrearage Management Program | B36: Low Flow Kitchen Aerator Direct Install | C36: LILFKA | D36: 2018-07-01 | E36: 2019-06-30 | F36: Manual Entry | G36: $0.00 | H36: 0 | I36: Manual Entry | J36: $0.00 | K36: 0 | L36: 2017-07-01 | M36: 2019-06-30 | N36: Calculated | O36: {Measure:Quantity}*if({Measure:Quantity}=0,0,283) | R36: {Measure:Quantity}*if({Measure:Quantity}=0,0,0.023) | U36: {Measure:Quantity}*if({Measure:Quantity}=0,0,0.023)*{Factor:WinterCF} | V36: {Measure:Quantity}*if({Measure:Quantity}=0,0,0.023)*{Factor:SummerCF} | AB36: if({Measure:Quantity}=0,0,{Measure:Quantity}*2696) | AC36: 2018-07-01 | AD36: 2019-06-30 | AF36: 10 | AG36: 0.012 | AH36: 0.008 | AI36: 0.397 | AJ36: 0.268 | AK36: 0.203 | AL36: 0.131 | AM36: 1 | AN36: 1 | AO36: 1 | AP36: 0 | AQ36: 0 | AR36: {Measure:Quantity} | AS36: 1 | BL36: =AS36*IF(AS36=0,0,283) -> 283 | BM36: 0 | BN36: 0 | BO36: =AS36*IF(AS36=0,0,0.023) -> 0.023 | BP36: 0 | BQ36: 0 | BR36: =AS36*IF(AS36=0,0,0.023)*AG36 -> 0.000276 | BS36: =AS36*IF(AS36=0,0,0.023)*AH36 -> 0.000184 | BT36: 0 | BU36: 0 | BV36: 0 | BW36: 0 | BX36: 0 | BY36: =IF(AS36=0,0,AS36*2696) -> 2696 | BZ36: Res | CA36: Default DR | CB36: =Benefits(BL36,BR36,BS36,BT36,BU36,BV36,BW36,BX36,BY36,AF36,AI36,AJ36,AK36,AL36,AM36,AN36,AO36,AP36,AQ36,BZ36,CA36) -> 138.6001268 | CC36: 0.4966525181 | CD36: 0 | CE36: 0 | CF36: 0 | CG36: 0 | CH36: 0 | CI36: 151.5021706 | CJ36: 290.5989499 | CK36: 0 | CM36: 2.15 | CP36: 2.15 | CQ36: 1 | CR36: 135.1623023 | CS36: 1 | CT36: 2.15 | CU36: 1 | CV36: Electric | CX36: X=$0.00 | CZ36: X=AS36*if(AS36=0,0,283) | DA36: 0 | DB36: 0 | DC36: X=AS36*if(AS36=0,0,0.023) | DD36: 0 | DE36: 0 | DF36: X=AS36*if(AS36=0,0,0.023)*AG36 | DG36: X=AS36*if(AS36=0,0,0.023)*AH36 | DH36: 0 | DI36: 0 | DJ36: 0 | DK36: 0 | DL36: 0 | DM36: X=if(AS36=0,0,AS36*2696) | DP36: {Factor:WinterCF} | DQ36: {Factor:SummerCF} | DR36: =IFERROR(INDEX($ED36:$IG36,MATCH(0,COUNTIF($DO36:DQ36,$ED36:$IG36),0)),"") -> {Measure:Quantity} | DS36: =IFERROR(INDEX($ED36:$IG36,MATCH(0,COUNTIF($DO36:DR36,$ED36:$IG36),0)),"") ->  | DT36: =IFERROR(INDEX($ED36:$IG36,MATCH(0,COUNTIF($DO36:DS36,$ED36:$IG36),0)),"") ->  | DU36: =IFERROR(INDEX($ED36:$IG36,MATCH(0,COUNTIF($DO36:DT36,$ED36:$IG36),0)),"") ->  | DV36: =IFERROR(INDEX($ED36:$IG36,MATCH(0,COUNTIF($DO36:DU36,$ED36:$IG36),0)),"") ->  | DW36: =IFERROR(INDEX($ED36:$IG36,MATCH(0,COUNTIF($DO36:DV36,$ED36:$IG36),0)),"") ->  | DX36: =IFERROR(INDEX($ED36:$IG36,MATCH(0,COUNTIF($DO36:DW36,$ED36:$IG36),0)),"") ->  | DY36: =IFERROR(INDEX($ED36:$IG36,MATCH(0,COUNTIF($DO36:DX36,$ED36:$IG36),0)),"") ->  | DZ36: =IFERROR(INDEX($ED36:$IG36,MATCH(0,COUNTIF($DO36:DY36,$ED36:$IG36),0)),"") ->  | EA36: =IFERROR(INDEX($ED36:$IG36,MATCH(0,COUNTIF($DO36:DZ36,$ED36:$IG36),0)),"") ->  | EN36: {Measure:Quantity} | EO36: {Measure:Quantity} | EX36: {Measure:Quantity} | EY36: {Measure:Quantity} | FH36: {Measure:Quantity} | FI36: {Measure:Quantity} | FJ36: {Factor:WinterCF} | FR36: {Measure:Quantity} | FS36: {Measure:Quantity} | FT36: {Factor:SummerCF} | HZ36: {Measure:Quantity} | IA36: {Measure:Quantity} | IK36: 1
A37: Arrearage Management Program | B37: Low Flow Shower Head Direct Install | C37: LILFSH | D37: 2018-07-01 | E37: 2019-06-30 | F37: Manual Entry | G37: $0.00 | H37: 0 | I37: Manual Entry | J37: $0.00 | K37: 0 | L37: 2017-07-01 | M37: 2019-06-30 | N37: Calculated | O37: {Measure:Quantity}*if({Measure:Quantity}=0,0,442) | R37: {Measure:Quantity}*if({Measure:Quantity}=0,0,0.035) | U37: {Measure:Quantity}*if({Measure:Quantity}=0,0,0.035)*{Factor:WinterCF} | V37: {Measure:Quantity}*if({Measure:Quantity}=0,0,0.035)*{Factor:SummerCF} | AB37: if({Measure:Quantity}=0,0,{Measure:Quantity}*3153) | AC37: 2018-07-01 | AD37: 2019-06-30 | AF37: 10 | AG37: 0.008 | AH37: 0.005 | AI37: 0.355 | AJ37: 0.311 | AK37: 0.181 | AL37: 0.153 | AM37: 0.7 | AN37: 1 | AO37: 1 | AP37: 0 | AQ37: 0 | AR37: {Measure:Quantity} | AS37: 1 | BL37: =AS37*IF(AS37=0,0,442) -> 442 | BM37: 0 | BN37: 0 | BO37: =AS37*IF(AS37=0,0,0.035) -> 0.035 | BP37: 0 | BQ37: 0 | BR37: =AS37*IF(AS37=0,0,0.035)*AG37 -> 0.00028 | BS37: =AS37*IF(AS37=0,0,0.035)*AH37 -> 0.000175 | BT37: 0 | BU37: 0 | BV37: 0 | BW37: 0 | BX37: 0 | BY37: =IF(AS37=0,0,AS37*3153) -> 3153 | BZ37: Res | CA37: Default DR | CB37: =Benefits(BL37,BR37,BS37,BT37,BU37,BV37,BW37,BX37,BY37,AF37,AI37,AJ37,AK37,AL37,AM37,AN37,AO37,AP37,AQ37,BZ37,CA37) -> 150.6156589 | CC37: 0.347184403 | CD37: 0 | CE37: 0 | CF37: 0 | CG37: 0 | CH37: 0 | CI37: 177.1833619 | CJ37: 328.1462052 | CK37: 0 | CM37: 32.01 | CP37: 32.01 | CQ37: 1 | CR37: 10.25136536 | CS37: 1 | CT37: 32.01 | CU37: 1 | CV37: Electric | CX37: X=$0.00 | CZ37: X=AS37*if(AS37=0,0,442) | DA37: 0 | DB37: 0 | DC37: X=AS37*if(AS37=0,0,0.035) | DD37: 0 | DE37: 0 | DF37: X=AS37*if(AS37=0,0,0.035)*AG37 | DG37: X=AS37*if(AS37=0,0,0.035)*AH37 | DH37: 0 | DI37: 0 | DJ37: 0 | DK37: 0 | DL37: 0 | DM37: X=if(AS37=0,0,AS37*3153) | DP37: {Factor:WinterCF} | DQ37: {Factor:SummerCF} | DR37: =IFERROR(INDEX($ED37:$IG37,MATCH(0,COUNTIF($DO37:DQ37,$ED37:$IG37),0)),"") -> {Measure:Quantity} | DS37: =IFERROR(INDEX($ED37:$IG37,MATCH(0,COUNTIF($DO37:DR37,$ED37:$IG37),0)),"") ->  | DT37: =IFERROR(INDEX($ED37:$IG37,MATCH(0,COUNTIF($DO37:DS37,$ED37:$IG37),0)),"") ->  | DU37: =IFERROR(INDEX($ED37:$IG37,MATCH(0,COUNTIF($DO37:DT37,$ED37:$IG37),0)),"") ->  | DV37: =IFERROR(INDEX($ED37:$IG37,MATCH(0,COUNTIF($DO37:DU37,$ED37:$IG37),0)),"") ->  | DW37: =IFERROR(INDEX($ED37:$IG37,MATCH(0,COUNTIF($DO37:DV37,$ED37:$IG37),0)),"") ->  | DX37: =IFERROR(INDEX($ED37:$IG37,MATCH(0,COUNTIF($DO37:DW37,$ED37:$IG37),0)),"") ->  | DY37: =IFERROR(INDEX($ED37:$IG37,MATCH(0,COUNTIF($DO37:DX37,$ED37:$IG37),0)),"") ->  | DZ37: =IFERROR(INDEX($ED37:$IG37,MATCH(0,COUNTIF($DO37:DY37,$ED37:$IG37),0)),"") ->  | EA37: =IFERROR(INDEX($ED37:$IG37,MATCH(0,COUNTIF($DO37:DZ37,$ED37:$IG37),0)),"") ->  | EN37: {Measure:Quantity} | EO37: {Measure:Quantity} | EX37: {Measure:Quantity} | EY37: {Measure:Quantity} | FH37: {Measure:Quantity} | FI37: {Measure:Quantity} | FJ37: {Factor:WinterCF} | FR37: {Measure:Quantity} | FS37: {Measure:Quantity} | FT37: {Factor:SummerCF} | HZ37: {Measure:Quantity} | IA37: {Measure:Quantity} | IK37: 1
A38: Arrearage Management Program | H38: 0 | K38: 0 | CX38: 0 | CZ38: 0 | DA38: 0 | DB38: 0 | DC38: 0 | DD38: 0 | DE38: 0 | DF38: 0 | DG38: 0 | DH38: 0 | DI38: 0 | DJ38: 0 | DK38: 0 | DL38: 0 | DM38: 0 | DP38: {Factor:WinterCF} | DQ38: {Factor:SummerCF} | DR38: =IFERROR(INDEX($ED38:$IG38,MATCH(0,COUNTIF($DO38:DQ38,$ED38:$IG38),0)),"") ->  | DS38: =IFERROR(INDEX($ED38:$IG38,MATCH(0,COUNTIF($DO38:DR38,$ED38:$IG38),0)),"") ->  | DT38: =IFERROR(INDEX($ED38:$IG38,MATCH(0,COUNTIF($DO38:DS38,$ED38:$IG38),0)),"") ->  | DU38: =IFERROR(INDEX($ED38:$IG38,MATCH(0,COUNTIF($DO38:DT38,$ED38:$IG38),0)),"") ->  | DV38: =IFERROR(INDEX($ED38:$IG38,MATCH(0,COUNTIF($DO38:DU38,$ED38:$IG38),0)),"") ->  | DW38: =IFERROR(INDEX($ED38:$IG38,MATCH(0,COUNTIF($DO38:DV38,$ED38:$IG38),0)),"") ->  | DX38: =IFERROR(INDEX($ED38:$IG38,MATCH(0,COUNTIF($DO38:DW38,$ED38:$IG38),0)),"") ->  | DY38: =IFERROR(INDEX($ED38:$IG38,MATCH(0,COUNTIF($DO38:DX38,$ED38:$IG38),0)),"") ->  | DZ38: =IFERROR(INDEX($ED38:$IG38,MATCH(0,COUNTIF($DO38:DY38,$ED38:$IG38),0)),"") ->  | EA38: =IFERROR(INDEX($ED38:$IG38,MATCH(0,COUNTIF($DO38:DZ38,$ED38:$IG38),0)),"") ->  | IK38: 0
A39: C&I Agricultural Solutions | B39: POTATO: Adjustable Speed Drive - 10 HP Ventilation Fan Motor | C39: AASD - ASD10 | D39: 2018-07-01 | E39: 2019-06-30 | F39: Per Measure | G39: $1745.00 | H39: 0 | I39: Per Measure | J39: $1200.00 | K39: 0 | L39: 2016-07-01 | M39: 2019-06-30 | N39: Calculated | O39: {Measure:Quantity} * {Fan HP} * 2540 | P39: 0.0001 | R39: {Measure:Quantity} * {Fan HP} * 0.71 | U39: {Measure:Quantity} * {Fan HP} * 0.71 * {Factor:WinterCF} | V39: {Measure:Quantity} * {Fan HP} * 0.71 * {Factor:SummerCF} | AC39: 2017-07-01 | AD39: 2019-06-30 | AF39: 15 | AG39: 0.737 | AH39: 0 | AI39: 0.436 | AJ39: 0.232 | AK39: 0.217 | AL39: 0.115 | AM39: 1 | AN39: 1.122 | AO39: 1 | AP39: 0.52 | AQ39: 0.016 | AR39: =DR39 -> {Measure:Quantity} | AS39: 1 | AT39: =DS39 -> {Fan HP} | AU39: 10 | AV39: =DT39 ->  | AX39: =DU39 ->  | AZ39: =DV39 ->  | BB39: =DW39 ->  | BD39: =DX39 ->  | BF39: =DY39 ->  | BH39: =DZ39 ->  | BJ39: =EA39 ->  | BL39: =AS39 * AU39 * 2540 -> 25400 | BM39: =0.0001 -> 0.0001 | BN39: 0 | BO39: =AS39 * AU39 * 0.71 -> 7.1 | BP39: 0 | BQ39: 0 | BR39: =AS39 * AU39 * 0.71 * AG39 -> 5.2327 | BS39: =AS39 * AU39 * 0.71 * AH39 -> 0 | BT39: 0 | BU39: 0 | BV39: 0 | BW39: 0 | BX39: 0 | BY39: 0 | BZ39: Res | CA39: Default DR | CB39: =Benefits(BL39,BR39,BS39,BT39,BU39,BV39,BW39,BX39,BY39,AF39,AI39,AJ39,AK39,AL39,AM39,AN39,AO39,AP39,AQ39,BZ39,CA39) -> 19809.15555 | CC39: 10254.64209 | CD39: 0 | CE39: 0 | CF39: 0 | CG39: 0 | CH39: 0 | CI39: 0 | CJ39: 30063.79764 | CK39: =-SUMPRODUCT(CB39:CI39,--(CB39:CI39<0)) -> 0 | CM39: =1745 -> 1745 | CP39: =CK39+CM39 -> 1745 | CQ39: =IF(NetOrGross="Net",(1-AP39+AQ39),1) -> 0.496 | CR39: =(CJ39+CL39+SUMPRODUCT(CN39:CO39,--(CN39:CO39>0)))*CQ39/((CK39+MAX(CM39,CT39)-SUMPRODUCT(CN39:CO39,--(CN39:CO39<0)))*CQ39+IF(FRIncentives="Yes",CT39*(1-CQ39),0)) -> 11.42427074 | CS39: 1 | CT39: =CM39*CU39 -> 872.5 | CU39: 0.5 | CV39: Electric | CX39: X=$1745.00 | CZ39: X=AS39 * AU39 * 2540 | DA39: X=0.0001 | DB39: 0 | DC39: X=AS39 * AU39 * 0.71 | DD39: 0 | DE39: 0 | DF39: X=AS39 * AU39 * 0.71 * AG39 | DG39: X=AS39 * AU39 * 0.71 * AH39 | DH39: 0 | DI39: 0 | DJ39: 0 | DK39: 0 | DL39: 0 | DM39: 0 | DP39: {Factor:WinterCF} | DQ39: {Factor:SummerCF} | DR39: =IFERROR(INDEX($ED39:$IG39,MATCH(0,COUNTIF($DO39:DQ39,$ED39:$IG39),0)),"") -> {Measure:Quantity} | DS39: =IFERROR(INDEX($ED39:$IG39,MATCH(0,COUNTIF($DO39:DR39,$ED39:$IG39),0)),"") -> {Fan HP} | DT39: =IFERROR(INDEX($ED39:$IG39,MATCH(0,COUNTIF($DO39:DS39,$ED39:$IG39),0)),"") ->  | DU39: =IFERROR(INDEX($ED39:$IG39,MATCH(0,COUNTIF($DO39:DT39,$ED39:$IG39),0)),"") ->  | DV39: =IFERROR(INDEX($ED39:$IG39,MATCH(0,COUNTIF($DO39:DU39,$ED39:$IG39),0)),"") ->  | DW39: =IFERROR(INDEX($ED39:$IG39,MATCH(0,COUNTIF($DO39:DV39,$ED39:$IG39),0)),"") ->  | DX39: =IFERROR(INDEX($ED39:$IG39,MATCH(0,COUNTIF($DO39:DW39,$ED39:$IG39),0)),"") ->  | DY39: =IFERROR(INDEX($ED39:$IG39,MATCH(0,COUNTIF($DO39:DX39,$ED39:$IG39),0)),"") ->  | DZ39: =IFERROR(INDEX($ED39:$IG39,MATCH(0,COUNTIF($DO39:DY39,$ED39:$IG39),0)),"") ->  | EA39: =IFERROR(INDEX($ED39:$IG39,MATCH(0,COUNTIF($DO39:DZ39,$ED39:$IG39),0)),"") ->  | EN39: {Measure:Quantity} | EO39: {Fan HP} | EX39: {Measure:Quantity} | EY39: {Fan HP} | FH39: {Measure:Quantity} | FI39: {Fan HP} | FJ39: {Factor:WinterCF} | FR39: {Measure:Quantity} | FS39: {Fan HP} | FT39: {Factor:SummerCF} | IK39: 2
A40: C&I Agricultural Solutions | B40: POTATO: Adjustable Speed Drive - 15 HP Ventilation Fan Motor | C40: AASD - ASD15 | D40: 2018-07-01 | E40: 2019-06-30 | F40: Per Measure | G40: $2525.00 | H40: 0 | I40: Per Measure | J40: $1800.00 | K40: 0 | L40: 2016-07-01 | M40: 2019-06-30 | N40: Calculated | O40: {Measure:Quantity} * {Fan HP} * 2540 | P40: 0.0001 | R40: {Measure:Quantity} * {Fan HP} * 0.71 | U40: {Measure:Quantity} * {Fan HP} * 0.71 * {Factor:WinterCF} | V40: {Measure:Quantity} * {Fan HP} * 0.71 * {Factor:SummerCF} | AC40: 2017-07-01 | AD40: 2019-06-30 | AF40: 15 | AG40: 0.737 | AH40: 0 | AI40: 0.436 | AJ40: 0.232 | AK40: 0.217 | AL40: 0.115 | AM40: 1 | AN40: 1.122 | AO40: 1 | AP40: 0.52 | AQ40: 0.016 | AR40: {Measure:Quantity} | AS40: 1 | AT40: {Fan HP} | AU40: 15 | BL40: =AS40 * AU40 * 2540 -> 38100 | BM40: 0.0001 | BN40: 0 | BO40: =AS40 * AU40 * 0.71 -> 10.65 | BP40: 0 | BQ40: 0 | BR40: =AS40 * AU40 * 0.71 * AG40 -> 7.84905 | BS40: =AS40 * AU40 * 0.71 * AH40 -> 0 | BT40: 0 | BU40: 0 | BV40: 0 | BW40: 0 | BX40: 0 | BY40: 0 | BZ40: Res | CA40: Default DR | CB40: =Benefits(BL40,BR40,BS40,BT40,BU40,BV40,BW40,BX40,BY40,AF40,AI40,AJ40,AK40,AL40,AM40,AN40,AO40,AP40,AQ40,BZ40,CA40) -> 29713.73332 | CC40: 15381.96314 | CD40: 0 | CE40: 0 | CF40: 0 | CG40: 0 | CH40: 0 | CI40: 0 | CJ40: 45095.69646 | CK40: 0 | CM40: =2525 -> 2525 | CP40: 2525 | CQ40: 0.496 | CR40: 11.84278363 | CS40: 1 | CT40: =CM40*CU40 -> 1262.5 | CU40: 0.5 | CV40: Electric | CX40: X=$2525.00 | CZ40: X=AS40 * AU40 * 2540 | DA40: X=0.0001 | DB40: 0 | DC40: X=AS40 * AU40 * 0.71 | DD40: 0 | DE40: 0 | DF40: X=AS40 * AU40 * 0.71 * AG40 | DG40: X=AS40 * AU40 * 0.71 * AH40 | DH40: 0 | DI40: 0 | DJ40: 0 | DK40: 0 | DL40: 0 | DM40: 0 | DP40: {Factor:WinterCF} | DQ40: {Factor:SummerCF} | DR40: =IFERROR(INDEX($ED40:$IG40,MATCH(0,COUNTIF($DO40:DQ40,$ED40:$IG40),0)),"") -> {Measure:Quantity} | DS40: =IFERROR(INDEX($ED40:$IG40,MATCH(0,COUNTIF($DO40:DR40,$ED40:$IG40),0)),"") -> {Fan HP} | DT40: =IFERROR(INDEX($ED40:$IG40,MATCH(0,COUNTIF($DO40:DS40,$ED40:$IG40),0)),"") ->  | DU40: =IFERROR(INDEX($ED40:$IG40,MATCH(0,COUNTIF($DO40:DT40,$ED40:$IG40),0)),"") ->  | DV40: =IFERROR(INDEX($ED40:$IG40,MATCH(0,COUNTIF($DO40:DU40,$ED40:$IG40),0)),"") ->  | DW40: =IFERROR(INDEX($ED40:$IG40,MATCH(0,COUNTIF($DO40:DV40,$ED40:$IG40),0)),"") ->  | DX40: =IFERROR(INDEX($ED40:$IG40,MATCH(0,COUNTIF($DO40:DW40,$ED40:$IG40),0)),"") ->  | DY40: =IFERROR(INDEX($ED40:$IG40,MATCH(0,COUNTIF($DO40:DX40,$ED40:$IG40),0)),"") ->  | DZ40: =IFERROR(INDEX($ED40:$IG40,MATCH(0,COUNTIF($DO40:DY40,$ED40:$IG40),0)),"") ->  | EA40: =IFERROR(INDEX($ED40:$IG40,MATCH(0,COUNTIF($DO40:DZ40,$ED40:$IG40),0)),"") ->  | EN40: {Measure:Quantity} | EO40: {Fan HP} | EX40: {Measure:Quantity} | EY40: {Fan HP} | FH40: {Measure:Quantity} | FI40: {Fan HP} | FJ40: {Factor:WinterCF} | FR40: {Measure:Quantity} | FS40: {Fan HP} | FT40: {Factor:SummerCF} | IK40: 2
A41: C&I Agricultural Solutions | B41: POTATO: Adjustable Speed Drive - 20 HP Ventilation Fan Motor | C41: AASD - ASD20 | D41: 2018-07-01 | E41: 2019-06-30 | F41: Per Measure | G41: $2725.00 | H41: 0 | I41: Per Measure | J41: $2000.00 | K41: 0 | L41: 2016-07-01 | M41: 2019-06-30 | N41: Calculated | O41: {Measure:Quantity} * {Fan HP} * 2540 | P41: 0.0001 | R41: {Measure:Quantity} * {Fan HP} * 0.71 | U41: {Measure:Quantity} * {Fan HP} * 0.71 * {Factor:WinterCF} | V41: {Measure:Quantity} * {Fan HP} * 0.71 * {Factor:SummerCF} | AC41: 2017-07-01 | AD41: 2019-06-30 | AF41: 15 | AG41: 0.737 | AH41: 0 | AI41: 0.436 | AJ41: 0.232 | AK41: 0.217 | AL41: 0.115 | AM41: 1 | AN41: 1.122 | AO41: 1 | AP41: 0.52 | AQ41: 0.016 | AR41: {Measure:Quantity} | AS41: 1 | AT41: {Fan HP} | AU41: 20 | BL41: =AS41 * AU41 * 2540 -> 50800 | BM41: 0.0001 | BN41: 0 | BO41: =AS41 * AU41 * 0.71 -> 14.2 | BP41: 0 | BQ41: 0 | BR41: =AS41 * AU41 * 0.71 * AG41 -> 10.4654 | BS41: =AS41 * AU41 * 0.71 * AH41 -> 0 | BT41: 0 | BU41: 0 | BV41: 0 | BW41: 0 | BX41: 0 | BY41: 0 | BZ41: Res | CA41: Default DR | CB41: =Benefits(BL41,BR41,BS41,BT41,BU41,BV41,BW41,BX41,BY41,AF41,AI41,AJ41,AK41,AL41,AM41,AN41,AO41,AP41,AQ41,BZ41,CA41) -> 39618.3111 | CC41: 20509.28419 | CD41: 0 | CE41: 0 | CF41: 0 | CG41: 0 | CH41: 0 | CI41: 0 | CJ41: 60127.59528 | CK41: 0 | CM41: =2725 -> 2725 | CP41: 2725 | CQ41: 0.496 | CR41: 13.50447711 | CS41: 1 | CT41: 1700 | CV41: Electric | CX41: X=$2725.00 | CZ41: X=AS41 * AU41 * 2540 | DA41: X=0.0001 | DB41: 0 | DC41: X=AS41 * AU41 * 0.71 | DD41: 0 | DE41: 0 | DF41: X=AS41 * AU41 * 0.71 * AG41 | DG41: X=AS41 * AU41 * 0.71 * AH41 | DH41: 0 | DI41: 0 | DJ41: 0 | DK41: 0 | DL41: 0 | DM41: 0 | DP41: {Factor:WinterCF} | DQ41: {Factor:SummerCF} | DR41: =IFERROR(INDEX($ED41:$IG41,MATCH(0,COUNTIF($DO41:DQ41,$ED41:$IG41),0)),"") -> {Measure:Quantity} | DS41: =IFERROR(INDEX($ED41:$IG41,MATCH(0,COUNTIF($DO41:DR41,$ED41:$IG41),0)),"") -> {Fan HP} | DT41: =IFERROR(INDEX($ED41:$IG41,MATCH(0,COUNTIF($DO41:DS41,$ED41:$IG41),0)),"") ->  | DU41: =IFERROR(INDEX($ED41:$IG41,MATCH(0,COUNTIF($DO41:DT41,$ED41:$IG41),0)),"") ->  | DV41: =IFERROR(INDEX($ED41:$IG41,MATCH(0,COUNTIF($DO41:DU41,$ED41:$IG41),0)),"") ->  | DW41: =IFERROR(INDEX($ED41:$IG41,MATCH(0,COUNTIF($DO41:DV41,$ED41:$IG41),0)),"") ->  | DX41: =IFERROR(INDEX($ED41:$IG41,MATCH(0,COUNTIF($DO41:DW41,$ED41:$IG41),0)),"") ->  | DY41: =IFERROR(INDEX($ED41:$IG41,MATCH(0,COUNTIF($DO41:DX41,$ED41:$IG41),0)),"") ->  | DZ41: =IFERROR(INDEX($ED41:$IG41,MATCH(0,COUNTIF($DO41:DY41,$ED41:$IG41),0)),"") ->  | EA41: =IFERROR(INDEX($ED41:$IG41,MATCH(0,COUNTIF($DO41:DZ41,$ED41:$IG41),0)),"") ->  | EN41: {Measure:Quantity} | EO41: {Fan HP} | EX41: {Measure:Quantity} | EY41: {Fan HP} | FH41: {Measure:Quantity} | FI41: {Fan HP} | FJ41: {Factor:WinterCF} | FR41: {Measure:Quantity} | FS41: {Fan HP} | FT41: {Factor:SummerCF} | IK41: 2
A42: C&I Agricultural Solutions | B42: POTATO: Adjustable Speed Drive - 3 to 5 HP Ventilation Fan Motor | C42: AASD - ASD3to5 | D42: 2018-07-01 | E42: 2019-06-30 | F42: Calculated | G42: {Measure:Quantity}*if({Fan HP}<5,963,1105) | H42: 0 | I42: Per Measure | J42: $800.00 | K42: 0 | L42: 2016-07-01 | M42: 2019-06-30 | N42: Calculated | O42: {Measure:Quantity} * {Fan HP} * 2540 | P42: 0.0001 | R42: {Measure:Quantity} * {Fan HP} * 0.71 | U42: {Measure:Quantity} * {Fan HP} * 0.71 * {Factor:WinterCF} | V42: {Measure:Quantity} * {Fan HP} * 0.71 * {Factor:SummerCF} | AC42: 2017-07-01 | AD42: 2019-06-30 | AF42: 15 | AG42: 0.737 | AH42: 0 | AI42: 0.436 | AJ42: 0.232 | AK42: 0.217 | AL42: 0.115 | AM42: 1 | AN42: 1.122 | AO42: 1 | AP42: 0.52 | AQ42: 0.016 | AR42: {Measure:Quantity} | AS42: 1 | AT42: {Fan HP} | AU42: 4 | BL42: =AS42 * AU42 * 2540 -> 10160 | BM42: 0.0001 | BN42: 0 | BO42: =AS42 * AU42 * 0.71 -> 2.84 | BP42: 0 | BQ42: 0 | BR42: =AS42 * AU42 * 0.71 * AG42 -> 2.09308 | BS42: =AS42 * AU42 * 0.71 * AH42 -> 0 | BT42: 0 | BU42: 0 | BV42: 0 | BW42: 0 | BX42: 0 | BY42: 0 | BZ42: Res | CA42: Default DR | CB42: =Benefits(BL42,BR42,BS42,BT42,BU42,BV42,BW42,BX42,BY42,AF42,AI42,AJ42,AK42,AL42,AM42,AN42,AO42,AP42,AQ42,BZ42,CA42) -> 7923.66222 | CC42: 4101.856837 | CD42: 0 | CE42: 0 | CF42: 0 | CG42: 0 | CH42: 0 | CI42: 0 | CJ42: 12025.51906 | CK42: 0 | CM42: =AS42*IF(AU42<5,963,1105) -> 963 | CP42: 963 | CQ42: 0.496 | CR42: 8.280520227 | CS42: 1 | CT42: =CM42*CU42 -> 481.5 | CU42: 0.5 | CV42: Electric | CX42: X=AS42*if(AU42<5,963,1105) | CZ42: X=AS42 * AU42 * 2540 | DA42: X=0.0001 | DB42: 0 | DC42: X=AS42 * AU42 * 0.71 | DD42: 0 | DE42: 0 | DF42: X=AS42 * AU42 * 0.71 * AG42 | DG42: X=AS42 * AU42 * 0.71 * AH42 | DH42: 0 | DI42: 0 | DJ42: 0 | DK42: 0 | DL42: 0 | DM42: 0 | DP42: {Factor:WinterCF} | DQ42: {Factor:SummerCF} | DR42: =IFERROR(INDEX($ED42:$IG42,MATCH(0,COUNTIF($DO42:DQ42,$ED42:$IG42),0)),"") -> {Measure:Quantity} | DS42: =IFERROR(INDEX($ED42:$IG42,MATCH(0,COUNTIF($DO42:DR42,$ED42:$IG42),0)),"") -> {Fan HP} | DT42: =IFERROR(INDEX($ED42:$IG42,MATCH(0,COUNTIF($DO42:DS42,$ED42:$IG42),0)),"") ->  | DU42: =IFERROR(INDEX($ED42:$IG42,MATCH(0,COUNTIF($DO42:DT42,$ED42:$IG42),0)),"") ->  | DV42: =IFERROR(INDEX($ED42:$IG42,MATCH(0,COUNTIF($DO42:DU42,$ED42:$IG42),0)),"") ->  | DW42: =IFERROR(INDEX($ED42:$IG42,MATCH(0,COUNTIF($DO42:DV42,$ED42:$IG42),0)),"") ->  | DX42: =IFERROR(INDEX($ED42:$IG42,MATCH(0,COUNTIF($DO42:DW42,$ED42:$IG42),0)),"") ->  | DY42: =IFERROR(INDEX($ED42:$IG42,MATCH(0,COUNTIF($DO42:DX42,$ED42:$IG42),0)),"") ->  | DZ42: =IFERROR(INDEX($ED42:$IG42,MATCH(0,COUNTIF($DO42:DY42,$ED42:$IG42),0)),"") ->  | EA42: =IFERROR(INDEX($ED42:$IG42,MATCH(0,COUNTIF($DO42:DZ42,$ED42:$IG42),0)),"") ->  | ED42: {Measure:Quantity} | EE42: {Fan HP} | EN42: {Measure:Quantity} | EO42: {Fan HP} | EX42: {Measure:Quantity} | EY42: {Fan HP} | FH42: {Measure:Quantity} | FI42: {Fan HP} | FJ42: {Factor:WinterCF} | FR42: {Measure:Quantity} | FS42: {Fan HP} | FT42: {Factor:SummerCF} | IK42: 2
A43: C&I Agricultural Solutions | B43: POTATO: Adjustable Speed Drive - 7.5 HP Ventilation Fan Motor | C43: AASD - ASD7.5 | D43: 2018-07-01 | E43: 2019-06-30 | F43: Per Measure | G43: $1467.00 | H43: 0 | I43: Per Measure | J43: $1000.00 | K43: 0 | L43: 2016-07-01 | M43: 2019-06-30 | N43: Calculated | O43: {Measure:Quantity} * {Fan HP} * 2540 | P43: 0.0001 | R43: {Measure:Quantity} * {Fan HP} * 0.71 | U43: {Measure:Quantity} * {Fan HP} * 0.71 * {Factor:WinterCF} | V43: {Measure:Quantity} * {Fan HP} * 0.71 * {Factor:SummerCF} | AC43: 2017-07-01 | AD43: 2019-06-30 | AF43: 15 | AG43: 0.737 | AH43: 0 | AI43: 0.436 | AJ43: 0.232 | AK43: 0.217 | AL43: 0.115 | AM43: 1 | AN43: 1.122 | AO43: 1 | AP43: 0.52 | AQ43: 0.016 | AR43: {Measure:Quantity} | AS43: 1 | AT43: {Fan HP} | AU43: 7.5 | BL43: =AS43 * AU43 * 2540 -> 19050 | BM43: 0.0001 | BN43: 0 | BO43: =AS43 * AU43 * 0.71 -> 5.325 | BP43: 0 | BQ43: 0 | BR43: =AS43 * AU43 * 0.71 * AG43 -> 3.924525 | BS43: =AS43 * AU43 * 0.71 * AH43 -> 0 | BT43: 0 | BU43: 0 | BV43: 0 | BW43: 0 | BX43: 0 | BY43: 0 | BZ43: Res | CA43: Default DR | CB43: =Benefits(BL43,BR43,BS43,BT43,BU43,BV43,BW43,BX43,BY43,AF43,AI43,AJ43,AK43,AL43,AM43,AN43,AO43,AP43,AQ43,BZ43,CA43) -> 14856.86666 | CC43: 7690.98157 | CD43: 0 | CE43: 0 | CF43: 0 | CG43: 0 | CH43: 0 | CI43: 0 | CJ43: 22547.84823 | CK43: 0 | CM43: =1467 -> 1467 | CP43: 1467 | CQ43: 0.496 | CR43: 10.19189798 | CS43: 1 | CT43: =CM43*CU43 -> 733.5 | CU43: 0.5 | CV43: Electric | CX43: X=$1467.00 | CZ43: X=AS43 * AU43 * 2540 | DA43: X=0.0001 | DB43: 0 | DC43: X=AS43 * AU43 * 0.71 | DD43: 0 | DE43: 0 | DF43: X=AS43 * AU43 * 0.71 * AG43 | DG43: X=AS43 * AU43 * 0.71 * AH43 | DH43: 0 | DI43: 0 | DJ43: 0 | DK43: 0 | DL43: 0 | DM43: 0 | DP43: {Factor:WinterCF} | DQ43: {Factor:SummerCF} | DR43: =IFERROR(INDEX($ED43:$IG43,MATCH(0,COUNTIF($DO43:DQ43,$ED43:$IG43),0)),"") -> {Measure:Quantity} | DS43: =IFERROR(INDEX($ED43:$IG43,MATCH(0,COUNTIF($DO43:DR43,$ED43:$IG43),0)),"") -> {Fan HP} | DT43: =IFERROR(INDEX($ED43:$IG43,MATCH(0,COUNTIF($DO43:DS43,$ED43:$IG43),0)),"") ->  | DU43: =IFERROR(INDEX($ED43:$IG43,MATCH(0,COUNTIF($DO43:DT43,$ED43:$IG43),0)),"") ->  | DV43: =IFERROR(INDEX($ED43:$IG43,MATCH(0,COUNTIF($DO43:DU43,$ED43:$IG43),0)),"") ->  | DW43: =IFERROR(INDEX($ED43:$IG43,MATCH(0,COUNTIF($DO43:DV43,$ED43:$IG43),0)),"") ->  | DX43: =IFERROR(INDEX($ED43:$IG43,MATCH(0,COUNTIF($DO43:DW43,$ED43:$IG43),0)),"") ->  | DY43: =IFERROR(INDEX($ED43:$IG43,MATCH(0,COUNTIF($DO43:DX43,$ED43:$IG43),0)),"") ->  | DZ43: =IFERROR(INDEX($ED43:$IG43,MATCH(0,COUNTIF($DO43:DY43,$ED43:$IG43),0)),"") ->  | EA43: =IFERROR(INDEX($ED43:$IG43,MATCH(0,COUNTIF($DO43:DZ43,$ED43:$IG43),0)),"") ->  | EN43: {Measure:Quantity} | EO43: {Fan HP} | EX43: {Measure:Quantity} | EY43: {Fan HP} | FH43: {Measure:Quantity} | FI43: {Fan HP} | FJ43: {Factor:WinterCF} | FR43: {Measure:Quantity} | FS43: {Fan HP} | FT43: {Factor:SummerCF} | IK43: 2
A44: C&I Agricultural Solutions | B44: MILK: Scroll Compressor - 10 HP | C44: AMSC - AMSC10 | D44: 2018-07-01 | E44: 2019-06-30 | F44: Per Measure | G44: $2051.00 | H44: 0 | I44: Per Measure | J44: $1100.00 | K44: 0 | L44: 2016-07-01 | M44: 2019-06-30 | N44: Calculated | O44: 432 * 10 * {Measure:Quantity} | P44: 0.0001 | R44: ((432 * 10) /2850) * {Measure:Quantity} | U44: (((432 * 10) /2850) * {Measure:Quantity}) *{Factor:WinterCF} | V44: (((432 * 10) /2850) * {Measure:Quantity}) *{Factor:SummerCF} | AC44: 2017-07-01 | AD44: 2019-06-30 | AF44: 15 | AG44: 0.674 | AH44: 0.327 | AI44: 0.436 | AJ44: 0.232 | AK44: 0.217 | AL44: 0.115 | AM44: 1 | AN44: 1.122 | AO44: 1 | AP44: 0.52 | AQ44: 0.016 | AR44: {Measure:Quantity} | AS44: 1 | BL44: =432 * 10 * AS44 -> 4320 | BM44: 0.0001 | BN44: 0 | BO44: =((432 * 10) /2850) * AS44 -> 1.515789474 | BP44: 0 | BQ44: 0 | BR44: =(((432 * 10) /2850) * AS44) *AG44 -> 1.021642105 | BS44: =(((432 * 10) /2850) * AS44) *AH44 -> 0.4956631579 | BT44: 0 | BU44: 0 | BV44: 0 | BW44: 0 | BX44: 0 | BY44: 0 | BZ44: Res | CA44: Default DR | CB44: =Benefits(BL44,BR44,BS44,BT44,BU44,BV44,BW44,BX44,BY44,AF44,AI44,AJ44,AK44,AL44,AM44,AN44,AO44,AP44,AQ44,BZ44,CA44) -> 3369.116219 | CC44: 2487.816668 | CD44: 0 | CE44: 0 | CF44: 0 | CG44: 0 | CH44: 0 | CI44: 0 | CJ44: 5856.932887 | CK44: 0 | CM44: =2051 -> 2051 | CP44: 2051 | CQ44: 0.496 | CR44: 2.454376007 | CS44: 1 | CT44: 330 | CV44: Electric | CX44: X=$2051.00 | CZ44: X=432 * 10 * AS44 | DA44: X=0.0001 | DB44: 0 | DC44: X=((432 * 10) /2850) * AS44 | DD44: 0 | DE44: 0 | DF44: X=(((432 * 10) /2850) * AS44) *AG44 | DG44: X=(((432 * 10) /2850) * AS44) *AH44 | DH44: 0 | DI44: 0 | DJ44: 0 | DK44: 0 | DL44: 0 | DM44: 0 | DP44: {Factor:WinterCF} | DQ44: {Factor:SummerCF} | DR44: =IFERROR(INDEX($ED44:$IG44,MATCH(0,COUNTIF($DO44:DQ44,$ED44:$IG44),0)),"") -> {Measure:Quantity} | DS44: =IFERROR(INDEX($ED44:$IG44,MATCH(0,COUNTIF($DO44:DR44,$ED44:$IG44),0)),"") ->  | DT44: =IFERROR(INDEX($ED44:$IG44,MATCH(0,COUNTIF($DO44:DS44,$ED44:$IG44),0)),"") ->  | DU44: =IFERROR(INDEX($ED44:$IG44,MATCH(0,COUNTIF($DO44:DT44,$ED44:$IG44),0)),"") ->  | DV44: =IFERROR(INDEX($ED44:$IG44,MATCH(0,COUNTIF($DO44:DU44,$ED44:$IG44),0)),"") ->  | DW44: =IFERROR(INDEX($ED44:$IG44,MATCH(0,COUNTIF($DO44:DV44,$ED44:$IG44),0)),"") ->  | DX44: =IFERROR(INDEX($ED44:$IG44,MATCH(0,COUNTIF($DO44:DW44,$ED44:$IG44),0)),"") ->  | DY44: =IFERROR(INDEX($ED44:$IG44,MATCH(0,COUNTIF($DO44:DX44,$ED44:$IG44),0)),"") ->  | DZ44: =IFERROR(INDEX($ED44:$IG44,MATCH(0,COUNTIF($DO44:DY44,$ED44:$IG44),0)),"") ->  | EA44: =IFERROR(INDEX($ED44:$IG44,MATCH(0,COUNTIF($DO44:DZ44,$ED44:$IG44),0)),"") ->  | ED44: =IFERROR(MID($G44,FIND(CHAR(160),SUBSTITUTE($G44,"{",CHAR(160),ED$1)),FIND(CHAR(160),SUBSTITUTE($G44,"}",CHAR(160),ED$1))-FIND(CHAR(160),SUBSTITUTE($G44,"{",CHAR(160),ED$1))+1),"") ->  | EN44: =IFERROR(MID($O44,FIND(CHAR(160),SUBSTITUTE($O44,"{",CHAR(160),EN$1)),FIND(CHAR(160),SUBSTITUTE($O44,"}",CHAR(160),EN$1))-FIND(CHAR(160),SUBSTITUTE($O44,"{",CHAR(160),EN$1))+1),"") -> {Measure:Quantity} | EX44: =IFERROR(MID($R44,FIND(CHAR(160),SUBSTITUTE($R44,"{",CHAR(160),EX$1)),FIND(CHAR(160),SUBSTITUTE($R44,"}",CHAR(160),EX$1))-FIND(CHAR(160),SUBSTITUTE($R44,"{",CHAR(160),EX$1))+1),"") -> {Measure:Quantity} | FH44: =IFERROR(MID($U44,FIND(CHAR(160),SUBSTITUTE($U44,"{",CHAR(160),FH$1)),FIND(CHAR(160),SUBSTITUTE($U44,"}",CHAR(160),FH$1))-FIND(CHAR(160),SUBSTITUTE($U44,"{",CHAR(160),FH$1))+1),"") -> {Measure:Quantity} | FI44: {Factor:WinterCF} | FR44: =IFERROR(MID($V44,FIND(CHAR(160),SUBSTITUTE($V44,"{",CHAR(160),FR$1)),FIND(CHAR(160),SUBSTITUTE($V44,"}",CHAR(160),FR$1))-FIND(CHAR(160),SUBSTITUTE($V44,"{",CHAR(160),FR$1))+1),"") -> {Measure:Quantity} | FS44: {Factor:SummerCF} | GB44: =IFERROR(MID($W44,FIND(CHAR(160),SUBSTITUTE($W44,"{",CHAR(160),GB$1)),FIND(CHAR(160),SUBSTITUTE($W44,"}",CHAR(160),GB$1))-FIND(CHAR(160),SUBSTITUTE($W44,"{",CHAR(160),GB$1))+1),"") ->  | GL44: =IFERROR(MID($X44,FIND(CHAR(160),SUBSTITUTE($X44,"{",CHAR(160),GL$1)),FIND(CHAR(160),SUBSTITUTE($X44,"}",CHAR(160),GL$1))-FIND(CHAR(160),SUBSTITUTE($X44,"{",CHAR(160),GL$1))+1),"") ->  | GV44: =IFERROR(MID($Y44,FIND(CHAR(160),SUBSTITUTE($Y44,"{",CHAR(160),GV$1)),FIND(CHAR(160),SUBSTITUTE($Y44,"}",CHAR(160),GV$1))-FIND(CHAR(160),SUBSTITUTE($Y44,"{",CHAR(160),GV$1))+1),"") ->  | HF44: =IFERROR(MID($Z44,FIND(CHAR(160),SUBSTITUTE($Z44,"{",CHAR(160),HF$1)),FIND(CHAR(160),SUBSTITUTE($Z44,"}",CHAR(160),HF$1))-FIND(CHAR(160),SUBSTITUTE($Z44,"{",CHAR(160),HF$1))+1),"") ->  | HP44: =IFERROR(MID($AA44,FIND(CHAR(160),SUBSTITUTE($AA44,"{",CHAR(160),HP$1)),FIND(CHAR(160),SUBSTITUTE($AA44,"}",CHAR(160),HP$1))-FIND(CHAR(160),SUBSTITUTE($AA44,"{",CHAR(160),HP$1))+1),"") ->  | HZ44: =IFERROR(MID($AB44,FIND(CHAR(160),SUBSTITUTE($AB44,"{",CHAR(160),HZ$1)),FIND(CHAR(160),SUBSTITUTE($AB44,"}",CHAR(160),HZ$1))-FIND(CHAR(160),SUBSTITUTE($AB44,"{",CHAR(160),HZ$1))+1),"") ->  | IK44: 1
A45: C&I Agricultural Solutions | B45: MILK: Scroll Compressor - 2 HP | C45: AMSC - AMSC2 | D45: 2018-07-01 | E45: 2019-06-30 | F45: Per Measure | G45: $400.00 | H45: 0 | I45: Per Measure | J45: $220.00 | K45: 0 | L45: 2016-07-01 | M45: 2019-06-30 | N45: Calculated | O45: 432 * 2 * {Measure:Quantity} | P45: 0.0001 | R45: ((432 * 2) /2850) * {Measure:Quantity} | U45: (((432 * 2) /2850) * {Measure:Quantity}) *{Factor:WinterCF} | V45: (((432 * 2) /2850) * {Measure:Quantity}) *{Factor:SummerCF} | AC45: 2017-07-01 | AD45: 2019-06-30 | AF45: 15 | AG45: 0.674 | AH45: 0.327 | AI45: 0.436 | AJ45: 0.232 | AK45: 0.217 | AL45: 0.115 | AM45: 1 | AN45: 1.122 | AO45: 1 | AP45: 0.52 | AQ45: 0.016 | AR45: {Measure:Quantity} | AS45: 1 | BL45: =432 * 2 * AS45 -> 864 | BM45: 0.0001 | BN45: 0 | BO45: =((432 * 2) /2850) * AS45 -> 0.3031578947 | BP45: 0 | BQ45: 0 | BR45: =(((432 * 2) /2850) * AS45) *AG45 -> 0.2043284211 | BS45: =(((432 * 2) /2850) * AS45) *AH45 -> 0.09913263158 | BT45: 0 | BU45: 0 | BV45: 0 | BW45: 0 | BX45: 0 | BY45: 0 | BZ45: Res | CA45: Default DR | CB45: =Benefits(BL45,BR45,BS45,BT45,BU45,BV45,BW45,BX45,BY45,AF45,AI45,AJ45,AK45,AL45,AM45,AN45,AO45,AP45,AQ45,BZ45,CA45) -> 673.8232439 | CC45: 497.5633336 | CD45: 0 | CE45: 0 | CF45: 0 | CG45: 0 | CH45: 0 | CI45: 0 | CJ45: 1171.386577 | CK45: 0 | CM45: =400 -> 400 | CP45: 400 | CQ45: 0.496 | CR45: 1.941870797 | CS45: 1 | CT45: =CM45*CU45 -> 200 | CU45: 0.5 | CV45: Electric | CX45: X=$400.00 | CZ45: X=432 * 2 * AS45 | DA45: X=0.0001 | DB45: 0 | DC45: X=((432 * 2) /2850) * AS45 | DD45: 0 | DE45: 0 | DF45: X=(((432 * 2) /2850) * AS45) *AG45 | DG45: X=(((432 * 2) /2850) * AS45) *AH45 | DH45: 0 | DI45: 0 | DJ45: 0 | DK45: 0 | DL45: 0 | DM45: 0 | DP45: {Factor:WinterCF} | DQ45: {Factor:SummerCF} | DR45: =IFERROR(INDEX($ED45:$IG45,MATCH(0,COUNTIF($DO45:DQ45,$ED45:$IG45),0)),"") -> {Measure:Quantity} | DS45: =IFERROR(INDEX($ED45:$IG45,MATCH(0,COUNTIF($DO45:DR45,$ED45:$IG45),0)),"") ->  | DT45: =IFERROR(INDEX($ED45:$IG45,MATCH(0,COUNTIF($DO45:DS45,$ED45:$IG45),0)),"") ->  | DU45: =IFERROR(INDEX($ED45:$IG45,MATCH(0,COUNTIF($DO45:DT45,$ED45:$IG45),0)),"") ->  | DV45: =IFERROR(INDEX($ED45:$IG45,MATCH(0,COUNTIF($DO45:DU45,$ED45:$IG45),0)),"") ->  | DW45: =IFERROR(INDEX($ED45:$IG45,MATCH(0,COUNTIF($DO45:DV45,$ED45:$IG45),0)),"") ->  | DX45: =IFERROR(INDEX($ED45:$IG45,MATCH(0,COUNTIF($DO45:DW45,$ED45:$IG45),0)),"") ->  | DY45: =IFERROR(INDEX($ED45:$IG45,MATCH(0,COUNTIF($DO45:DX45,$ED45:$IG45),0)),"") ->  | DZ45: =IFERROR(INDEX($ED45:$IG45,MATCH(0,COUNTIF($DO45:DY45,$ED45:$IG45),0)),"") ->  | EA45: =IFERROR(INDEX($ED45:$IG45,MATCH(0,COUNTIF($DO45:DZ45,$ED45:$IG45),0)),"") ->  | EN45: {Measure:Quantity} | EX45: {Measure:Quantity} | FH45: {Measure:Quantity} | FI45: {Factor:WinterCF} | FR45: {Measure:Quantity} | FS45: {Factor:SummerCF} | IK45: 1
A46: C&I Agricultural Solutions | B46: MILK: Scroll Compressor - 3 HP | C46: AMSC - AMSC3 | D46: 2018-07-01 | E46: 2019-06-30 | F46: Per Measure | G46: $525.00 | H46: 0 | I46: Per Measure | J46: $330.00 | K46: 0 | L46: 2016-07-01 | M46: 2019-06-30 | N46: Calculated | O46: 432 * 3 * {Measure:Quantity} | P46: 0.0001 | R46: ((432 * 3) /2850) * {Measure:Quantity} | U46: (((432 * 3) /2850) * {Measure:Quantity}) *{Factor:WinterCF} | V46: (((432 * 3) /2850) * {Measure:Quantity}) *{Factor:SummerCF} | AC46: 2017-07-01 | AD46: 2019-06-30 | AF46: 15 | AG46: 0.674 | AH46: 0.327 | AI46: 0.436 | AJ46: 0.232 | AK46: 0.217 | AL46: 0.115 | AM46: 1 | AN46: 1.122 | AO46: 1 | AP46: 0.52 | AQ46: 0.016 | AR46: {Measure:Quantity} | AS46: 1 | BL46: =432 * 3 * AS46 -> 1296 | BM46: 0.0001 | BN46: 0 | BO46: =((432 * 3) /2850) * AS46 -> 0.4547368421 | BP46: 0 | BQ46: 0 | BR46: =(((432 * 3) /2850) * AS46) *AG46 -> 0.3064926316 | BS46: =(((432 * 3) /2850) * AS46) *AH46 -> 0.1486989474 | BT46: 0 | BU46: 0 | BV46: 0 | BW46: 0 | BX46: 0 | BY46: 0 | BZ46: Res | CA46: Default DR | CB46: =Benefits(BL46,BR46,BS46,BT46,BU46,BV46,BW46,BX46,BY46,AF46,AI46,AJ46,AK46,AL46,AM46,AN46,AO46,AP46,AQ46,BZ46,CA46) -> 1010.734866 | CC46: 746.3450004 | CD46: 0 | CE46: 0 | CF46: 0 | CG46: 0 | CH46: 0 | CI46: 0 | CJ46: 1757.079866 | CK46: 0 | CM46: =525 -> 525 | CP46: 525 | CQ46: 0.496 | CR46: 2.219280911 | CS46: 1 | CT46: 262.5 | CU46: 0.5 | CV46: Electric | CX46: X=$525.00 | CZ46: X=432 * 3 * AS46 | DA46: X=0.0001 | DB46: 0 | DC46: X=((432 * 3) /2850) * AS46 | DD46: 0 | DE46: 0 | DF46: X=(((432 * 3) /2850) * AS46) *AG46 | DG46: X=(((432 * 3) /2850) * AS46) *AH46 | DH46: 0 | DI46: 0 | DJ46: 0 | DK46: 0 | DL46: 0 | DM46: 0 | DP46: {Factor:WinterCF} | DQ46: {Factor:SummerCF} | DR46: =IFERROR(INDEX($ED46:$IG46,MATCH(0,COUNTIF($DO46:DQ46,$ED46:$IG46),0)),"") -> {Measure:Quantity} | DS46: =IFERROR(INDEX($ED46:$IG46,MATCH(0,COUNTIF($DO46:DR46,$ED46:$IG46),0)),"") ->  | DT46: =IFERROR(INDEX($ED46:$IG46,MATCH(0,COUNTIF($DO46:DS46,$ED46:$IG46),0)),"") ->  | DU46: =IFERROR(INDEX($ED46:$IG46,MATCH(0,COUNTIF($DO46:DT46,$ED46:$IG46),0)),"") ->  | DV46: =IFERROR(INDEX($ED46:$IG46,MATCH(0,COUNTIF($DO46:DU46,$ED46:$IG46),0)),"") ->  | DW46: =IFERROR(INDEX($ED46:$IG46,MATCH(0,COUNTIF($DO46:DV46,$ED46:$IG46),0)),"") ->  | DX46: =IFERROR(INDEX($ED46:$IG46,MATCH(0,COUNTIF($DO46:DW46,$ED46:$IG46),0)),"") ->  | DY46: =IFERROR(INDEX($ED46:$IG46,MATCH(0,COUNTIF($DO46:DX46,$ED46:$IG46),0)),"") ->  | DZ46: =IFERROR(INDEX($ED46:$IG46,MATCH(0,COUNTIF($DO46:DY46,$ED46:$IG46),0)),"") ->  | EA46: =IFERROR(INDEX($ED46:$IG46,MATCH(0,COUNTIF($DO46:DZ46,$ED46:$IG46),0)),"") ->  | EN46: {Measure:Quantity} | EX46: {Measure:Quantity} | FH46: {Measure:Quantity} | FI46: {Factor:WinterCF} | FR46: {Measure:Quantity} | FS46: {Factor:SummerCF} | IK46: 1
A47: C&I Agricultural Solutions | B47: MILK: Scroll Compressor - 5 HP | C47: AMSC - AMSC5 | D47: 2018-07-01 | E47: 2019-06-30 | F47: Per Measure | G47: $1000.00 | H47: 0 | I47: Per Measure | J47: $550.00 | K47: 0 | L47: 2016-07-01 | M47: 2019-06-30 | N47: Calculated | O47: 432 * 5 * {Measure:Quantity} | P47: 0.0001 | R47: ((432 * 5) /2850) * {Measure:Quantity} | U47: (((432 * 5) /2850) * {Measure:Quantity}) *{Factor:WinterCF} | V47: (((432 * 5) /2850) * {Measure:Quantity}) *{Factor:SummerCF} | AC47: 2017-07-01 | AD47: 2019-06-30 | AF47: 15 | AG47: 0.674 | AH47: 0.327 | AI47: 0.436 | AJ47: 0.232 | AK47: 0.217 | AL47: 0.115 | AM47: 1 | AN47: 1.122 | AO47: 1 | AP47: 0.52 | AQ47: 0.016 | AR47: {Measure:Quantity} | AS47: 1 | BL47: =432 * 5 * AS47 -> 2160 | BM47: 0.0001 | BN47: 0 | BO47: =((432 * 5) /2850) * AS47 -> 0.7578947368 | BP47: 0 | BQ47: 0 | BR47: =(((432 * 5) /2850) * AS47) *AG47 -> 0.5108210526 | BS47: =(((432 * 5) /2850) * AS47) *AH47 -> 0.2478315789 | BT47: 0 | BU47: 0 | BV47: 0 | BW47: 0 | BX47: 0 | BY47: 0 | BZ47: Res | CA47: Default DR | CB47: =Benefits(BL47,BR47,BS47,BT47,BU47,BV47,BW47,BX47,BY47,AF47,AI47,AJ47,AK47,AL47,AM47,AN47,AO47,AP47,AQ47,BZ47,CA47) -> 1684.55811 | CC47: 1243.908334 | CD47: 0 | CE47: 0 | CF47: 0 | CG47: 0 | CH47: 0 | CI47: 0 | CJ47: 2928.466444 | CK47: 0 | CM47: =1000 -> 1000 | CP47: 1000 | CQ47: 0.496 | CR47: 1.941870797 | CS47: 1 | CT47: 500 | CU47: 0.5 | CV47: Electric | CX47: X=$1000.00 | CZ47: X=432 * 5 * AS47 | DA47: X=0.0001 | DB47: 0 | DC47: X=((432 * 5) /2850) * AS47 | DD47: 0 | DE47: 0 | DF47: X=(((432 * 5) /2850) * AS47) *AG47 | DG47: X=(((432 * 5) /2850) * AS47) *AH47 | DH47: 0 | DI47: 0 | DJ47: 0 | DK47: 0 | DL47: 0 | DM47: 0 | DP47: {Factor:WinterCF} | DQ47: {Factor:SummerCF} | DR47: =IFERROR(INDEX($ED47:$IG47,MATCH(0,COUNTIF($DO47:DQ47,$ED47:$IG47),0)),"") -> {Measure:Quantity} | DS47: =IFERROR(INDEX($ED47:$IG47,MATCH(0,COUNTIF($DO47:DR47,$ED47:$IG47),0)),"") ->  | DT47: =IFERROR(INDEX($ED47:$IG47,MATCH(0,COUNTIF($DO47:DS47,$ED47:$IG47),0)),"") ->  | DU47: =IFERROR(INDEX($ED47:$IG47,MATCH(0,COUNTIF($DO47:DT47,$ED47:$IG47),0)),"") ->  | DV47: =IFERROR(INDEX($ED47:$IG47,MATCH(0,COUNTIF($DO47:DU47,$ED47:$IG47),0)),"") ->  | DW47: =IFERROR(INDEX($ED47:$IG47,MATCH(0,COUNTIF($DO47:DV47,$ED47:$IG47),0)),"") ->  | DX47: =IFERROR(INDEX($ED47:$IG47,MATCH(0,COUNTIF($DO47:DW47,$ED47:$IG47),0)),"") ->  | DY47: =IFERROR(INDEX($ED47:$IG47,MATCH(0,COUNTIF($DO47:DX47,$ED47:$IG47),0)),"") ->  | DZ47: =IFERROR(INDEX($ED47:$IG47,MATCH(0,COUNTIF($DO47:DY47,$ED47:$IG47),0)),"") ->  | EA47: =IFERROR(INDEX($ED47:$IG47,MATCH(0,COUNTIF($DO47:DZ47,$ED47:$IG47),0)),"") ->  | EN47: {Measure:Quantity} | EX47: {Measure:Quantity} | FH47: {Measure:Quantity} | FI47: {Factor:WinterCF} | FR47: {Measure:Quantity} | FS47: {Factor:SummerCF} | IK47: 1
A48: C&I Agricultural Solutions | B48: MILK: Scroll Compressor - 6 HP | C48: AMSC - AMSC6 | D48: 2018-07-01 | E48: 2019-06-30 | F48: Per Measure | G48: $1300.00 | H48: 0 | I48: Per Measure | J48: $660.00 | K48: 0 | L48: 2016-07-01 | M48: 2019-06-30 | N48: Calculated | O48: 432 * 6 * {Measure:Quantity} | P48: 0.0001 | R48: ((432 * 6) /2850) * {Measure:Quantity} | U48: (((432 * 6) /2850) * {Measure:Quantity}) *{Factor:WinterCF} | V48: (((432 * 6) /2850) * {Measure:Quantity}) *{Factor:SummerCF} | AC48: 2017-07-01 | AD48: 2019-06-30 | AF48: 15 | AG48: 0.674 | AH48: 0.327 | AI48: 0.436 | AJ48: 0.232 | AK48: 0.217 | AL48: 0.115 | AM48: 1 | AN48: 1.122 | AO48: 1 | AP48: 0.52 | AQ48: 0.016 | AR48: {Measure:Quantity} | AS48: 1 | BL48: =432 * 6 * AS48 -> 2592 | BM48: 0.0001 | BN48: 0 | BO48: =((432 * 6) /2850) * AS48 -> 0.9094736842 | BP48: 0 | BQ48: 0 | BR48: =(((432 * 6) /2850) * AS48) *AG48 -> 0.6129852632 | BS48: =(((432 * 6) /2850) * AS48) *AH48 -> 0.2973978947 | BT48: 0 | BU48: 0 | BV48: 0 | BW48: 0 | BX48: 0 | BY48: 0 | BZ48: Res | CA48: Default DR | CB48: =Benefits(BL48,BR48,BS48,BT48,BU48,BV48,BW48,BX48,BY48,AF48,AI48,AJ48,AK48,AL48,AM48,AN48,AO48,AP48,AQ48,BZ48,CA48) -> 2021.469732 | CC48: 1492.690001 | CD48: 0 | CE48: 0 | CF48: 0 | CG48: 0 | CH48: 0 | CI48: 0 | CJ48: 3514.159732 | CK48: 0 | CM48: =1300 -> 1300 | CP48: 1300 | CQ48: 0.496 | CR48: 1.79249612 | CS48: 1 | CT48: 650 | CU48: 0.5 | CV48: Electric | CX48: X=$1300.00 | CZ48: X=432 * 6 * AS48 | DA48: X=0.0001 | DB48: 0 | DC48: X=((432 * 6) /2850) * AS48 | DD48: 0 | DE48: 0 | DF48: X=(((432 * 6) /2850) * AS48) *AG48 | DG48: X=(((432 * 6) /2850) * AS48) *AH48 | DH48: 0 | DI48: 0 | DJ48: 0 | DK48: 0 | DL48: 0 | DM48: 0 | DP48: {Factor:WinterCF} | DQ48: {Factor:SummerCF} | DR48: =IFERROR(INDEX($ED48:$IG48,MATCH(0,COUNTIF($DO48:DQ48,$ED48:$IG48),0)),"") -> {Measure:Quantity} | DS48: =IFERROR(INDEX($ED48:$IG48,MATCH(0,COUNTIF($DO48:DR48,$ED48:$IG48),0)),"") ->  | DT48: =IFERROR(INDEX($ED48:$IG48,MATCH(0,COUNTIF($DO48:DS48,$ED48:$IG48),0)),"") ->  | DU48: =IFERROR(INDEX($ED48:$IG48,MATCH(0,COUNTIF($DO48:DT48,$ED48:$IG48),0)),"") ->  | DV48: =IFERROR(INDEX($ED48:$IG48,MATCH(0,COUNTIF($DO48:DU48,$ED48:$IG48),0)),"") ->  | DW48: =IFERROR(INDEX($ED48:$IG48,MATCH(0,COUNTIF($DO48:DV48,$ED48:$IG48),0)),"") ->  | DX48: =IFERROR(INDEX($ED48:$IG48,MATCH(0,COUNTIF($DO48:DW48,$ED48:$IG48),0)),"") ->  | DY48: =IFERROR(INDEX($ED48:$IG48,MATCH(0,COUNTIF($DO48:DX48,$ED48:$IG48),0)),"") ->  | DZ48: =IFERROR(INDEX($ED48:$IG48,MATCH(0,COUNTIF($DO48:DY48,$ED48:$IG48),0)),"") ->  | EA48: =IFERROR(INDEX($ED48:$IG48,MATCH(0,COUNTIF($DO48:DZ48,$ED48:$IG48),0)),"") ->  | EN48: {Measure:Quantity} | EX48: {Measure:Quantity} | FH48: {Measure:Quantity} | FI48: {Factor:WinterCF} | FR48: {Measure:Quantity} | FS48: {Factor:SummerCF} | IK48: 1
A49: C&I Agricultural Solutions | B49: MILK: Scroll Compressor - 7.5 HP | C49: AMSC - AMSC7.5 | D49: 2018-07-01 | E49: 2019-06-30 | F49: Per Measure | G49: $1538.00 | H49: 0 | I49: Per Measure | J49: $825.00 | K49: 0 | L49: 2016-07-01 | M49: 2019-06-30 | N49: Calculated | O49: 432 * 7.5 * {Measure:Quantity} | P49: 0.0001 | R49: ((432 * 7.5) /2850) * {Measure:Quantity} | U49: (((432 * 7.5) /2850) * {Measure:Quantity}) *{Factor:WinterCF} | V49: (((432 * 7.5) /2850) * {Measure:Quantity}) *{Factor:SummerCF} | AC49: 2017-07-01 | AD49: 2019-06-30 | AF49: 15 | AG49: 0.674 | AH49: 0.327 | AI49: 0.436 | AJ49: 0.232 | AK49: 0.217 | AL49: 0.115 | AM49: 1 | AN49: 1.122 | AO49: 1 | AP49: 0.52 | AQ49: 0.016 | AR49: {Measure:Quantity} | AS49: 1 | BL49: =432 * 7.5 * AS49 -> 3240 | BM49: 0.0001 | BN49: 0 | BO49: =((432 * 7.5) /2850) * AS49 -> 1.136842105 | BP49: 0 | BQ49: 0 | BR49: =(((432 * 7.5) /2850) * AS49) *AG49 -> 0.7662315789 | BS49: =(((432 * 7.5) /2850) * AS49) *AH49 -> 0.3717473684 | BT49: 0 | BU49: 0 | BV49: 0 | BW49: 0 | BX49: 0 | BY49: 0 | BZ49: Res | CA49: Default DR | CB49: =Benefits(BL49,BR49,BS49,BT49,BU49,BV49,BW49,BX49,BY49,AF49,AI49,AJ49,AK49,AL49,AM49,AN49,AO49,AP49,AQ49,BZ49,CA49) -> 2526.837165 | CC49: 1865.862501 | CD49: 0 | CE49: 0 | CF49: 0 | CG49: 0 | CH49: 0 | CI49: 0 | CJ49: 4392.699665 | CK49: 0 | CM49: =1538 -> 1538 | CP49: 1538 | CQ49: 0.496 | CR49: 1.893892195 | CS49: 1 | CT49: 769 | CU49: 0.5 | CV49: Electric | CX49: X=$1538.00 | CZ49: X=432 * 7.5 * AS49 | DA49: X=0.0001 | DB49: 0 | DC49: X=((432 * 7.5) /2850) * AS49 | DD49: 0 | DE49: 0 | DF49: X=(((432 * 7.5) /2850) * AS49) *AG49 | DG49: X=(((432 * 7.5) /2850) * AS49) *AH49 | DH49: 0 | DI49: 0 | DJ49: 0 | DK49: 0 | DL49: 0 | DM49: 0 | DP49: {Factor:WinterCF} | DQ49: {Factor:SummerCF} | DR49: =IFERROR(INDEX($ED49:$IG49,MATCH(0,COUNTIF($DO49:DQ49,$ED49:$IG49),0)),"") -> {Measure:Quantity} | DS49: =IFERROR(INDEX($ED49:$IG49,MATCH(0,COUNTIF($DO49:DR49,$ED49:$IG49),0)),"") ->  | DT49: =IFERROR(INDEX($ED49:$IG49,MATCH(0,COUNTIF($DO49:DS49,$ED49:$IG49),0)),"") ->  | DU49: =IFERROR(INDEX($ED49:$IG49,MATCH(0,COUNTIF($DO49:DT49,$ED49:$IG49),0)),"") ->  | DV49: =IFERROR(INDEX($ED49:$IG49,MATCH(0,COUNTIF($DO49:DU49,$ED49:$IG49),0)),"") ->  | DW49: =IFERROR(INDEX($ED49:$IG49,MATCH(0,COUNTIF($DO49:DV49,$ED49:$IG49),0)),"") ->  | DX49: =IFERROR(INDEX($ED49:$IG49,MATCH(0,COUNTIF($DO49:DW49,$ED49:$IG49),0)),"") ->  | DY49: =IFERROR(INDEX($ED49:$IG49,MATCH(0,COUNTIF($DO49:DX49,$ED49:$IG49),0)),"") ->  | DZ49: =IFERROR(INDEX($ED49:$IG49,MATCH(0,COUNTIF($DO49:DY49,$ED49:$IG49),0)),"") ->  | EA49: =IFERROR(INDEX($ED49:$IG49,MATCH(0,COUNTIF($DO49:DZ49,$ED49:$IG49),0)),"") ->  | EN49: {Measure:Quantity} | EX49: {Measure:Quantity} | FH49: {Measure:Quantity} | FI49: {Factor:WinterCF} | FR49: {Measure:Quantity} | FS49: {Factor:SummerCF} | IK49: 1
A50: C&I Agricultural Solutions | B50: MILK: Vacuum Pump with Adjustable Speed Drive Package - 10 HP | C50: AMVP - VP10 | D50: 2018-07-01 | E50: 2019-06-30 | F50: Per Measure | G50: $5322.00 | H50: 0 | I50: Per Measure | J50: $2500.00 | K50: 0 | L50: 2016-07-01 | M50: 2019-06-30 | N50: Calculated | O50: {Measure:Quantity} * (((10*0.746*.75/({Motor Efficiency}/100)) - (.0495*(2*{# of Milking Units})+1.7729))*{Daily Run Time}*365) | P50: 0.0001 | R50: {Measure:Quantity} * ((10*0.746*.75/({Motor Efficiency}/100)) - (.0495*(2*{# of Milking Units})+1.7729)) | U50: ({Measure:Quantity} * ((10*0.746*.75/({Motor Efficiency}/100)) - (.0495*(2*{# of Milking Units})+1.7729)))*{Factor:WinterCF} | V50: ({Measure:Quantity} * ((10*0.746*.75/({Motor Efficiency}/100)) - (.0495*(2*{# of Milking Units})+1.7729)))*{Factor:SummerCF} | AC50: 2017-07-01 | AD50: 2019-06-30 | AF50: 15 | AG50: 0.467 | AH50: 0.275 | AI50: 0.369 | AJ50: 0.301 | AK50: 0.182 | AL50: 0.148 | AM50: 1 | AN50: 1.122 | AO50: 1 | AP50: 0.52 | AQ50: 0.016 | AR50: {Measure:Quantity} | AS50: 1 | AT50: {Motor Efficiency} | AU50: 0.917 | AV50: {# of Milking Units} | AW50: 1000 | AX50: {Daily Run Time} | AY50: 2 | BL50: =AS50 * (((10*0.746*0.75/(AU50/100)) - (0.0495*(2*AW50)+1.7729))*AY50*365) -> 371839.2726 | BM50: 0.0001 | BN50: 0 | BO50: =AS50 * ((10*0.746*0.75/(AU50/100)) - (0.0495*(2*AW50)+1.7729)) -> 509.3688666 | BP50: 0 | BQ50: 0 | BR50: =(AS50 * ((10*0.746*0.75/(AU50/100)) - (0.0495*(2*AW50)+1.7729)))*AG50 -> 237.8752607 | BS50: =(AS50 * ((10*0.746*0.75/(AU50/100)) - (0.0495*(2*AW50)+1.7729)))*AH50 -> 140.0764383 | BT50: 0 | BU50: 0 | BV50: 0 | BW50: 0 | BX50: 0 | BY50: 0 | BZ50: Res | CA50: Default DR | CB50: =Benefits(BL50,BR50,BS50,BT50,BU50,BV50,BW50,BX50,BY50,AF50,AI50,AJ50,AK50,AL50,AM50,AN50,AO50,AP50,AQ50,BZ50,CA50) -> 286996.9952 | CC50: 603425.1021 | CD50: 0 | CE50: 0 | CF50: 0 | CG50: 0 | CH50: 0 | CI50: 0 | CJ50: 890422.0973 | CK50: 0 | CM50: =5322 -> 5322 | CP50: 5322 | CQ50: 0.496 | CR50: 110.9433148 | CS50: 1 | CT50: 2661 | CU50: 0.5 | CV50: Electric | CX50: X=$5322.00 | CZ50: X=AS50 * (((10*0.746*.75/(AU50/100)) - (.0495*(2*AW50)+1.7729))*AY50*365) | DA50: X=0.0001 | DB50: 0 | DC50: X=AS50 * ((10*0.746*.75/(AU50/100)) - (.0495*(2*AW50)+1.7729)) | DD50: 0 | DE50: 0 | DF50: X=(AS50 * ((10*0.746*.75/(AU50/100)) - (.0495*(2*AW50)+1.7729)))*AG50 | DG50: X=(AS50 * ((10*0.746*.75/(AU50/100)) - (.0495*(2*AW50)+1.7729)))*AH50 | DH50: 0 | DI50: 0 | DJ50: 0 | DK50: 0 | DL50: 0 | DM50: 0 | DP50: {Factor:WinterCF} | DQ50: {Factor:SummerCF} | DR50: =IFERROR(INDEX($ED50:$IG50,MATCH(0,COUNTIF($DO50:DQ50,$ED50:$IG50),0)),"") -> {Measure:Quantity} | DS50: =IFERROR(INDEX($ED50:$IG50,MATCH(0,COUNTIF($DO50:DR50,$ED50:$IG50),0)),"") -> {Motor Efficiency} | DT50: =IFERROR(INDEX($ED50:$IG50,MATCH(0,COUNTIF($DO50:DS50,$ED50:$IG50),0)),"") -> {# of Milking Units} | DU50: =IFERROR(INDEX($ED50:$IG50,MATCH(0,COUNTIF($DO50:DT50,$ED50:$IG50),0)),"") -> {Daily Run Time} | DV50: =IFERROR(INDEX($ED50:$IG50,MATCH(0,COUNTIF($DO50:DU50,$ED50:$IG50),0)),"") ->  | DW50: =IFERROR(INDEX($ED50:$IG50,MATCH(0,COUNTIF($DO50:DV50,$ED50:$IG50),0)),"") ->  | DX50: =IFERROR(INDEX($ED50:$IG50,MATCH(0,COUNTIF($DO50:DW50,$ED50:$IG50),0)),"") ->  | DY50: =IFERROR(INDEX($ED50:$IG50,MATCH(0,COUNTIF($DO50:DX50,$ED50:$IG50),0)),"") ->  | DZ50: =IFERROR(INDEX($ED50:$IG50,MATCH(0,COUNTIF($DO50:DY50,$ED50:$IG50),0)),"") ->  | EA50: =IFERROR(INDEX($ED50:$IG50,MATCH(0,COUNTIF($DO50:DZ50,$ED50:$IG50),0)),"") ->  | EN50: {Measure:Quantity} | EO50: {Motor Efficiency} | EP50: {# of Milking Units} | EQ50: {Daily Run Time} | EX50: {Measure:Quantity} | EY50: {Motor Efficiency} | EZ50: {# of Milking Units} | FH50: {Measure:Quantity} | FI50: {Motor Efficiency} | FJ50: {# of Milking Units} | FK50: {Factor:WinterCF} | FR50: {Measure:Quantity} | FS50: {Motor Efficiency} | FT50: {# of Milking Units} | FU50: {Factor:SummerCF} | IK50: 4
A51: C&I Agricultural Solutions | B51: MILK: Vacuum Pump with Adjustable Speed Drive Package - 15 HP | C51: AMVP - VP15 | D51: 2018-07-01 | E51: 2019-06-30 | F51: Per Measure | G51: $5322.00 | H51: 0 | I51: Per Measure | J51: $3000.00 | K51: 0 | L51: 2016-07-01 | M51: 2019-06-30 | N51: Calculated | O51: {Measure:Quantity} * (((15*0.746*.75/({Motor Efficiency}/100)) - (.0495*(2*{# of Milking Units})+1.7729))*{Daily Run Time}*365) | P51: 0.0001 | R51: {Measure:Quantity} * ((15*0.746*.75/({Motor Efficiency}/100)) - (.0495*(2*{# of Milking Units})+1.7729)) | U51: ({Measure:Quantity} * ((15*0.746*.75/({Motor Efficiency}/100)) - (.0495*(2*{# of Milking Units})+1.7729)))*{Factor:WinterCF} | V51: ({Measure:Quantity} * ((15*0.746*.75/({Motor Efficiency}/100)) - (.0495*(2*{# of Milking Units})+1.7729)))*{Factor:SummerCF} | AC51: 2017-07-01 | AD51: 2019-06-30 | AF51: 15 | AG51: 0.467 | AH51: 0.275 | AI51: 0.369 | AJ51: 0.301 | AK51: 0.182 | AL51: 0.148 | AM51: 1 | AN51: 1.122 | AO51: 1 | AP51: 0.52 | AQ51: 0.016 | AR51: {Measure:Quantity} | AS51: 1 | AT51: {Motor Efficiency} | AU51: 0.93 | AV51: {# of Milking Units} | AW51: 1000 | AX51: {Daily Run Time} | AY51: 2 | BL51: =AS51 * (((15*0.746*0.75/(AU51/100)) - (0.0495*(2*AW51)+1.7729))*AY51*365) -> 585201.912 | BM51: 0.0001 | BN51: 0 | BO51: =AS51 * ((15*0.746*0.75/(AU51/100)) - (0.0495*(2*AW51)+1.7729)) -> 801.6464548 | BP51: 0 | BQ51: 0 | BR51: =(AS51 * ((15*0.746*0.75/(AU51/100)) - (0.0495*(2*AW51)+1.7729)))*AG51 -> 374.3688944 | BS51: =(AS51 * ((15*0.746*0.75/(AU51/100)) - (0.0495*(2*AW51)+1.7729)))*AH51 -> 220.4527751 | BT51: 0 | BU51: 0 | BV51: 0 | BW51: 0 | BX51: 0 | BY51: 0 | BZ51: Res | CA51: Default DR | CB51: =Benefits(BL51,BR51,BS51,BT51,BU51,BV51,BW51,BX51,BY51,AF51,AI51,AJ51,AK51,AL51,AM51,AN51,AO51,AP51,AQ51,BZ51,CA51) -> 451676.8472 | CC51: 949672.4781 | CD51: 0 | CE51: 0 | CF51: 0 | CG51: 0 | CH51: 0 | CI51: 0 | CJ51: 1401349.325 | CK51: 0 | CM51: =5322 -> 5322 | CP51: 5322 | CQ51: 0.496 | CR51: 174.6029661 | CS51: 1 | CT51: 2661 | CU51: 0.5 | CV51: Electric | CX51: X=$5322.00 | CZ51: X=AS51 * (((15*0.746*.75/(AU51/100)) - (.0495*(2*AW51)+1.7729))*AY51*365) | DA51: X=0.0001 | DB51: 0 | DC51: X=AS51 * ((15*0.746*.75/(AU51/100)) - (.0495*(2*AW51)+1.7729)) | DD51: 0 | DE51: 0 | DF51: X=(AS51 * ((15*0.746*.75/(AU51/100)) - (.0495*(2*AW51)+1.7729)))*AG51 | DG51: X=(AS51 * ((15*0.746*.75/(AU51/100)) - (.0495*(2*AW51)+1.7729)))*AH51 | DH51: 0 | DI51: 0 | DJ51: 0 | DK51: 0 | DL51: 0 | DM51: 0 | DP51: {Factor:WinterCF} | DQ51: {Factor:SummerCF} | DR51: =IFERROR(INDEX($ED51:$IG51,MATCH(0,COUNTIF($DO51:DQ51,$ED51:$IG51),0)),"") -> {Measure:Quantity} | DS51: =IFERROR(INDEX($ED51:$IG51,MATCH(0,COUNTIF($DO51:DR51,$ED51:$IG51),0)),"") -> {Motor Efficiency} | DT51: =IFERROR(INDEX($ED51:$IG51,MATCH(0,COUNTIF($DO51:DS51,$ED51:$IG51),0)),"") -> {# of Milking Units} | DU51: =IFERROR(INDEX($ED51:$IG51,MATCH(0,COUNTIF($DO51:DT51,$ED51:$IG51),0)),"") -> {Daily Run Time} | DV51: =IFERROR(INDEX($ED51:$IG51,MATCH(0,COUNTIF($DO51:DU51,$ED51:$IG51),0)),"") ->  | DW51: =IFERROR(INDEX($ED51:$IG51,MATCH(0,COUNTIF($DO51:DV51,$ED51:$IG51),0)),"") ->  | DX51: =IFERROR(INDEX($ED51:$IG51,MATCH(0,COUNTIF($DO51:DW51,$ED51:$IG51),0)),"") ->  | DY51: =IFERROR(INDEX($ED51:$IG51,MATCH(0,COUNTIF($DO51:DX51,$ED51:$IG51),0)),"") ->  | DZ51: =IFERROR(INDEX($ED51:$IG51,MATCH(0,COUNTIF($DO51:DY51,$ED51:$IG51),0)),"") ->  | EA51: =IFERROR(INDEX($ED51:$IG51,MATCH(0,COUNTIF($DO51:DZ51,$ED51:$IG51),0)),"") ->  | EN51: {Measure:Quantity} | EO51: {Motor Efficiency} | EP51: {# of Milking Units} | EQ51: {Daily Run Time} | EX51: {Measure:Quantity} | EY51: {Motor Efficiency} | EZ51: {# of Milking Units} | FH51: {Measure:Quantity} | FI51: {Motor Efficiency} | FJ51: {# of Milking Units} | FK51: {Factor:WinterCF} | FR51: {Measure:Quantity} | FS51: {Motor Efficiency} | FT51: {# of Milking Units} | FU51: {Factor:SummerCF} | IK51: 4
A52: C&I Agricultural Solutions | B52: MILK: Vacuum Pump with Adjustable Speed Drive Package - 30 HP | C52: AMVP - VP30 | D52: 2018-07-01 | E52: 2019-06-30 | F52: Per Measure | G52: $5322.00 | H52: 0 | I52: Per Measure | J52: $6000.00 | K52: 0 | L52: 2016-07-01 | M52: 2019-06-30 | N52: Calculated | O52: {Measure:Quantity} * (((30*0.746*.75/({Motor Efficiency}/100)) - (.0495*(2*{# of Milking Units})+1.7729))*{Daily Run Time}*365) | P52: 0.0001 | R52: {Measure:Quantity} * ((30*0.746*.75/({Motor Efficiency}/100)) - (.0495*(2*{# of Milking Units})+1.7729)) | U52: ({Measure:Quantity} * ((30*0.746*.75/({Motor Efficiency}/100)) - (.0495*(2*{# of Milking Units})+1.7729)))*{Factor:WinterCF} | V52: ({Measure:Quantity} * ((30*0.746*.75/({Motor Efficiency}/100)) - (.0495*(2*{# of Milking Units})+1.7729)))*{Factor:SummerCF} | AC52: 2017-07-01 | AD52: 2019-06-30 | AF52: 15 | AG52: 0.467 | AH52: 0.275 | AI52: 0.369 | AJ52: 0.301 | AK52: 0.182 | AL52: 0.148 | AM52: 1 | AN52: 1.122 | AO52: 1 | AP52: 0.52 | AQ52: 0.016 | AR52: {Measure:Quantity} | AS52: 1 | AT52: {Motor Efficiency} | AU52: 0.941 | AV52: {# of Milking Units} | AW52: 1000 | AX52: {Daily Run Time} | AY52: 2 | BL52: =AS52 * (((30*0.746*0.75/(AU52/100)) - (0.0495*(2*AW52)+1.7729))*AY52*365) -> 1228566.495 | BM52: 0.0001 | BN52: 0 | BO52: =AS52 * ((30*0.746*0.75/(AU52/100)) - (0.0495*(2*AW52)+1.7729)) -> 1682.967801 | BP52: 0 | BQ52: 0 | BR52: =(AS52 * ((30*0.746*0.75/(AU52/100)) - (0.0495*(2*AW52)+1.7729)))*AG52 -> 785.9459632 | BS52: =(AS52 * ((30*0.746*0.75/(AU52/100)) - (0.0495*(2*AW52)+1.7729)))*AH52 -> 462.8161454 | BT52: 0 | BU52: 0 | BV52: 0 | BW52: 0 | BX52: 0 | BY52: 0 | BZ52: Res | CA52: Default DR | CB52: =Benefits(BL52,BR52,BS52,BT52,BU52,BV52,BW52,BX52,BY52,AF52,AI52,AJ52,AK52,AL52,AM52,AN52,AO52,AP52,AQ52,BZ52,CA52) -> 948245.434 | CC52: 1993732.016 | CD52: 0 | CE52: 0 | CF52: 0 | CG52: 0 | CH52: 0 | CI52: 0 | CJ52: 2941977.45 | CK52: 0 | CM52: =5322 -> 5322 | CP52: 5322 | CQ52: 0.496 | CR52: 366.5595579 | CS52: 1 | CT52: 2661 | CU52: 0.5 | CV52: Electric | CX52: X=$5322.00 | CZ52: X=AS52 * (((30*0.746*.75/(AU52/100)) - (.0495*(2*AW52)+1.7729))*AY52*365) | DA52: X=0.0001 | DB52: 0 | DC52: X=AS52 * ((30*0.746*.75/(AU52/100)) - (.0495*(2*AW52)+1.7729)) | DD52: 0 | DE52: 0 | DF52: X=(AS52 * ((30*0.746*.75/(AU52/100)) - (.0495*(2*AW52)+1.7729)))*AG52 | DG52: X=(AS52 * ((30*0.746*.75/(AU52/100)) - (.0495*(2*AW52)+1.7729)))*AH52 | DH52: 0 | DI52: 0 | DJ52: 0 | DK52: 0 | DL52: 0 | DM52: 0 | DP52: {Factor:WinterCF} | DQ52: {Factor:SummerCF} | DR52: =IFERROR(INDEX($ED52:$IG52,MATCH(0,COUNTIF($DO52:DQ52,$ED52:$IG52),0)),"") -> {Measure:Quantity} | DS52: =IFERROR(INDEX($ED52:$IG52,MATCH(0,COUNTIF($DO52:DR52,$ED52:$IG52),0)),"") -> {Motor Efficiency} | DT52: =IFERROR(INDEX($ED52:$IG52,MATCH(0,COUNTIF($DO52:DS52,$ED52:$IG52),0)),"") -> {# of Milking Units} | DU52: =IFERROR(INDEX($ED52:$IG52,MATCH(0,COUNTIF($DO52:DT52,$ED52:$IG52),0)),"") -> {Daily Run Time} | DV52: =IFERROR(INDEX($ED52:$IG52,MATCH(0,COUNTIF($DO52:DU52,$ED52:$IG52),0)),"") ->  | DW52: =IFERROR(INDEX($ED52:$IG52,MATCH(0,COUNTIF($DO52:DV52,$ED52:$IG52),0)),"") ->  | DX52: =IFERROR(INDEX($ED52:$IG52,MATCH(0,COUNTIF($DO52:DW52,$ED52:$IG52),0)),"") ->  | DY52: =IFERROR(INDEX($ED52:$IG52,MATCH(0,COUNTIF($DO52:DX52,$ED52:$IG52),0)),"") ->  | DZ52: =IFERROR(INDEX($ED52:$IG52,MATCH(0,COUNTIF($DO52:DY52,$ED52:$IG52),0)),"") ->  | EA52: =IFERROR(INDEX($ED52:$IG52,MATCH(0,COUNTIF($DO52:DZ52,$ED52:$IG52),0)),"") ->  | EN52: {Measure:Quantity} | EO52: {Motor Efficiency} | EP52: {# of Milking Units} | EQ52: {Daily Run Time} | EX52: {Measure:Quantity} | EY52: {Motor Efficiency} | EZ52: {# of Milking Units} | FH52: {Measure:Quantity} | FI52: {Motor Efficiency} | FJ52: {# of Milking Units} | FK52: {Factor:WinterCF} | FR52: {Measure:Quantity} | FS52: {Motor Efficiency} | FT52: {# of Milking Units} | FU52: {Factor:SummerCF} | IK52: 4
A53: C&I Agricultural Solutions | B53: MILK: Vacuum Pump with Adjustable Speed Drive Package - 7.5 HP | C53: AMVP - VP7.5 | D53: 2018-07-01 | E53: 2019-06-30 | F53: Per Measure | G53: $5322.00 | H53: 0 | I53: Per Measure | J53: $2000.00 | K53: 0 | L53: 2016-07-01 | M53: 2019-06-30 | N53: Calculated | O53: {Measure:Quantity} * (((7.5*0.746*.75/({Motor Efficiency}/100)) - (.0495*(2*{# of Milking Units})+1.7729))*{Daily Run Time}*365) | P53: 0.0001 | R53: {Measure:Quantity} * ((7.5*0.746*.75/({Motor Efficiency}/100)) - (.0495*(2*{# of Milking Units})+1.7729)) | U53: ({Measure:Quantity} * ((7.5*0.746*.75/({Motor Efficiency}/100)) - (.0495*(2*{# of Milking Units})+1.7729)))*{Factor:WinterCF} | V53: ({Measure:Quantity} * ((7.5*0.746*.75/({Motor Efficiency}/100)) - (.0495*(2*{# of Milking Units})+1.7729)))*{Factor:SummerCF} | AC53: 2017-07-01 | AD53: 2019-06-30 | AF53: 15 | AG53: 0.467 | AH53: 0.275 | AI53: 0.369 | AJ53: 0.301 | AK53: 0.182 | AL53: 0.148 | AM53: 1 | AN53: 1.122 | AO53: 1 | AP53: 0.52 | AQ53: 0.016 | AR53: {Measure:Quantity} | AS53: 1 | AT53: {Motor Efficiency} | AU53: 0.917 | AV53: {# of Milking Units} | AW53: 1000 | AX53: {Daily Run Time} | AY53: 2 | BL53: =AS53 * (((7.5*0.746*0.75/(AU53/100)) - (0.0495*(2*AW53)+1.7729))*AY53*365) -> 260488.4002 | BM53: 0.0001 | BN53: 0 | BO53: =AS53 * ((7.5*0.746*0.75/(AU53/100)) - (0.0495*(2*AW53)+1.7729)) -> 356.833425 | BP53: 0 | BQ53: 0 | BR53: =(AS53 * ((7.5*0.746*0.75/(AU53/100)) - (0.0495*(2*AW53)+1.7729)))*AG53 -> 166.6412095 | BS53: =(AS53 * ((7.5*0.746*0.75/(AU53/100)) - (0.0495*(2*AW53)+1.7729)))*AH53 -> 98.12919187 | BT53: 0 | BU53: 0 | BV53: 0 | BW53: 0 | BX53: 0 | BY53: 0 | BZ53: Res | CA53: Default DR | CB53: =Benefits(BL53,BR53,BS53,BT53,BU53,BV53,BW53,BX53,BY53,AF53,AI53,AJ53,AK53,AL53,AM53,AN53,AO53,AP53,AQ53,BZ53,CA53) -> 201052.9647 | CC53: 422723.6095 | CD53: 0 | CE53: 0 | CF53: 0 | CG53: 0 | CH53: 0 | CI53: 0 | CJ53: 623776.5742 | CK53: 0 | CM53: =5322 -> 5322 | CP53: 5322 | CQ53: 0.496 | CR53: 77.72026439 | CS53: 1 | CT53: 2661 | CU53: 0.5 | CV53: Electric | CX53: X=$5322.00 | CZ53: X=AS53 * (((7.5*0.746*.75/(AU53/100)) - (.0495*(2*AW53)+1.7729))*AY53*365) | DA53: X=0.0001 | DB53: 0 | DC53: X=AS53 * ((7.5*0.746*.75/(AU53/100)) - (.0495*(2*AW53)+1.7729)) | DD53: 0 | DE53: 0 | DF53: X=(AS53 * ((7.5*0.746*.75/(AU53/100)) - (.0495*(2*AW53)+1.7729)))*AG53 | DG53: X=(AS53 * ((7.5*0.746*.75/(AU53/100)) - (.0495*(2*AW53)+1.7729)))*AH53 | DH53: 0 | DI53: 0 | DJ53: 0 | DK53: 0 | DL53: 0 | DM53: 0 | DP53: {Factor:WinterCF} | DQ53: {Factor:SummerCF} | DR53: =IFERROR(INDEX($ED53:$IG53,MATCH(0,COUNTIF($DO53:DQ53,$ED53:$IG53),0)),"") -> {Measure:Quantity} | DS53: =IFERROR(INDEX($ED53:$IG53,MATCH(0,COUNTIF($DO53:DR53,$ED53:$IG53),0)),"") -> {Motor Efficiency} | DT53: =IFERROR(INDEX($ED53:$IG53,MATCH(0,COUNTIF($DO53:DS53,$ED53:$IG53),0)),"") -> {# of Milking Units} | DU53: =IFERROR(INDEX($ED53:$IG53,MATCH(0,COUNTIF($DO53:DT53,$ED53:$IG53),0)),"") -> {Daily Run Time} | DV53: =IFERROR(INDEX($ED53:$IG53,MATCH(0,COUNTIF($DO53:DU53,$ED53:$IG53),0)),"") ->  | DW53: =IFERROR(INDEX($ED53:$IG53,MATCH(0,COUNTIF($DO53:DV53,$ED53:$IG53),0)),"") ->  | DX53: =IFERROR(INDEX($ED53:$IG53,MATCH(0,COUNTIF($DO53:DW53,$ED53:$IG53),0)),"") ->  | DY53: =IFERROR(INDEX($ED53:$IG53,MATCH(0,COUNTIF($DO53:DX53,$ED53:$IG53),0)),"") ->  | DZ53: =IFERROR(INDEX($ED53:$IG53,MATCH(0,COUNTIF($DO53:DY53,$ED53:$IG53),0)),"") ->  | EA53: =IFERROR(INDEX($ED53:$IG53,MATCH(0,COUNTIF($DO53:DZ53,$ED53:$IG53),0)),"") ->  | EN53: {Measure:Quantity} | EO53: {Motor Efficiency} | EP53: {# of Milking Units} | EQ53: {Daily Run Time} | EX53: {Measure:Quantity} | EY53: {Motor Efficiency} | EZ53: {# of Milking Units} | FH53: {Measure:Quantity} | FI53: {Motor Efficiency} | FJ53: {# of Milking Units} | FK53: {Factor:WinterCF} | FR53: {Measure:Quantity} | FS53: {Motor Efficiency} | FT53: {# of Milking Units} | FU53: {Factor:SummerCF} | IK53: 4
A54: C&I Agricultural Solutions | B54: OTHER: High Volume Low Speed Fans (14,16,18, 20 & 24 foot diameters) | C54: AOLSF | D54: 2018-07-01 | E54: 2019-06-30 | F54: Per Measure | G54: $1165.00 | H54: 0 | I54: Per Measure | J54: $1000.00 | K54: 0 | L54: 2016-07-01 | M54: 2019-06-30 | N54: Calculated | O54: {Measure:Quantity} * (({Existing Fan HP} / 0.80 - {Fan HP} / ({Motor Efficiency}/100) ) * 0.746 * 0.80) * 3660 | P54: 0.0001 | R54: {Measure:Quantity} * (({Existing Fan HP} / 0.80 - {Fan HP} / ({Motor Efficiency}/100) ) * 0.746 * 0.80) | U54: {Measure:Quantity} * (({Existing Fan HP} / 0.80 - {Fan HP} / ({Motor Efficiency}/100) ) * 0.746 * 0.80) * {Factor:WinterCF} | V54: {Measure:Quantity} * (({Existing Fan HP} / 0.80 - {Fan HP} / ({Motor Efficiency}/100) ) * 0.746 * 0.80) *{Factor:SummerCF} | AC54: 2017-07-01 | AD54: 2019-06-30 | AF54: 15 | AG54: 0.674 | AH54: 0.326 | AI54: 0.436 | AJ54: 0.232 | AK54: 0.217 | AL54: 0.115 | AM54: 1 | AN54: 1.122 | AO54: 1 | AP54: 0.52 | AQ54: 0.016 | AR54: {Measure:Quantity} | AS54: 1 | AT54: {Existing Fan HP} | AU54: 5 | AV54: {Fan HP} | AW54: 3 | AX54: {Motor Efficiency} | AY54: 90 | BL54: =AS54 * ((AU54 / 0.8 - AW54 / (AY54/100) ) * 0.746 * 0.8) * 3660 -> 6370.84 | BM54: 0.0001 | BN54: 0 | BO54: =AS54 * ((AU54 / 0.8 - AW54 / (AY54/100) ) * 0.746 * 0.8) -> 1.740666667 | BP54: 0 | BQ54: 0 | BR54: =AS54 * ((AU54 / 0.8 - AW54 / (AY54/100) ) * 0.746 * 0.8) * AG54 -> 1.173209333 | BS54: =AS54 * ((AU54 / 0.8 - AW54 / (AY54/100) ) * 0.746 * 0.8) *AH54 -> 0.5674573333 | BT54: 0 | BU54: 0 | BV54: 0 | BW54: 0 | BX54: 0 | BY54: 0 | BZ54: Res | CA54: Default DR | CB54: =Benefits(BL54,BR54,BS54,BT54,BU54,BV54,BW54,BX54,BY54,AF54,AI54,AJ54,AK54,AL54,AM54,AN54,AO54,AP54,AQ54,BZ54,CA54) -> 4968.541753 | CC54: 2855.194783 | CD54: 0 | CE54: 0 | CF54: 0 | CG54: 0 | CH54: 0 | CI54: 0 | CJ54: 7823.736537 | CK54: 0 | CM54: =1165 -> 1165 | CP54: 1165 | CQ54: 0.496 | CR54: 4.453160729 | CS54: 1 | CT54: 582.5 | CU54: 0.5 | CV54: Electric | CX54: X=$1165.00 | CZ54: X=AS54 * ((AU54 / 0.80 - AW54 / (AY54/100) ) * 0.746 * 0.80) * 3660 | DA54: X=0.0001 | DB54: 0 | DC54: X=AS54 * ((AU54 / 0.80 - AW54 / (AY54/100) ) * 0.746 * 0.80) | DD54: 0 | DE54: 0 | DF54: X=AS54 * ((AU54 / 0.80 - AW54 / (AY54/100) ) * 0.746 * 0.80) * AG54 | DG54: X=AS54 * ((AU54 / 0.80 - AW54 / (AY54/100) ) * 0.746 * 0.80) *AH54 | DH54: 0 | DI54: 0 | DJ54: 0 | DK54: 0 | DL54: 0 | DM54: 0 | DP54: {Factor:WinterCF} | DQ54: {Factor:SummerCF} | DR54: =IFERROR(INDEX($ED54:$IG54,MATCH(0,COUNTIF($DO54:DQ54,$ED54:$IG54),0)),"") -> {Measure:Quantity} | DS54: =IFERROR(INDEX($ED54:$IG54,MATCH(0,COUNTIF($DO54:DR54,$ED54:$IG54),0)),"") -> {Existing Fan HP} | DT54: =IFERROR(INDEX($ED54:$IG54,MATCH(0,COUNTIF($DO54:DS54,$ED54:$IG54),0)),"") -> {Fan HP} | DU54: =IFERROR(INDEX($ED54:$IG54,MATCH(0,COUNTIF($DO54:DT54,$ED54:$IG54),0)),"") -> {Motor Efficiency} | DV54: =IFERROR(INDEX($ED54:$IG54,MATCH(0,COUNTIF($DO54:DU54,$ED54:$IG54),0)),"") ->  | DW54: =IFERROR(INDEX($ED54:$IG54,MATCH(0,COUNTIF($DO54:DV54,$ED54:$IG54),0)),"") ->  | DX54: =IFERROR(INDEX($ED54:$IG54,MATCH(0,COUNTIF($DO54:DW54,$ED54:$IG54),0)),"") ->  | DY54: =IFERROR(INDEX($ED54:$IG54,MATCH(0,COUNTIF($DO54:DX54,$ED54:$IG54),0)),"") ->  | DZ54: =IFERROR(INDEX($ED54:$IG54,MATCH(0,COUNTIF($DO54:DY54,$ED54:$IG54),0)),"") ->  | EA54: =IFERROR(INDEX($ED54:$IG54,MATCH(0,COUNTIF($DO54:DZ54,$ED54:$IG54),0)),"") ->  | ED54: =IFERROR(MID($G54,FIND(CHAR(160),SUBSTITUTE($G54,"{",CHAR(160),ED$1)),FIND(CHAR(160),SUBSTITUTE($G54,"}",CHAR(160),ED$1))-FIND(CHAR(160),SUBSTITUTE($G54,"{",CHAR(160),ED$1))+1),"") ->  | EN54: =IFERROR(MID($O54,FIND(CHAR(160),SUBSTITUTE($O54,"{",CHAR(160),EN$1)),FIND(CHAR(160),SUBSTITUTE($O54,"}",CHAR(160),EN$1))-FIND(CHAR(160),SUBSTITUTE($O54,"{",CHAR(160),EN$1))+1),"") -> {Measure:Quantity} | EO54: {Existing Fan HP} | EP54: {Fan HP} | EQ54: {Motor Efficiency} | EX54: =IFERROR(MID($R54,FIND(CHAR(160),SUBSTITUTE($R54,"{",CHAR(160),EX$1)),FIND(CHAR(160),SUBSTITUTE($R54,"}",CHAR(160),EX$1))-FIND(CHAR(160),SUBSTITUTE($R54,"{",CHAR(160),EX$1))+1),"") -> {Measure:Quantity} | EY54: {Existing Fan HP} | EZ54: {Fan HP} | FA54: {Motor Efficiency} | FH54: =IFERROR(MID($U54,FIND(CHAR(160),SUBSTITUTE($U54,"{",CHAR(160),FH$1)),FIND(CHAR(160),SUBSTITUTE($U54,"}",CHAR(160),FH$1))-FIND(CHAR(160),SUBSTITUTE($U54,"{",CHAR(160),FH$1))+1),"") -> {Measure:Quantity} | FI54: {Existing Fan HP} | FJ54: {Fan HP} | FK54: {Motor Efficiency} | FL54: {Factor:WinterCF} | FR54: =IFERROR(MID($V54,FIND(CHAR(160),SUBSTITUTE($V54,"{",CHAR(160),FR$1)),FIND(CHAR(160),SUBSTITUTE($V54,"}",CHAR(160),FR$1))-FIND(CHAR(160),SUBSTITUTE($V54,"{",CHAR(160),FR$1))+1),"") -> {Measure:Quantity} | FS54: {Existing Fan HP} | FT54: {Fan HP} | FU54: {Motor Efficiency} | FV54: {Factor:SummerCF} | GB54: =IFERROR(MID($W54,FIND(CHAR(160),SUBSTITUTE($W54,"{",CHAR(160),GB$1)),FIND(CHAR(160),SUBSTITUTE($W54,"}",CHAR(160),GB$1))-FIND(CHAR(160),SUBSTITUTE($W54,"{",CHAR(160),GB$1))+1),"") ->  | GL54: =IFERROR(MID($X54,FIND(CHAR(160),SUBSTITUTE($X54,"{",CHAR(160),GL$1)),FIND(CHAR(160),SUBSTITUTE($X54,"}",CHAR(160),GL$1))-FIND(CHAR(160),SUBSTITUTE($X54,"{",CHAR(160),GL$1))+1),"") ->  | GV54: =IFERROR(MID($Y54,FIND(CHAR(160),SUBSTITUTE($Y54,"{",CHAR(160),GV$1)),FIND(CHAR(160),SUBSTITUTE($Y54,"}",CHAR(160),GV$1))-FIND(CHAR(160),SUBSTITUTE($Y54,"{",CHAR(160),GV$1))+1),"") ->  | HF54: =IFERROR(MID($Z54,FIND(CHAR(160),SUBSTITUTE($Z54,"{",CHAR(160),HF$1)),FIND(CHAR(160),SUBSTITUTE($Z54,"}",CHAR(160),HF$1))-FIND(CHAR(160),SUBSTITUTE($Z54,"{",CHAR(160),HF$1))+1),"") ->  | HP54: =IFERROR(MID($AA54,FIND(CHAR(160),SUBSTITUTE($AA54,"{",CHAR(160),HP$1)),FIND(CHAR(160),SUBSTITUTE($AA54,"}",CHAR(160),HP$1))-FIND(CHAR(160),SUBSTITUTE($AA54,"{",CHAR(160),HP$1))+1),"") ->  | HZ54: =IFERROR(MID($AB54,FIND(CHAR(160),SUBSTITUTE($AB54,"{",CHAR(160),HZ$1)),FIND(CHAR(160),SUBSTITUTE($AB54,"}",CHAR(160),HZ$1))-FIND(CHAR(160),SUBSTITUTE($AB54,"{",CHAR(160),HZ$1))+1),"") ->  | IK54: 4
A55: C&I Agricultural Solutions | H55: 0 | K55: 0 | P55: 0.0016 | CX55: 0 | CZ55: 0 | DA55: X=0.0016 | DB55: 0 | DC55: 0 | DD55: 0 | DE55: 0 | DF55: 0 | DG55: 0 | DH55: 0 | DI55: 0 | DJ55: 0 | DK55: 0 | DL55: 0 | DM55: 0 | DP55: {Factor:WinterCF} | DQ55: {Factor:SummerCF} | DR55: =IFERROR(INDEX($ED55:$IG55,MATCH(0,COUNTIF($DO55:DQ55,$ED55:$IG55),0)),"") ->  | DS55: =IFERROR(INDEX($ED55:$IG55,MATCH(0,COUNTIF($DO55:DR55,$ED55:$IG55),0)),"") ->  | DT55: =IFERROR(INDEX($ED55:$IG55,MATCH(0,COUNTIF($DO55:DS55,$ED55:$IG55),0)),"") ->  | DU55: =IFERROR(INDEX($ED55:$IG55,MATCH(0,COUNTIF($DO55:DT55,$ED55:$IG55),0)),"") ->  | DV55: =IFERROR(INDEX($ED55:$IG55,MATCH(0,COUNTIF($DO55:DU55,$ED55:$IG55),0)),"") ->  | DW55: =IFERROR(INDEX($ED55:$IG55,MATCH(0,COUNTIF($DO55:DV55,$ED55:$IG55),0)),"") ->  | DX55: =IFERROR(INDEX($ED55:$IG55,MATCH(0,COUNTIF($DO55:DW55,$ED55:$IG55),0)),"") ->  | DY55: =IFERROR(INDEX($ED55:$IG55,MATCH(0,COUNTIF($DO55:DX55,$ED55:$IG55),0)),"") ->  | DZ55: =IFERROR(INDEX($ED55:$IG55,MATCH(0,COUNTIF($DO55:DY55,$ED55:$IG55),0)),"") ->  | EA55: =IFERROR(INDEX($ED55:$IG55,MATCH(0,COUNTIF($DO55:DZ55,$ED55:$IG55),0)),"") ->  | IK55: 0
A56: C&I Commercial Kitchen Solutions | B56: G17 Fryer | C56: G17 | D56: 2018-07-01 | E56: 2019-06-30 | F56: Per Measure | G56: $1120.00 | H56: 0 | I56: Calculated | J56: {Measure:Quantity}*800 | K56: 0 | L56: 2016-11-01 | M56: 2019-06-30 | N56: Calculated | W56: {Measure:Quantity} * 415 | AC56: 2017-07-01 | AD56: 2019-06-30 | AF56: 12 | AG56: 0 | AH56: 0 | AI56: 1 | AJ56: 0 | AK56: 0 | AL56: 0 | AM56: 1 | AN56: 1 | AO56: 0 | AP56: 0.25 | AQ56: 0 | AR56: =DR56 -> {Measure:Quantity} | AS56: 1 | AT56: =DS56 ->  | AV56: =DT56 ->  | AX56: =DU56 ->  | AZ56: =DV56 ->  | BB56: =DW56 ->  | BD56: =DX56 ->  | BF56: =DY56 ->  | BH56: =DZ56 ->  | BJ56: =EA56 ->  | BL56: 0 | BM56: 0 | BN56: 0 | BO56: 0 | BP56: 0 | BQ56: 0 | BR56: 0 | BS56: 0 | BT56: =AS56 * 415 -> 415 | BU56: 0 | BV56: 0 | BW56: 0 | BX56: 0 | BY56: 0 | BZ56: Res | CA56: Default DR | CB56: =Benefits(BL56,BR56,BS56,BT56,BU56,BV56,BW56,BX56,BY56,AF56,AI56,AJ56,AK56,AL56,AM56,AN56,AO56,AP56,AQ56,BZ56,CA56) -> 0 | CC56: 0 | CD56: 3170.643184 | CE56: 0 | CF56: 0 | CG56: 0 | CH56: 0 | CI56: 0 | CJ56: 3170.643184 | CK56: =-SUMPRODUCT(CB56:CI56,--(CB56:CI56<0)) -> 0 | CM56: =1120 -> 1120 | CP56: =CK56+CM56 -> 1120 | CQ56: =IF(NetOrGross="Net",(1-AP56+AQ56),1) -> 0.75 | CR56: =(CJ56+CL56+SUMPRODUCT(CN56:CO56,--(CN56:CO56>0)))*CQ56/((CK56+MAX(CM56,CT56)-SUMPRODUCT(CN56:CO56,--(CN56:CO56<0)))*CQ56+IF(FRIncentives="Yes",CT56*(1-CQ56),0)) -> 2.286521527 | CS56: 1 | CT56: 800 | CV56: NG | CX56: X=$1120.00 | CZ56: 0 | DA56: 0 | DB56: 0 | DC56: 0 | DD56: 0 | DE56: 0 | DF56: 0 | DG56: 0 | DH56: X=AS56 * 415 | DI56: 0 | DJ56: 0 | DK56: 0 | DL56: 0 | DM56: 0 | DP56: {Factor:WinterCF} | DQ56: {Factor:SummerCF} | DR56: =IFERROR(INDEX($ED56:$IG56,MATCH(0,COUNTIF($DO56:DQ56,$ED56:$IG56),0)),"") -> {Measure:Quantity} | DS56: =IFERROR(INDEX($ED56:$IG56,MATCH(0,COUNTIF($DO56:DR56,$ED56:$IG56),0)),"") ->  | DT56: =IFERROR(INDEX($ED56:$IG56,MATCH(0,COUNTIF($DO56:DS56,$ED56:$IG56),0)),"") ->  | DU56: =IFERROR(INDEX($ED56:$IG56,MATCH(0,COUNTIF($DO56:DT56,$ED56:$IG56),0)),"") ->  | DV56: =IFERROR(INDEX($ED56:$IG56,MATCH(0,COUNTIF($DO56:DU56,$ED56:$IG56),0)),"") ->  | DW56: =IFERROR(INDEX($ED56:$IG56,MATCH(0,COUNTIF($DO56:DV56,$ED56:$IG56),0)),"") ->  | DX56: =IFERROR(INDEX($ED56:$IG56,MATCH(0,COUNTIF($DO56:DW56,$ED56:$IG56),0)),"") ->  | DY56: =IFERROR(INDEX($ED56:$IG56,MATCH(0,COUNTIF($DO56:DX56,$ED56:$IG56),0)),"") ->  | DZ56: =IFERROR(INDEX($ED56:$IG56,MATCH(0,COUNTIF($DO56:DY56,$ED56:$IG56),0)),"") ->  | EA56: =IFERROR(INDEX($ED56:$IG56,MATCH(0,COUNTIF($DO56:DZ56,$ED56:$IG56),0)),"") ->  | GB56: {Measure:Quantity} | IK56: 1
A57: C&I Commercial Kitchen Solutions | B57: G19 Convection Oven | C57: G19 | D57: 2018-07-01 | E57: 2019-06-30 | F57: Per Measure | G57: $0.00 | H57: 0 | I57: Calculated | J57: {Measure:Quantity}*750 | K57: 0 | L57: 2016-11-01 | M57: 2019-06-30 | N57: Calculated | W57: {Measure:Quantity} * 129 | AC57: 2017-07-01 | AD57: 2019-06-30 | AF57: 12 | AG57: 0 | AH57: 0 | AI57: 1 | AJ57: 0 | AK57: 0 | AL57: 0 | AM57: 1 | AN57: 1 | AO57: 0 | AP57: 0.25 | AQ57: 0 | AR57: {Measure:Quantity} | AS57: 1 | BL57: 0 | BM57: 0 | BN57: 0 | BO57: 0 | BP57: 0 | BQ57: 0 | BR57: 0 | BS57: 0 | BT57: =AS57 * 129 -> 129 | BU57: 0 | BV57: 0 | BW57: 0 | BX57: 0 | BY57: 0 | BZ57: Res | CA57: Default DR | CB57: =Benefits(BL57,BR57,BS57,BT57,BU57,BV57,BW57,BX57,BY57,AF57,AI57,AJ57,AK57,AL57,AM57,AN57,AO57,AP57,AQ57,BZ57,CA57) -> 0 | CC57: 0 | CD57: 985.5734235 | CE57: 0 | CF57: 0 | CG57: 0 | CH57: 0 | CI57: 0 | CJ57: 985.5734235 | CK57: 0 | CM57: 0 | CP57: 0 | CQ57: 0.75 | CR57: 1.019558714 | CS57: 1 | CT57: 725 | CV57: NG | CX57: X=$0.00 | CZ57: 0 | DA57: 0 | DB57: 0 | DC57: 0 | DD57: 0 | DE57: 0 | DF57: 0 | DG57: 0 | DH57: X=AS57 * 129 | DI57: 0 | DJ57: 0 | DK57: 0 | DL57: 0 | DM57: 0 | DP57: {Factor:WinterCF} | DQ57: {Factor:SummerCF} | DR57: =IFERROR(INDEX($ED57:$IG57,MATCH(0,COUNTIF($DO57:DQ57,$ED57:$IG57),0)),"") -> {Measure:Quantity} | DS57: =IFERROR(INDEX($ED57:$IG57,MATCH(0,COUNTIF($DO57:DR57,$ED57:$IG57),0)),"") ->  | DT57: =IFERROR(INDEX($ED57:$IG57,MATCH(0,COUNTIF($DO57:DS57,$ED57:$IG57),0)),"") ->  | DU57: =IFERROR(INDEX($ED57:$IG57,MATCH(0,COUNTIF($DO57:DT57,$ED57:$IG57),0)),"") ->  | DV57: =IFERROR(INDEX($ED57:$IG57,MATCH(0,COUNTIF($DO57:DU57,$ED57:$IG57),0)),"") ->  | DW57: =IFERROR(INDEX($ED57:$IG57,MATCH(0,COUNTIF($DO57:DV57,$ED57:$IG57),0)),"") ->  | DX57: =IFERROR(INDEX($ED57:$IG57,MATCH(0,COUNTIF($DO57:DW57,$ED57:$IG57),0)),"") ->  | DY57: =IFERROR(INDEX($ED57:$IG57,MATCH(0,COUNTIF($DO57:DX57,$ED57:$IG57),0)),"") ->  | DZ57: =IFERROR(INDEX($ED57:$IG57,MATCH(0,COUNTIF($DO57:DY57,$ED57:$IG57),0)),"") ->  | EA57: =IFERROR(INDEX($ED57:$IG57,MATCH(0,COUNTIF($DO57:DZ57,$ED57:$IG57),0)),"") ->  | GB57: {Measure:Quantity} | IK57: 1
A58: C&I Commercial Kitchen Solutions | B58: G20 Combination Oven | C58: G20 | D58: 2018-07-01 | E58: 2019-06-30 | F58: Per Measure | G58: $0.00 | H58: 0 | I58: Calculated | J58: {Measure:Quantity}*1250 | K58: 0 | L58: 2016-11-01 | M58: 2019-06-30 | N58: Calculated | W58: {Measure:Quantity} * 730 | AC58: 2017-07-01 | AD58: 2019-06-30 | AF58: 12 | AG58: 0 | AH58: 0 | AI58: 1 | AJ58: 0 | AK58: 0 | AL58: 0 | AM58: 1 | AN58: 1 | AO58: 0 | AP58: 0.25 | AQ58: 0 | AR58: {Measure:Quantity} | AS58: 1 | BL58: 0 | BM58: 0 | BN58: 0 | BO58: 0 | BP58: 0 | BQ58: 0 | BR58: 0 | BS58: 0 | BT58: =AS58 * 730 -> 730 | BU58: 0 | BV58: 0 | BW58: 0 | BX58: 0 | BY58: 0 | BZ58: Res | CA58: Default DR | CB58: =Benefits(BL58,BR58,BS58,BT58,BU58,BV58,BW58,BX58,BY58,AF58,AI58,AJ58,AK58,AL58,AM58,AN58,AO58,AP58,AQ58,BZ58,CA58) -> 0 | CC58: 0 | CD58: 5577.275963 | CE58: 0 | CF58: 0 | CG58: 0 | CH58: 0 | CI58: 0 | CJ58: 5577.275963 | CK58: 0 | CM58: 1 | CP58: 1 | CQ58: 0.75 | CR58: 2.230910385 | CS58: 1 | CT58: 1875 | CV58: NG | CX58: X=$0.00 | CZ58: 0 | DA58: 0 | DB58: 0 | DC58: 0 | DD58: 0 | DE58: 0 | DF58: 0 | DG58: 0 | DH58: X=AS58 * 730 | DI58: 0 | DJ58: 0 | DK58: 0 | DL58: 0 | DM58: 0 | DP58: {Factor:WinterCF} | DQ58: {Factor:SummerCF} | DR58: =IFERROR(INDEX($ED58:$IG58,MATCH(0,COUNTIF($DO58:DQ58,$ED58:$IG58),0)),"") -> {Measure:Quantity} | DS58: =IFERROR(INDEX($ED58:$IG58,MATCH(0,COUNTIF($DO58:DR58,$ED58:$IG58),0)),"") ->  | DT58: =IFERROR(INDEX($ED58:$IG58,MATCH(0,COUNTIF($DO58:DS58,$ED58:$IG58),0)),"") ->  | DU58: =IFERROR(INDEX($ED58:$IG58,MATCH(0,COUNTIF($DO58:DT58,$ED58:$IG58),0)),"") ->  | DV58: =IFERROR(INDEX($ED58:$IG58,MATCH(0,COUNTIF($DO58:DU58,$ED58:$IG58),0)),"") ->  | DW58: =IFERROR(INDEX($ED58:$IG58,MATCH(0,COUNTIF($DO58:DV58,$ED58:$IG58),0)),"") ->  | DX58: =IFERROR(INDEX($ED58:$IG58,MATCH(0,COUNTIF($DO58:DW58,$ED58:$IG58),0)),"") ->  | DY58: =IFERROR(INDEX($ED58:$IG58,MATCH(0,COUNTIF($DO58:DX58,$ED58:$IG58),0)),"") ->  | DZ58: =IFERROR(INDEX($ED58:$IG58,MATCH(0,COUNTIF($DO58:DY58,$ED58:$IG58),0)),"") ->  | EA58: =IFERROR(INDEX($ED58:$IG58,MATCH(0,COUNTIF($DO58:DZ58,$ED58:$IG58),0)),"") ->  | GB58: {Measure:Quantity} | IK58: 1
A59: C&I Commercial Kitchen Solutions | B59: G21 Steamer - 10 Pan | C59: G21 - G2110P | D59: 2018-07-01 | E59: 2019-06-30 | F59: Per Measure | G59: $870.00 | H59: 0 | I59: Per Measure | J59: $300.00 | K59: 0 | L59: 2016-11-01 | M59: 2019-06-30 | N59: Calculated | W59: {Measure:Quantity} * 1622 | AC59: 2017-07-01 | AD59: 2019-06-30 | AF59: 12 | AG59: 0 | AH59: 0 | AI59: 1 | AJ59: 0 | AK59: 0 | AL59: 0 | AM59: 1 | AN59: 1 | AO59: 0 | AP59: 0.25 | AQ59: 0 | AR59: {Measure:Quantity} | AS59: 1 | BL59: 0 | BM59: 0 | BN59: 0 | BO59: 0 | BP59: 0 | BQ59: 0 | BR59: 0 | BS59: 0 | BT59: =AS59 * 1622 -> 1622 | BU59: 0 | BV59: 0 | BW59: 0 | BX59: 0 | BY59: 0 | BZ59: Res | CA59: Default DR | CB59: =Benefits(BL59,BR59,BS59,BT59,BU59,BV59,BW59,BX59,BY59,AF59,AI59,AJ59,AK59,AL59,AM59,AN59,AO59,AP59,AQ59,BZ59,CA59) -> 0 | CC59: 0 | CD59: 12392.24878 | CE59: 0 | CF59: 0 | CG59: 0 | CH59: 0 | CI59: 0 | CJ59: 12392.24878 | CK59: 0 | CM59: =870 -> 870 | CP59: 870 | CQ59: 0.75 | CR59: 12.77551421 | CS59: 1 | CT59: 300 | CV59: NG | CX59: X=$870.00 | CZ59: 0 | DA59: 0 | DB59: 0 | DC59: 0 | DD59: 0 | DE59: 0 | DF59: 0 | DG59: 0 | DH59: X=AS59 * 1622 | DI59: 0 | DJ59: 0 | DK59: 0 | DL59: 0 | DM59: 0 | DP59: {Factor:WinterCF} | DQ59: {Factor:SummerCF} | DR59: =IFERROR(INDEX($ED59:$IG59,MATCH(0,COUNTIF($DO59:DQ59,$ED59:$IG59),0)),"") -> {Measure:Quantity} | DS59: =IFERROR(INDEX($ED59:$IG59,MATCH(0,COUNTIF($DO59:DR59,$ED59:$IG59),0)),"") ->  | DT59: =IFERROR(INDEX($ED59:$IG59,MATCH(0,COUNTIF($DO59:DS59,$ED59:$IG59),0)),"") ->  | DU59: =IFERROR(INDEX($ED59:$IG59,MATCH(0,COUNTIF($DO59:DT59,$ED59:$IG59),0)),"") ->  | DV59: =IFERROR(INDEX($ED59:$IG59,MATCH(0,COUNTIF($DO59:DU59,$ED59:$IG59),0)),"") ->  | DW59: =IFERROR(INDEX($ED59:$IG59,MATCH(0,COUNTIF($DO59:DV59,$ED59:$IG59),0)),"") ->  | DX59: =IFERROR(INDEX($ED59:$IG59,MATCH(0,COUNTIF($DO59:DW59,$ED59:$IG59),0)),"") ->  | DY59: =IFERROR(INDEX($ED59:$IG59,MATCH(0,COUNTIF($DO59:DX59,$ED59:$IG59),0)),"") ->  | DZ59: =IFERROR(INDEX($ED59:$IG59,MATCH(0,COUNTIF($DO59:DY59,$ED59:$IG59),0)),"") ->  | EA59: =IFERROR(INDEX($ED59:$IG59,MATCH(0,COUNTIF($DO59:DZ59,$ED59:$IG59),0)),"") ->  | GB59: {Measure:Quantity} | IK59: 1
A60: C&I Commercial Kitchen Solutions | B60: G21 Steamer - 3 Pan | C60: G21 - G213P | D60: 2018-07-01 | E60: 2019-06-30 | F60: Per Measure | G60: $260.00 | H60: 0 | I60: Calculated | J60: {Measure:Quantity}*300 | K60: 0 | L60: 2016-11-01 | M60: 2019-06-30 | N60: Calculated | W60: {Measure:Quantity} * 766 | AC60: 2017-07-01 | AD60: 2019-06-30 | AF60: 12 | AG60: 0 | AH60: 0 | AI60: 1 | AJ60: 0 | AK60: 0 | AL60: 0 | AM60: 1 | AN60: 1 | AO60: 0 | AP60: 0.25 | AQ60: 0 | AR60: {Measure:Quantity} | AS60: 1 | BL60: 0 | BM60: 0 | BN60: 0 | BO60: 0 | BP60: 0 | BQ60: 0 | BR60: 0 | BS60: 0 | BT60: =AS60 * 766 -> 766 | BU60: 0 | BV60: 0 | BW60: 0 | BX60: 0 | BY60: 0 | BZ60: Res | CA60: Default DR | CB60: =Benefits(BL60,BR60,BS60,BT60,BU60,BV60,BW60,BX60,BY60,AF60,AI60,AJ60,AK60,AL60,AM60,AN60,AO60,AP60,AQ60,BZ60,CA60) -> 0 | CC60: 0 | CD60: 5852.319709 | CE60: 0 | CF60: 0 | CG60: 0 | CH60: 0 | CI60: 0 | CJ60: 5852.319709 | CK60: 0 | CM60: =260 -> 260 | CP60: 260 | CQ60: 0.75 | CR60: 14.63079927 | CS60: 1 | CT60: 300 | CV60: NG | CX60: X=$260.00 | CZ60: 0 | DA60: 0 | DB60: 0 | DC60: 0 | DD60: 0 | DE60: 0 | DF60: 0 | DG60: 0 | DH60: X=AS60 * 766 | DI60: 0 | DJ60: 0 | DK60: 0 | DL60: 0 | DM60: 0 | DP60: {Factor:WinterCF} | DQ60: {Factor:SummerCF} | DR60: =IFERROR(INDEX($ED60:$IG60,MATCH(0,COUNTIF($DO60:DQ60,$ED60:$IG60),0)),"") -> {Measure:Quantity} | DS60: =IFERROR(INDEX($ED60:$IG60,MATCH(0,COUNTIF($DO60:DR60,$ED60:$IG60),0)),"") ->  | DT60: =IFERROR(INDEX($ED60:$IG60,MATCH(0,COUNTIF($DO60:DS60,$ED60:$IG60),0)),"") ->  | DU60: =IFERROR(INDEX($ED60:$IG60,MATCH(0,COUNTIF($DO60:DT60,$ED60:$IG60),0)),"") ->  | DV60: =IFERROR(INDEX($ED60:$IG60,MATCH(0,COUNTIF($DO60:DU60,$ED60:$IG60),0)),"") ->  | DW60: =IFERROR(INDEX($ED60:$IG60,MATCH(0,COUNTIF($DO60:DV60,$ED60:$IG60),0)),"") ->  | DX60: =IFERROR(INDEX($ED60:$IG60,MATCH(0,COUNTIF($DO60:DW60,$ED60:$IG60),0)),"") ->  | DY60: =IFERROR(INDEX($ED60:$IG60,MATCH(0,COUNTIF($DO60:DX60,$ED60:$IG60),0)),"") ->  | DZ60: =IFERROR(INDEX($ED60:$IG60,MATCH(0,COUNTIF($DO60:DY60,$ED60:$IG60),0)),"") ->  | EA60: =IFERROR(INDEX($ED60:$IG60,MATCH(0,COUNTIF($DO60:DZ60,$ED60:$IG60),0)),"") ->  | GB60: {Measure:Quantity} | IK60: 1
A61: C&I Commercial Kitchen Solutions | B61: G21 Steamer - 5 Pan | C61: G21 - G215P | D61: 2018-07-01 | E61: 2019-06-30 | F61: Per Measure | G61: $0.00 | H61: 0 | I61: Calculated | J61: {Measure:Quantity}*300 | K61: 0 | L61: 2016-11-01 | M61: 2019-06-30 | N61: Calculated | W61: {Measure:Quantity} * 962 | AC61: 2017-07-01 | AD61: 2019-06-30 | AF61: 12 | AG61: 0 | AH61: 0 | AI61: 1 | AJ61: 0 | AK61: 0 | AL61: 0 | AM61: 1 | AN61: 1 | AO61: 0 | AP61: 0.25 | AQ61: 0 | AR61: {Measure:Quantity} | AS61: 1 | BL61: 0 | BM61: 0 | BN61: 0 | BO61: 0 | BP61: 0 | BQ61: 0 | BR61: 0 | BS61: 0 | BT61: =AS61 * 962 -> 962 | BU61: 0 | BV61: 0 | BW61: 0 | BX61: 0 | BY61: 0 | BZ61: Res | CA61: Default DR | CB61: =Benefits(BL61,BR61,BS61,BT61,BU61,BV61,BW61,BX61,BY61,AF61,AI61,AJ61,AK61,AL61,AM61,AN61,AO61,AP61,AQ61,BZ61,CA61) -> 0 | CC61: 0 | CD61: 7349.780104 | CE61: 0 | CF61: 0 | CG61: 0 | CH61: 0 | CI61: 0 | CJ61: 7349.780104 | CK61: 0 | CM61: 1 | CP61: 1 | CQ61: 0.75 | CR61: 18.37445026 | CS61: 1 | CT61: 300 | CV61: NG | CX61: X=$0.00 | CZ61: 0 | DA61: 0 | DB61: 0 | DC61: 0 | DD61: 0 | DE61: 0 | DF61: 0 | DG61: 0 | DH61: X=AS61 * 962 | DI61: 0 | DJ61: 0 | DK61: 0 | DL61: 0 | DM61: 0 | DP61: {Factor:WinterCF} | DQ61: {Factor:SummerCF} | DR61: =IFERROR(INDEX($ED61:$IG61,MATCH(0,COUNTIF($DO61:DQ61,$ED61:$IG61),0)),"") -> {Measure:Quantity} | DS61: =IFERROR(INDEX($ED61:$IG61,MATCH(0,COUNTIF($DO61:DR61,$ED61:$IG61),0)),"") ->  | DT61: =IFERROR(INDEX($ED61:$IG61,MATCH(0,COUNTIF($DO61:DS61,$ED61:$IG61),0)),"") ->  | DU61: =IFERROR(INDEX($ED61:$IG61,MATCH(0,COUNTIF($DO61:DT61,$ED61:$IG61),0)),"") ->  | DV61: =IFERROR(INDEX($ED61:$IG61,MATCH(0,COUNTIF($DO61:DU61,$ED61:$IG61),0)),"") ->  | DW61: =IFERROR(INDEX($ED61:$IG61,MATCH(0,COUNTIF($DO61:DV61,$ED61:$IG61),0)),"") ->  | DX61: =IFERROR(INDEX($ED61:$IG61,MATCH(0,COUNTIF($DO61:DW61,$ED61:$IG61),0)),"") ->  | DY61: =IFERROR(INDEX($ED61:$IG61,MATCH(0,COUNTIF($DO61:DX61,$ED61:$IG61),0)),"") ->  | DZ61: =IFERROR(INDEX($ED61:$IG61,MATCH(0,COUNTIF($DO61:DY61,$ED61:$IG61),0)),"") ->  | EA61: =IFERROR(INDEX($ED61:$IG61,MATCH(0,COUNTIF($DO61:DZ61,$ED61:$IG61),0)),"") ->  | GB61: {Measure:Quantity} | IK61: 1
A62: C&I Commercial Kitchen Solutions | B62: G21 Steamer - 6 Pan | C62: G21 - G216P | D62: 2018-07-01 | E62: 2019-06-30 | F62: Per Measure | G62: $870.00 | H62: 0 | I62: Calculated | J62: {Measure:Quantity}*300 | K62: 0 | L62: 2016-11-01 | M62: 2019-06-30 | N62: Calculated | W62: {Measure:Quantity} * 1054 | AC62: 2017-07-01 | AD62: 2019-06-30 | AF62: 12 | AG62: 0 | AH62: 0 | AI62: 1 | AJ62: 0 | AK62: 0 | AL62: 0 | AM62: 1 | AN62: 1 | AO62: 0 | AP62: 0.25 | AQ62: 0 | AR62: {Measure:Quantity} | AS62: 1 | BL62: 0 | BM62: 0 | BN62: 0 | BO62: 0 | BP62: 0 | BQ62: 0 | BR62: 0 | BS62: 0 | BT62: =AS62 * 1054 -> 1054 | BU62: 0 | BV62: 0 | BW62: 0 | BX62: 0 | BY62: 0 | BZ62: Res | CA62: Default DR | CB62: =Benefits(BL62,BR62,BS62,BT62,BU62,BV62,BW62,BX62,BY62,AF62,AI62,AJ62,AK62,AL62,AM62,AN62,AO62,AP62,AQ62,BZ62,CA62) -> 0 | CC62: 0 | CD62: 8052.669678 | CE62: 0 | CF62: 0 | CG62: 0 | CH62: 0 | CI62: 0 | CJ62: 8052.669678 | CK62: 0 | CM62: =870 -> 870 | CP62: 870 | CQ62: 0.75 | CR62: 8.301721317 | CS62: 1 | CT62: 300 | CV62: NG | CX62: X=$870.00 | CZ62: 0 | DA62: 0 | DB62: 0 | DC62: 0 | DD62: 0 | DE62: 0 | DF62: 0 | DG62: 0 | DH62: X=AS62 * 1054 | DI62: 0 | DJ62: 0 | DK62: 0 | DL62: 0 | DM62: 0 | DP62: {Factor:WinterCF} | DQ62: {Factor:SummerCF} | DR62: =IFERROR(INDEX($ED62:$IG62,MATCH(0,COUNTIF($DO62:DQ62,$ED62:$IG62),0)),"") -> {Measure:Quantity} | DS62: =IFERROR(INDEX($ED62:$IG62,MATCH(0,COUNTIF($DO62:DR62,$ED62:$IG62),0)),"") ->  | DT62: =IFERROR(INDEX($ED62:$IG62,MATCH(0,COUNTIF($DO62:DS62,$ED62:$IG62),0)),"") ->  | DU62: =IFERROR(INDEX($ED62:$IG62,MATCH(0,COUNTIF($DO62:DT62,$ED62:$IG62),0)),"") ->  | DV62: =IFERROR(INDEX($ED62:$IG62,MATCH(0,COUNTIF($DO62:DU62,$ED62:$IG62),0)),"") ->  | DW62: =IFERROR(INDEX($ED62:$IG62,MATCH(0,COUNTIF($DO62:DV62,$ED62:$IG62),0)),"") ->  | DX62: =IFERROR(INDEX($ED62:$IG62,MATCH(0,COUNTIF($DO62:DW62,$ED62:$IG62),0)),"") ->  | DY62: =IFERROR(INDEX($ED62:$IG62,MATCH(0,COUNTIF($DO62:DX62,$ED62:$IG62),0)),"") ->  | DZ62: =IFERROR(INDEX($ED62:$IG62,MATCH(0,COUNTIF($DO62:DY62,$ED62:$IG62),0)),"") ->  | EA62: =IFERROR(INDEX($ED62:$IG62,MATCH(0,COUNTIF($DO62:DZ62,$ED62:$IG62),0)),"") ->  | GB62: {Measure:Quantity} | IK62: 1
A63: C&I Commercial Kitchen Solutions | B63: G22 Griddle - 2 ft wide | C63: G22 - G22 2ft | D63: 2018-07-01 | E63: 2019-06-30 | F63: Per Measure | G63: $360.00 | H63: 0 | I63: Calculated | J63: {Measure:Quantity}*275 | K63: 0 | L63: 2016-11-01 | M63: 2019-06-30 | N63: Calculated | W63: {Measure:Quantity} * 57 | AC63: 2017-07-01 | AD63: 2019-06-30 | AF63: 12 | AG63: 0 | AH63: 0 | AI63: 1 | AJ63: 0 | AK63: 0 | AL63: 0 | AM63: 1 | AN63: 1 | AO63: 0 | AP63: 0.25 | AQ63: 0 | AR63: {Measure:Quantity} | AS63: 1 | BL63: 0 | BM63: 0 | BN63: 0 | BO63: 0 | BP63: 0 | BQ63: 0 | BR63: 0 | BS63: 0 | BT63: =AS63 * 57 -> 57 | BU63: 0 | BV63: 0 | BW63: 0 | BX63: 0 | BY63: 0 | BZ63: Res | CA63: Default DR | CB63: =Benefits(BL63,BR63,BS63,BT63,BU63,BV63,BW63,BX63,BY63,AF63,AI63,AJ63,AK63,AL63,AM63,AN63,AO63,AP63,AQ63,BZ63,CA63) -> 0 | CC63: 0 | CD63: 435.4859313 | CE63: 0 | CF63: 0 | CG63: 0 | CH63: 0 | CI63: 0 | CJ63: 435.4859313 | CK63: 0 | CM63: =360 -> 360 | CP63: 360 | CQ63: 0.75 | CR63: 1.204108566 | CS63: 1 | CT63: 5 | CV63: NG | CX63: X=$360.00 | CZ63: 0 | DA63: 0 | DB63: 0 | DC63: 0 | DD63: 0 | DE63: 0 | DF63: 0 | DG63: 0 | DH63: X=AS63 * 57 | DI63: 0 | DJ63: 0 | DK63: 0 | DL63: 0 | DM63: 0 | DP63: {Factor:WinterCF} | DQ63: {Factor:SummerCF} | DR63: =IFERROR(INDEX($ED63:$IG63,MATCH(0,COUNTIF($DO63:DQ63,$ED63:$IG63),0)),"") -> {Measure:Quantity} | DS63: =IFERROR(INDEX($ED63:$IG63,MATCH(0,COUNTIF($DO63:DR63,$ED63:$IG63),0)),"") ->  | DT63: =IFERROR(INDEX($ED63:$IG63,MATCH(0,COUNTIF($DO63:DS63,$ED63:$IG63),0)),"") ->  | DU63: =IFERROR(INDEX($ED63:$IG63,MATCH(0,COUNTIF($DO63:DT63,$ED63:$IG63),0)),"") ->  | DV63: =IFERROR(INDEX($ED63:$IG63,MATCH(0,COUNTIF($DO63:DU63,$ED63:$IG63),0)),"") ->  | DW63: =IFERROR(INDEX($ED63:$IG63,MATCH(0,COUNTIF($DO63:DV63,$ED63:$IG63),0)),"") ->  | DX63: =IFERROR(INDEX($ED63:$IG63,MATCH(0,COUNTIF($DO63:DW63,$ED63:$IG63),0)),"") ->  | DY63: =IFERROR(INDEX($ED63:$IG63,MATCH(0,COUNTIF($DO63:DX63,$ED63:$IG63),0)),"") ->  | DZ63: =IFERROR(INDEX($ED63:$IG63,MATCH(0,COUNTIF($DO63:DY63,$ED63:$IG63),0)),"") ->  | EA63: =IFERROR(INDEX($ED63:$IG63,MATCH(0,COUNTIF($DO63:DZ63,$ED63:$IG63),0)),"") ->  | GB63: {Measure:Quantity} | IK63: 1
A64: C&I Commercial Kitchen Solutions | B64: G22 Griddle - 3 ft wide | C64: G22 - G22 3ft | D64: 2018-07-01 | E64: 2019-06-30 | F64: Per Measure | G64: $360.00 | H64: 0 | I64: Calculated | J64: {Measure:Quantity}*275 | K64: 0 | L64: 2016-11-01 | M64: 2019-06-30 | N64: Calculated | W64: {Measure:Quantity} * 131 | AC64: 2017-07-01 | AD64: 2019-06-30 | AF64: 12 | AG64: 0 | AH64: 0 | AI64: 1 | AJ64: 0 | AK64: 0 | AL64: 0 | AM64: 1 | AN64: 1 | AO64: 0 | AP64: 0.25 | AQ64: 0 | AR64: {Measure:Quantity} | AS64: 1 | BL64: 0 | BM64: 0 | BN64: 0 | BO64: 0 | BP64: 0 | BQ64: 0 | BR64: 0 | BS64: 0 | BT64: =AS64 * 131 -> 131 | BU64: 0 | BV64: 0 | BW64: 0 | BX64: 0 | BY64: 0 | BZ64: Res | CA64: Default DR | CB64: =Benefits(BL64,BR64,BS64,BT64,BU64,BV64,BW64,BX64,BY64,AF64,AI64,AJ64,AK64,AL64,AM64,AN64,AO64,AP64,AQ64,BZ64,CA64) -> 0 | CC64: 0 | CD64: 1000.853632 | CE64: 0 | CF64: 0 | CG64: 0 | CH64: 0 | CI64: 0 | CJ64: 1000.853632 | CK64: 0 | CM64: =360 -> 360 | CP64: 360 | CQ64: 0.75 | CR64: 2.2159121 | CS64: 1 | CT64: 275 | CV64: NG | CX64: X=$360.00 | CZ64: 0 | DA64: 0 | DB64: 0 | DC64: 0 | DD64: 0 | DE64: 0 | DF64: 0 | DG64: 0 | DH64: X=AS64 * 131 | DI64: 0 | DJ64: 0 | DK64: 0 | DL64: 0 | DM64: 0 | DP64: {Factor:WinterCF} | DQ64: {Factor:SummerCF} | DR64: =IFERROR(INDEX($ED64:$IG64,MATCH(0,COUNTIF($DO64:DQ64,$ED64:$IG64),0)),"") -> {Measure:Quantity} | DS64: =IFERROR(INDEX($ED64:$IG64,MATCH(0,COUNTIF($DO64:DR64,$ED64:$IG64),0)),"") ->  | DT64: =IFERROR(INDEX($ED64:$IG64,MATCH(0,COUNTIF($DO64:DS64,$ED64:$IG64),0)),"") ->  | DU64: =IFERROR(INDEX($ED64:$IG64,MATCH(0,COUNTIF($DO64:DT64,$ED64:$IG64),0)),"") ->  | DV64: =IFERROR(INDEX($ED64:$IG64,MATCH(0,COUNTIF($DO64:DU64,$ED64:$IG64),0)),"") ->  | DW64: =IFERROR(INDEX($ED64:$IG64,MATCH(0,COUNTIF($DO64:DV64,$ED64:$IG64),0)),"") ->  | DX64: =IFERROR(INDEX($ED64:$IG64,MATCH(0,COUNTIF($DO64:DW64,$ED64:$IG64),0)),"") ->  | DY64: =IFERROR(INDEX($ED64:$IG64,MATCH(0,COUNTIF($DO64:DX64,$ED64:$IG64),0)),"") ->  | DZ64: =IFERROR(INDEX($ED64:$IG64,MATCH(0,COUNTIF($DO64:DY64,$ED64:$IG64),0)),"") ->  | EA64: =IFERROR(INDEX($ED64:$IG64,MATCH(0,COUNTIF($DO64:DZ64,$ED64:$IG64),0)),"") ->  | ED64: =IFERROR(MID($G64,FIND(CHAR(160),SUBSTITUTE($G64,"{",CHAR(160),ED$1)),FIND(CHAR(160),SUBSTITUTE($G64,"}",CHAR(160),ED$1))-FIND(CHAR(160),SUBSTITUTE($G64,"{",CHAR(160),ED$1))+1),"") ->  | EN64: =IFERROR(MID($O64,FIND(CHAR(160),SUBSTITUTE($O64,"{",CHAR(160),EN$1)),FIND(CHAR(160),SUBSTITUTE($O64,"}",CHAR(160),EN$1))-FIND(CHAR(160),SUBSTITUTE($O64,"{",CHAR(160),EN$1))+1),"") ->  | EX64: =IFERROR(MID($R64,FIND(CHAR(160),SUBSTITUTE($R64,"{",CHAR(160),EX$1)),FIND(CHAR(160),SUBSTITUTE($R64,"}",CHAR(160),EX$1))-FIND(CHAR(160),SUBSTITUTE($R64,"{",CHAR(160),EX$1))+1),"") ->  | FH64: =IFERROR(MID($U64,FIND(CHAR(160),SUBSTITUTE($U64,"{",CHAR(160),FH$1)),FIND(CHAR(160),SUBSTITUTE($U64,"}",CHAR(160),FH$1))-FIND(CHAR(160),SUBSTITUTE($U64,"{",CHAR(160),FH$1))+1),"") ->  | FR64: =IFERROR(MID($V64,FIND(CHAR(160),SUBSTITUTE($V64,"{",CHAR(160),FR$1)),FIND(CHAR(160),SUBSTITUTE($V64,"}",CHAR(160),FR$1))-FIND(CHAR(160),SUBSTITUTE($V64,"{",CHAR(160),FR$1))+1),"") ->  | GB64: =IFERROR(MID($W64,FIND(CHAR(160),SUBSTITUTE($W64,"{",CHAR(160),GB$1)),FIND(CHAR(160),SUBSTITUTE($W64,"}",CHAR(160),GB$1))-FIND(CHAR(160),SUBSTITUTE($W64,"{",CHAR(160),GB$1))+1),"") -> {Measure:Quantity} | GL64: =IFERROR(MID($X64,FIND(CHAR(160),SUBSTITUTE($X64,"{",CHAR(160),GL$1)),FIND(CHAR(160),SUBSTITUTE($X64,"}",CHAR(160),GL$1))-FIND(CHAR(160),SUBSTITUTE($X64,"{",CHAR(160),GL$1))+1),"") ->  | GV64: =IFERROR(MID($Y64,FIND(CHAR(160),SUBSTITUTE($Y64,"{",CHAR(160),GV$1)),FIND(CHAR(160),SUBSTITUTE($Y64,"}",CHAR(160),GV$1))-FIND(CHAR(160),SUBSTITUTE($Y64,"{",CHAR(160),GV$1))+1),"") ->  | HF64: =IFERROR(MID($Z64,FIND(CHAR(160),SUBSTITUTE($Z64,"{",CHAR(160),HF$1)),FIND(CHAR(160),SUBSTITUTE($Z64,"}",CHAR(160),HF$1))-FIND(CHAR(160),SUBSTITUTE($Z64,"{",CHAR(160),HF$1))+1),"") ->  | HP64: =IFERROR(MID($AA64,FIND(CHAR(160),SUBSTITUTE($AA64,"{",CHAR(160),HP$1)),FIND(CHAR(160),SUBSTITUTE($AA64,"}",CHAR(160),HP$1))-FIND(CHAR(160),SUBSTITUTE($AA64,"{",CHAR(160),HP$1))+1),"") ->  | HZ64: =IFERROR(MID($AB64,FIND(CHAR(160),SUBSTITUTE($AB64,"{",CHAR(160),HZ$1)),FIND(CHAR(160),SUBSTITUTE($AB64,"}",CHAR(160),HZ$1))-FIND(CHAR(160),SUBSTITUTE($AB64,"{",CHAR(160),HZ$1))+1),"") ->  | IK64: 1
A65: C&I Commercial Kitchen Solutions | B65: G22 Griddle - 4 ft wide | C65: G22 - G22 4ft | D65: 2018-07-01 | E65: 2019-06-30 | F65: Per Measure | G65: $360.00 | H65: 0 | I65: Calculated | J65: {Measure:Quantity}*275 | K65: 0 | L65: 2016-11-01 | M65: 2019-06-30 | N65: Calculated | W65: {Measure:Quantity} * 206 | AC65: 2017-07-01 | AD65: 2019-06-30 | AF65: 12 | AG65: 0 | AH65: 0 | AI65: 1 | AJ65: 0 | AK65: 0 | AL65: 0 | AM65: 1 | AN65: 1 | AO65: 0 | AP65: 0.25 | AQ65: 0 | AR65: {Measure:Quantity} | AS65: 1 | BL65: 0 | BM65: 0 | BN65: 0 | BO65: 0 | BP65: 0 | BQ65: 0 | BR65: 0 | BS65: 0 | BT65: =AS65 * 206 -> 206 | BU65: 0 | BV65: 0 | BW65: 0 | BX65: 0 | BY65: 0 | BZ65: Res | CA65: Default DR | CB65: =Benefits(BL65,BR65,BS65,BT65,BU65,BV65,BW65,BX65,BY65,AF65,AI65,AJ65,AK65,AL65,AM65,AN65,AO65,AP65,AQ65,BZ65,CA65) -> 0 | CC65: 0 | CD65: 1573.861436 | CE65: 0 | CF65: 0 | CG65: 0 | CH65: 0 | CI65: 0 | CJ65: 1573.861436 | CK65: 0 | CM65: =360 -> 360 | CP65: 360 | CQ65: 0.75 | CR65: 3.484564065 | CS65: 1 | CT65: 275 | CV65: NG | CX65: X=$360.00 | CZ65: 0 | DA65: 0 | DB65: 0 | DC65: 0 | DD65: 0 | DE65: 0 | DF65: 0 | DG65: 0 | DH65: X=AS65 * 206 | DI65: 0 | DJ65: 0 | DK65: 0 | DL65: 0 | DM65: 0 | DP65: {Factor:WinterCF} | DQ65: {Factor:SummerCF} | DR65: =IFERROR(INDEX($ED65:$IG65,MATCH(0,COUNTIF($DO65:DQ65,$ED65:$IG65),0)),"") -> {Measure:Quantity} | DS65: =IFERROR(INDEX($ED65:$IG65,MATCH(0,COUNTIF($DO65:DR65,$ED65:$IG65),0)),"") ->  | DT65: =IFERROR(INDEX($ED65:$IG65,MATCH(0,COUNTIF($DO65:DS65,$ED65:$IG65),0)),"") ->  | DU65: =IFERROR(INDEX($ED65:$IG65,MATCH(0,COUNTIF($DO65:DT65,$ED65:$IG65),0)),"") ->  | DV65: =IFERROR(INDEX($ED65:$IG65,MATCH(0,COUNTIF($DO65:DU65,$ED65:$IG65),0)),"") ->  | DW65: =IFERROR(INDEX($ED65:$IG65,MATCH(0,COUNTIF($DO65:DV65,$ED65:$IG65),0)),"") ->  | DX65: =IFERROR(INDEX($ED65:$IG65,MATCH(0,COUNTIF($DO65:DW65,$ED65:$IG65),0)),"") ->  | DY65: =IFERROR(INDEX($ED65:$IG65,MATCH(0,COUNTIF($DO65:DX65,$ED65:$IG65),0)),"") ->  | DZ65: =IFERROR(INDEX($ED65:$IG65,MATCH(0,COUNTIF($DO65:DY65,$ED65:$IG65),0)),"") ->  | EA65: =IFERROR(INDEX($ED65:$IG65,MATCH(0,COUNTIF($DO65:DZ65,$ED65:$IG65),0)),"") ->  | GB65: {Measure:Quantity} | IK65: 1
A66: C&I Commercial Kitchen Solutions | B66: G22 Griddle - 5 ft wide | C66: G22 - G22 5ft | D66: 2018-07-01 | E66: 2019-06-30 | F66: Per Measure | G66: $360.00 | H66: 0 | I66: Calculated | J66: {Measure:Quantity}*275 | K66: 0 | L66: 2016-11-01 | M66: 2019-06-30 | N66: Calculated | W66: {Measure:Quantity} * 280 | AC66: 2017-07-01 | AD66: 2019-06-30 | AF66: 12 | AG66: 0 | AH66: 0 | AI66: 1 | AJ66: 0 | AK66: 0 | AL66: 0 | AM66: 1 | AN66: 1 | AO66: 0 | AP66: 0.25 | AQ66: 0 | AR66: {Measure:Quantity} | AS66: 1 | BL66: 0 | BM66: 0 | BN66: 0 | BO66: 0 | BP66: 0 | BQ66: 0 | BR66: 0 | BS66: 0 | BT66: =AS66 * 280 -> 280 | BU66: 0 | BV66: 0 | BW66: 0 | BX66: 0 | BY66: 0 | BZ66: Res | CA66: Default DR | CB66: =Benefits(BL66,BR66,BS66,BT66,BU66,BV66,BW66,BX66,BY66,AF66,AI66,AJ66,AK66,AL66,AM66,AN66,AO66,AP66,AQ66,BZ66,CA66) -> 0 | CC66: 0 | CD66: 2139.229136 | CE66: 0 | CF66: 0 | CG66: 0 | CH66: 0 | CI66: 0 | CJ66: 2139.229136 | CK66: 0 | CM66: =360 -> 360 | CP66: 360 | CQ66: 0.75 | CR66: 4.736300671 | CS66: 1 | CT66: 275 | CV66: NG | CX66: X=$360.00 | CZ66: 0 | DA66: 0 | DB66: 0 | DC66: 0 | DD66: 0 | DE66: 0 | DF66: 0 | DG66: 0 | DH66: X=AS66 * 280 | DI66: 0 | DJ66: 0 | DK66: 0 | DL66: 0 | DM66: 0 | DP66: {Factor:WinterCF} | DQ66: {Factor:SummerCF} | DR66: =IFERROR(INDEX($ED66:$IG66,MATCH(0,COUNTIF($DO66:DQ66,$ED66:$IG66),0)),"") -> {Measure:Quantity} | DS66: =IFERROR(INDEX($ED66:$IG66,MATCH(0,COUNTIF($DO66:DR66,$ED66:$IG66),0)),"") ->  | DT66: =IFERROR(INDEX($ED66:$IG66,MATCH(0,COUNTIF($DO66:DS66,$ED66:$IG66),0)),"") ->  | DU66: =IFERROR(INDEX($ED66:$IG66,MATCH(0,COUNTIF($DO66:DT66,$ED66:$IG66),0)),"") ->  | DV66: =IFERROR(INDEX($ED66:$IG66,MATCH(0,COUNTIF($DO66:DU66,$ED66:$IG66),0)),"") ->  | DW66: =IFERROR(INDEX($ED66:$IG66,MATCH(0,COUNTIF($DO66:DV66,$ED66:$IG66),0)),"") ->  | DX66: =IFERROR(INDEX($ED66:$IG66,MATCH(0,COUNTIF($DO66:DW66,$ED66:$IG66),0)),"") ->  | DY66: =IFERROR(INDEX($ED66:$IG66,MATCH(0,COUNTIF($DO66:DX66,$ED66:$IG66),0)),"") ->  | DZ66: =IFERROR(INDEX($ED66:$IG66,MATCH(0,COUNTIF($DO66:DY66,$ED66:$IG66),0)),"") ->  | EA66: =IFERROR(INDEX($ED66:$IG66,MATCH(0,COUNTIF($DO66:DZ66,$ED66:$IG66),0)),"") ->  | GB66: {Measure:Quantity} | IK66: 1
A67: C&I Commercial Kitchen Solutions | B67: G22 Griddle - 6 ft wide | C67: G22 - G22 6ft | D67: 2018-07-01 | E67: 2019-06-30 | F67: Per Measure | G67: $360.00 | H67: 0 | I67: Calculated | J67: {Measure:Quantity}*275 | K67: 0 | L67: 2016-11-01 | M67: 2019-06-30 | N67: Calculated | W67: {Measure:Quantity} * 355 | AC67: 2017-07-01 | AD67: 2019-06-30 | AF67: 12 | AG67: 0 | AH67: 0 | AI67: 1 | AJ67: 0 | AK67: 0 | AL67: 0 | AM67: 1 | AN67: 1 | AO67: 0 | AP67: 0.25 | AQ67: 0 | AR67: {Measure:Quantity} | AS67: 1 | BL67: 0 | BM67: 0 | BN67: 0 | BO67: 0 | BP67: 0 | BQ67: 0 | BR67: 0 | BS67: 0 | BT67: =AS67 * 355 -> 355 | BU67: 0 | BV67: 0 | BW67: 0 | BX67: 0 | BY67: 0 | BZ67: Res | CA67: Default DR | CB67: =Benefits(BL67,BR67,BS67,BT67,BU67,BV67,BW67,BX67,BY67,AF67,AI67,AJ67,AK67,AL67,AM67,AN67,AO67,AP67,AQ67,BZ67,CA67) -> 0 | CC67: 0 | CD67: 2712.236941 | CE67: 0 | CF67: 0 | CG67: 0 | CH67: 0 | CI67: 0 | CJ67: 2712.236941 | CK67: 0 | CM67: =360 -> 360 | CP67: 360 | CQ67: 0.75 | CR67: 6.004952636 | CS67: 1 | CT67: 275 | CV67: NG | CX67: X=$360.00 | CZ67: 0 | DA67: 0 | DB67: 0 | DC67: 0 | DD67: 0 | DE67: 0 | DF67: 0 | DG67: 0 | DH67: X=AS67 * 355 | DI67: 0 | DJ67: 0 | DK67: 0 | DL67: 0 | DM67: 0 | DP67: {Factor:WinterCF} | DQ67: {Factor:SummerCF} | DR67: =IFERROR(INDEX($ED67:$IG67,MATCH(0,COUNTIF($DO67:DQ67,$ED67:$IG67),0)),"") -> {Measure:Quantity} | DS67: =IFERROR(INDEX($ED67:$IG67,MATCH(0,COUNTIF($DO67:DR67,$ED67:$IG67),0)),"") ->  | DT67: =IFERROR(INDEX($ED67:$IG67,MATCH(0,COUNTIF($DO67:DS67,$ED67:$IG67),0)),"") ->  | DU67: =IFERROR(INDEX($ED67:$IG67,MATCH(0,COUNTIF($DO67:DT67,$ED67:$IG67),0)),"") ->  | DV67: =IFERROR(INDEX($ED67:$IG67,MATCH(0,COUNTIF($DO67:DU67,$ED67:$IG67),0)),"") ->  | DW67: =IFERROR(INDEX($ED67:$IG67,MATCH(0,COUNTIF($DO67:DV67,$ED67:$IG67),0)),"") ->  | DX67: =IFERROR(INDEX($ED67:$IG67,MATCH(0,COUNTIF($DO67:DW67,$ED67:$IG67),0)),"") ->  | DY67: =IFERROR(INDEX($ED67:$IG67,MATCH(0,COUNTIF($DO67:DX67,$ED67:$IG67),0)),"") ->  | DZ67: =IFERROR(INDEX($ED67:$IG67,MATCH(0,COUNTIF($DO67:DY67,$ED67:$IG67),0)),"") ->  | EA67: =IFERROR(INDEX($ED67:$IG67,MATCH(0,COUNTIF($DO67:DZ67,$ED67:$IG67),0)),"") ->  | GB67: {Measure:Quantity} | IK67: 1
A68: C&I Commercial Kitchen Solutions | B68: R80 Commercial Energy Star Reach-in Cooler & Freezers | C68: R80 | D68: 2018-07-01 | E68: 2019-06-30 | F68: Per Measure | G68: $155.00 | H68: 0 | I68: Per Measure | J68: $75.00 | K68: 0 | L68: 2016-11-01 | M68: 2019-06-30 | N68: Calculated | O68: {Measure:Quantity} * {Energy Savings - kWh Per Year} | P68: 0.0001 | R68: {Measure:Quantity} * {Energy Savings - kWh Per Year} / 5858 | U68: {Measure:Quantity} * {Energy Savings - kWh Per Year} / 5858 * {Factor:WinterCF} | V68: {Measure:Quantity} * {Energy Savings - kWh Per Year} / 5858 * {Factor:SummerCF} | AC68: 2017-07-01 | AD68: 2019-06-30 | AF68: 12 | AG68: 0.509 | AH68: 0.74 | AI68: 0.33 | AJ68: 0.326 | AK68: 0.17 | AL68: 0.174 | AM68: 1 | AN68: 1.122 | AO68: 1 | AP68: 0.52 | AQ68: 0.016 | AR68: {Measure:Quantity} | AS68: 1 | AT68: {Energy Savings - kWh Per Year} | AU68: 252 | BL68: =AS68 * AU68 -> 252 | BM68: =0.0001 -> 0.0001 | BN68: 0 | BO68: =AS68 * AU68 / 5858 -> 0.04301809491 | BP68: 0 | BQ68: 0 | BR68: =AS68 * AU68 / 5858 * AG68 -> 0.02189621031 | BS68: =AS68 * AU68 / 5858 * AH68 -> 0.03183339024 | BT68: 0 | BU68: 0 | BV68: 0 | BW68: 0 | BX68: 0 | BY68: 0 | BZ68: Res | CA68: Default DR | CB68: =Benefits(BL68,BR68,BS68,BT68,BU68,BV68,BW68,BX68,BY68,AF68,AI68,AJ68,AK68,AL68,AM68,AN68,AO68,AP68,AQ68,BZ68,CA68) -> 161.1425214 | CC68: 60.52521021 | CD68: 0 | CE68: 0 | CF68: 0 | CG68: 0 | CH68: 0 | CI68: 0 | CJ68: 221.6677316 | CK68: 0 | CM68: =155 -> 155 | CP68: 155 | CQ68: 0.496 | CR68: 1.228734855 | CS68: 1 | CT68: 25 | CV68: Electric | CX68: =IF(G68="",0,"X="&SUBSTITUTE(SUBSTITUTE(SUBSTITUTE(SUBSTITUTE(SUBSTITUTE(SUBSTITUTE(SUBSTITUTE(SUBSTITUTE(SUBSTITUTE(SUBSTITUTE(SUBSTITUTE(SUBSTITUTE(G68,$EA68,$EA$3&ROW($EA68)),$DZ68,$DZ$3&ROW($DZ68)),$DY68,$DY$3&ROW($DY68)),$DX68,$DX$3&ROW($DX68)),$DW68,$DW$3&ROW($DW68)),$DV68,$DV$3&ROW($DV68)),$DU68,$DU$3&ROW($DU68)),$DT68,$DT$3&ROW($DT68)),$DS68,$DS$3&ROW($DS68)),$DR68,$DR$3&ROW($DR68)),$DQ68,$DQ$3&ROW($DQ68)),$DP68,$DP$3&ROW($DP68))) -> X=$155.00 | CZ68: =IF(O68="",0,"X="&SUBSTITUTE(SUBSTITUTE(SUBSTITUTE(SUBSTITUTE(SUBSTITUTE(SUBSTITUTE(SUBSTITUTE(SUBSTITUTE(SUBSTITUTE(SUBSTITUTE(SUBSTITUTE(SUBSTITUTE(O68,$EA68,$EA$3&ROW($EA68)),$DZ68,$DZ$3&ROW($DZ68)),$DY68,$DY$3&ROW($DY68)),$DX68,$DX$3&ROW($DX68)),$DW68,$DW$3&ROW($DW68)),$DV68,$DV$3&ROW($DV68)),$DU68,$DU$3&ROW($DU68)),$DT68,$DT$3&ROW($DT68)),$DS68,$DS$3&ROW($DS68)),$DR68,$DR$3&ROW($DR68)),$DQ68,$DQ$3&ROW($DQ68)),$DP68,$DP$3&ROW($DP68))) -> X=AS68 * AU68 | DA68: =IF(P68="",0,"X="&SUBSTITUTE(SUBSTITUTE(SUBSTITUTE(SUBSTITUTE(SUBSTITUTE(SUBSTITUTE(SUBSTITUTE(SUBSTITUTE(SUBSTITUTE(SUBSTITUTE(SUBSTITUTE(SUBSTITUTE(P68,$EA68,$EA$3&ROW($EA68)),$DZ68,$DZ$3&ROW($DZ68)),$DY68,$DY$3&ROW($DY68)),$DX68,$DX$3&ROW($DX68)),$DW68,$DW$3&ROW($DW68)),$DV68,$DV$3&ROW($DV68)),$DU68,$DU$3&ROW($DU68)),$DT68,$DT$3&ROW($DT68)),$DS68,$DS$3&ROW($DS68)),$DR68,$DR$3&ROW($DR68)),$DQ68,$DQ$3&ROW($DQ68)),$DP68,$DP$3&ROW($DP68))) -> X=0.0001 | DB68: =IF(Q68="",0,"X="&SUBSTITUTE(SUBSTITUTE(SUBSTITUTE(SUBSTITUTE(SUBSTITUTE(SUBSTITUTE(SUBSTITUTE(SUBSTITUTE(SUBSTITUTE(SUBSTITUTE(SUBSTITUTE(SUBSTITUTE(Q68,$EA68,$EA$3&ROW($EA68)),$DZ68,$DZ$3&ROW($DZ68)),$DY68,$DY$3&ROW($DY68)),$DX68,$DX$3&ROW($DX68)),$DW68,$DW$3&ROW($DW68)),$DV68,$DV$3&ROW($DV68)),$DU68,$DU$3&ROW($DU68)),$DT68,$DT$3&ROW($DT68)),$DS68,$DS$3&ROW($DS68)),$DR68,$DR$3&ROW($DR68)),$DQ68,$DQ$3&ROW($DQ68)),$DP68,$DP$3&ROW($DP68))) -> 0 | DC68: =IF(R68="",0,"X="&SUBSTITUTE(SUBSTITUTE(SUBSTITUTE(SUBSTITUTE(SUBSTITUTE(SUBSTITUTE(SUBSTITUTE(SUBSTITUTE(SUBSTITUTE(SUBSTITUTE(SUBSTITUTE(SUBSTITUTE(R68,$EA68,$EA$3&ROW($EA68)),$DZ68,$DZ$3&ROW($DZ68)),$DY68,$DY$3&ROW($DY68)),$DX68,$DX$3&ROW($DX68)),$DW68,$DW$3&ROW($DW68)),$DV68,$DV$3&ROW($DV68)),$DU68,$DU$3&ROW($DU68)),$DT68,$DT$3&ROW($DT68)),$DS68,$DS$3&ROW($DS68)),$DR68,$DR$3&ROW($DR68)),$DQ68,$DQ$3&ROW($DQ68)),$DP68,$DP$3&ROW($DP68))) -> X=AS68 * AU68 / 5858 | DD68: =IF(S68="",0,"X="&SUBSTITUTE(SUBSTITUTE(SUBSTITUTE(SUBSTITUTE(SUBSTITUTE(SUBSTITUTE(SUBSTITUTE(SUBSTITUTE(SUBSTITUTE(SUBSTITUTE(SUBSTITUTE(SUBSTITUTE(S68,$EA68,$EA$3&ROW($EA68)),$DZ68,$DZ$3&ROW($DZ68)),$DY68,$DY$3&ROW($DY68)),$DX68,$DX$3&ROW($DX68)),$DW68,$DW$3&ROW($DW68)),$DV68,$DV$3&ROW($DV68)),$DU68,$DU$3&ROW($DU68)),$DT68,$DT$3&ROW($DT68)),$DS68,$DS$3&ROW($DS68)),$DR68,$DR$3&ROW($DR68)),$DQ68,$DQ$3&ROW($DQ68)),$DP68,$DP$3&ROW($DP68))) -> 0 | DE68: =IF(T68="",0,"X="&SUBSTITUTE(SUBSTITUTE(SUBSTITUTE(SUBSTITUTE(SUBSTITUTE(SUBSTITUTE(SUBSTITUTE(SUBSTITUTE(SUBSTITUTE(SUBSTITUTE(SUBSTITUTE(SUBSTITUTE(T68,$EA68,$EA$3&ROW($EA68)),$DZ68,$DZ$3&ROW($DZ68)),$DY68,$DY$3&ROW($DY68)),$DX68,$DX$3&ROW($DX68)),$DW68,$DW$3&ROW($DW68)),$DV68,$DV$3&ROW($DV68)),$DU68,$DU$3&ROW($DU68)),$DT68,$DT$3&ROW($DT68)),$DS68,$DS$3&ROW($DS68)),$DR68,$DR$3&ROW($DR68)),$DQ68,$DQ$3&ROW($DQ68)),$DP68,$DP$3&ROW($DP68))) -> 0 | DF68: =IF(U68="",0,"X="&SUBSTITUTE(SUBSTITUTE(SUBSTITUTE(SUBSTITUTE(SUBSTITUTE(SUBSTITUTE(SUBSTITUTE(SUBSTITUTE(SUBSTITUTE(SUBSTITUTE(SUBSTITUTE(SUBSTITUTE(U68,$EA68,$EA$3&ROW($EA68)),$DZ68,$DZ$3&ROW($DZ68)),$DY68,$DY$3&ROW($DY68)),$DX68,$DX$3&ROW($DX68)),$DW68,$DW$3&ROW($DW68)),$DV68,$DV$3&ROW($DV68)),$DU68,$DU$3&ROW($DU68)),$DT68,$DT$3&ROW($DT68)),$DS68,$DS$3&ROW($DS68)),$DR68,$DR$3&ROW($DR68)),$DQ68,$DQ$3&ROW($DQ68)),$DP68,$DP$3&ROW($DP68))) -> X=AS68 * AU68 / 5858 * AG68 | DG68: =IF(V68="",0,"X="&SUBSTITUTE(SUBSTITUTE(SUBSTITUTE(SUBSTITUTE(SUBSTITUTE(SUBSTITUTE(SUBSTITUTE(SUBSTITUTE(SUBSTITUTE(SUBSTITUTE(SUBSTITUTE(SUBSTITUTE(V68,$EA68,$EA$3&ROW($EA68)),$DZ68,$DZ$3&ROW($DZ68)),$DY68,$DY$3&ROW($DY68)),$DX68,$DX$3&ROW($DX68)),$DW68,$DW$3&ROW($DW68)),$DV68,$DV$3&ROW($DV68)),$DU68,$DU$3&ROW($DU68)),$DT68,$DT$3&ROW($DT68)),$DS68,$DS$3&ROW($DS68)),$DR68,$DR$3&ROW($DR68)),$DQ68,$DQ$3&ROW($DQ68)),$DP68,$DP$3&ROW($DP68))) -> X=AS68 * AU68 / 5858 * AH68 | DH68: =IF(W68="",0,"X="&SUBSTITUTE(SUBSTITUTE(SUBSTITUTE(SUBSTITUTE(SUBSTITUTE(SUBSTITUTE(SUBSTITUTE(SUBSTITUTE(SUBSTITUTE(SUBSTITUTE(SUBSTITUTE(SUBSTITUTE(W68,$EA68,$EA$3&ROW($EA68)),$DZ68,$DZ$3&ROW($DZ68)),$DY68,$DY$3&ROW($DY68)),$DX68,$DX$3&ROW($DX68)),$DW68,$DW$3&ROW($DW68)),$DV68,$DV$3&ROW($DV68)),$DU68,$DU$3&ROW($DU68)),$DT68,$DT$3&ROW($DT68)),$DS68,$DS$3&ROW($DS68)),$DR68,$DR$3&ROW($DR68)),$DQ68,$DQ$3&ROW($DQ68)),$DP68,$DP$3&ROW($DP68))) -> 0 | DI68: =IF(X68="",0,"X="&SUBSTITUTE(SUBSTITUTE(SUBSTITUTE(SUBSTITUTE(SUBSTITUTE(SUBSTITUTE(SUBSTITUTE(SUBSTITUTE(SUBSTITUTE(SUBSTITUTE(SUBSTITUTE(SUBSTITUTE(X68,$EA68,$EA$3&ROW($EA68)),$DZ68,$DZ$3&ROW($DZ68)),$DY68,$DY$3&ROW($DY68)),$DX68,$DX$3&ROW($DX68)),$DW68,$DW$3&ROW($DW68)),$DV68,$DV$3&ROW($DV68)),$DU68,$DU$3&ROW($DU68)),$DT68,$DT$3&ROW($DT68)),$DS68,$DS$3&ROW($DS68)),$DR68,$DR$3&ROW($DR68)),$DQ68,$DQ$3&ROW($DQ68)),$DP68,$DP$3&ROW($DP68))) -> 0 | DJ68: =IF(Y68="",0,"X="&SUBSTITUTE(SUBSTITUTE(SUBSTITUTE(SUBSTITUTE(SUBSTITUTE(SUBSTITUTE(SUBSTITUTE(SUBSTITUTE(SUBSTITUTE(SUBSTITUTE(SUBSTITUTE(SUBSTITUTE(Y68,$EA68,$EA$3&ROW($EA68)),$DZ68,$DZ$3&ROW($DZ68)),$DY68,$DY$3&ROW($DY68)),$DX68,$DX$3&ROW($DX68)),$DW68,$DW$3&ROW($DW68)),$DV68,$DV$3&ROW($DV68)),$DU68,$DU$3&ROW($DU68)),$DT68,$DT$3&ROW($DT68)),$DS68,$DS$3&ROW($DS68)),$DR68,$DR$3&ROW($DR68)),$DQ68,$DQ$3&ROW($DQ68)),$DP68,$DP$3&ROW($DP68))) -> 0 | DK68: =IF(Z68="",0,"X="&SUBSTITUTE(SUBSTITUTE(SUBSTITUTE(SUBSTITUTE(SUBSTITUTE(SUBSTITUTE(SUBSTITUTE(SUBSTITUTE(SUBSTITUTE(SUBSTITUTE(SUBSTITUTE(SUBSTITUTE(Z68,$EA68,$EA$3&ROW($EA68)),$DZ68,$DZ$3&ROW($DZ68)),$DY68,$DY$3&ROW($DY68)),$DX68,$DX$3&ROW($DX68)),$DW68,$DW$3&ROW($DW68)),$DV68,$DV$3&ROW($DV68)),$DU68,$DU$3&ROW($DU68)),$DT68,$DT$3&ROW($DT68)),$DS68,$DS$3&ROW($DS68)),$DR68,$DR$3&ROW($DR68)),$DQ68,$DQ$3&ROW($DQ68)),$DP68,$DP$3&ROW($DP68))) -> 0 | DL68: =IF(AA68="",0,"X="&SUBSTITUTE(SUBSTITUTE(SUBSTITUTE(SUBSTITUTE(SUBSTITUTE(SUBSTITUTE(SUBSTITUTE(SUBSTITUTE(SUBSTITUTE(SUBSTITUTE(SUBSTITUTE(SUBSTITUTE(AA68,$EA68,$EA$3&ROW($EA68)),$DZ68,$DZ$3&ROW($DZ68)),$DY68,$DY$3&ROW($DY68)),$DX68,$DX$3&ROW($DX68)),$DW68,$DW$3&ROW($DW68)),$DV68,$DV$3&ROW($DV68)),$DU68,$DU$3&ROW($DU68)),$DT68,$DT$3&ROW($DT68)),$DS68,$DS$3&ROW($DS68)),$DR68,$DR$3&ROW($DR68)),$DQ68,$DQ$3&ROW($DQ68)),$DP68,$DP$3&ROW($DP68))) -> 0 | DM68: =IF(AB68="",0,"X="&SUBSTITUTE(SUBSTITUTE(SUBSTITUTE(SUBSTITUTE(SUBSTITUTE(SUBSTITUTE(SUBSTITUTE(SUBSTITUTE(SUBSTITUTE(SUBSTITUTE(SUBSTITUTE(SUBSTITUTE(AB68,$EA68,$EA$3&ROW($EA68)),$DZ68,$DZ$3&ROW($DZ68)),$DY68,$DY$3&ROW($DY68)),$DX68,$DX$3&ROW($DX68)),$DW68,$DW$3&ROW($DW68)),$DV68,$DV$3&ROW($DV68)),$DU68,$DU$3&ROW($DU68)),$DT68,$DT$3&ROW($DT68)),$DS68,$DS$3&ROW($DS68)),$DR68,$DR$3&ROW($DR68)),$DQ68,$DQ$3&ROW($DQ68)),$DP68,$DP$3&ROW($DP68))) -> 0 | DP68: {Factor:WinterCF} | DQ68: {Factor:SummerCF} | DR68: =IFERROR(INDEX($ED68:$IG68,MATCH(0,COUNTIF($DO68:DQ68,$ED68:$IG68),0)),"") -> {Measure:Quantity} | DS68: =IFERROR(INDEX($ED68:$IG68,MATCH(0,COUNTIF($DO68:DR68,$ED68:$IG68),0)),"") -> {Energy Savings - kWh Per Year} | DT68: =IFERROR(INDEX($ED68:$IG68,MATCH(0,COUNTIF($DO68:DS68,$ED68:$IG68),0)),"") ->  | DU68: =IFERROR(INDEX($ED68:$IG68,MATCH(0,COUNTIF($DO68:DT68,$ED68:$IG68),0)),"") ->  | DV68: =IFERROR(INDEX($ED68:$IG68,MATCH(0,COUNTIF($DO68:DU68,$ED68:$IG68),0)),"") ->  | DW68: =IFERROR(INDEX($ED68:$IG68,MATCH(0,COUNTIF($DO68:DV68,$ED68:$IG68),0)),"") ->  | DX68: =IFERROR(INDEX($ED68:$IG68,MATCH(0,COUNTIF($DO68:DW68,$ED68:$IG68),0)),"") ->  | DY68: =IFERROR(INDEX($ED68:$IG68,MATCH(0,COUNTIF($DO68:DX68,$ED68:$IG68),0)),"") ->  | DZ68: =IFERROR(INDEX($ED68:$IG68,MATCH(0,COUNTIF($DO68:DY68,$ED68:$IG68),0)),"") ->  | EA68: =IFERROR(INDEX($ED68:$IG68,MATCH(0,COUNTIF($DO68:DZ68,$ED68:$IG68),0)),"") ->  | EN68: {Measure:Quantity} | EO68: {Energy Savings - kWh Per Year} | EX68: {Measure:Quantity} | EY68: {Energy Savings - kWh Per Year} | FH68: {Measure:Quantity} | FI68: {Energy Savings - kWh Per Year} | FJ68: {Factor:WinterCF} | FR68: {Measure:Quantity} | FS68: {Energy Savings - kWh Per Year} | FT68: {Factor:SummerCF} | IK68: =10-COUNTIF(DR68:EA68,"") -> 2
A69: C&I Commercial Kitchen Solutions | B69: R90 Commercial Ice Makers | C69: R90 | D69: 2018-07-01 | E69: 2019-06-30 | F69: Per Measure | G69: $0.00 | H69: 0 | I69: Per Measure | J69: $100.00 | K69: 0 | L69: 2016-11-01 | M69: 2019-06-30 | N69: Calculated | O69: {Measure:Quantity} * {Energy Savings - kWh Per Year} | P69: 0.0001 | R69: {Measure:Quantity} * {Energy Savings - kWh Per Year} / 5858 | U69: {Measure:Quantity} * {Energy Savings - kWh Per Year} / 5858 * {Factor:WinterCF} | V69: {Measure:Quantity} * {Energy Savings - kWh Per Year} / 5858 * {Factor:SummerCF} | AC69: 2017-07-01 | AD69: 2019-06-30 | AF69: 8 | AG69: 0.509 | AH69: 0.74 | AI69: 0.33 | AJ69: 0.326 | AK69: 0.17 | AL69: 0.174 | AM69: 1 | AN69: 1.122 | AO69: 1 | AP69: 0.52 | AQ69: 0.016 | AR69: {Measure:Quantity} | AS69: 1 | AT69: {Energy Savings - kWh Per Year} | AU69: 758 | BL69: =AS69 * AU69 -> 758 | BM69: =0.0001 -> 0.0001 | BN69: 0 | BO69: =AS69 * AU69 / 5858 -> 0.1293956982 | BP69: 0 | BQ69: 0 | BR69: =AS69 * AU69 / 5858 * AG69 -> 0.06586241038 | BS69: =AS69 * AU69 / 5858 * AH69 -> 0.09575281666 | BT69: 0 | BU69: 0 | BV69: 0 | BW69: 0 | BX69: 0 | BY69: 0 | BZ69: Res | CA69: Default DR | CB69: =Benefits(BL69,BR69,BS69,BT69,BU69,BV69,BW69,BX69,BY69,AF69,AI69,AJ69,AK69,AL69,AM69,AN69,AO69,AP69,AQ69,BZ69,CA69) -> 335.0895534 | CC69: 124.7726058 | CD69: 0 | CE69: 0 | CF69: 0 | CG69: 0 | CH69: 0 | CI69: 0 | CJ69: =SUMPRODUCT(CB69:CI69,--(CB69:CI69>0)) -> 459.8621591 | CK69: 0 | CM69: 1 | CP69: 1 | CQ69: 0.496 | CR69: 2.280916309 | CS69: 1 | CT69: 100 | CV69: Electric | CX69: X=$0.00 | CZ69: X=AS69 * AU69 | DA69: X=0.0001 | DB69: 0 | DC69: X=AS69 * AU69 / 5858 | DD69: 0 | DE69: 0 | DF69: X=AS69 * AU69 / 5858 * AG69 | DG69: X=AS69 * AU69 / 5858 * AH69 | DH69: 0 | DI69: 0 | DJ69: 0 | DK69: 0 | DL69: 0 | DM69: 0 | DP69: {Factor:WinterCF} | DQ69: {Factor:SummerCF} | DR69: =IFERROR(INDEX($ED69:$IG69,MATCH(0,COUNTIF($DO69:DQ69,$ED69:$IG69),0)),"") -> {Measure:Quantity} | DS69: =IFERROR(INDEX($ED69:$IG69,MATCH(0,COUNTIF($DO69:DR69,$ED69:$IG69),0)),"") -> {Energy Savings - kWh Per Year} | DT69: =IFERROR(INDEX($ED69:$IG69,MATCH(0,COUNTIF($DO69:DS69,$ED69:$IG69),0)),"") ->  | DU69: =IFERROR(INDEX($ED69:$IG69,MATCH(0,COUNTIF($DO69:DT69,$ED69:$IG69),0)),"") ->  | DV69: =IFERROR(INDEX($ED69:$IG69,MATCH(0,COUNTIF($DO69:DU69,$ED69:$IG69),0)),"") ->  | DW69: =IFERROR(INDEX($ED69:$IG69,MATCH(0,COUNTIF($DO69:DV69,$ED69:$IG69),0)),"") ->  | DX69: =IFERROR(INDEX($ED69:$IG69,MATCH(0,COUNTIF($DO69:DW69,$ED69:$IG69),0)),"") ->  | DY69: =IFERROR(INDEX($ED69:$IG69,MATCH(0,COUNTIF($DO69:DX69,$ED69:$IG69),0)),"") ->  | DZ69: =IFERROR(INDEX($ED69:$IG69,MATCH(0,COUNTIF($DO69:DY69,$ED69:$IG69),0)),"") ->  | EA69: =IFERROR(INDEX($ED69:$IG69,MATCH(0,COUNTIF($DO69:DZ69,$ED69:$IG69),0)),"") ->  | EN69: {Measure:Quantity} | EO69: {Energy Savings - kWh Per Year} | EX69: {Measure:Quantity} | EY69: {Energy Savings - kWh Per Year} | FH69: {Measure:Quantity} | FI69: {Energy Savings - kWh Per Year} | FJ69: {Factor:WinterCF} | FR69: {Measure:Quantity} | FS69: {Energy Savings - kWh Per Year} | FT69: {Factor:SummerCF} | IK69: 2
A70: C&I Commercial Kitchen Solutions | H70: 0 | K70: 0 | P70: 0.0002 | CX70: 0 | CZ70: 0 | DA70: X=0.0002 | DB70: 0 | DC70: 0 | DD70: 0 | DE70: 0 | DF70: 0 | DG70: 0 | DH70: 0 | DI70: 0 | DJ70: 0 | DK70: 0 | DL70: 0 | DM70: 0 | DP70: {Factor:WinterCF} | DQ70: {Factor:SummerCF} | DR70: =IFERROR(INDEX($ED70:$IG70,MATCH(0,COUNTIF($DO70:DQ70,$ED70:$IG70),0)),"") ->  | DS70: =IFERROR(INDEX($ED70:$IG70,MATCH(0,COUNTIF($DO70:DR70,$ED70:$IG70),0)),"") ->  | DT70: =IFERROR(INDEX($ED70:$IG70,MATCH(0,COUNTIF($DO70:DS70,$ED70:$IG70),0)),"") ->  | DU70: =IFERROR(INDEX($ED70:$IG70,MATCH(0,COUNTIF($DO70:DT70,$ED70:$IG70),0)),"") ->  | DV70: =IFERROR(INDEX($ED70:$IG70,MATCH(0,COUNTIF($DO70:DU70,$ED70:$IG70),0)),"") ->  | DW70: =IFERROR(INDEX($ED70:$IG70,MATCH(0,COUNTIF($DO70:DV70,$ED70:$IG70),0)),"") ->  | DX70: =IFERROR(INDEX($ED70:$IG70,MATCH(0,COUNTIF($DO70:DW70,$ED70:$IG70),0)),"") ->  | DY70: =IFERROR(INDEX($ED70:$IG70,MATCH(0,COUNTIF($DO70:DX70,$ED70:$IG70),0)),"") ->  | DZ70: =IFERROR(INDEX($ED70:$IG70,MATCH(0,COUNTIF($DO70:DY70,$ED70:$IG70),0)),"") ->  | EA70: =IFERROR(INDEX($ED70:$IG70,MATCH(0,COUNTIF($DO70:DZ70,$ED70:$IG70),0)),"") ->  | IK70: 0
A71: C&I Do It Yourself | B71: High Efficiency Pre-Rinse Spray Valves | C71: HPSV | D71: 2018-07-01 | E71: 2019-06-30 | F71: Manual Entry | G71: $0.00 | H71: 0 | I71: Manual Entry | J71: $0.00 | K71: 0 | L71: 2017-01-01 | M71: 2019-06-30 | N71: Calculated | O71: if({Measure:Quantity}=0,0,if({Fuel}=6,if({Location}=1,6.0561,18.1683),0))*({Measure:Quantity})/0.003412 | P71: 0 | Q71: 1 | W71: if({Measure:Quantity}=0,0,if({Fuel}=1,if({Location}=1,7.42,22.26),0))*10*({Measure:Quantity}) | X71: if({Measure:Quantity}=0,0,if({Fuel}=2,if({Location}=1,7.42,22.26),0))*({Measure:Quantity}) | Y71: if({Measure:Quantity}=0,0,if({Fuel}=3,if({Location}=1,7.42,22.26),0))*({Measure:Quantity}) | AB71: if({Measure:Quantity}=0,0,if({Location}=1,10296,30888))*{Measure:Quantity} | AC71: 2017-01-01 | AD71: 2019-06-30 | AF71: 5 | AG71: 0 | AH71: 0 | AI71: 1 | AJ71: 0 | AK71: 0 | AL71: 0 | AM71: 1 | AN71: 1 | AO71: 0 | AP71: 0.25 | AQ71: 0 | AR71: =DR71 -> {Measure:Quantity} | AS71: 1 | AT71: =DS71 -> {Fuel} | AU71: 6 | AV71: =DT71 -> {Location} | AW71: 1 | AX71: =DU71 ->  | AZ71: =DV71 ->  | BB71: =DW71 ->  | BD71: =DX71 ->  | BF71: =DY71 ->  | BH71: =DZ71 ->  | BJ71: =EA71 ->  | BL71: =IF(AS71=0,0,IF(AU71=6,IF(AW71=1,6.0561,18.1683),0))*(AS71)/0.003412 -> 1774.941383 | BM71: =0 -> 0 | BN71: =1 -> 1 | BO71: 0 | BP71: 0 | BQ71: 0 | BR71: 0 | BS71: 0 | BT71: =IF(AS71=0,0,IF(AU71=1,IF(AW71=1,7.42,22.26),0))*10*(AS71) -> 0 | BU71: =IF(AS71=0,0,IF(AU71=2,IF(AW71=1,7.42,22.26),0))*(AS71) -> 0 | BV71: =IF(AS71=0,0,IF(AU71=3,IF(AW71=1,7.42,22.26),0))*(AS71) -> 0 | BW71: 0 | BX71: 0 | BY71: =IF(AS71=0,0,IF(AW71=1,10296,30888))*AS71 -> 10296 | BZ71: Res | CA71: Default DR | CB71: =Benefits(BL71,BR71,BS71,BT71,BU71,BV71,BW71,BX71,BY71,AF71,AI71,AJ71,AK71,AL71,AM71,AN71,AO71,AP71,AQ71,BZ71,CA71) -> 520.9948527 | CC71: 0 | CD71: 0 | CE71: 0 | CF71: 0 | CG71: 0 | CH71: 0 | CI71: 296.0822791 | CJ71: =SUMPRODUCT(CB71:CI71,--(CB71:CI71>0)) -> 817.0771318 | CK71: =-SUMPRODUCT(CB71:CI71,--(CB71:CI71<0)) -> 0 | CM71: 40 | CP71: =CK71+CM71 -> 40 | CQ71: =IF(NetOrGross="Net",(1-AP71+AQ71),1) -> 0.75 | CR71: =(CJ71+CL71+SUMPRODUCT(CN71:CO71,--(CN71:CO71>0)))*CQ71/((CK71+MAX(CM71,CT71)-SUMPRODUCT(CN71:CO71,--(CN71:CO71<0)))*CQ71+IF(FRIncentives="Yes",CT71*(1-CQ71),0)) -> 15.27818122 | CS71: 1 | CT71: 40.11 | CV71: Electric | CX71: X=$0.00 | CZ71: X=if(AS71=0,0,if(AU71=6,if(AW71=1,6.0561,18.1683),0))*(AS71)/0.003412 | DA71: X=0 | DB71: X=1 | DC71: 0 | DD71: 0 | DE71: 0 | DF71: 0 | DG71: 0 | DH71: X=if(AS71=0,0,if(AU71=1,if(AW71=1,7.42,22.26),0))*10*(AS71) | DI71: X=if(AS71=0,0,if(AU71=2,if(AW71=1,7.42,22.26),0))*(AS71) | DJ71: X=if(AS71=0,0,if(AU71=3,if(AW71=1,7.42,22.26),0))*(AS71) | DK71: 0 | DL71: 0 | DM71: X=if(AS71=0,0,if(AW71=1,10296,30888))*AS71 | DP71: {Factor:WinterCF} | DQ71: {Factor:SummerCF} | DR71: =IFERROR(INDEX($ED71:$IG71,MATCH(0,COUNTIF($DO71:DQ71,$ED71:$IG71),0)),"") -> {Measure:Quantity} | DS71: =IFERROR(INDEX($ED71:$IG71,MATCH(0,COUNTIF($DO71:DR71,$ED71:$IG71),0)),"") -> {Fuel} | DT71: =IFERROR(INDEX($ED71:$IG71,MATCH(0,COUNTIF($DO71:DS71,$ED71:$IG71),0)),"") -> {Location} | DU71: =IFERROR(INDEX($ED71:$IG71,MATCH(0,COUNTIF($DO71:DT71,$ED71:$IG71),0)),"") ->  | DV71: =IFERROR(INDEX($ED71:$IG71,MATCH(0,COUNTIF($DO71:DU71,$ED71:$IG71),0)),"") ->  | DW71: =IFERROR(INDEX($ED71:$IG71,MATCH(0,COUNTIF($DO71:DV71,$ED71:$IG71),0)),"") ->  | DX71: =IFERROR(INDEX($ED71:$IG71,MATCH(0,COUNTIF($DO71:DW71,$ED71:$IG71),0)),"") ->  | DY71: =IFERROR(INDEX($ED71:$IG71,MATCH(0,COUNTIF($DO71:DX71,$ED71:$IG71),0)),"") ->  | DZ71: =IFERROR(INDEX($ED71:$IG71,MATCH(0,COUNTIF($DO71:DY71,$ED71:$IG71),0)),"") ->  | EA71: =IFERROR(INDEX($ED71:$IG71,MATCH(0,COUNTIF($DO71:DZ71,$ED71:$IG71),0)),"") ->  | EN71: {Measure:Quantity} | EO71: {Fuel} | EP71: {Location} | EQ71: {Measure:Quantity} | GB71: {Measure:Quantity} | GC71: {Fuel} | GD71: {Location} | GE71: {Measure:Quantity} | GL71: {Measure:Quantity} | GM71: {Fuel} | GN71: {Location} | GO71: {Measure:Quantity} | GV71: {Measure:Quantity} | GW71: {Fuel} | GX71: {Location} | GY71: {Measure:Quantity} | HZ71: {Measure:Quantity} | IA71: {Location} | IB71: {Measure:Quantity} | IK71: 3
A72: C&I Do It Yourself | B72: High Efficiency Pre-Rinse Spray Valves | C72: HPSV | D72: 2018-07-01 | E72: 2019-06-30 | F72: Manual Entry | G72: $0.00 | H72: 0 | I72: Manual Entry | J72: $0.00 | K72: 0 | L72: 2017-01-01 | M72: 2019-06-30 | N72: Calculated | O72: if({Measure:Quantity}=0,0,if({Fuel}=6,if({Location}=1,6.0561,18.1683),0))*({Measure:Quantity})/0.003412 | P72: 0 | Q72: 1 | W72: if({Measure:Quantity}=0,0,if({Fuel}=1,if({Location}=1,7.42,22.26),0))*10*({Measure:Quantity}) | X72: if({Measure:Quantity}=0,0,if({Fuel}=2,if({Location}=1,7.42,22.26),0))*({Measure:Quantity}) | Y72: if({Measure:Quantity}=0,0,if({Fuel}=3,if({Location}=1,7.42,22.26),0))*({Measure:Quantity}) | AB72: if({Measure:Quantity}=0,0,if({Location}=1,10296,30888))*{Measure:Quantity} | AC72: 2017-01-01 | AD72: 2019-06-30 | AF72: 5 | AG72: 0 | AH72: 0 | AI72: 1 | AJ72: 0 | AK72: 0 | AL72: 0 | AM72: 1 | AN72: 1 | AO72: 0 | AP72: 0.25 | AQ72: 0 | AR72: =DR72 -> {Measure:Quantity} | AS72: 1 | AT72: =DS72 -> {Fuel} | AU72: 1 | AV72: =DT72 -> {Location} | AW72: 1 | AX72: =DU72 ->  | AZ72: =DV72 ->  | BB72: =DW72 ->  | BD72: =DX72 ->  | BF72: =DY72 ->  | BH72: =DZ72 ->  | BJ72: =EA72 ->  | BL72: =IF(AS72=0,0,IF(AU72=6,IF(AW72=1,6.0561,18.1683),0))*(AS72)/0.003412 -> 0 | BM72: =0 -> 0 | BN72: =1 -> 1 | BO72: 0 | BP72: 0 | BQ72: 0 | BR72: 0 | BS72: 0 | BT72: =IF(AS72=0,0,IF(AU72=1,IF(AW72=1,7.42,22.26),0))*10*(AS72) -> 74.2 | BU72: =IF(AS72=0,0,IF(AU72=2,IF(AW72=1,7.42,22.26),0))*(AS72) -> 0 | BV72: =IF(AS72=0,0,IF(AU72=3,IF(AW72=1,7.42,22.26),0))*(AS72) -> 0 | BW72: 0 | BX72: 0 | BY72: =IF(AS72=0,0,IF(AW72=1,10296,30888))*AS72 -> 10296 | BZ72: Res | CA72: Default DR | CB72: =Benefits(BL72,BR72,BS72,BT72,BU72,BV72,BW72,BX72,BY72,AF72,AI72,AJ72,AK72,AL72,AM72,AN72,AO72,AP72,AQ72,BZ72,CA72) -> 0 | CC72: 0 | CD72: 244.5025435 | CE72: 0 | CF72: 0 | CG72: 0 | CH72: 0 | CI72: 296.0822791 | CJ72: 540.5848226 | CK72: 0 | CM72: 40 | CP72: =CK72+CM72 -> 40 | CQ72: =IF(NetOrGross="Net",(1-AP72+AQ72),1) -> 0.75 | CR72: =(CJ72+CL72+SUMPRODUCT(CN72:CO72,--(CN72:CO72>0)))*CQ72/((CK72+MAX(CM72,CT72)-SUMPRODUCT(CN72:CO72,--(CN72:CO72<0)))*CQ72+IF(FRIncentives="Yes",CT72*(1-CQ72),0)) -> 10.10816796 | CS72: 1 | CT72: 40.11 | CV72: NG | CX72: X=$0.00 | CZ72: X=if(AS72=0,0,if(AU72=6,if(AW72=1,6.0561,18.1683),0))*(AS72)/0.003412 | DA72: X=0 | DB72: X=1 | DC72: 0 | DD72: 0 | DE72: 0 | DF72: 0 | DG72: 0 | DH72: X=if(AS72=0,0,if(AU72=1,if(AW72=1,7.42,22.26),0))*10*(AS72) | DI72: X=if(AS72=0,0,if(AU72=2,if(AW72=1,7.42,22.26),0))*(AS72) | DJ72: X=if(AS72=0,0,if(AU72=3,if(AW72=1,7.42,22.26),0))*(AS72) | DK72: 0 | DL72: 0 | DM72: X=if(AS72=0,0,if(AW72=1,10296,30888))*AS72 | DP72: {Factor:WinterCF} | DQ72: {Factor:SummerCF} | DR72: =IFERROR(INDEX($ED72:$IG72,MATCH(0,COUNTIF($DO72:DQ72,$ED72:$IG72),0)),"") -> {Measure:Quantity} | DS72: =IFERROR(INDEX($ED72:$IG72,MATCH(0,COUNTIF($DO72:DR72,$ED72:$IG72),0)),"") -> {Fuel} | DT72: =IFERROR(INDEX($ED72:$IG72,MATCH(0,COUNTIF($DO72:DS72,$ED72:$IG72),0)),"") -> {Location} | DU72: =IFERROR(INDEX($ED72:$IG72,MATCH(0,COUNTIF($DO72:DT72,$ED72:$IG72),0)),"") ->  | DV72: =IFERROR(INDEX($ED72:$IG72,MATCH(0,COUNTIF($DO72:DU72,$ED72:$IG72),0)),"") ->  | DW72: =IFERROR(INDEX($ED72:$IG72,MATCH(0,COUNTIF($DO72:DV72,$ED72:$IG72),0)),"") ->  | DX72: =IFERROR(INDEX($ED72:$IG72,MATCH(0,COUNTIF($DO72:DW72,$ED72:$IG72),0)),"") ->  | DY72: =IFERROR(INDEX($ED72:$IG72,MATCH(0,COUNTIF($DO72:DX72,$ED72:$IG72),0)),"") ->  | DZ72: =IFERROR(INDEX($ED72:$IG72,MATCH(0,COUNTIF($DO72:DY72,$ED72:$IG72),0)),"") ->  | EA72: =IFERROR(INDEX($ED72:$IG72,MATCH(0,COUNTIF($DO72:DZ72,$ED72:$IG72),0)),"") ->  | EN72: {Measure:Quantity} | EO72: {Fuel} | EP72: {Location} | EQ72: {Measure:Quantity} | GB72: {Measure:Quantity} | GC72: {Fuel} | GD72: {Location} | GE72: {Measure:Quantity} | GL72: {Measure:Quantity} | GM72: {Fuel} | GN72: {Location} | GO72: {Measure:Quantity} | GV72: {Measure:Quantity} | GW72: {Fuel} | GX72: {Location} | GY72: {Measure:Quantity} | HZ72: {Measure:Quantity} | IA72: {Location} | IB72: {Measure:Quantity} | IK72: 3
A73: C&I Do It Yourself | B73: High Efficiency Pre-Rinse Spray Valves | C73: HPSV | D73: 2018-07-01 | E73: 2019-06-30 | F73: Manual Entry | G73: $0.00 | H73: 0 | I73: Manual Entry | J73: $0.00 | K73: 0 | L73: 2017-01-01 | M73: 2019-06-30 | N73: Calculated | O73: if({Measure:Quantity}=0,0,if({Fuel}=6,if({Location}=1,6.0561,18.1683),0))*({Measure:Quantity})/0.003412 | P73: 0 | Q73: 1 | W73: if({Measure:Quantity}=0,0,if({Fuel}=1,if({Location}=1,7.42,22.26),0))*10*({Measure:Quantity}) | X73: if({Measure:Quantity}=0,0,if({Fuel}=2,if({Location}=1,7.42,22.26),0))*({Measure:Quantity}) | Y73: if({Measure:Quantity}=0,0,if({Fuel}=3,if({Location}=1,7.42,22.26),0))*({Measure:Quantity}) | AB73: if({Measure:Quantity}=0,0,if({Location}=1,10296,30888))*{Measure:Quantity} | AC73: 2017-01-01 | AD73: 2019-06-30 | AF73: 5 | AG73: 0 | AH73: 0 | AI73: 1 | AJ73: 0 | AK73: 0 | AL73: 0 | AM73: 1 | AN73: 1 | AO73: 0 | AP73: 0.25 | AQ73: 0 | AR73: =DR73 -> {Measure:Quantity} | AS73: 1 | AT73: =DS73 -> {Fuel} | AU73: 2 | AV73: =DT73 -> {Location} | AW73: 1 | AX73: =DU73 ->  | AZ73: =DV73 ->  | BB73: =DW73 ->  | BD73: =DX73 ->  | BF73: =DY73 ->  | BH73: =DZ73 ->  | BJ73: =EA73 ->  | BL73: =IF(AS73=0,0,IF(AU73=6,IF(AW73=1,6.0561,18.1683),0))*(AS73)/0.003412 -> 0 | BM73: =0 -> 0 | BN73: =1 -> 1 | BO73: 0 | BP73: 0 | BQ73: 0 | BR73: 0 | BS73: 0 | BT73: =IF(AS73=0,0,IF(AU73=1,IF(AW73=1,7.42,22.26),0))*10*(AS73) -> 0 | BU73: =IF(AS73=0,0,IF(AU73=2,IF(AW73=1,7.42,22.26),0))*(AS73) -> 7.42 | BV73: =IF(AS73=0,0,IF(AU73=3,IF(AW73=1,7.42,22.26),0))*(AS73) -> 0 | BW73: 0 | BX73: 0 | BY73: =IF(AS73=0,0,IF(AW73=1,10296,30888))*AS73 -> 10296 | BZ73: Res | CA73: RGGI DR | CB73: =Benefits(BL73,BR73,BS73,BT73,BU73,BV73,BW73,BX73,BY73,AF73,AI73,AJ73,AK73,AL73,AM73,AN73,AO73,AP73,AQ73,BZ73,CA73) -> 0 | CC73: 0 | CD73: 0 | CE73: 0 | CF73: 0 | CG73: 981.2870341 | CH73: 0 | CI73: 296.0822791 | CJ73: 1277.369313 | CK73: 0 | CM73: 40 | CP73: =CK73+CM73 -> 40 | CQ73: =IF(NetOrGross="Net",(1-AP73+AQ73),1) -> 0.75 | CR73: =(CJ73+CL73+SUMPRODUCT(CN73:CO73,--(CN73:CO73>0)))*CQ73/((CK73+MAX(CM73,CT73)-SUMPRODUCT(CN73:CO73,--(CN73:CO73<0)))*CQ73+IF(FRIncentives="Yes",CT73*(1-CQ73),0)) -> 23.8849909 | CS73: 1 | CT73: 40.11 | CV73: RGGI | CX73: X=$0.00 | CZ73: X=if(AS73=0,0,if(AU73=6,if(AW73=1,6.0561,18.1683),0))*(AS73)/0.003412 | DA73: X=0 | DB73: X=1 | DC73: 0 | DD73: 0 | DE73: 0 | DF73: 0 | DG73: 0 | DH73: X=if(AS73=0,0,if(AU73=1,if(AW73=1,7.42,22.26),0))*10*(AS73) | DI73: X=if(AS73=0,0,if(AU73=2,if(AW73=1,7.42,22.26),0))*(AS73) | DJ73: X=if(AS73=0,0,if(AU73=3,if(AW73=1,7.42,22.26),0))*(AS73) | DK73: 0 | DL73: 0 | DM73: X=if(AS73=0,0,if(AW73=1,10296,30888))*AS73 | DP73: {Factor:WinterCF} | DQ73: {Factor:SummerCF} | DR73: =IFERROR(INDEX($ED73:$IG73,MATCH(0,COUNTIF($DO73:DQ73,$ED73:$IG73),0)),"") -> {Measure:Quantity} | DS73: =IFERROR(INDEX($ED73:$IG73,MATCH(0,COUNTIF($DO73:DR73,$ED73:$IG73),0)),"") -> {Fuel} | DT73: =IFERROR(INDEX($ED73:$IG73,MATCH(0,COUNTIF($DO73:DS73,$ED73:$IG73),0)),"") -> {Location} | DU73: =IFERROR(INDEX($ED73:$IG73,MATCH(0,COUNTIF($DO73:DT73,$ED73:$IG73),0)),"") ->  | DV73: =IFERROR(INDEX($ED73:$IG73,MATCH(0,COUNTIF($DO73:DU73,$ED73:$IG73),0)),"") ->  | DW73: =IFERROR(INDEX($ED73:$IG73,MATCH(0,COUNTIF($DO73:DV73,$ED73:$IG73),0)),"") ->  | DX73: =IFERROR(INDEX($ED73:$IG73,MATCH(0,COUNTIF($DO73:DW73,$ED73:$IG73),0)),"") ->  | DY73: =IFERROR(INDEX($ED73:$IG73,MATCH(0,COUNTIF($DO73:DX73,$ED73:$IG73),0)),"") ->  | DZ73: =IFERROR(INDEX($ED73:$IG73,MATCH(0,COUNTIF($DO73:DY73,$ED73:$IG73),0)),"") ->  | EA73: =IFERROR(INDEX($ED73:$IG73,MATCH(0,COUNTIF($DO73:DZ73,$ED73:$IG73),0)),"") ->  | EN73: {Measure:Quantity} | EO73: {Fuel} | EP73: {Location} | EQ73: {Measure:Quantity} | GB73: {Measure:Quantity} | GC73: {Fuel} | GD73: {Location} | GE73: {Measure:Quantity} | GL73: {Measure:Quantity} | GM73: {Fuel} | GN73: {Location} | GO73: {Measure:Quantity} | GV73: {Measure:Quantity} | GW73: {Fuel} | GX73: {Location} | GY73: {Measure:Quantity} | HZ73: {Measure:Quantity} | IA73: {Location} | IB73: {Measure:Quantity} | IK73: 3
A74: C&I Do It Yourself | B74: High Efficiency Pre-Rinse Spray Valves | C74: HPSV | D74: 2018-07-01 | E74: 2019-06-30 | F74: Manual Entry | G74: $0.00 | H74: 0 | I74: Manual Entry | J74: $0.00 | K74: 0 | L74: 2017-01-01 | M74: 2019-06-30 | N74: Calculated | O74: if({Measure:Quantity}=0,0,if({Fuel}=6,if({Location}=1,6.0561,18.1683),0))*({Measure:Quantity})/0.003412 | P74: 0 | Q74: 1 | W74: if({Measure:Quantity}=0,0,if({Fuel}=1,if({Location}=1,7.42,22.26),0))*10*({Measure:Quantity}) | X74: if({Measure:Quantity}=0,0,if({Fuel}=2,if({Location}=1,7.42,22.26),0))*({Measure:Quantity}) | Y74: if({Measure:Quantity}=0,0,if({Fuel}=3,if({Location}=1,7.42,22.26),0))*({Measure:Quantity}) | AB74: if({Measure:Quantity}=0,0,if({Location}=1,10296,30888))*{Measure:Quantity} | AC74: 2017-01-01 | AD74: 2019-06-30 | AF74: 5 | AG74: 0 | AH74: 0 | AI74: 1 | AJ74: 0 | AK74: 0 | AL74: 0 | AM74: 1 | AN74: 1 | AO74: 0 | AP74: 0.25 | AQ74: 0 | AR74: =DR74 -> {Measure:Quantity} | AS74: 1 | AT74: =DS74 -> {Fuel} | AU74: 3 | AV74: =DT74 -> {Location} | AW74: 1 | AX74: =DU74 ->  | AZ74: =DV74 ->  | BB74: =DW74 ->  | BD74: =DX74 ->  | BF74: =DY74 ->  | BH74: =DZ74 ->  | BJ74: =EA74 ->  | BL74: =IF(AS74=0,0,IF(AU74=6,IF(AW74=1,6.0561,18.1683),0))*(AS74)/0.003412 -> 0 | BM74: =0 -> 0 | BN74: =1 -> 1 | BO74: 0 | BP74: 0 | BQ74: 0 | BR74: 0 | BS74: 0 | BT74: =IF(AS74=0,0,IF(AU74=1,IF(AW74=1,7.42,22.26),0))*10*(AS74) -> 0 | BU74: =IF(AS74=0,0,IF(AU74=2,IF(AW74=1,7.42,22.26),0))*(AS74) -> 0 | BV74: =IF(AS74=0,0,IF(AU74=3,IF(AW74=1,7.42,22.26),0))*(AS74) -> 7.42 | BW74: 0 | BX74: 0 | BY74: =IF(AS74=0,0,IF(AW74=1,10296,30888))*AS74 -> 10296 | BZ74: Res | CA74: RGGI DR | CB74: =Benefits(BL74,BR74,BS74,BT74,BU74,BV74,BW74,BX74,BY74,AF74,AI74,AJ74,AK74,AL74,AM74,AN74,AO74,AP74,AQ74,BZ74,CA74) -> 0 | CC74: 0 | CD74: 0 | CE74: 679.7944831 | CF74: 0 | CG74: 0 | CH74: 0 | CI74: 296.0822791 | CJ74: 975.8767622 | CK74: 0 | CM74: 40 | CP74: =CK74+CM74 -> 40 | CQ74: =IF(NetOrGross="Net",(1-AP74+AQ74),1) -> 0.75 | CR74: =(CJ74+CL74+SUMPRODUCT(CN74:CO74,--(CN74:CO74>0)))*CQ74/((CK74+MAX(CM74,CT74)-SUMPRODUCT(CN74:CO74,--(CN74:CO74<0)))*CQ74+IF(FRIncentives="Yes",CT74*(1-CQ74),0)) -> 18.24750864 | CS74: 1 | CT74: 40.11 | CV74: RGGI | CX74: X=$0.00 | CZ74: X=if(AS74=0,0,if(AU74=6,if(AW74=1,6.0561,18.1683),0))*(AS74)/0.003412 | DA74: X=0 | DB74: X=1 | DC74: 0 | DD74: 0 | DE74: 0 | DF74: 0 | DG74: 0 | DH74: X=if(AS74=0,0,if(AU74=1,if(AW74=1,7.42,22.26),0))*10*(AS74) | DI74: X=if(AS74=0,0,if(AU74=2,if(AW74=1,7.42,22.26),0))*(AS74) | DJ74: X=if(AS74=0,0,if(AU74=3,if(AW74=1,7.42,22.26),0))*(AS74) | DK74: 0 | DL74: 0 | DM74: X=if(AS74=0,0,if(AW74=1,10296,30888))*AS74 | DP74: {Factor:WinterCF} | DQ74: {Factor:SummerCF} | DR74: =IFERROR(INDEX($ED74:$IG74,MATCH(0,COUNTIF($DO74:DQ74,$ED74:$IG74),0)),"") -> {Measure:Quantity} | DS74: =IFERROR(INDEX($ED74:$IG74,MATCH(0,COUNTIF($DO74:DR74,$ED74:$IG74),0)),"") -> {Fuel} | DT74: =IFERROR(INDEX($ED74:$IG74,MATCH(0,COUNTIF($DO74:DS74,$ED74:$IG74),0)),"") -> {Location} | DU74: =IFERROR(INDEX($ED74:$IG74,MATCH(0,COUNTIF($DO74:DT74,$ED74:$IG74),0)),"") ->  | DV74: =IFERROR(INDEX($ED74:$IG74,MATCH(0,COUNTIF($DO74:DU74,$ED74:$IG74),0)),"") ->  | DW74: =IFERROR(INDEX($ED74:$IG74,MATCH(0,COUNTIF($DO74:DV74,$ED74:$IG74),0)),"") ->  | DX74: =IFERROR(INDEX($ED74:$IG74,MATCH(0,COUNTIF($DO74:DW74,$ED74:$IG74),0)),"") ->  | DY74: =IFERROR(INDEX($ED74:$IG74,MATCH(0,COUNTIF($DO74:DX74,$ED74:$IG74),0)),"") ->  | DZ74: =IFERROR(INDEX($ED74:$IG74,MATCH(0,COUNTIF($DO74:DY74,$ED74:$IG74),0)),"") ->  | EA74: =IFERROR(INDEX($ED74:$IG74,MATCH(0,COUNTIF($DO74:DZ74,$ED74:$IG74),0)),"") ->  | ED74: =IFERROR(MID($G74,FIND(CHAR(160),SUBSTITUTE($G74,"{",CHAR(160),ED$1)),FIND(CHAR(160),SUBSTITUTE($G74,"}",CHAR(160),ED$1))-FIND(CHAR(160),SUBSTITUTE($G74,"{",CHAR(160),ED$1))+1),"") ->  | EN74: =IFERROR(MID($O74,FIND(CHAR(160),SUBSTITUTE($O74,"{",CHAR(160),EN$1)),FIND(CHAR(160),SUBSTITUTE($O74,"}",CHAR(160),EN$1))-FIND(CHAR(160),SUBSTITUTE($O74,"{",CHAR(160),EN$1))+1),"") -> {Measure:Quantity} | EO74: {Fuel} | EP74: {Location} | EQ74: {Measure:Quantity} | EX74: =IFERROR(MID($R74,FIND(CHAR(160),SUBSTITUTE($R74,"{",CHAR(160),EX$1)),FIND(CHAR(160),SUBSTITUTE($R74,"}",CHAR(160),EX$1))-FIND(CHAR(160),SUBSTITUTE($R74,"{",CHAR(160),EX$1))+1),"") ->  | FH74: =IFERROR(MID($U74,FIND(CHAR(160),SUBSTITUTE($U74,"{",CHAR(160),FH$1)),FIND(CHAR(160),SUBSTITUTE($U74,"}",CHAR(160),FH$1))-FIND(CHAR(160),SUBSTITUTE($U74,"{",CHAR(160),FH$1))+1),"") ->  | FR74: =IFERROR(MID($V74,FIND(CHAR(160),SUBSTITUTE($V74,"{",CHAR(160),FR$1)),FIND(CHAR(160),SUBSTITUTE($V74,"}",CHAR(160),FR$1))-FIND(CHAR(160),SUBSTITUTE($V74,"{",CHAR(160),FR$1))+1),"") ->  | GB74: =IFERROR(MID($W74,FIND(CHAR(160),SUBSTITUTE($W74,"{",CHAR(160),GB$1)),FIND(CHAR(160),SUBSTITUTE($W74,"}",CHAR(160),GB$1))-FIND(CHAR(160),SUBSTITUTE($W74,"{",CHAR(160),GB$1))+1),"") -> {Measure:Quantity} | GC74: {Fuel} | GD74: {Location} | GE74: {Measure:Quantity} | GL74: =IFERROR(MID($X74,FIND(CHAR(160),SUBSTITUTE($X74,"{",CHAR(160),GL$1)),FIND(CHAR(160),SUBSTITUTE($X74,"}",CHAR(160),GL$1))-FIND(CHAR(160),SUBSTITUTE($X74,"{",CHAR(160),GL$1))+1),"") -> {Measure:Quantity} | GM74: {Fuel} | GN74: {Location} | GO74: {Measure:Quantity} | GV74: =IFERROR(MID($Y74,FIND(CHAR(160),SUBSTITUTE($Y74,"{",CHAR(160),GV$1)),FIND(CHAR(160),SUBSTITUTE($Y74,"}",CHAR(160),GV$1))-FIND(CHAR(160),SUBSTITUTE($Y74,"{",CHAR(160),GV$1))+1),"") -> {Measure:Quantity} | GW74: {Fuel} | GX74: {Location} | GY74: {Measure:Quantity} | HF74: =IFERROR(MID($Z74,FIND(CHAR(160),SUBSTITUTE($Z74,"{",CHAR(160),HF$1)),FIND(CHAR(160),SUBSTITUTE($Z74,"}",CHAR(160),HF$1))-FIND(CHAR(160),SUBSTITUTE($Z74,"{",CHAR(160),HF$1))+1),"") ->  | HP74: =IFERROR(MID($AA74,FIND(CHAR(160),SUBSTITUTE($AA74,"{",CHAR(160),HP$1)),FIND(CHAR(160),SUBSTITUTE($AA74,"}",CHAR(160),HP$1))-FIND(CHAR(160),SUBSTITUTE($AA74,"{",CHAR(160),HP$1))+1),"") ->  | HZ74: =IFERROR(MID($AB74,FIND(CHAR(160),SUBSTITUTE($AB74,"{",CHAR(160),HZ$1)),FIND(CHAR(160),SUBSTITUTE($AB74,"}",CHAR(160),HZ$1))-FIND(CHAR(160),SUBSTITUTE($AB74,"{",CHAR(160),HZ$1))+1),"") -> {Measure:Quantity} | IA74: {Location} | IB74: {Measure:Quantity} | IK74: 3
A75: C&I Do It Yourself | H75: 0 | K75: 0 | P75: 0 | Q75: 1 | CX75: 0 | CZ75: 0 | DA75: X=0 | DB75: X=1 | DC75: 0 | DD75: 0 | DE75: 0 | DF75: 0 | DG75: 0 | DH75: 0 | DI75: 0 | DJ75: 0 | DK75: 0 | DL75: 0 | DM75: 0 | DP75: {Factor:WinterCF} | DQ75: {Factor:SummerCF} | DR75: =IFERROR(INDEX($ED75:$IG75,MATCH(0,COUNTIF($DO75:DQ75,$ED75:$IG75),0)),"") ->  | DS75: =IFERROR(INDEX($ED75:$IG75,MATCH(0,COUNTIF($DO75:DR75,$ED75:$IG75),0)),"") ->  | DT75: =IFERROR(INDEX($ED75:$IG75,MATCH(0,COUNTIF($DO75:DS75,$ED75:$IG75),0)),"") ->  | DU75: =IFERROR(INDEX($ED75:$IG75,MATCH(0,COUNTIF($DO75:DT75,$ED75:$IG75),0)),"") ->  | DV75: =IFERROR(INDEX($ED75:$IG75,MATCH(0,COUNTIF($DO75:DU75,$ED75:$IG75),0)),"") ->  | DW75: =IFERROR(INDEX($ED75:$IG75,MATCH(0,COUNTIF($DO75:DV75,$ED75:$IG75),0)),"") ->  | DX75: =IFERROR(INDEX($ED75:$IG75,MATCH(0,COUNTIF($DO75:DW75,$ED75:$IG75),0)),"") ->  | DY75: =IFERROR(INDEX($ED75:$IG75,MATCH(0,COUNTIF($DO75:DX75,$ED75:$IG75),0)),"") ->  | DZ75: =IFERROR(INDEX($ED75:$IG75,MATCH(0,COUNTIF($DO75:DY75,$ED75:$IG75),0)),"") ->  | EA75: =IFERROR(INDEX($ED75:$IG75,MATCH(0,COUNTIF($DO75:DZ75,$ED75:$IG75),0)),"") ->  | IK75: 0
A76: C&I HVAC - Electric | B76: Programmable Thermostat | C76: AF6 | D76: 2018-07-01 | E76: 2019-06-30 | F76: Per Measure | G76: $157.00 | H76: 0 | I76: Calculated | J76: {Measure:Quantity}*100 | K76: 0 | N76: Calculated | O76: {Measure:Quantity} * ({Capacity (MBTUH)} * 1565 *0.068) / 1000 /0.003412 | AC76: 2018-01-01 | AD76: 2019-06-30 | AF76: 8 | AG76: 0 | AH76: 0 | AI76: 0.17 | AJ76: 0.03 | AK76: 0.62 | AL76: 0.18 | AM76: 1 | AN76: 1 | AO76: 1 | AP76: 0.52 | AQ76: 0.016 | AR76: =DR76 -> {Measure:Quantity} | AS76: 1 | AT76: =DS76 -> {Capacity (MBTUH)} | AU76: 90 | AV76: =DT76 ->  | AX76: =DU76 ->  | AZ76: =DV76 ->  | BB76: =DW76 ->  | BD76: =DX76 ->  | BF76: =DY76 ->  | BH76: =DZ76 ->  | BJ76: =EA76 ->  | BL76: =AS76 * (AU76 * 1565 *0.068) / 1000 /0.003412 -> 2807.092614 | BM76: 0 | BN76: 0 | BO76: 0 | BP76: 0 | BQ76: 0 | BR76: 0 | BS76: 0 | BT76: 0 | BU76: 0 | BV76: 0 | BW76: 0 | BX76: 0 | BY76: 0 | BZ76: Res | CA76: Default DR | CB76: =Benefits(BL76,BR76,BS76,BT76,BU76,BV76,BW76,BX76,BY76,AF76,AI76,AJ76,AK76,AL76,AM76,AN76,AO76,AP76,AQ76,BZ76,CA76) -> 998.2056221 | CC76: 0 | CD76: 0 | CE76: 0 | CF76: 0 | CG76: 0 | CH76: 0 | CI76: 0 | CJ76: =SUMPRODUCT(CB76:CI76,--(CB76:CI76>0)) -> 998.2056221 | CK76: =-SUMPRODUCT(CB76:CI76,--(CB76:CI76<0)) -> 0 | CM76: =157 -> 157 | CP76: =CK76+CM76 -> 157 | CQ76: =IF(NetOrGross="Net",(1-AP76+AQ76),1) -> 0.496 | CR76: =(CJ76+CL76+SUMPRODUCT(CN76:CO76,--(CN76:CO76>0)))*CQ76/((CK76+MAX(CM76,CT76)-SUMPRODUCT(CN76:CO76,--(CN76:CO76<0)))*CQ76+IF(FRIncentives="Yes",CT76*(1-CQ76),0)) -> 3.859844616 | CS76: 1 | CT76: 100 | CV76: Electric | CX76: X=$157.00 | CZ76: X=AS76 * (AU76 * 1565 *0.068) / 1000 /0.003412 | DA76: 0 | DB76: 0 | DC76: 0 | DD76: 0 | DE76: 0 | DF76: 0 | DG76: 0 | DH76: 0 | DI76: 0 | DJ76: 0 | DK76: 0 | DL76: 0 | DM76: 0 | DP76: {Factor:WinterCF} | DQ76: {Factor:SummerCF} | DR76: =IFERROR(INDEX($ED76:$IG76,MATCH(0,COUNTIF($DO76:DQ76,$ED76:$IG76),0)),"") -> {Measure:Quantity} | DS76: =IFERROR(INDEX($ED76:$IG76,MATCH(0,COUNTIF($DO76:DR76,$ED76:$IG76),0)),"") -> {Capacity (MBTUH)} | DT76: =IFERROR(INDEX($ED76:$IG76,MATCH(0,COUNTIF($DO76:DS76,$ED76:$IG76),0)),"") ->  | DU76: =IFERROR(INDEX($ED76:$IG76,MATCH(0,COUNTIF($DO76:DT76,$ED76:$IG76),0)),"") ->  | DV76: =IFERROR(INDEX($ED76:$IG76,MATCH(0,COUNTIF($DO76:DU76,$ED76:$IG76),0)),"") ->  | DW76: =IFERROR(INDEX($ED76:$IG76,MATCH(0,COUNTIF($DO76:DV76,$ED76:$IG76),0)),"") ->  | DX76: =IFERROR(INDEX($ED76:$IG76,MATCH(0,COUNTIF($DO76:DW76,$ED76:$IG76),0)),"") ->  | DY76: =IFERROR(INDEX($ED76:$IG76,MATCH(0,COUNTIF($DO76:DX76,$ED76:$IG76),0)),"") ->  | DZ76: =IFERROR(INDEX($ED76:$IG76,MATCH(0,COUNTIF($DO76:DY76,$ED76:$IG76),0)),"") ->  | EA76: =IFERROR(INDEX($ED76:$IG76,MATCH(0,COUNTIF($DO76:DZ76,$ED76:$IG76),0)),"") ->  | EN76: {Measure:Quantity} | EO76: {Capacity (MBTUH)} | IK76: 2
A77: C&I HVAC - Electric | B77: HVAC AIR-TO-AIR HEAT PUMP: < 5.4 Split | C77: AH1 | D77: 2018-07-01 | E77: 2019-06-30 | F77: Calculated | G77: {Measure:Quantity}*{Unit Size - Tons}*100.0 | H77: 0 | I77: Calculated | J77: {Measure:Quantity}*{Unit Size - Tons}*50 | K77: 0 | L77: 2018-07-01 | M77: 2019-06-30 | N77: Calculated | O77: {Measure:Quantity} * ((12 * {Unit Size - Tons} * (1/13.0 - 1/{SEER}) * 829) + ({Heating BTUH}/1000 * (1/7.7 - 1/{HSPF}) * 2200)) | P77: 0.0001 | R77: {Measure:Quantity} * 12 * {Unit Size - Tons} * (1/13.0 - 1/{SEER}) | U77: {Measure:Quantity} * {Heating BTUH}/1000 * (1/7.7 - 1/{HSPF}) * {Factor:WinterCF} | V77: {Measure:Quantity} * 12 * {Unit Size - Tons} * (1/13.0 - 1/{SEER}) * {Factor:SummerCF} | AC77: 2018-01-01 | AD77: 2019-06-30 | AF77: 15 | AG77: 0.42 | AH77: 0.357 | AI77: 0.17 | AJ77: 0.03 | AK77: 0.62 | AL77: 0.18 | AM77: 1 | AN77: 1.122 | AO77: 1 | AP77: 0.52 | AQ77: 0.016 | AR77: {Measure:Quantity} | AS77: 1 | AT77: {Unit Size - Tons} | AU77: 5 | AV77: {SEER} | AW77: 16 | AX77: {Heating BTUH} | AY77: 56500 | AZ77: {HSPF} | BA77: 9 | BL77: =AS77 * ((12 * AU77 * (1/13 - 1/AW77) * 829) + (AY77/1000 * (1/7.7 - 1/BA77) * 2200)) -> 3049.149878 | BM77: =0.0001 -> 0.0001 | BN77: 0 | BO77: =AS77 * 12 * AU77 * (1/13 - 1/AW77) -> 0.8653846154 | BP77: 0 | BQ77: 0 | BR77: =AS77 * AY77/1000 * (1/7.7 - 1/BA77) * AG77 -> 0.4451515152 | BS77: =AS77 * 12 * AU77 * (1/13 - 1/AW77) * AH77 -> 0.3089423077 | BT77: 0 | BU77: 0 | BV77: 0 | BW77: 0 | BX77: 0 | BY77: 0 | BZ77: Res | CA77: Default DR | CB77: =Benefits(BL77,BR77,BS77,BT77,BU77,BV77,BW77,BX77,BY77,AF77,AI77,AJ77,AK77,AL77,AM77,AN77,AO77,AP77,AQ77,BZ77,CA77) -> 2123.794549 | CC77: 1175.094284 | CD77: 0 | CE77: 0 | CF77: 0 | CG77: 0 | CH77: 0 | CI77: 0 | CJ77: 3298.888833 | CK77: 0 | CM77: =AS77*AU77*100 -> 500 | CP77: 500 | CQ77: 0.496 | CR77: 4.374996955 | CS77: 1 | CT77: =AU77*50 -> 250 | CV77: Electric | CX77: X=AS77*AU77*100.0 | CZ77: X=AS77 * ((12 * AU77 * (1/13.0 - 1/AW77) * 829) + (AY77/1000 * (1/7.7 - 1/BA77) * 2200)) | DA77: X=0.0001 | DB77: 0 | DC77: X=AS77 * 12 * AU77 * (1/13.0 - 1/AW77) | DD77: 0 | DE77: 0 | DF77: X=AS77 * AY77/1000 * (1/7.7 - 1/BA77) * AG77 | DG77: X=AS77 * 12 * AU77 * (1/13.0 - 1/AW77) * AH77 | DH77: 0 | DI77: 0 | DJ77: 0 | DK77: 0 | DL77: 0 | DM77: 0 | DP77: {Factor:WinterCF} | DQ77: {Factor:SummerCF} | DR77: =IFERROR(INDEX($ED77:$IG77,MATCH(0,COUNTIF($DO77:DQ77,$ED77:$IG77),0)),"") -> {Measure:Quantity} | DS77: =IFERROR(INDEX($ED77:$IG77,MATCH(0,COUNTIF($DO77:DR77,$ED77:$IG77),0)),"") -> {Unit Size - Tons} | DT77: =IFERROR(INDEX($ED77:$IG77,MATCH(0,COUNTIF($DO77:DS77,$ED77:$IG77),0)),"") -> {SEER} | DU77: =IFERROR(INDEX($ED77:$IG77,MATCH(0,COUNTIF($DO77:DT77,$ED77:$IG77),0)),"") -> {Heating BTUH} | DV77: =IFERROR(INDEX($ED77:$IG77,MATCH(0,COUNTIF($DO77:DU77,$ED77:$IG77),0)),"") -> {HSPF} | DW77: =IFERROR(INDEX($ED77:$IG77,MATCH(0,COUNTIF($DO77:DV77,$ED77:$IG77),0)),"") ->  | DX77: =IFERROR(INDEX($ED77:$IG77,MATCH(0,COUNTIF($DO77:DW77,$ED77:$IG77),0)),"") ->  | DY77: =IFERROR(INDEX($ED77:$IG77,MATCH(0,COUNTIF($DO77:DX77,$ED77:$IG77),0)),"") ->  | DZ77: =IFERROR(INDEX($ED77:$IG77,MATCH(0,COUNTIF($DO77:DY77,$ED77:$IG77),0)),"") ->  | EA77: =IFERROR(INDEX($ED77:$IG77,MATCH(0,COUNTIF($DO77:DZ77,$ED77:$IG77),0)),"") ->  | ED77: {Measure:Quantity} | EE77: {Unit Size - Tons} | EN77: {Measure:Quantity} | EO77: {Unit Size - Tons} | EP77: {SEER} | EQ77: {Heating BTUH} | ER77: {HSPF} | EX77: {Measure:Quantity} | EY77: {Unit Size - Tons} | EZ77: {SEER} | FH77: {Measure:Quantity} | FI77: {Heating BTUH} | FJ77: {HSPF} | FK77: {Factor:WinterCF} | FR77: {Measure:Quantity} | FS77: {Unit Size - Tons} | FT77: {SEER} | FU77: {Factor:SummerCF} | IK77: 5
A78: C&I HVAC - Electric | B78: HVAC AIR-TO-AIR HEAT PUMP: < 5.4 Packaged | C78: AH2 | D78: 2018-07-01 | E78: 2019-06-30 | F78: Calculated | G78: {Measure:Quantity}*{Unit Size - Tons}*100.0 | H78: 0 | I78: Calculated | J78: {Measure:Quantity}*{Unit Size - Tons}*50 | K78: 0 | L78: 2018-07-01 | M78: 2019-06-30 | N78: Calculated | O78: {Measure:Quantity} * ((12 * {Unit Size - Tons} * (1/13.0 - 1/{SEER}) * 829) + ({Heating BTUH}/1000 * (1/7.7 - 1/{HSPF}) * 2200)) | P78: 0.0001 | R78: {Measure:Quantity} * 12 * {Unit Size - Tons} * (1/13.0 - 1/{SEER}) | U78: {Measure:Quantity} * {Heating BTUH}/1000 * (1/7.7 - 1/{HSPF}) * {Factor:WinterCF} | V78: {Measure:Quantity} * 12 * {Unit Size - Tons} * (1/13.0 - 1/{SEER}) * {Factor:SummerCF} | AC78: 2018-01-01 | AD78: 2019-06-30 | AF78: 15 | AG78: 0.42 | AH78: 0.357 | AI78: 0.17 | AJ78: 0.03 | AK78: 0.62 | AL78: 0.18 | AM78: 1 | AN78: 1.122 | AO78: 1 | AP78: 0.52 | AQ78: 0.016 | AR78: {Measure:Quantity} | AS78: 1 | AT78: {Unit Size - Tons} | AU78: 5 | AV78: {SEER} | AW78: 16 | AX78: {Heating BTUH} | AY78: 56500 | AZ78: {HSPF} | BA78: 9 | BL78: =AS78 * ((12 * AU78 * (1/13 - 1/AW78) * 829) + (AY78/1000 * (1/7.7 - 1/BA78) * 2200)) -> 3049.149878 | BM78: =0.0001 -> 0.0001 | BN78: 0 | BO78: =AS78 * 12 * AU78 * (1/13 - 1/AW78) -> 0.8653846154 | BP78: 0 | BQ78: 0 | BR78: =AS78 * AY78/1000 * (1/7.7 - 1/BA78) * AG78 -> 0.4451515152 | BS78: =AS78 * 12 * AU78 * (1/13 - 1/AW78) * AH78 -> 0.3089423077 | BT78: 0 | BU78: 0 | BV78: 0 | BW78: 0 | BX78: 0 | BY78: 0 | BZ78: Res | CA78: Default DR | CB78: =Benefits(BL78,BR78,BS78,BT78,BU78,BV78,BW78,BX78,BY78,AF78,AI78,AJ78,AK78,AL78,AM78,AN78,AO78,AP78,AQ78,BZ78,CA78) -> 2123.794549 | CC78: 1175.094284 | CD78: 0 | CE78: 0 | CF78: 0 | CG78: 0 | CH78: 0 | CI78: 0 | CJ78: 3298.888833 | CK78: 0 | CM78: =AS78*AU78*100 -> 500 | CP78: 500 | CQ78: 0.496 | CR78: 4.374996955 | CS78: 1 | CT78: =AU78*50 -> 250 | CV78: Electric | CX78: X=AS78*AU78*100.0 | CZ78: X=AS78 * ((12 * AU78 * (1/13.0 - 1/AW78) * 829) + (AY78/1000 * (1/7.7 - 1/BA78) * 2200)) | DA78: X=0.0001 | DB78: 0 | DC78: X=AS78 * 12 * AU78 * (1/13.0 - 1/AW78) | DD78: 0 | DE78: 0 | DF78: X=AS78 * AY78/1000 * (1/7.7 - 1/BA78) * AG78 | DG78: X=AS78 * 12 * AU78 * (1/13.0 - 1/AW78) * AH78 | DH78: 0 | DI78: 0 | DJ78: 0 | DK78: 0 | DL78: 0 | DM78: 0 | DP78: {Factor:WinterCF} | DQ78: {Factor:SummerCF} | DR78: =IFERROR(INDEX($ED78:$IG78,MATCH(0,COUNTIF($DO78:DQ78,$ED78:$IG78),0)),"") -> {Measure:Quantity} | DS78: =IFERROR(INDEX($ED78:$IG78,MATCH(0,COUNTIF($DO78:DR78,$ED78:$IG78),0)),"") -> {Unit Size - Tons} | DT78: =IFERROR(INDEX($ED78:$IG78,MATCH(0,COUNTIF($DO78:DS78,$ED78:$IG78),0)),"") -> {SEER} | DU78: =IFERROR(INDEX($ED78:$IG78,MATCH(0,COUNTIF($DO78:DT78,$ED78:$IG78),0)),"") -> {Heating BTUH} | DV78: =IFERROR(INDEX($ED78:$IG78,MATCH(0,COUNTIF($DO78:DU78,$ED78:$IG78),0)),"") -> {HSPF} | DW78: =IFERROR(INDEX($ED78:$IG78,MATCH(0,COUNTIF($DO78:DV78,$ED78:$IG78),0)),"") ->  | DX78: =IFERROR(INDEX($ED78:$IG78,MATCH(0,COUNTIF($DO78:DW78,$ED78:$IG78),0)),"") ->  | DY78: =IFERROR(INDEX($ED78:$IG78,MATCH(0,COUNTIF($DO78:DX78,$ED78:$IG78),0)),"") ->  | DZ78: =IFERROR(INDEX($ED78:$IG78,MATCH(0,COUNTIF($DO78:DY78,$ED78:$IG78),0)),"") ->  | EA78: =IFERROR(INDEX($ED78:$IG78,MATCH(0,COUNTIF($DO78:DZ78,$ED78:$IG78),0)),"") ->  | ED78: {Measure:Quantity} | EE78: {Unit Size - Tons} | EN78: {Measure:Quantity} | EO78: {Unit Size - Tons} | EP78: {SEER} | EQ78: {Heating BTUH} | ER78: {HSPF} | EX78: {Measure:Quantity} | EY78: {Unit Size - Tons} | EZ78: {SEER} | FH78: {Measure:Quantity} | FI78: {Heating BTUH} | FJ78: {HSPF} | FK78: {Factor:WinterCF} | FR78: {Measure:Quantity} | FS78: {Unit Size - Tons} | FT78: {SEER} | FU78: {Factor:SummerCF} | IK78: 5
A79: C&I HVAC - Electric | B79: HVAC AIR-TO-AIR HEAT PUMP: > = 5.4 to < 11.25 | C79: AH3 | D79: 2018-07-01 | E79: 2019-06-30 | F79: Calculated | G79: {Measure:Quantity}*{Unit Size - Tons}*100.0 | H79: 0 | I79: Calculated | J79: {Measure:Quantity}*{Unit Size - Tons}*50 | K79: 0 | L79: 2018-07-01 | M79: 2019-06-30 | N79: Calculated | O79: {Measure:Quantity} * ((12 * {Unit Size - Tons} * (1/11.0 - 1/{EER}) * 829) + ({Heating BTUH}/1000 * (1/3.3 - 1/{COP}) * 1600 / 3.412)) | P79: 0.0001 | R79: {Measure:Quantity} * 12 * {Unit Size - Tons} * (1/11.0 - 1/{EER}) | U79: {Measure:Quantity} * {Heating BTUH}/1000 * (1/3.3 - 1/{COP}) / 3.412 * {Factor:WinterCF} | V79: {Measure:Quantity} * 12 * {Unit Size - Tons} * (1/11.0 - 1/{EER}) * {Factor:SummerCF} | AC79: 2018-01-01 | AD79: 2019-06-30 | AF79: 15 | AG79: 0.42 | AH79: 0.357 | AI79: 0.17 | AJ79: 0.03 | AK79: 0.62 | AL79: 0.18 | AM79: 1 | AN79: 1.122 | AO79: 1 | AP79: 0.52 | AQ79: 0.016 | AR79: {Measure:Quantity} | AS79: 1 | AT79: {Unit Size - Tons} | AU79: 8 | AV79: {EER} | AW79: 12 | AX79: {Heating BTUH} | AY79: 9200 | AZ79: {COP} | BA79: 4 | BL79: =AS79 * ((12 * AU79 * (1/11 - 1/AW79) * 829) + (AY79/1000 * (1/3.3 - 1/BA79) * 1600 / 3.412)) -> 831.6916409 | BM79: =0.0001 -> 0.0001 | BN79: 0 | BO79: =AS79 * 12 * AU79 * (1/11 - 1/AW79) -> 0.7272727273 | BP79: 0 | BQ79: 0 | BR79: =AS79 * AY79/1000 * (1/3.3 - 1/BA79) / 3.412 * AG79 -> 0.06005541938 | BS79: =AS79 * 12 * AU79 * (1/11 - 1/AW79) * AH79 -> 0.2596363636 | BT79: 0 | BU79: 0 | BV79: 0 | BW79: 0 | BX79: 0 | BY79: 0 | BZ79: Res | CA79: Default DR | CB79: =Benefits(BL79,BR79,BS79,BT79,BU79,BV79,BW79,BX79,BY79,AF79,AI79,AJ79,AK79,AL79,AM79,AN79,AO79,AP79,AQ79,BZ79,CA79) -> 579.290046 | CC79: 372.0996471 | CD79: 0 | CE79: 0 | CF79: 0 | CG79: 0 | CH79: 0 | CI79: 0 | CJ79: 951.389693 | CK79: 0 | CM79: =AS79*AU79*100 -> 800 | CP79: 800 | CQ79: 0.496 | CR79: 0.9026191426 | CS79: 0 | CT79: 250 | CV79: Electric | CX79: X=AS79*AU79*100.0 | CZ79: X=AS79 * ((12 * AU79 * (1/11.0 - 1/AW79) * 829) + (AY79/1000 * (1/3.3 - 1/BA79) * 1600 / 3.412)) | DA79: X=0.0001 | DB79: 0 | DC79: X=AS79 * 12 * AU79 * (1/11.0 - 1/AW79) | DD79: 0 | DE79: 0 | DF79: X=AS79 * AY79/1000 * (1/3.3 - 1/BA79) / 3.412 * AG79 | DG79: X=AS79 * 12 * AU79 * (1/11.0 - 1/AW79) * AH79 | DH79: 0 | DI79: 0 | DJ79: 0 | DK79: 0 | DL79: 0 | DM79: 0 | DP79: {Factor:WinterCF} | DQ79: {Factor:SummerCF} | DR79: =IFERROR(INDEX($ED79:$IG79,MATCH(0,COUNTIF($DO79:DQ79,$ED79:$IG79),0)),"") -> {Measure:Quantity} | DS79: =IFERROR(INDEX($ED79:$IG79,MATCH(0,COUNTIF($DO79:DR79,$ED79:$IG79),0)),"") -> {Unit Size - Tons} | DT79: =IFERROR(INDEX($ED79:$IG79,MATCH(0,COUNTIF($DO79:DS79,$ED79:$IG79),0)),"") -> {EER} | DU79: =IFERROR(INDEX($ED79:$IG79,MATCH(0,COUNTIF($DO79:DT79,$ED79:$IG79),0)),"") -> {Heating BTUH} | DV79: =IFERROR(INDEX($ED79:$IG79,MATCH(0,COUNTIF($DO79:DU79,$ED79:$IG79),0)),"") -> {COP} | DW79: =IFERROR(INDEX($ED79:$IG79,MATCH(0,COUNTIF($DO79:DV79,$ED79:$IG79),0)),"") ->  | DX79: =IFERROR(INDEX($ED79:$IG79,MATCH(0,COUNTIF($DO79:DW79,$ED79:$IG79),0)),"") ->  | DY79: =IFERROR(INDEX($ED79:$IG79,MATCH(0,COUNTIF($DO79:DX79,$ED79:$IG79),0)),"") ->  | DZ79: =IFERROR(INDEX($ED79:$IG79,MATCH(0,COUNTIF($DO79:DY79,$ED79:$IG79),0)),"") ->  | EA79: =IFERROR(INDEX($ED79:$IG79,MATCH(0,COUNTIF($DO79:DZ79,$ED79:$IG79),0)),"") ->  | ED79: {Measure:Quantity} | EE79: {Unit Size - Tons} | EN79: {Measure:Quantity} | EO79: {Unit Size - Tons} | EP79: {EER} | EQ79: {Heating BTUH} | ER79: {COP} | EX79: {Measure:Quantity} | EY79: {Unit Size - Tons} | EZ79: {EER} | FH79: {Measure:Quantity} | FI79: {Heating BTUH} | FJ79: {COP} | FK79: {Factor:WinterCF} | FR79: {Measure:Quantity} | FS79: {Unit Size - Tons} | FT79: {EER} | FU79: {Factor:SummerCF} | IK79: 5
A80: C&I HVAC - Electric | B80: VFD: Building Exhaust Fan | C80: BEF | D80: 2018-07-01 | E80: 2019-06-30 | F80: Calculated | G80: {Measure:Quantity}*if({Motor HP}=5,2425,if({Motor HP}=7.5,2648,if({Motor HP}=10,2871,if({Motor HP}=15,3317,if({Motor HP}=20,3763,if({Motor HP}=25,4209,if({Motor HP}=30,4655,0))))))) | H80: 0 | I80: Calculated | J80: {Measure:Quantity}*if({Motor HP}=5,400,if({Motor HP}=7.5,650,if({Motor HP}=10,1400,if({Motor HP}=15,1650,if({Motor HP}=20,1850,if({Motor HP}=25,2000,if({Motor HP}=30,2300,0))))))) | K80: 0 | L80: 2018-07-01 | M80: 2019-06-30 | N80: Calculated | O80: {Measure:Quantity}*{Motor HP}*755 | R80: {Measure:Quantity}*{Motor HP}*.120 | U80: {Measure:Quantity}*{Factor:WinterCF}*{Motor HP}*.120 | V80: {Measure:Quantity}*{Factor:SummerCF}*{Motor HP}*.120 | AC80: 2018-01-01 | AD80: 2019-06-30 | AF80: 13 | AG80: 0.737 | AH80: 0.355 | AI80: 0.444 | AJ80: 0.222 | AK80: 0.16 | AL80: 0.174 | AM80: 1 | AN80: 1.122 | AO80: 1 | AP80: 0.52 | AQ80: 0.016 | AR80: {Measure:Quantity} | AS80: 1 | AT80: {Motor HP} | AU80: 5 | BL80: =AS80*AU80*755 -> 3775 | BM80: 0 | BN80: 0 | BO80: =AS80*AU80*0.12 -> 0.6 | BP80: 0 | BQ80: 0 | BR80: =AS80*AG80*AU80*0.12 -> 0.4422 | BS80: =AS80*AH80*AU80*0.12 -> 0.213 | BT80: 0 | BU80: 0 | BV80: 0 | BW80: 0 | BX80: 0 | BY80: 0 | BZ80: Res | CA80: Default DR | CB80: =Benefits(BL80,BR80,BS80,BT80,BU80,BV80,BW80,BX80,BY80,AF80,AI80,AJ80,AK80,AL80,AM80,AN80,AO80,AP80,AQ80,BZ80,CA80) -> 2610.374434 | CC80: 944.4186089 | CD80: 0 | CE80: 0 | CF80: 0 | CG80: 0 | CH80: 0 | CI80: 0 | CJ80: 3554.793043 | CK80: 0 | CM80: =AS80*IF(AU80=5,2425,IF(AU80=7.5,2648,IF(AU80=10,2871,IF(AU80=15,3317,IF(AU80=20,3763,IF(AU80=25,4209,IF(AU80=30,4655,0))))))) -> 2425 | CP80: 2425 | CQ80: 0.496 | CR80: 1.25546664 | CS80: 1 | CT80: 400 | CV80: Electric | CX80: X=AS80*if(AU80=5,2425,if(AU80=7.5,2648,if(AU80=10,2871,if(AU80=15,3317,if(AU80=20,3763,if(AU80=25,4209,if(AU80=30,4655,0))))))) | CZ80: X=AS80*AU80*755 | DA80: 0 | DB80: 0 | DC80: X=AS80*AU80*.120 | DD80: 0 | DE80: 0 | DF80: X=AS80*AG80*AU80*.120 | DG80: X=AS80*AH80*AU80*.120 | DH80: 0 | DI80: 0 | DJ80: 0 | DK80: 0 | DL80: 0 | DM80: 0 | DP80: {Factor:WinterCF} | DQ80: {Factor:SummerCF} | DR80: =IFERROR(INDEX($ED80:$IG80,MATCH(0,COUNTIF($DO80:DQ80,$ED80:$IG80),0)),"") -> {Measure:Quantity} | DS80: =IFERROR(INDEX($ED80:$IG80,MATCH(0,COUNTIF($DO80:DR80,$ED80:$IG80),0)),"") -> {Motor HP} | DT80: =IFERROR(INDEX($ED80:$IG80,MATCH(0,COUNTIF($DO80:DS80,$ED80:$IG80),0)),"") ->  | DU80: =IFERROR(INDEX($ED80:$IG80,MATCH(0,COUNTIF($DO80:DT80,$ED80:$IG80),0)),"") ->  | DV80: =IFERROR(INDEX($ED80:$IG80,MATCH(0,COUNTIF($DO80:DU80,$ED80:$IG80),0)),"") ->  | DW80: =IFERROR(INDEX($ED80:$IG80,MATCH(0,COUNTIF($DO80:DV80,$ED80:$IG80),0)),"") ->  | DX80: =IFERROR(INDEX($ED80:$IG80,MATCH(0,COUNTIF($DO80:DW80,$ED80:$IG80),0)),"") ->  | DY80: =IFERROR(INDEX($ED80:$IG80,MATCH(0,COUNTIF($DO80:DX80,$ED80:$IG80),0)),"") ->  | DZ80: =IFERROR(INDEX($ED80:$IG80,MATCH(0,COUNTIF($DO80:DY80,$ED80:$IG80),0)),"") ->  | EA80: =IFERROR(INDEX($ED80:$IG80,MATCH(0,COUNTIF($DO80:DZ80,$ED80:$IG80),0)),"") ->  | ED80: {Measure:Quantity} | EE80: {Motor HP} | EF80: {Motor HP} | EG80: {Motor HP} | EH80: {Motor HP} | EI80: {Motor HP} | EJ80: {Motor HP} | EK80: {Motor HP} | EN80: {Measure:Quantity} | EO80: {Motor HP} | EX80: {Measure:Quantity} | EY80: {Motor HP} | FH80: {Measure:Quantity} | FI80: {Factor:WinterCF} | FJ80: {Motor HP} | FR80: {Measure:Quantity} | FS80: {Factor:SummerCF} | FT80: {Motor HP} | IK80: 2
A81: C&I HVAC - Electric | B81: VFD: Chilled Water Pumps | C81: CWP | D81: 2018-07-01 | E81: 2019-06-30 | F81: Calculated | G81: {Measure:Quantity}*if({Motor HP}=5,2425,if({Motor HP}=7.5,2648,if({Motor HP}=10,2871,if({Motor HP}=15,3317,if({Motor HP}=20,3763,if({Motor HP}=25,4209,if({Motor HP}=30,4655,0))))))) | H81: 0 | I81: Calculated | J81: {Measure:Quantity}*if({Motor HP}=5,400,if({Motor HP}=7.5,650,if({Motor HP}=10,1400,if({Motor HP}=15,1650,if({Motor HP}=20,1850,if({Motor HP}=25,2000,if({Motor HP}=30,2300,0))))))) | K81: 0 | L81: 2018-07-01 | M81: 2019-06-30 | N81: Calculated | O81: {Measure:Quantity}*{Motor HP}*1633 | R81: {Measure:Quantity}*{Motor HP}*.183 | U81: {Measure:Quantity}*{Factor:WinterCF}*{Motor HP}*.183 | V81: {Measure:Quantity}*{Factor:SummerCF}*{Motor HP}*.183 | AC81: 2018-01-01 | AD81: 2019-06-30 | AF81: 13 | AG81: 0 | AH81: 0.865 | AI81: 0.309 | AJ81: 0.181 | AK81: 0.359 | AL81: 0.151 | AM81: 1 | AN81: 1.122 | AO81: 1 | AP81: 0.52 | AQ81: 0.016 | AR81: {Measure:Quantity} | AS81: 1 | AT81: {Motor HP} | AU81: 5 | BL81: =AS81*AU81*1633 -> 8165 | BM81: 0 | BN81: 0 | BO81: =AS81*AU81*0.183 -> 0.915 | BP81: 0 | BQ81: 0 | BR81: =AS81*AG81*AU81*0.183 -> 0 | BS81: =AS81*AH81*AU81*0.183 -> 0.791475 | BT81: 0 | BU81: 0 | BV81: 0 | BW81: 0 | BX81: 0 | BY81: 0 | BZ81: Res | CA81: Default DR | CB81: =Benefits(BL81,BR81,BS81,BT81,BU81,BV81,BW81,BX81,BY81,AF81,AI81,AJ81,AK81,AL81,AM81,AN81,AO81,AP81,AQ81,BZ81,CA81) -> 5425.452392 | CC81: 681.1406219 | CD81: 0 | CE81: 0 | CF81: 0 | CG81: 0 | CH81: 0 | CI81: 0 | CJ81: 6106.593014 | CK81: 0 | CM81: =AS81*IF(AU81=5,2425,IF(AU81=7.5,2648,IF(AU81=10,2871,IF(AU81=15,3317,IF(AU81=20,3763,IF(AU81=25,4209,IF(AU81=30,4655,0))))))) -> 2425 | CP81: 2425 | CQ81: 0.496 | CR81: 2.156700466 | CS81: 1 | CT81: 400 | CV81: Electric | CX81: X=AS81*if(AU81=5,2425,if(AU81=7.5,2648,if(AU81=10,2871,if(AU81=15,3317,if(AU81=20,3763,if(AU81=25,4209,if(AU81=30,4655,0))))))) | CZ81: X=AS81*AU81*1633 | DA81: 0 | DB81: 0 | DC81: X=AS81*AU81*.183 | DD81: 0 | DE81: 0 | DF81: X=AS81*AG81*AU81*.183 | DG81: X=AS81*AH81*AU81*.183 | DH81: 0 | DI81: 0 | DJ81: 0 | DK81: 0 | DL81: 0 | DM81: 0 | DP81: {Factor:WinterCF} | DQ81: {Factor:SummerCF} | DR81: =IFERROR(INDEX($ED81:$IG81,MATCH(0,COUNTIF($DO81:DQ81,$ED81:$IG81),0)),"") -> {Measure:Quantity} | DS81: =IFERROR(INDEX($ED81:$IG81,MATCH(0,COUNTIF($DO81:DR81,$ED81:$IG81),0)),"") -> {Motor HP} | DT81: =IFERROR(INDEX($ED81:$IG81,MATCH(0,COUNTIF($DO81:DS81,$ED81:$IG81),0)),"") ->  | DU81: =IFERROR(INDEX($ED81:$IG81,MATCH(0,COUNTIF($DO81:DT81,$ED81:$IG81),0)),"") ->  | DV81: =IFERROR(INDEX($ED81:$IG81,MATCH(0,COUNTIF($DO81:DU81,$ED81:$IG81),0)),"") ->  | DW81: =IFERROR(INDEX($ED81:$IG81,MATCH(0,COUNTIF($DO81:DV81,$ED81:$IG81),0)),"") ->  | DX81: =IFERROR(INDEX($ED81:$IG81,MATCH(0,COUNTIF($DO81:DW81,$ED81:$IG81),0)),"") ->  | DY81: =IFERROR(INDEX($ED81:$IG81,MATCH(0,COUNTIF($DO81:DX81,$ED81:$IG81),0)),"") ->  | DZ81: =IFERROR(INDEX($ED81:$IG81,MATCH(0,COUNTIF($DO81:DY81,$ED81:$IG81),0)),"") ->  | EA81: =IFERROR(INDEX($ED81:$IG81,MATCH(0,COUNTIF($DO81:DZ81,$ED81:$IG81),0)),"") ->  | ED81: {Measure:Quantity} | EE81: {Motor HP} | EF81: {Motor HP} | EG81: {Motor HP} | EH81: {Motor HP} | EI81: {Motor HP} | EJ81: {Motor HP} | EK81: {Motor HP} | EN81: {Measure:Quantity} | EO81: {Motor HP} | EX81: {Measure:Quantity} | EY81: {Motor HP} | FH81: {Measure:Quantity} | FI81: {Factor:WinterCF} | FJ81: {Motor HP} | FR81: {Measure:Quantity} | FS81: {Factor:SummerCF} | FT81: {Motor HP} | IK81: 2
A82: C&I HVAC - Electric | B82: Demand Control Ventilation - Existing Equipment Install | C82: DCV - DCVE | D82: 2018-07-01 | E82: 2019-06-30 | F82: Per Measure | G82: $2100.00 | H82: 0 | I82: Per Measure | J82: $500.00 | K82: 0 | L82: 2018-07-01 | M82: 2019-06-30 | N82: Calculated | O82: {Measure:Quantity} * {Area Sq. Ft} * {Space Type} * 0.000433 * (12/ {EER}) * 719 | P82: 0.0001 | R82: {Measure:Quantity} * {Area Sq. Ft} * {Space Type} * 0.000433 * 12/ {EER} | U82: {Measure:Quantity} * {Area Sq. Ft} * {Space Type} * 0.000433 * 12/ {EER} * {Factor:WinterCF} | V82: {Measure:Quantity} * {Area Sq. Ft} * {Space Type} * 0.000433 * 12/ {EER} * {Factor:SummerCF} | AC82: 2018-01-01 | AD82: 2019-06-30 | AF82: 10 | AG82: 0.015 | AH82: 0.777 | AI82: 0.17 | AJ82: 0.03 | AK82: 0.62 | AL82: 0.18 | AM82: 1 | AN82: 1.122 | AO82: 1 | AP82: 0.52 | AQ82: 0.016 | AR82: {Measure:Quantity} | AS82: 1 | AT82: {Area Sq. Ft} | AU82: 8400 | AV82: {Space Type} | AW82: 0.37 | AX82: {EER} | AY82: 10 | BL82: =AS82 * AU82 * AW82 * 0.000433 * (12/ AY82) * 719 -> 1161.125179 | BM82: =0.0001 -> 0.0001 | BN82: 0 | BO82: =AS82 * AU82 * AW82 * 0.000433 * 12/ AY82 -> 1.6149168 | BP82: 0 | BQ82: 0 | BR82: =AS82 * AU82 * AW82 * 0.000433 * 12/ AY82 * AG82 -> 0.024223752 | BS82: =AS82 * AU82 * AW82 * 0.000433 * 12/ AY82 * AH82 -> 1.254790354 | BT82: 0 | BU82: 0 | BV82: 0 | BW82: 0 | BX82: 0 | BY82: 0 | BZ82: Res | CA82: Default DR | CB82: =Benefits(BL82,BR82,BS82,BT82,BU82,BV82,BW82,BX82,BY82,AF82,AI82,AJ82,AK82,AL82,AM82,AN82,AO82,AP82,AQ82,BZ82,CA82) -> 569.217596 | CC82: 879.4244072 | CD82: 0 | CE82: 0 | CF82: 0 | CG82: 0 | CH82: 0 | CI82: 0 | CJ82: 1448.642003 | CK82: 0 | CM82: =2100 -> 2100 | CP82: 2100 | CQ82: 0.496 | CR82: 0.6898295253 | CS82: 0 | CT82: =CM82*CU82 -> 0 | CV82: Electric | CW82: 0 | CX82: X=$2100.00 | CZ82: X=AS82 * AU82 * AW82 * 0.000433 * (12/ AY82) * 719 | DA82: X=0.0001 | DB82: 0 | DC82: X=AS82 * AU82 * AW82 * 0.000433 * 12/ AY82 | DD82: 0 | DE82: 0 | DF82: X=AS82 * AU82 * AW82 * 0.000433 * 12/ AY82 * AG82 | DG82: X=AS82 * AU82 * AW82 * 0.000433 * 12/ AY82 * AH82 | DH82: 0 | DI82: 0 | DJ82: 0 | DK82: 0 | DL82: 0 | DM82: 0 | DP82: {Factor:WinterCF} | DQ82: {Factor:SummerCF} | DR82: =IFERROR(INDEX($ED82:$IG82,MATCH(0,COUNTIF($DO82:DQ82,$ED82:$IG82),0)),"") -> {Measure:Quantity} | DS82: =IFERROR(INDEX($ED82:$IG82,MATCH(0,COUNTIF($DO82:DR82,$ED82:$IG82),0)),"") -> {Area Sq. Ft} | DT82: =IFERROR(INDEX($ED82:$IG82,MATCH(0,COUNTIF($DO82:DS82,$ED82:$IG82),0)),"") -> {Space Type} | DU82: =IFERROR(INDEX($ED82:$IG82,MATCH(0,COUNTIF($DO82:DT82,$ED82:$IG82),0)),"") -> {EER} | DV82: =IFERROR(INDEX($ED82:$IG82,MATCH(0,COUNTIF($DO82:DU82,$ED82:$IG82),0)),"") ->  | DW82: =IFERROR(INDEX($ED82:$IG82,MATCH(0,COUNTIF($DO82:DV82,$ED82:$IG82),0)),"") ->  | DX82: =IFERROR(INDEX($ED82:$IG82,MATCH(0,COUNTIF($DO82:DW82,$ED82:$IG82),0)),"") ->  | DY82: =IFERROR(INDEX($ED82:$IG82,MATCH(0,COUNTIF($DO82:DX82,$ED82:$IG82),0)),"") ->  | DZ82: =IFERROR(INDEX($ED82:$IG82,MATCH(0,COUNTIF($DO82:DY82,$ED82:$IG82),0)),"") ->  | EA82: =IFERROR(INDEX($ED82:$IG82,MATCH(0,COUNTIF($DO82:DZ82,$ED82:$IG82),0)),"") ->  | EN82: {Measure:Quantity} | EO82: {Area Sq. Ft} | EP82: {Space Type} | EQ82: {EER} | EX82: {Measure:Quantity} | EY82: {Area Sq. Ft} | EZ82: {Space Type} | FA82: {EER} | FH82: {Measure:Quantity} | FI82: {Area Sq. Ft} | FJ82: {Space Type} | FK82: {EER} | FL82: {Factor:WinterCF} | FR82: {Measure:Quantity} | FS82: {Area Sq. Ft} | FT82: {Space Type} | FU82: {EER} | FV82: {Factor:SummerCF} | IK82: 4
A83: C&I HVAC - Electric | B83: Demand Control Ventilation - New Equipment Install | C83: DCV - DCVN | D83: 2018-07-01 | E83: 2019-06-30 | F83: Per Measure | G83: $850.00 | H83: 0 | I83: Per Measure | J83: $500.00 | K83: 0 | L83: 2018-07-01 | M83: 2019-06-30 | N83: Calculated | O83: {Measure:Quantity} * {Area Sq. Ft} * {Space Type} * 0.000433 * 12/ {EER} * 719 | P83: 0.0001 | R83: {Measure:Quantity} * {Area Sq. Ft} * {Space Type} * 0.000433 * 12/ {EER} | U83: {Measure:Quantity} * {Area Sq. Ft} * {Space Type} * 0.000433 * 12/ {EER} * {Factor:WinterCF} | V83: {Measure:Quantity} * {Area Sq. Ft} * {Space Type} * 0.000433 * 12/ {EER} * {Factor:SummerCF} | AC83: 2018-01-01 | AD83: 2019-06-30 | AF83: 10 | AG83: 0.015 | AH83: 0.777 | AI83: 0.17 | AJ83: 0.03 | AK83: 0.62 | AL83: 0.18 | AM83: 1 | AN83: 1.122 | AO83: 1 | AP83: 0.52 | AQ83: 0.016 | AR83: {Measure:Quantity} | AS83: 1 | AT83: {Area Sq. Ft} | AU83: 8400 | AV83: {Space Type} | AW83: 0.37 | AX83: {EER} | AY83: 10 | BL83: =AS83 * AU83 * AW83 * 0.000433 * 12/ AY83 * 719 -> 1161.125179 | BM83: =0.0001 -> 0.0001 | BN83: 0 | BO83: =AS83 * AU83 * AW83 * 0.000433 * 12/ AY83 -> 1.6149168 | BP83: 0 | BQ83: 0 | BR83: =AS83 * AU83 * AW83 * 0.000433 * 12/ AY83 * AG83 -> 0.024223752 | BS83: =AS83 * AU83 * AW83 * 0.000433 * 12/ AY83 * AH83 -> 1.254790354 | BT83: 0 | BU83: 0 | BV83: 0 | BW83: 0 | BX83: 0 | BY83: 0 | BZ83: Res | CA83: Default DR | CB83: =Benefits(BL83,BR83,BS83,BT83,BU83,BV83,BW83,BX83,BY83,AF83,AI83,AJ83,AK83,AL83,AM83,AN83,AO83,AP83,AQ83,BZ83,CA83) -> 569.217596 | CC83: 879.4244072 | CD83: 0 | CE83: 0 | CF83: 0 | CG83: 0 | CH83: 0 | CI83: 0 | CJ83: 1448.642003 | CK83: 0 | CM83: =850 -> 850 | CP83: 850 | CQ83: 0.496 | CR83: 1.20154922 | CS83: 1 | CT83: 350 | CV83: Electric | CX83: X=$850.00 | CZ83: X=AS83 * AU83 * AW83 * 0.000433 * 12/ AY83 * 719 | DA83: X=0.0001 | DB83: 0 | DC83: X=AS83 * AU83 * AW83 * 0.000433 * 12/ AY83 | DD83: 0 | DE83: 0 | DF83: X=AS83 * AU83 * AW83 * 0.000433 * 12/ AY83 * AG83 | DG83: X=AS83 * AU83 * AW83 * 0.000433 * 12/ AY83 * AH83 | DH83: 0 | DI83: 0 | DJ83: 0 | DK83: 0 | DL83: 0 | DM83: 0 | DP83: {Factor:WinterCF} | DQ83: {Factor:SummerCF} | DR83: =IFERROR(INDEX($ED83:$IG83,MATCH(0,COUNTIF($DO83:DQ83,$ED83:$IG83),0)),"") -> {Measure:Quantity} | DS83: =IFERROR(INDEX($ED83:$IG83,MATCH(0,COUNTIF($DO83:DR83,$ED83:$IG83),0)),"") -> {Area Sq. Ft} | DT83: =IFERROR(INDEX($ED83:$IG83,MATCH(0,COUNTIF($DO83:DS83,$ED83:$IG83),0)),"") -> {Space Type} | DU83: =IFERROR(INDEX($ED83:$IG83,MATCH(0,COUNTIF($DO83:DT83,$ED83:$IG83),0)),"") -> {EER} | DV83: =IFERROR(INDEX($ED83:$IG83,MATCH(0,COUNTIF($DO83:DU83,$ED83:$IG83),0)),"") ->  | DW83: =IFERROR(INDEX($ED83:$IG83,MATCH(0,COUNTIF($DO83:DV83,$ED83:$IG83),0)),"") ->  | DX83: =IFERROR(INDEX($ED83:$IG83,MATCH(0,COUNTIF($DO83:DW83,$ED83:$IG83),0)),"") ->  | DY83: =IFERROR(INDEX($ED83:$IG83,MATCH(0,COUNTIF($DO83:DX83,$ED83:$IG83),0)),"") ->  | DZ83: =IFERROR(INDEX($ED83:$IG83,MATCH(0,COUNTIF($DO83:DY83,$ED83:$IG83),0)),"") ->  | EA83: =IFERROR(INDEX($ED83:$IG83,MATCH(0,COUNTIF($DO83:DZ83,$ED83:$IG83),0)),"") ->  | EN83: {Measure:Quantity} | EO83: {Area Sq. Ft} | EP83: {Space Type} | EQ83: {EER} | EX83: {Measure:Quantity} | EY83: {Area Sq. Ft} | EZ83: {Space Type} | FA83: {EER} | FH83: {Measure:Quantity} | FI83: {Area Sq. Ft} | FJ83: {Space Type} | FK83: {EER} | FL83: {Factor:WinterCF} | FR83: {Measure:Quantity} | FS83: {Area Sq. Ft} | FT83: {Space Type} | FU83: {EER} | FV83: {Factor:SummerCF} | IK83: 4
A84: C&I HVAC - Electric | B84: DHP Lost Opportunity Single Zone | C84: DHP1L | D84: 2018-07-01 | E84: 2019-06-30 | F84: Per Measure | G84: $682.00 | H84: 0 | I84: Per Measure | J84: $500.00 | K84: 0 | L84: 2018-07-01 | M84: 2019-06-30 | N84: Modeled | AC84: 2018-01-01 | AD84: 2019-06-30 | AF84: 18 | AG84: 1 | AH84: 1 | AI84: 0.3772449326 | AJ84: 0.5115776749 | AK84: 0.06171321796 | AL84: 0.0493696491 | AM84: 1 | AN84: 1 | AO84: 1 | AP84: 0.33 | AQ84: 0.016 | AR84: Heating Capacity (Btu/h) | AS84: 16965 | AT84: Cooling Capacity (Btu/h) | AU84: 13864 | AV84: DHP Cooling Efficiency (SEER) | AW84: 26 | AX84: DHP Heating Efficiency (HSPF) | AY84: 13 | AZ84: DHP Cooling Efficiency (EER) | BA84: 14 | BL84: -548.517724 | BR84: -0.2513413408 | BS84: 0.244800826 | BT84: 0 | BU84: 1.85821733 | BV84: 7.505945284 | BW84: 0.1252730785 | BX84: 0.5741682763 | BY84: 0 | BZ84: Res | CA84: Default DR | CB84: =Benefits(BL84,BR84,BS84,BT84,BU84,BV84,BW84,BX84,BY84,AF84,AI84,AJ84,AK84,AL84,AM84,AN84,AO84,AP84,AQ84,BZ84,CA84) -> -454.1476386 | CC84: -297.0337812 | CD84: 0 | CE84: 2493.341796 | CF84: 37.31464986 | CG84: 855.8941881 | CH84: 185.872641 | CI84: 0 | CJ84: 3572.423275 | CK84: 751.1814198 | CM84: =682 -> 682 | CP84: 1433.18142 | CQ84: 0.686 | CR84: 2.149415075 | CS84: 1 | CT84: 500 | CV84: Electric | CX84: X=$682.00 | CZ84: 0 | DA84: 0 | DB84: 0 | DC84: 0 | DD84: 0 | DE84: 0 | DF84: 0 | DG84: 0 | DH84: 0 | DI84: 0 | DJ84: 0 | DK84: 0 | DL84: 0 | DM84: 0 | DP84: {Factor:WinterCF} | DQ84: {Factor:SummerCF} | DR84: =IFERROR(INDEX($ED84:$IG84,MATCH(0,COUNTIF($DO84:DQ84,$ED84:$IG84),0)),"") ->  | DS84: =IFERROR(INDEX($ED84:$IG84,MATCH(0,COUNTIF($DO84:DR84,$ED84:$IG84),0)),"") ->  | DT84: =IFERROR(INDEX($ED84:$IG84,MATCH(0,COUNTIF($DO84:DS84,$ED84:$IG84),0)),"") ->  | DU84: =IFERROR(INDEX($ED84:$IG84,MATCH(0,COUNTIF($DO84:DT84,$ED84:$IG84),0)),"") ->  | DV84: =IFERROR(INDEX($ED84:$IG84,MATCH(0,COUNTIF($DO84:DU84,$ED84:$IG84),0)),"") ->  | DW84: =IFERROR(INDEX($ED84:$IG84,MATCH(0,COUNTIF($DO84:DV84,$ED84:$IG84),0)),"") ->  | DX84: =IFERROR(INDEX($ED84:$IG84,MATCH(0,COUNTIF($DO84:DW84,$ED84:$IG84),0)),"") ->  | DY84: =IFERROR(INDEX($ED84:$IG84,MATCH(0,COUNTIF($DO84:DX84,$ED84:$IG84),0)),"") ->  | DZ84: =IFERROR(INDEX($ED84:$IG84,MATCH(0,COUNTIF($DO84:DY84,$ED84:$IG84),0)),"") ->  | EA84: =IFERROR(INDEX($ED84:$IG84,MATCH(0,COUNTIF($DO84:DZ84,$ED84:$IG84),0)),"") ->  | ED84: =IFERROR(MID($G84,FIND(CHAR(160),SUBSTITUTE($G84,"{",CHAR(160),ED$1)),FIND(CHAR(160),SUBSTITUTE($G84,"}",CHAR(160),ED$1))-FIND(CHAR(160),SUBSTITUTE($G84,"{",CHAR(160),ED$1))+1),"") ->  | EN84: =IFERROR(MID($O84,FIND(CHAR(160),SUBSTITUTE($O84,"{",CHAR(160),EN$1)),FIND(CHAR(160),SUBSTITUTE($O84,"}",CHAR(160),EN$1))-FIND(CHAR(160),SUBSTITUTE($O84,"{",CHAR(160),EN$1))+1),"") ->  | EX84: =IFERROR(MID($R84,FIND(CHAR(160),SUBSTITUTE($R84,"{",CHAR(160),EX$1)),FIND(CHAR(160),SUBSTITUTE($R84,"}",CHAR(160),EX$1))-FIND(CHAR(160),SUBSTITUTE($R84,"{",CHAR(160),EX$1))+1),"") ->  | FH84: =IFERROR(MID($U84,FIND(CHAR(160),SUBSTITUTE($U84,"{",CHAR(160),FH$1)),FIND(CHAR(160),SUBSTITUTE($U84,"}",CHAR(160),FH$1))-FIND(CHAR(160),SUBSTITUTE($U84,"{",CHAR(160),FH$1))+1),"") ->  | FR84: =IFERROR(MID($V84,FIND(CHAR(160),SUBSTITUTE($V84,"{",CHAR(160),FR$1)),FIND(CHAR(160),SUBSTITUTE($V84,"}",CHAR(160),FR$1))-FIND(CHAR(160),SUBSTITUTE($V84,"{",CHAR(160),FR$1))+1),"") ->  | GB84: =IFERROR(MID($W84,FIND(CHAR(160),SUBSTITUTE($W84,"{",CHAR(160),GB$1)),FIND(CHAR(160),SUBSTITUTE($W84,"}",CHAR(160),GB$1))-FIND(CHAR(160),SUBSTITUTE($W84,"{",CHAR(160),GB$1))+1),"") ->  | GL84: =IFERROR(MID($X84,FIND(CHAR(160),SUBSTITUTE($X84,"{",CHAR(160),GL$1)),FIND(CHAR(160),SUBSTITUTE($X84,"}",CHAR(160),GL$1))-FIND(CHAR(160),SUBSTITUTE($X84,"{",CHAR(160),GL$1))+1),"") ->  | GV84: =IFERROR(MID($Y84,FIND(CHAR(160),SUBSTITUTE($Y84,"{",CHAR(160),GV$1)),FIND(CHAR(160),SUBSTITUTE($Y84,"}",CHAR(160),GV$1))-FIND(CHAR(160),SUBSTITUTE($Y84,"{",CHAR(160),GV$1))+1),"") ->  | HF84: =IFERROR(MID($Z84,FIND(CHAR(160),SUBSTITUTE($Z84,"{",CHAR(160),HF$1)),FIND(CHAR(160),SUBSTITUTE($Z84,"}",CHAR(160),HF$1))-FIND(CHAR(160),SUBSTITUTE($Z84,"{",CHAR(160),HF$1))+1),"") ->  | HP84: =IFERROR(MID($AA84,FIND(CHAR(160),SUBSTITUTE($AA84,"{",CHAR(160),HP$1)),FIND(CHAR(160),SUBSTITUTE($AA84,"}",CHAR(160),HP$1))-FIND(CHAR(160),SUBSTITUTE($AA84,"{",CHAR(160),HP$1))+1),"") ->  | HZ84: =IFERROR(MID($AB84,FIND(CHAR(160),SUBSTITUTE($AB84,"{",CHAR(160),HZ$1)),FIND(CHAR(160),SUBSTITUTE($AB84,"}",CHAR(160),HZ$1))-FIND(CHAR(160),SUBSTITUTE($AB84,"{",CHAR(160),HZ$1))+1),"") ->  | IK84: 0
A85: C&I HVAC - Electric | B85: DHP Lost Opportunity 2 Zones | C85: DHP2L | D85: 2018-07-01 | E85: 2019-06-30 | F85: Per Measure | G85: $682.00 | H85: 0 | I85: Per Measure | J85: $750.00 | K85: 0 | L85: 2018-07-01 | M85: 2019-06-30 | N85: Modeled | AD85: 2019-06-30 | AF85: 18 | AG85: 1 | AH85: 1 | AI85: 0.3772449326 | AJ85: 0.5115776749 | AK85: 0.06171321796 | AL85: 0.0493696491 | AM85: 1 | AN85: 1 | AO85: 1 | AP85: 0.33 | AQ85: 0.016 | AR85: Heating Capacity (Btu/h) | AS85: 28723 | AT85: Cooling Capacity (Btu/h) | AU85: 26673 | AV85: DHP Cooling Efficiency (SEER) | AW85: 19 | AX85: DHP Heating Efficiency (HSPF) | AY85: 11 | AZ85: DHP Cooling Efficiency (EER) | BA85: 13 | BL85: =BL$84*$AS85/$AS$84 -> -928.6810837 | BM85: 0 | BN85: 0 | BP85: 0 | BQ85: 0 | BR85: =BR$84*$AU85/$AU$84 -> -0.4835565192 | BS85: 0.4709731991 | BT85: 0 | BU85: 3.575031077 | BV85: 14.44071542 | BW85: 0.241013331 | BX85: 1.104644434 | BY85: 0 | BZ85: Res | CA85: Default DR | CB85: =Benefits(BL85,BR85,BS85,BT85,BU85,BV85,BW85,BX85,BY85,AF85,AI85,AJ85,AK85,AL85,AM85,AN85,AO85,AP85,AQ85,BZ85,CA85) -> -768.905548 | CC85: -571.4643715 | CD85: 0 | CE85: 4796.949345 | CF85: 71.78979052 | CG85: 1646.65794 | CH85: 357.6010498 | CI85: 0 | CJ85: 6872.998125 | CK85: 1340.36992 | CM85: =CM84*2 -> 1364 | CP85: 2704.36992 | CQ85: 0.686 | CR85: 2.255168965 | CS85: 1 | CT85: 750 | CV85: Electric | CX85: X=$682.00 | CZ85: 0 | DA85: 0 | DB85: 0 | DC85: 0 | DD85: 0 | DE85: 0 | DF85: 0 | DG85: 0 | DH85: 0 | DI85: 0 | DJ85: 0 | DK85: 0 | DL85: 0 | DM85: 0 | DP85: {Factor:WinterCF} | DQ85: {Factor:SummerCF} | DR85: =IFERROR(INDEX($ED85:$IG85,MATCH(0,COUNTIF($DO85:DQ85,$ED85:$IG85),0)),"") ->  | DS85: =IFERROR(INDEX($ED85:$IG85,MATCH(0,COUNTIF($DO85:DR85,$ED85:$IG85),0)),"") ->  | DT85: =IFERROR(INDEX($ED85:$IG85,MATCH(0,COUNTIF($DO85:DS85,$ED85:$IG85),0)),"") ->  | DU85: =IFERROR(INDEX($ED85:$IG85,MATCH(0,COUNTIF($DO85:DT85,$ED85:$IG85),0)),"") ->  | DV85: =IFERROR(INDEX($ED85:$IG85,MATCH(0,COUNTIF($DO85:DU85,$ED85:$IG85),0)),"") ->  | DW85: =IFERROR(INDEX($ED85:$IG85,MATCH(0,COUNTIF($DO85:DV85,$ED85:$IG85),0)),"") ->  | DX85: =IFERROR(INDEX($ED85:$IG85,MATCH(0,COUNTIF($DO85:DW85,$ED85:$IG85),0)),"") ->  | DY85: =IFERROR(INDEX($ED85:$IG85,MATCH(0,COUNTIF($DO85:DX85,$ED85:$IG85),0)),"") ->  | DZ85: =IFERROR(INDEX($ED85:$IG85,MATCH(0,COUNTIF($DO85:DY85,$ED85:$IG85),0)),"") ->  | EA85: =IFERROR(INDEX($ED85:$IG85,MATCH(0,COUNTIF($DO85:DZ85,$ED85:$IG85),0)),"") ->  | IK85: 0
A86: C&I HVAC - Electric | B86: DHP Lost Opportunity 3 Zones | C86: DHP3L | D86: 2018-07-01 | E86: 2019-06-30 | F86: Per Measure | G86: $682.00 | H86: 0 | I86: Per Measure | J86: $1000.00 | K86: 0 | L86: 2018-07-01 | M86: 2019-06-30 | N86: Modeled | AD86: 2019-06-30 | AF86: 18 | AG86: 1 | AH86: 1 | AI86: 0.3772449326 | AJ86: 0.5115776749 | AK86: 0.06171321796 | AL86: 0.0493696491 | AM86: 1 | AN86: 1 | AO86: 1 | AP86: 0.33 | AQ86: 0.016 | AR86: Heating Capacity (Btu/h) | AS86: 30838 | AT86: Cooling Capacity (Btu/h) | AU86: 31459 | AV86: DHP Cooling Efficiency (SEER) | AW86: 19 | AX86: DHP Heating Efficiency (HSPF) | AY86: 11 | AZ86: DHP Cooling Efficiency (EER) | BA86: 12 | BL86: =BL$84*$AS86/$AS$84 -> -997.06393 | BM86: 0 | BN86: 0 | BP86: 0 | BQ86: 0 | BR86: -0.5703222187 | BS86: 0.5554810434 | BT86: 0 | BU86: 4.216507429 | BV86: 17.03184742 | BW86: 0.2842589278 | BX86: 1.302853419 | BY86: 0 | BZ86: Res | CA86: Default DR | CB86: =Benefits(BL86,BR86,BS86,BT86,BU86,BV86,BW86,BX86,BY86,AF86,AI86,AJ86,AK86,AL86,AM86,AN86,AO86,AP86,AQ86,BZ86,CA86) -> -825.5234234 | CC86: -674.0035865 | CD86: 0 | CE86: 5657.677405 | CF86: 84.67120384 | CG86: 1942.121701 | CH86: 421.766259 | CI86: 0 | CJ86: 8106.236569 | CK86: 1499.52701 | CM86: =CM84*3 -> 2046 | CP86: 3545.52701 | CQ86: 0.686 | CR86: 2.024912404 | CS86: 1 | CT86: 1000 | CV86: Electric | CX86: X=$682.00 | CZ86: 0 | DA86: 0 | DB86: 0 | DC86: 0 | DD86: 0 | DE86: 0 | DF86: 0 | DG86: 0 | DH86: 0 | DI86: 0 | DJ86: 0 | DK86: 0 | DL86: 0 | DM86: 0 | DP86: {Factor:WinterCF} | DQ86: {Factor:SummerCF} | DR86: =IFERROR(INDEX($ED86:$IG86,MATCH(0,COUNTIF($DO86:DQ86,$ED86:$IG86),0)),"") ->  | DS86: =IFERROR(INDEX($ED86:$IG86,MATCH(0,COUNTIF($DO86:DR86,$ED86:$IG86),0)),"") ->  | DT86: =IFERROR(INDEX($ED86:$IG86,MATCH(0,COUNTIF($DO86:DS86,$ED86:$IG86),0)),"") ->  | DU86: =IFERROR(INDEX($ED86:$IG86,MATCH(0,COUNTIF($DO86:DT86,$ED86:$IG86),0)),"") ->  | DV86: =IFERROR(INDEX($ED86:$IG86,MATCH(0,COUNTIF($DO86:DU86,$ED86:$IG86),0)),"") ->  | DW86: =IFERROR(INDEX($ED86:$IG86,MATCH(0,COUNTIF($DO86:DV86,$ED86:$IG86),0)),"") ->  | DX86: =IFERROR(INDEX($ED86:$IG86,MATCH(0,COUNTIF($DO86:DW86,$ED86:$IG86),0)),"") ->  | DY86: =IFERROR(INDEX($ED86:$IG86,MATCH(0,COUNTIF($DO86:DX86,$ED86:$IG86),0)),"") ->  | DZ86: =IFERROR(INDEX($ED86:$IG86,MATCH(0,COUNTIF($DO86:DY86,$ED86:$IG86),0)),"") ->  | EA86: =IFERROR(INDEX($ED86:$IG86,MATCH(0,COUNTIF($DO86:DZ86,$ED86:$IG86),0)),"") ->  | IK86: 0
A87: C&I HVAC - Electric | B87: DHP Lost Opportunity 4 Zones | C87: DHP4L | D87: 2018-07-01 | E87: 2019-06-30 | F87: Per Measure | G87: $682.00 | H87: 0 | I87: Per Measure | J87: $1250.00 | K87: 0 | L87: 2018-07-01 | M87: 2019-06-30 | N87: Modeled | AD87: 2019-06-30 | AF87: 18 | AG87: 1 | AH87: 1 | AI87: 0.3772449326 | AJ87: 0.5115776749 | AK87: 0.06171321796 | AL87: 0.0493696491 | AM87: 1 | AN87: 1 | AO87: 1 | AP87: 0.33 | AQ87: 0.016 | AR87: Heating Capacity (Btu/h) | AS87: 42200 | AT87: Cooling Capacity (Btu/h) | AU87: 39700 | AV87: DHP Cooling Efficiency (SEER) | AW87: 19 | AX87: DHP Heating Efficiency (HSPF) | AY87: 11 | AZ87: DHP Cooling Efficiency (EER) | BA87: 12 | BL87: =BL$84*$AS87/$AS$84 -> -1364.423693 | BM87: 0 | BN87: 0 | BP87: 0 | BQ87: 0 | BR87: -0.7197238336 | BS87: 0.7009948639 | BT87: 0 | BU87: 5.321063764 | BV87: 21.49351037 | BW87: 0.3587233998 | BX87: 1.644148916 | BY87: 0 | BZ87: Res | CA87: Default DR | CB87: =Benefits(BL87,BR87,BS87,BT87,BU87,BV87,BW87,BX87,BY87,AF87,AI87,AJ87,AK87,AL87,AM87,AN87,AO87,AP87,AQ87,BZ87,CA87) -> -1129.680539 | CC87: -850.5655737 | CD87: 0 | CE87: 7139.762643 | CF87: 106.8516734 | CG87: 2450.879924 | CH87: 532.252153 | CI87: 0 | CJ87: 10229.74639 | CK87: 1980.246113 | CM87: =CM84*4 -> 2728 | CP87: 4708.246113 | CQ87: 0.686 | CR87: 1.937303901 | CS87: 1 | CT87: 1250 | CV87: Electric | CX87: X=$682.00 | CZ87: 0 | DA87: 0 | DB87: 0 | DC87: 0 | DD87: 0 | DE87: 0 | DF87: 0 | DG87: 0 | DH87: 0 | DI87: 0 | DJ87: 0 | DK87: 0 | DL87: 0 | DM87: 0 | DP87: {Factor:WinterCF} | DQ87: {Factor:SummerCF} | DR87: =IFERROR(INDEX($ED87:$IG87,MATCH(0,COUNTIF($DO87:DQ87,$ED87:$IG87),0)),"") ->  | DS87: =IFERROR(INDEX($ED87:$IG87,MATCH(0,COUNTIF($DO87:DR87,$ED87:$IG87),0)),"") ->  | DT87: =IFERROR(INDEX($ED87:$IG87,MATCH(0,COUNTIF($DO87:DS87,$ED87:$IG87),0)),"") ->  | DU87: =IFERROR(INDEX($ED87:$IG87,MATCH(0,COUNTIF($DO87:DT87,$ED87:$IG87),0)),"") ->  | DV87: =IFERROR(INDEX($ED87:$IG87,MATCH(0,COUNTIF($DO87:DU87,$ED87:$IG87),0)),"") ->  | DW87: =IFERROR(INDEX($ED87:$IG87,MATCH(0,COUNTIF($DO87:DV87,$ED87:$IG87),0)),"") ->  | DX87: =IFERROR(INDEX($ED87:$IG87,MATCH(0,COUNTIF($DO87:DW87,$ED87:$IG87),0)),"") ->  | DY87: =IFERROR(INDEX($ED87:$IG87,MATCH(0,COUNTIF($DO87:DX87,$ED87:$IG87),0)),"") ->  | DZ87: =IFERROR(INDEX($ED87:$IG87,MATCH(0,COUNTIF($DO87:DY87,$ED87:$IG87),0)),"") ->  | EA87: =IFERROR(INDEX($ED87:$IG87,MATCH(0,COUNTIF($DO87:DZ87,$ED87:$IG87),0)),"") ->  | IK87: 0
A88: C&I HVAC - Electric | B88: VFD: Heating Hot Water Circulation Pump | C88: HHWP | D88: 2018-07-01 | E88: 2019-06-30 | F88: Calculated | G88: {Measure:Quantity}*if({Motor HP}=5,2425,if({Motor HP}=7.5,2648,if({Motor HP}=10,2871,if({Motor HP}=15,3317,if({Motor HP}=20,3763,if({Motor HP}=25,4209,if({Motor HP}=30,4655,0))))))) | H88: 0 | I88: Calculated | J88: {Measure:Quantity}*if({Motor HP}=5,400,if({Motor HP}=7.5,650,if({Motor HP}=10,1400,if({Motor HP}=15,1650,if({Motor HP}=20,1850,if({Motor HP}=25,2000,if({Motor HP}=30,2300,0))))))) | K88: 0 | L88: 2018-07-01 | M88: 2019-06-30 | N88: Calculated | O88: {Measure:Quantity}*{Motor HP}*1548 | R88: {Measure:Quantity}*{Motor HP}*.096 | U88: {Measure:Quantity}*{Factor:WinterCF}*{Motor HP}*.096 | V88: {Measure:Quantity}*{Factor:SummerCF}*{Motor HP}*.096 | AC88: 2018-01-01 | AD88: 2019-06-30 | AF88: 13 | AG88: 0.737 | AH88: 0 | AI88: 0.3772449326 | AJ88: 0.5115776749 | AK88: 0.06171321796 | AL88: 0.0493696491 | AM88: 1 | AN88: 1.122 | AO88: 1 | AP88: 0.52 | AQ88: 0.016 | AR88: {Measure:Quantity} | AS88: 1 | AT88: {Motor HP} | AU88: 5 | BL88: =AS88*AU88*1548 -> 7740 | BM88: 0 | BN88: 0 | BO88: =AS88*AU88*0.096 -> 0.48 | BP88: 0 | BQ88: 0 | BR88: =AS88*AG88*AU88*0.096 -> 0.35376 | BS88: =AS88*AH88*AU88*0.096 -> 0 | BT88: 0 | BU88: 0 | BV88: 0 | BW88: 0 | BX88: 0 | BY88: 0 | BZ88: Res | CA88: Default DR | CB88: =Benefits(BL88,BR88,BS88,BT88,BU88,BV88,BW88,BX88,BY88,AF88,AI88,AJ88,AK88,AL88,AM88,AN88,AO88,AP88,AQ88,BZ88,CA88) -> 5600.414404 | CC88: 608.889242 | CD88: 0 | CE88: 0 | CF88: 0 | CG88: 0 | CH88: 0 | CI88: 0 | CJ88: 6209.303646 | CK88: 0 | CM88: =AS88*IF(AU88=5,2425,IF(AU88=7.5,2648,IF(AU88=10,2871,IF(AU88=15,3317,IF(AU88=20,3763,IF(AU88=25,4209,IF(AU88=30,4655,0))))))) -> 2425 | CP88: 2425 | CQ88: 0.496 | CR88: 2.192975369 | CS88: 1 | CT88: 400 | CV88: Electric | CX88: X=AS88*if(AU88=5,2425,if(AU88=7.5,2648,if(AU88=10,2871,if(AU88=15,3317,if(AU88=20,3763,if(AU88=25,4209,if(AU88=30,4655,0))))))) | CZ88: X=AS88*AU88*1548 | DA88: 0 | DB88: 0 | DC88: X=AS88*AU88*.096 | DD88: 0 | DE88: 0 | DF88: X=AS88*AG88*AU88*.096 | DG88: X=AS88*AH88*AU88*.096 | DH88: 0 | DI88: 0 | DJ88: 0 | DK88: 0 | DL88: 0 | DM88: 0 | DP88: {Factor:WinterCF} | DQ88: {Factor:SummerCF} | DR88: =IFERROR(INDEX($ED88:$IG88,MATCH(0,COUNTIF($DO88:DQ88,$ED88:$IG88),0)),"") -> {Measure:Quantity} | DS88: =IFERROR(INDEX($ED88:$IG88,MATCH(0,COUNTIF($DO88:DR88,$ED88:$IG88),0)),"") -> {Motor HP} | DT88: =IFERROR(INDEX($ED88:$IG88,MATCH(0,COUNTIF($DO88:DS88,$ED88:$IG88),0)),"") ->  | DU88: =IFERROR(INDEX($ED88:$IG88,MATCH(0,COUNTIF($DO88:DT88,$ED88:$IG88),0)),"") ->  | DV88: =IFERROR(INDEX($ED88:$IG88,MATCH(0,COUNTIF($DO88:DU88,$ED88:$IG88),0)),"") ->  | DW88: =IFERROR(INDEX($ED88:$IG88,MATCH(0,COUNTIF($DO88:DV88,$ED88:$IG88),0)),"") ->  | DX88: =IFERROR(INDEX($ED88:$IG88,MATCH(0,COUNTIF($DO88:DW88,$ED88:$IG88),0)),"") ->  | DY88: =IFERROR(INDEX($ED88:$IG88,MATCH(0,COUNTIF($DO88:DX88,$ED88:$IG88),0)),"") ->  | DZ88: =IFERROR(INDEX($ED88:$IG88,MATCH(0,COUNTIF($DO88:DY88,$ED88:$IG88),0)),"") ->  | EA88: =IFERROR(INDEX($ED88:$IG88,MATCH(0,COUNTIF($DO88:DZ88,$ED88:$IG88),0)),"") ->  | ED88: {Measure:Quantity} | EE88: {Motor HP} | EF88: {Motor HP} | EG88: {Motor HP} | EH88: {Motor HP} | EI88: {Motor HP} | EJ88: {Motor HP} | EK88: {Motor HP} | EN88: {Measure:Quantity} | EO88: {Motor HP} | EX88: {Measure:Quantity} | EY88: {Motor HP} | FH88: {Measure:Quantity} | FI88: {Factor:WinterCF} | FJ88: {Motor HP} | FR88: {Measure:Quantity} | FS88: {Factor:SummerCF} | FT88: {Motor HP} | IK88: 2
A89: C&I HVAC - Electric | B89: Ductless Heat Pump Multi-Family | C89: MPDHPNC | D89: 2018-07-01 | E89: 2019-06-30 | F89: Per Measure | G89: $682.00 | H89: 0 | I89: Calculated | J89: {Measure:Quantity}*(500+({Number of Zones}-1)*250) | K89: 0 | L89: 2018-07-01 | M89: 2019-06-30 | N89: Modeled | AD89: 2019-06-30 | AF89: 18 | AG89: 1 | AH89: 1 | AI89: 0.3772449326 | AJ89: 0.5115776749 | AK89: 0.06171321796 | AL89: 0.0493696491 | AM89: 1 | AN89: 1 | AO89: 1 | AP89: 0.11 | AQ89: 0.01 | AR89: Heating Capacity (Btu/h) | AS89: 17239.27778 | BL89: =BL$84*$AS89/$AS$84 -> -557.3857595 | BM89: 0 | BN89: 0 | BP89: 0 | BQ89: 0 | BR89: =BR$84*$AS89/$AU$84 -> -0.312531967 | BS89: 0.3043991229 | BT89: 0 | BU89: 2.310611997 | BV89: 9.333314753 | BW89: 0.1557715953 | BX89: 0.7139531452 | BY89: 0 | BZ89: Res | CA89: Default DR | CB89: =Benefits(BL89,BR89,BS89,BT89,BU89,BV89,BW89,BX89,BY89,AF89,AI89,AJ89,AK89,AL89,AM89,AN89,AO89,AP89,AQ89,BZ89,CA89) -> -461.4899672 | CC89: -369.3485187 | CD89: 0 | CE89: 3100.361498 | CF89: 46.39913547 | CG89: 1064.266998 | CH89: 231.1245016 | CI89: 0 | CJ89: 4442.152133 | CK89: 830.8384859 | CM89: =682 -> 682 | CP89: 1512.838486 | CQ89: 0.9 | CR89: 2.832293426 | CS89: 1 | CT89: 500 | CV89: Electric | CX89: X=$682.00 | CZ89: 0 | DA89: 0 | DB89: 0 | DC89: 0 | DD89: 0 | DE89: 0 | DF89: 0 | DG89: 0 | DH89: 0 | DI89: 0 | DJ89: 0 | DK89: 0 | DL89: 0 | DM89: 0 | DP89: {Factor:WinterCF} | DQ89: {Factor:SummerCF} | DR89: =IFERROR(INDEX($ED89:$IG89,MATCH(0,COUNTIF($DO89:DQ89,$ED89:$IG89),0)),"") ->  | DS89: =IFERROR(INDEX($ED89:$IG89,MATCH(0,COUNTIF($DO89:DR89,$ED89:$IG89),0)),"") ->  | DT89: =IFERROR(INDEX($ED89:$IG89,MATCH(0,COUNTIF($DO89:DS89,$ED89:$IG89),0)),"") ->  | DU89: =IFERROR(INDEX($ED89:$IG89,MATCH(0,COUNTIF($DO89:DT89,$ED89:$IG89),0)),"") ->  | DV89: =IFERROR(INDEX($ED89:$IG89,MATCH(0,COUNTIF($DO89:DU89,$ED89:$IG89),0)),"") ->  | DW89: =IFERROR(INDEX($ED89:$IG89,MATCH(0,COUNTIF($DO89:DV89,$ED89:$IG89),0)),"") ->  | DX89: =IFERROR(INDEX($ED89:$IG89,MATCH(0,COUNTIF($DO89:DW89,$ED89:$IG89),0)),"") ->  | DY89: =IFERROR(INDEX($ED89:$IG89,MATCH(0,COUNTIF($DO89:DX89,$ED89:$IG89),0)),"") ->  | DZ89: =IFERROR(INDEX($ED89:$IG89,MATCH(0,COUNTIF($DO89:DY89,$ED89:$IG89),0)),"") ->  | EA89: =IFERROR(INDEX($ED89:$IG89,MATCH(0,COUNTIF($DO89:DZ89,$ED89:$IG89),0)),"") ->  | IK89: 0
A90: C&I HVAC - Electric | B90: VFD: Return Fan on VAV Air Handler | C90: RFA | D90: 2018-07-01 | E90: 2019-06-30 | F90: Calculated | G90: {Measure:Quantity}*if({Motor HP}=5,2425,if({Motor HP}=7.5,2648,if({Motor HP}=10,2871,if({Motor HP}=15,3317,if({Motor HP}=20,3763,if({Motor HP}=25,4209,if({Motor HP}=30,4655,0))))))) | H90: 0 | I90: Calculated | J90: {Measure:Quantity}*if({Motor HP}=5,400,if({Motor HP}=7.5,650,if({Motor HP}=10,1400,if({Motor HP}=15,1650,if({Motor HP}=20,1850,if({Motor HP}=25,2000,if({Motor HP}=30,2300,0))))))) | K90: 0 | L90: 2018-07-01 | M90: 2019-06-30 | N90: Calculated | O90: {Measure:Quantity}*{Motor HP}*1788 | R90: {Measure:Quantity}*{Motor HP}*.302 | U90: {Measure:Quantity}*{Factor:WinterCF}*{Motor HP}*.302 | V90: {Measure:Quantity}*{Factor:SummerCF}*{Motor HP}*.302 | AC90: 2018-01-01 | AD90: 2019-06-30 | AF90: 13 | AG90: 0.21 | AH90: 0.683 | AI90: 0.39 | AJ90: 0.308 | AK90: 0.214 | AL90: 0.088 | AM90: 1 | AN90: 1.122 | AO90: 1 | AP90: 0.52 | AQ90: 0.016 | AR90: {Measure:Quantity} | AS90: 1 | AT90: =DS90 -> {Motor HP} | AU90: 5 | BL90: =AS90*AU90*1788 -> 8940 | BM90: 0 | BN90: 0 | BO90: =AS90*AU90*0.302 -> 1.51 | BP90: 0 | BQ90: 0 | BR90: =BR$84*$AU90/$AU$84 -> -9.064531909e-05 | BS90: 8.828650678e-05 | BT90: 0 | BU90: 0.0006701591642 | BV90: 0.002706991231 | BW90: 4.51792695e-05 | BX90: 0.0002070716519 | BY90: 0 | BZ90: Res | CA90: Default DR | CB90: =Benefits(BL90,BR90,BS90,BT90,BU90,BV90,BW90,BX90,BY90,AF90,AI90,AJ90,AK90,AL90,AM90,AN90,AO90,AP90,AQ90,BZ90,CA90) -> 6250.685771 | CC90: -0.0800390308 | CD90: 0 | CE90: 0.7457473449 | CF90: 0.0111606411 | CG90: 0.2584905049 | CH90: 0.05559368162 | CI90: 0 | CJ90: 6251.756763 | CK90: 0.0800390308 | CM90: =AS90*IF(AU90=5,2425,IF(AU90=7.5,2648,IF(AU90=10,2871,IF(AU90=15,3317,IF(AU90=20,3763,IF(AU90=25,4209,IF(AU90=30,4655,0))))))) -> 2425 | CP90: 2425.080039 | CQ90: 0.496 | CR90: 2.207906367 | CS90: 1 | CT90: 400 | CV90: Electric | CX90: X=AS90*if(AU90=5,2425,if(AU90=7.5,2648,if(AU90=10,2871,if(AU90=15,3317,if(AU90=20,3763,if(AU90=25,4209,if(AU90=30,4655,0))))))) | CZ90: X=AS90*AU90*1788 | DA90: 0 | DB90: 0 | DC90: X=AS90*AU90*.302 | DD90: 0 | DE90: 0 | DF90: X=AS90*AG90*AU90*.302 | DG90: X=AS90*AH90*AU90*.302 | DH90: 0 | DI90: 0 | DJ90: 0 | DK90: 0 | DL90: 0 | DM90: 0 | DP90: {Factor:WinterCF} | DQ90: {Factor:SummerCF} | DR90: =IFERROR(INDEX($ED90:$IG90,MATCH(0,COUNTIF($DO90:DQ90,$ED90:$IG90),0)),"") -> {Measure:Quantity} | DS90: =IFERROR(INDEX($ED90:$IG90,MATCH(0,COUNTIF($DO90:DR90,$ED90:$IG90),0)),"") -> {Motor HP} | DT90: =IFERROR(INDEX($ED90:$IG90,MATCH(0,COUNTIF($DO90:DS90,$ED90:$IG90),0)),"") ->  | DU90: =IFERROR(INDEX($ED90:$IG90,MATCH(0,COUNTIF($DO90:DT90,$ED90:$IG90),0)),"") ->  | DV90: =IFERROR(INDEX($ED90:$IG90,MATCH(0,COUNTIF($DO90:DU90,$ED90:$IG90),0)),"") ->  | DW90: =IFERROR(INDEX($ED90:$IG90,MATCH(0,COUNTIF($DO90:DV90,$ED90:$IG90),0)),"") ->  | DX90: =IFERROR(INDEX($ED90:$IG90,MATCH(0,COUNTIF($DO90:DW90,$ED90:$IG90),0)),"") ->  | DY90: =IFERROR(INDEX($ED90:$IG90,MATCH(0,COUNTIF($DO90:DX90,$ED90:$IG90),0)),"") ->  | DZ90: =IFERROR(INDEX($ED90:$IG90,MATCH(0,COUNTIF($DO90:DY90,$ED90:$IG90),0)),"") ->  | EA90: =IFERROR(INDEX($ED90:$IG90,MATCH(0,COUNTIF($DO90:DZ90,$ED90:$IG90),0)),"") ->  | ED90: {Measure:Quantity} | EE90: {Motor HP} | EF90: {Motor HP} | EG90: {Motor HP} | EH90: {Motor HP} | EI90: {Motor HP} | EJ90: {Motor HP} | EK90: {Motor HP} | EN90: {Measure:Quantity} | EO90: {Motor HP} | EX90: {Measure:Quantity} | EY90: {Motor HP} | FH90: {Measure:Quantity} | FI90: {Factor:WinterCF} | FJ90: {Motor HP} | FR90: {Measure:Quantity} | FS90: {Factor:SummerCF} | FT90: {Motor HP} | IK90: 2
A91: C&I HVAC - Electric | B91: VFD: Return Fan on VAV Packaged or Rooftop HVAC Unit | C91: RFP | D91: 2018-07-01 | E91: 2019-06-30 | F91: Calculated | G91: {Measure:Quantity}*if({Motor HP}=5,2425,if({Motor HP}=7.5,2648,if({Motor HP}=10,2871,if({Motor HP}=15,3317,if({Motor HP}=20,3763,if({Motor HP}=25,4209,if({Motor HP}=30,4655,0))))))) | H91: 0 | I91: Calculated | J91: {Measure:Quantity}*if({Motor HP}=5,400,if({Motor HP}=7.5,650,if({Motor HP}=10,1400,if({Motor HP}=15,1650,if({Motor HP}=20,1850,if({Motor HP}=25,2000,if({Motor HP}=30,2300,0))))))) | K91: 0 | L91: 2018-07-01 | M91: 2019-06-30 | N91: Calculated | O91: {Measure:Quantity}*{Motor HP}*1788 | R91: {Measure:Quantity}*{Motor HP}*.302 | U91: {Measure:Quantity}*{Factor:WinterCF}*{Motor HP}*.302 | V91: {Measure:Quantity}*{Factor:SummerCF}*{Motor HP}*.302 | AC91: 2018-01-01 | AD91: 2019-06-30 | AF91: 13 | AG91: 0.21 | AH91: 0.683 | AI91: 0.39 | AJ91: 0.308 | AK91: 0.214 | AL91: 0.088 | AM91: 1 | AN91: 1.122 | AO91: 1 | AP91: 0.52 | AQ91: 0.016 | AR91: {Measure:Quantity} | AS91: 1 | AT91: {Motor HP} | AU91: 5 | BL91: =AS91*AU91*1788 -> 8940 | BM91: 0 | BN91: 0 | BO91: =AS91*AU91*0.302 -> 1.51 | BP91: 0 | BQ91: 0 | BR91: -9.064531909e-05 | BS91: 8.828650678e-05 | BT91: 0 | BU91: 0.0006701591642 | BV91: 0.002706991231 | BW91: 4.51792695e-05 | BX91: 0.0002070716519 | BY91: 0 | BZ91: Res | CA91: Default DR | CB91: =Benefits(BL91,BR91,BS91,BT91,BU91,BV91,BW91,BX91,BY91,AF91,AI91,AJ91,AK91,AL91,AM91,AN91,AO91,AP91,AQ91,BZ91,CA91) -> 6250.685771 | CC91: -0.0800390308 | CD91: 0 | CE91: 0.7457473449 | CF91: 0.0111606411 | CG91: 0.2584905049 | CH91: 0.05559368162 | CI91: 0 | CJ91: 6251.756763 | CK91: 0.0800390308 | CM91: =AS91*IF(AU91=5,2425,IF(AU91=7.5,2648,IF(AU91=10,2871,IF(AU91=15,3317,IF(AU91=20,3763,IF(AU91=25,4209,IF(AU91=30,4655,0))))))) -> 2425 | CP91: 2425.080039 | CQ91: 0.496 | CR91: 2.207906367 | CS91: 1 | CT91: 400 | CV91: Electric | CX91: X=AS91*if(AU91=5,2425,if(AU91=7.5,2648,if(AU91=10,2871,if(AU91=15,3317,if(AU91=20,3763,if(AU91=25,4209,if(AU91=30,4655,0))))))) | CZ91: X=AS91*AU91*1788 | DA91: 0 | DB91: 0 | DC91: X=AS91*AU91*.302 | DD91: 0 | DE91: 0 | DF91: X=AS91*AG91*AU91*.302 | DG91: X=AS91*AH91*AU91*.302 | DH91: 0 | DI91: 0 | DJ91: 0 | DK91: 0 | DL91: 0 | DM91: 0 | DP91: {Factor:WinterCF} | DQ91: {Factor:SummerCF} | DR91: =IFERROR(INDEX($ED91:$IG91,MATCH(0,COUNTIF($DO91:DQ91,$ED91:$IG91),0)),"") -> {Measure:Quantity} | DS91: =IFERROR(INDEX($ED91:$IG91,MATCH(0,COUNTIF($DO91:DR91,$ED91:$IG91),0)),"") -> {Motor HP} | DT91: =IFERROR(INDEX($ED91:$IG91,MATCH(0,COUNTIF($DO91:DS91,$ED91:$IG91),0)),"") ->  | DU91: =IFERROR(INDEX($ED91:$IG91,MATCH(0,COUNTIF($DO91:DT91,$ED91:$IG91),0)),"") ->  | DV91: =IFERROR(INDEX($ED91:$IG91,MATCH(0,COUNTIF($DO91:DU91,$ED91:$IG91),0)),"") ->  | DW91: =IFERROR(INDEX($ED91:$IG91,MATCH(0,COUNTIF($DO91:DV91,$ED91:$IG91),0)),"") ->  | DX91: =IFERROR(INDEX($ED91:$IG91,MATCH(0,COUNTIF($DO91:DW91,$ED91:$IG91),0)),"") ->  | DY91: =IFERROR(INDEX($ED91:$IG91,MATCH(0,COUNTIF($DO91:DX91,$ED91:$IG91),0)),"") ->  | DZ91: =IFERROR(INDEX($ED91:$IG91,MATCH(0,COUNTIF($DO91:DY91,$ED91:$IG91),0)),"") ->  | EA91: =IFERROR(INDEX($ED91:$IG91,MATCH(0,COUNTIF($DO91:DZ91,$ED91:$IG91),0)),"") ->  | ED91: {Measure:Quantity} | EE91: {Motor HP} | EF91: {Motor HP} | EG91: {Motor HP} | EH91: {Motor HP} | EI91: {Motor HP} | EJ91: {Motor HP} | EK91: {Motor HP} | EN91: {Measure:Quantity} | EO91: {Motor HP} | EX91: {Measure:Quantity} | EY91: {Motor HP} | FH91: {Measure:Quantity} | FI91: {Factor:WinterCF} | FJ91: {Motor HP} | FR91: {Measure:Quantity} | FS91: {Factor:SummerCF} | FT91: {Motor HP} | IK91: 2
